Workbook

Sheet SCO Calculator
A1: 2017 Supplemental Coverage Option Payment Calculator
A3: State: | B3: Kansas
A4: County: | B4: Saline
A5: Commodity: | B5: Corn
A6: Practice: | B6: Non-Irrigated
A7: Type: | B7: Grain
A9: Final County Yield | B9: =INDEX('2017 Data'!A2:AL17979,MATCH(1,('2017 Data'!G2:G17979=B3)*('2017 Data'!J2:J17979=B4)*('2017 Data'!D2:D17979=B5)*('2017 Data'!P2:P17979=B6)*('2017 Data'!N2:N17979=B7),0),34) -> 55.89
A10: Harvest Price | B10: =INDEX('2017 Data'!A2:AL17979,MATCH(1,('2017 Data'!G2:G17979=B3)*('2017 Data'!J2:J17979=B4)*('2017 Data'!D2:D17979=B5)*('2017 Data'!P2:P17979=B6)*('2017 Data'!N2:N17979=B7),0),37) -> 3.49
A11: Final Revenue Amount | B11: =B9*B10 -> 195.0561
A12: Expected County Yield | B12: =INDEX('2017 Data'!A2:AL17979,MATCH(1,('2017 Data'!G2:G17979=B3)*('2017 Data'!J2:J17979=B4)*('2017 Data'!D2:D17979=B5)*('2017 Data'!P2:P17979=B6)*('2017 Data'!N2:N17979=B7),0),33) -> 77.7
A13: Projected Price | B13: =INDEX('2017 Data'!A2:AL17979,MATCH(1,('2017 Data'!G2:G17979=B3)*('2017 Data'!J2:J17979=B4)*('2017 Data'!D2:D17979=B5)*('2017 Data'!P2:P17979=B6)*('2017 Data'!N2:N17979=B7),0),35) -> 3.96
A14: Expected Revenue Amount | B14: =B12*B13 -> 307.692
A16: SCO Coverage by Law | B16: 0.86
A17: Underlying Crop Insurance Coverage level | B17: 0.75
A18: Supplemental Ins. Coverage Range | B18: =B16-B17 -> 0.11
A19: SCO Revenue Protection County Payment Rate | B19: =MIN((ROUND(((0.86-(B11/(B12*(MAX(B10,B13)))))/B18),3)),1) -> 1
A20: SCO Revenue Protection-HPE County Payment Rate | B20: =MIN((ROUND(((0.86-(B11/B14))/B18),3)),1) -> 1
A21: SCO Yield Protection County Payment Rate | B21: =MIN((ROUND(((B16-(B9/B12))/B18),3)),1) -> 1
A23: Farm APH | B23: =B12 -> 77.7
A24: SCO Protection (RP) | B24: =B23*(MAX(B13,B10))*B18 -> 33.84612
A25: SCO Protection (RP-HPE) | B25: =B23*B13*B18 -> 33.84612
A26: SCO Protection (YP) | B26: =B23*B13*B18 -> 33.84612
A27: SCO Revenue Protection Payment | B27: =MAX($B$24*B19,0) -> 33.84612
A28: SCO Revenue Protection-HPE Payment | B28: =MAX($B$25*B20,0) -> 33.84612
A29: SCO Yield Protection Payment | B29: =MAX($B$26*B21,0) -> 33.84612
A32: Information on calculations can be found at | B32: https://www.rma.usda.gov/policies/2015/15sco.pdf
A33: Underlying county yields, prices and revenues were downloaded from the RMA's website: | D33: https://webapp.rma.usda.gov/apps/RIRS/SCOYieldsRevenuesPaymentIndicators.aspx

Sheet Counties (hidden)
A1: Crop Name | B1: Crop Lookup | C1: Crop Lookup2 | D1: Corn Practice | E1: Soybeans Practice | F1: Grain Sorghum Practice | G1: Wheat Type | H1: Wheat Practice | I1: Corn Type | J1: Grain Sorghum Type | K1: Soybeans Type | L1: Insurance Type | M1: Coverage Levels | N1: State Name | O1: Lookup | P1: Alabama | Q1: Alaska | R1: Arizona | S1: Arkansas | T1: California | U1: Colorado | V1: Connecticut | W1: Delaware | X1: Florida | Y1: Georgia | Z1: Hawaii | AA1: Idaho | AB1: Illinois | AC1: Indiana | AD1: Iowa | AE1: Kansas | AF1: Kentucky | AG1: Louisiana | AH1: Maine | AI1: Maryland | AJ1: Massachusetts | AK1: Michigan | AL1: Minnesota | AM1: Mississippi | AN1: Missouri | AO1: Montana | AP1: Nebraska | AQ1: Nevada | AR1: New Hampshire | AS1: New Jersey | AT1: New Mexico | AU1: New York | AV1: North Carolina | AW1: North Dakota | AX1: Ohio | AY1: Oklahoma | AZ1: Oregon | BA1: Pennsylvania | BB1: Rhode Island | BC1: South Carolina | BD1: South Dakota | BE1: Tennessee | BF1: Texas | BG1: Utah | BH1: Vermont | BI1: Virginia | BJ1: Washington | BK1: West Virginia | BL1: Wisconsin | BM1: Wyoming
A2: Corn | B2: Corn | C2: CornT | D2: Irrigated | E2: Fac (Irrigated) | F2: Fac (Irrigated) | G2: Durum | H2: Continuous Cropping | I2: Grain | J2: No Type Specified | K2: No Type Specified | L2: Revenue Protection | M2: 0.5 | N2: Alabama | O2: Alabama | P2: Autauga | Q2: Fairbanks North Star | R2: Cochise | S2: Arkansas | T2: Alameda | U2: Adams | V2: Fairfield | W2: Kent | X2: Alachua | Y2: Appling | AA2: Ada | AB2: Adams | AC2: Adams | AD2: Adair | AE2: Allen | AF2: Adair | AG2: Acadia | AH2: Androscoggin | AI2: Allegany | AJ2: Berkshire | AK2: Alcona | AL2: Aitkin | AM2: Adams | AN2: Adair | AO2: Beaverhead | AP2: Adams | AQ2: Carson City | AR2: Belknap | AS2: Atlantic | AT2: Bernalillo | AU2: Albany | AV2: Alamance | AW2: Adams | AX2: Adams | AY2: Adair | AZ2: Baker | BA2: Adams | BB2: Bristol | BC2: Abbeville | BD2: Aurora | BE2: Anderson | BF2: Anderson | BG2: Beaver | BH2: Addison | BI2: Accomack | BJ2: Adams | BK2: Barbour | BL2: Adams | BM2: Albany
A3: Soybeans | B3: Soybeans | C3: SoybeansT | D3: Non-Irrigated | E3: Fac (Non-Irrigated) | F3: Fac (Non-Irrigated) | G3: Spring | H3: Summerfallow | L3: Revenue Protection-HPE | M3: 0.55 | N3: Arizona | O3: Arizona | P3: Baldwin | Q3: Palmer | R3: Graham | S3: Ashley | T3: Alpine | U3: Alamosa | V3: Hartford | W3: New Castle | X3: Baker | Y3: Atkinson | AA3: Adams | AB3: Alexander | AC3: Allen | AD3: Adams | AE3: Anderson | AF3: Allen | AG3: Allen | AH3: Aroostook | AI3: Anne Arundel | AJ3: Bristol | AK3: Alger | AL3: Anoka | AM3: Alcorn | AN3: Andrew | AO3: Big Horn | AP3: Antelope | AQ3: Churchill | AR3: Carroll | AS3: Bergen | AT3: Chaves | AU3: Allegany | AV3: Alexander | AW3: Barnes | AX3: Allen | AY3: Alfalfa | AZ3: Benton | BA3: Allegheny | BB3: Kent | BC3: Aiken | BD3: Beadle | BE3: Bedford | BF3: Andrews | BG3: Box Elder | BH3: Bennington | BI3: Albemarle, Charlottesville City | BJ3: Asotin | BK3: Berkeley | BL3: Ashland | BM3: Big Horn
A4: Grain Sorghum | B4: GrainSorghum | C4: GrainSorghumT | E4: Irrigated | F4: Irrigated | G4: Winter | H4: Irrigated | L4: Yield Protection | M4: 0.6 | N4: Arkansas | O4: Arkansas | P4: Barbour | R4: Greenlee | S4: Baxter | T4: Amador | U4: Arapahoe | V4: Litchfield | W4: Sussex | X4: Bay | Y4: Bacon | AA4: Bannock | AB4: Bond | AC4: Bartholomew | AD4: Allamakee | AE4: Atchison | AF4: Anderson | AG4: Ascension | AH4: Cumberland | AI4: Baltimore | AJ4: Dukes | AK4: Allegan | AL4: Becker | AM4: Amite | AN4: Atchison | AO4: Blaine | AP4: Arthur | AQ4: Clark | AR4: Cheshire | AS4: Burlington | AT4: Cibola | AU4: Broome | AV4: Alleghany | AW4: Benson | AX4: Ashland | AY4: Atoka | AZ4: Clackamas | BA4: Armstrong | BB4: Newport | BC4: Allendale | BD4: Bennett | BE4: Benton | BF4: Angelina | BG4: Cache | BH4: Caledonia | BI4: Alexandria | BJ4: Benton | BK4: Boone | BL4: Barron | BM4: Campbell
A5: Wheat | B5: Wheat | C5: WheatT | E5: Non-Irrigated | F5: Non-Irrigated | H5: Non-Irrigated | M5: 0.65 | N5: California | O5: California | P5: Bibb | R5: La Paz | S5: Benton | T5: Butte | U5: Archuleta | V5: Middlesex | X5: Brevard | Y5: Baker | AA5: Bear Lake | AB5: Boone | AC5: Benton | AD5: Appanoose | AE5: Barber | AF5: Ballard | AG5: Assumption | AH5: Franklin | AI5: Calvert | AJ5: Essex | AK5: Alpena | AL5: Beltrami | AM5: Attala | AN5: Audrain | AO5: Broadwater | AP5: Banner | AQ5: Douglas | AR5: Coos | AS5: Camden | AT5: Colfax | AU5: Cattaraugus | AV5: Anson | AW5: Billings | AX5: Ashtabula | AY5: Beaver | AZ5: Clatsop | BA5: Beaver | BB5: Providence | BC5: Anderson | BD5: Bon Homme | BE5: Bledsoe | BF5: Aransas | BG5: Carbon | BH5: Chittenden | BI5: Alleghany, Covington City | BJ5: Chelan | BK5: Braxton | BL5: Bayfield | BM5: Carbon
E6: Nfac (Irrigated) | F6: Nfac (Irrigated) | M6: 0.7 | N6: Colorado | O6: Colorado | P6: Blount | R6: Maricopa | S6: Boone | T6: Calaveras | U6: Baca | V6: New Haven | X6: Calhoun | Y6: Baldwin | AA6: Benewah, South Shoshone | AB6: Brown | AC6: Blackford | AD6: Audubon | AE6: Barton | AF6: Barren | AG6: Avoyelles | AH6: Hancock | AI6: Caroline | AJ6: Franklin | AK6: Antrim | AL6: Benton | AM6: Benton | AN6: Barry | AO6: Carbon | AP6: Blaine | AQ6: Eureka | AR6: Grafton | AS6: Cape May | AT6: Curry | AU6: Cayuga | AV6: Ashe | AW6: Bottineau | AX6: Athens | AY6: Beckham | AZ6: Columbia | BA6: Bedford | BB6: Washington | BC6: Bamberg | BD6: Brookings | BE6: Blount | BF6: Archer | BG6: Daggett | BH6: Essex | BI6: Amelia | BJ6: Clallam | BK6: Brooke | BL6: Brown | BM6: Converse
E7: Nfac (Non-Irrigated) | F7: Nfac (Non-Irrigated) | M7: 0.75 | N7: Connecticut | O7: Connecticut | P7: Bullock | R7: Mohave | S7: Bradley | T7: Colusa | U7: Bent | V7: New London | X7: Columbia | Y7: Banks | AA7: Bingham | AB7: Bureau | AC7: Boone | AD7: Benton | AE7: Bourbon | AF7: Bath | AG7: Beauregard | AH7: Kennebec | AI7: Carroll | AJ7: Hampden | AK7: Arenac | AL7: Big Stone | AM7: Bolivar | AN7: Barton | AO7: Carter | AP7: Boone | AQ7: Humboldt | AR7: Hillsborough | AS7: Cumberland | AT7: De Baca | AU7: Chautauqua | AV7: Avery | AW7: Bowman | AX7: Auglaize | AY7: Blaine | AZ7: Coos | BA7: Berks | BC7: Barnwell | BD7: Brown | BE7: Bradley | BF7: Armstrong | BG7: Davis | BH7: Franklin | BI7: Amherst | BJ7: Clark | BK7: Cabell | BL7: Buffalo | BM7: Crook
M8: 0.8 | N8: Delaware | O8: Delaware | P8: Butler | R8: Pima | S8: Calhoun | T8: Contra Costa | U8: Boulder | V8: Tolland | X8: Dixie | Y8: Barrow | AA8: Blaine | AB8: Calhoun | AC8: Brown | AD8: Black Hawk | AE8: Brown | AF8: Bell | AG8: Bienville | AH8: Knox | AI8: Cecil | AJ8: Hampshire | AK8: Baraga | AL8: Blue Earth | AM8: Calhoun | AN8: Bates | AO8: Cascade | AP8: Box Butte | AQ8: Lander | AR8: Merrimack | AS8: Essex | AT8: Dona Ana | AU8: Chemung | AV8: Beaufort | AW8: Burke | AX8: Belmont | AY8: Bryan | AZ8: Crook | BA8: Blair | BC8: Beaufort | BD8: Brule | BE8: Campbell | BF8: Atascosa | BG8: Duchesne | BH8: Grand Isle | BI8: Appomattox | BJ8: Columbia | BK8: Calhoun | BL8: Burnett | BM8: Fremont
M9: 0.85 | N9: Florida | O9: Florida | P9: Calhoun | R9: Pinal | S9: Carroll | T9: El Dorado | U9: Cheyenne | V9: Windham | X9: Duval | Y9: Bartow | AA9: Boise | AB9: Carroll | AC9: Carroll | AD9: Boone | AE9: Butler | AF9: Boone | AG9: Bossier | AH9: Lincoln | AI9: Charles | AJ9: Middlesex | AK9: Barry | AL9: Brown | AM9: Carroll | AN9: Benton | AO9: Chouteau | AP9: Boyd | AQ9: Lyon | AR9: Rockingham | AS9: Gloucester | AT9: Eddy | AU9: Chenango | AV9: Bertie | AW9: Burleigh | AX9: Brown | AY9: Caddo | AZ9: Curry | BA9: Bradford | BC9: Berkeley | BD9: Buffalo | BE9: Cannon | BF9: Austin | BG9: Emery | BH9: Lamoille | BI9: Arlington | BJ9: Cowlitz | BK9: Clay | BL9: Calumet | BM9: Goshen
N10: Georgia | O10: Georgia | P10: Chambers | R10: Yavapai | S10: Chicot | T10: Fresno | U10: Conejas | X10: Escambia | Y10: Ben Hill | AA10: Bonner | AB10: Cass | AC10: Cass | AD10: Bremer | AE10: Chase | AF10: Bourbon | AG10: Caddo | AH10: Oxford | AI10: Dorchester | AJ10: Norfolk | AK10: Bay | AL10: Carlton | AM10: Chickasaw | AN10: Bollinger | AO10: Custer | AP10: Brown | AQ10: Northwest Nye | AR10: Strafford | AS10: Hudson | AT10: Grant | AU10: Clinton | AV10: Bladen | AW10: Cass | AX10: Butler | AY10: Canadian | AZ10: Deschutes | BA10: Bucks | BC10: Calhoun | BD10: Butte | BE10: Carroll | BF10: Bailey | BG10: Garfield | BH10: Orange | BI10: Augusta | BJ10: Douglas | BK10: Doddridge | BL10: Chippewa | BM10: Hot Springs
N11: Idaho | O11: Idaho | P11: Cherokee | R11: Yuma | S11: Clark | T11: Glenn | U11: Conejos | X11: Franklin | Y11: Berrien | AA11: Bonneville | AB11: Champaign | AC11: Clark | AD11: Buchanan | AE11: Chautauqua | AF11: Boyd | AG11: Calcasieu | AH11: Penobscot | AI11: Frederick | AJ11: Plymouth | AK11: Benzie | AL11: Carver | AM11: Choctaw | AN11: Boone | AO11: Daniels | AP11: Buffalo | AQ11: Pershing | AR11: Sullivan | AS11: Hunterdon, Union | AT11: Guadalupe | AU11: Columbia | AV11: Brunswick | AW11: Cavalier | AX11: Carroll | AY11: Carter | AZ11: Douglas | BA11: Butler | BC11: Charleston | BD11: Campbell | BE11: Carter | BF11: Bandera | BG11: Grand | BH11: Orleans | BI11: Bath | BJ11: Ferry | BK11: Fayette | BL11: Clark | BM11: Johnson
N12: Illinois | O12: Illinois | P12: Chilton | S12: Clay | T12: Humboldt | U12: Costilla | X12: Gadsden | Y12: Bibb | AA12: Boundary | AB12: Christian | AC12: Clay | AD12: Buena Vista | AE12: Cherokee | AF12: Boyle | AG12: Caldwell | AH12: Piscataquis | AI12: Garrett | AJ12: Worcester | AK12: Berrien | AL12: Cass | AM12: Claiborne | AN12: Buchanan | AO12: Dawson | AP12: Burt | AQ12: Southeast Nye | AS12: Mercer | AT12: Harding | AU12: Cortland | AV12: Buncombe | AW12: Dickey | AX12: Champaign | AY12: Cherokee | AZ12: Gilliam | BA12: Cambria | BC12: Cherokee | BD12: Charles Mix | BE12: Cheatham | BF12: Bastrop | BG12: Iron | BH12: Rutland | BI12: Bedford | BJ12: Franklin | BK12: Gilmer | BL12: Columbia | BM12: Laramie
N13: Indiana | O13: Indiana | P13: Choctaw | S13: Cleburne | T13: Imperial | U13: Crowley | X13: Gilchrist | Y13: Bleckley | AA13: Butte | AB13: Clark | AC13: Clinton | AD13: Butler | AE13: Cheyenne | AF13: Bracken | AG13: Cameron | AH13: Sagadahoc | AI13: Harford | AK13: Branch | AL13: Chippewa | AM13: Clarke | AN13: Butler | AO13: Deer Lodge | AP13: Butler | AQ13: Storey | AS13: Middlesex | AT13: Hidalgo | AU13: Delaware | AV13: Burke | AW13: Divide | AX13: Clark | AY13: Choctaw | AZ13: Grant | BA13: Cameron | BC13: Chester | BD13: Clark | BE13: Chester | BF13: Baylor | BG13: Juab | BH13: Washington | BI13: Bland | BJ13: Garfield | BK13: Grant | BL13: Crawford | BM13: Lincoln
N14: Iowa | O14: Iowa | P14: Clarke | S14: Cleveland | T14: Inyo | U14: Custer | X14: Gulf | Y14: Brantley | AA14: Camas | AB14: Clay | AC14: Crawford | AD14: Calhoun | AE14: Clark | AF14: Breathitt | AG14: Catahoula | AH14: Somerset | AI14: Howard | AK14: Calhoun | AL14: Chisago | AM14: Clay | AN14: Caldwell | AO14: Fallon | AP14: Carson City | AQ14: Washoe | AS14: Monmouth | AT14: Lea | AU14: Dutchess | AV14: Cabarrus | AW14: Dunn | AX14: Clermont | AY14: Cimarron | AZ14: Harney | BA14: Carbon | BC14: Chesterfield | BD14: Clay | BE14: Claiborne | BF14: Bee | BG14: Kane | BH14: Windham | BI14: Botetourt | BJ14: Grant | BK14: Greenbrier | BL14: Dane | BM14: Natrona
N15: Kansas | O15: Kansas | P15: Clay | S15: Columbia | T15: Kern | U15: Delta | X15: Hamilton | Y15: Brooks | AA15: Canyon | AB15: Clinton | AC15: Daviess | AD15: Carroll | AE15: Clay | AF15: Breckinridge | AG15: Claiborne | AH15: Waldo | AI15: Kent | AK15: Cass | AL15: Clay | AM15: Coahoma | AN15: Callaway | AO15: Fergus | AP15: Cass | AQ15: White Pine | AS15: Morris | AT15: Lincoln | AU15: Erie | AV15: Caldwell | AW15: Eddy | AX15: Clinton | AY15: Cleveland | AZ15: Hood River | BA15: Centre | BC15: Clarendon | BD15: Codington | BE15: Clay | BF15: Bell | BG15: Millard | BH15: Windsor | BI15: Brunswick | BJ15: Grays Harbor | BK15: Hampshire | BL15: Dodge | BM15: Niobrara
N16: Kentucky | O16: Kentucky | P16: Cleburne | S16: Conway | T16: Kings | U16: Denver | X16: Holmes | Y16: Bryan | AA16: Caribou | AB16: Coles | AC16: Dearborn | AD16: Cass | AE16: Cloud | AF16: Bullitt | AG16: Concordia | AH16: Washington | AI16: Montgomery | AK16: Charlevoix | AL16: Clearwater | AM16: Copiah | AN16: Camden | AO16: Flathead | AP16: Cedar | AS16: Ocean | AT16: Los Alamos | AU16: Essex | AV16: Camden | AW16: Emmons | AX16: Columbiana | AY16: Coal | AZ16: Jackson | BA16: Chester | BC16: Colleton | BD16: Corson | BE16: Cocke | BF16: Bexar | BG16: Morgan | BI16: Buchanan | BJ16: Island | BK16: Hancock | BL16: Door | BM16: Park
N17: Louisiana | O17: Louisiana | P17: Coffee | S17: Craighead | T17: Lake | U17: Dolores | X17: Jackson | Y17: Bulloch | AA17: Cassia | AB17: Cook | AC17: Decatur | AD17: Cedar | AE17: Coffey | AF17: Butler | AG17: De Soto | AH17: York | AI17: Prince George's | AK17: Cheboygan | AL17: Cook | AM17: Covington | AN17: Cape Girardeau | AO17: Gallatin | AP17: Chase | AS17: Passaic | AT17: Luna | AU17: Franklin | AV17: Carteret | AW17: Foster | AX17: Coshocton | AY17: Comanche | AZ17: Jefferson | BA17: Clarion | BC17: Darlington | BD17: Custer | BE17: Coffee | BF17: Blanco | BG17: Piute | BI17: Buckingham | BJ17: Jefferson | BK17: Hardy | BL17: Douglas | BM17: Platte
N18: Maine | O18: Maine | P18: Colbert | S18: Crawford | T18: Lassen | U18: Douglas | X18: Jefferson | Y18: Burke | AA18: Clark | AB18: Crawford | AC18: DeKalb | AD18: Cerro Gordo | AE18: Comanche | AF18: Caldwell | AG18: East Baton Rouge | AI18: Queen Anne's | AK18: Chippewa | AL18: Cottonwood | AM18: DeSoto | AN18: Carroll | AO18: Garfield | AP18: Cherry | AS18: Salem | AT18: McKinley | AU18: Fulton | AV18: Caswell | AW18: Golden Valley | AX18: Crawford | AY18: Cotton | AZ18: Josephine | BA18: Clearfield | BC18: Dillon | BD18: Davison | BE18: Crockett | BF18: Borden | BG18: Rich | BI18: Campbell, Lynchburg City | BJ18: Kitsap | BK18: Harrison | BL18: Dunn | BM18: Sheridan
N19: Maryland | O19: Maryland | P19: Conecuh | S19: Crittenden | T19: Los Angeles | U19: Eagle | X19: Lafayette | Y19: Butts | AA19: Clearwater | AB19: Cumberland | AC19: Delaware | AD19: Cherokee | AE19: Cowley | AF19: Calloway | AG19: East Carroll | AI19: Somerset | AK19: Clare | AL19: Crow Wing | AM19: Forrest | AN19: Carter | AO19: Glacier | AP19: Cheyenne | AS19: Somerset | AT19: Mora | AU19: Genesee | AV19: Catawba | AW19: Grand Forks | AX19: Cuyahoga | AY19: Craig | AZ19: Klamath | BA19: Clinton | BC19: Dorchester | BD19: Day | BE19: Cumberland | BF19: Bosque | BG19: Salt Lake | BI19: Caroline | BJ19: Kittitas | BK19: Jackson | BL19: Eau Claire | BM19: Sublette
N20: Massachusetts | O20: Massachusetts | P20: Coosa | S20: Cross | T20: Madera | U20: El Paso | X20: Lake | Y20: Calhoun | AA20: Elmore | AB20: DeKalb | AC20: Dubois | AD20: Chickasaw | AE20: Crawford | AF20: Campbell | AG20: East Feliciana | AI20: St. Mary's | AK20: Clinton | AL20: Dakota | AM20: Franklin | AN20: Cass | AO20: Golden Valley | AP20: Churchill | AS20: Sussex | AT20: Otero | AU20: Greene | AV20: Chatham | AW20: Grant | AX20: Darke | AY20: Creek | AZ20: Lake | BA20: Columbia | BC20: Edgefield | BD20: Deuel | BE20: Davidson | BF20: Bowie | BG20: San Juan | BI20: Carroll, East Galax City | BJ20: Klickitat | BK20: Jefferson | BL20: Florence | BM20: Sweetwater
N21: Michigan | O21: Michigan | P21: Covington | S21: Dallas | T21: Marin | U21: Elbert | X21: Lee | Y21: Camden | AA21: Franklin | AB21: DeWitt | AC21: Elkhart | AD21: Clarke | AE21: Decatur | AF21: Carlisle | AG21: Evangeline | AI21: Talbot | AK21: Crawford | AL21: Dodge | AM21: George | AN21: Cedar | AO21: Granite | AP21: Clark | AS21: Warren | AT21: Quay | AU21: Hamilton | AV21: Cherokee | AW21: Griggs | AX21: Defiance | AY21: Custer | AZ21: Lane | BA21: Crawford | BC21: Fairfield | BD21: Dewey | BE21: Decatur | BF21: Brazoria | BG21: Sanpete | BI21: Charles City | BJ21: Lewis | BK21: Kanawha | BL21: Fond du Lac | BM21: Teton
N22: Minnesota | O22: Minnesota | P22: Crenshaw | S22: Desha | T22: Mariposa | U22: Fremont | X22: Leon | Y22: Candler | AA22: Fremont | AB22: Douglas | AC22: Fayette | AD22: Clay | AE22: Dickinson | AF22: Carroll | AG22: Franklin | AI22: Washington | AK22: Delta | AL22: Douglas | AM22: Greene | AN22: Chariton | AO22: Hill | AP22: Clay | AT22: Rio Arriba | AU22: Herkimer | AV22: Chowan | AW22: Hettinger | AX22: Delaware | AY22: Delaware | AZ22: Lincoln | BA22: Cumberland | BC22: Florence | BD22: Douglas | BE22: DeKalb | BF22: Brazos | BG22: Sevier | BI22: Charlotte | BJ22: Lincoln | BK22: Lewis | BL22: Forest | BM22: Uinta
N23: Mississippi | O23: Mississippi | P23: Cullman | S23: Drew | T23: Merced | U23: Garfield | X23: Levy | Y23: Carroll | AA23: Gem | AB23: DuPage | AC23: Floyd | AD23: Clayton | AE23: Doniphan | AF23: Carter | AG23: Grant | AI23: Wicomico | AK23: Dickinson | AL23: East Otter Tail | AM23: Grenada | AN23: Christian | AO23: Jefferson | AP23: Colfax | AT23: Roosevelt | AU23: Jefferson | AV23: Clay | AW23: Kidder | AX23: East Lucas | AY23: Dewey | AZ23: Linn | BA23: Dauphin | BC23: Georgetown | BD23: Edmunds | BE23: Dickson | BF23: Briscoe | BG23: Summit | BI23: Chesapeake | BJ23: Mason | BK23: Lincoln | BL23: Grant | BM23: Washakie
N24: Missouri | O24: Missouri | P24: Dale | S24: Faulkner | T24: Modoc | U24: Grand | X24: Liberty | Y24: Catoosa | AA24: Gooding | AB24: Edgar | AC24: Fountain | AD24: Clinton | AE24: Douglas | AF24: Casey | AG24: Iberia | AI24: Worcester | AK24: Eaton | AL24: East Polk | AM24: Hancock | AN24: Clark | AO24: Judith Basin | AP24: Cuming | AT24: San Juan | AU24: Lewis | AV24: Cleveland | AW24: LaMoure | AX24: Erie | AY24: Ellis | AZ24: Malheur | BA24: Delaware | BC24: Greenville | BD24: Fall River | BE24: Dyer | BF24: Brooks | BG24: Tooele | BI24: Chesterfield | BJ24: Okanogan | BK24: Logan, Mingo | BL24: Green | BM24: Weston
N25: Montana | O25: Montana | P25: Dallas | S25: Franklin | T25: Mono | U25: Hinsdale | X25: Madison | Y25: Charlton | AA25: Idaho | AB25: Edwards | AC25: Franklin | AD25: Crawford | AE25: Edwards | AF25: Christian | AG25: Iberville | AK25: Emmet | AL25: Faribault | AM25: Harrison | AN25: Clay | AO25: Lake | AP25: Custer | AT25: San Miguel | AU25: Livingston | AV25: Columbus | AW25: Logan | AX25: Fairfield | AY25: Garfield | AZ25: Marion | BA25: Elk | BC25: Greenwood | BD25: Faulk | BE25: Fayette | BF25: Brown | BG25: Uintah | BI25: Clarke | BJ25: Pacific | BK25: Marion | BL25: Green Lake
N26: Nebraska | O26: Nebraska | P26: DeKalb | S26: Fulton | T26: Monterey | U26: Huerfano | X26: Manatee | Y26: Chatham | AA26: Jefferson | AB26: Effingham | AC26: Fulton | AD26: Dallas | AE26: Elk | AF26: Clark | AG26: Jackson | AK26: Genesee | AL26: Fillmore | AM26: Hinds | AN26: Clinton | AO26: Lewis and Clark | AP26: Dakota | AT26: Sandoval | AU26: Madison | AV26: Craven | AW26: McHenry | AX26: Fayette | AY26: Garvin | AZ26: Morrow | BA26: Erie | BC26: Hampton | BD26: Grant | BE26: Fentress | BF26: Burleson | BG26: Utah | BI26: Colonial Heights | BJ26: Pend Oreille | BK26: Marshall | BL26: Iowa
N27: Nevada | O27: Nevada | P27: Elmore | S27: Garland | T27: Napa | U27: Jefferson | X27: Marion | Y27: Chattahoochee | AA27: Jerome | AB27: Fayette | AC27: Gibson | AD27: Davis | AE27: Ellis | AF27: Clay | AG27: Jefferson Davis | AK27: Gladwin | AL27: Freeborn | AM27: Holmes | AN27: Cole | AO27: Liberty | AP27: Dawes, North Sioux | AT27: Santa Fe | AU27: Monroe | AV27: Cumberland | AW27: McIntosh | AX27: Franklin | AY27: Grady | AZ27: Multnomah | BA27: Fayette | BC27: Horry | BD27: Gregory | BE27: Franklin | BF27: Burnet | BG27: Wasatch | BI27: Craig | BJ27: Pierce | BK27: Mason | BL27: Iron
N28: New Hampshire | O28: NewHampshire | P28: Escambia | S28: Grant | T28: Nevada | U28: Kiowa | X28: Martin | Y28: Chattooga | AA28: Kootenai, North Shoshone | AB28: Ford | AC28: Grant | AD28: Decatur | AE28: Ellsworth | AF28: Clinton | AG28: La Salle | AK28: Gogebic | AL28: Goodhue | AM28: Humphreys | AN28: Cooper | AO28: Lincoln | AP28: Dawson | AT28: Sierra | AU28: Montgomery | AV28: Currituck | AW28: McKenzie | AX28: Fulton | AY28: Grant | AZ28: Polk | BA28: Forest | BC28: Jasper | BD28: Haakon | BE28: Gibson | BF28: Caldwell | BG28: Washington | BI28: Culpeper | BJ28: San Juan | BK28: Mercer, McDowell | BL28: Jackson
N29: New Jersey | O29: NewJersey | P29: Etowah | S29: Greene | T29: Orange | U29: Kit Carson | X29: Miami-Dade | Y29: Cherokee | AA29: Latah | AB29: Franklin | AC29: Greene | AD29: Delaware | AE29: Finney | AF29: Crittenden | AG29: Lafayette | AK29: Grand Traverse | AL29: Grant | AM29: Issaquena | AN29: Crawford | AO29: Madison | AP29: Deuel | AT29: Socorro | AU29: Niagara | AV29: Dare | AW29: McLean | AX29: Gallia | AY29: Greer | AZ29: Sherman | BA29: Franklin | BC29: Kershaw | BD29: Hamlin | BE29: Giles | BF29: Calhoun | BG29: Wayne | BI29: Cumberland | BJ29: Skagit | BK29: Mineral | BL29: Jefferson
N30: New Mexico | O30: NewMexico | P30: Fayette | S30: Hempstead | T30: Placer | U30: La Plata | X30: Monroe | Y30: Clarke | AA30: Lemhi, North Custer | AB30: Fulton | AC30: Hamilton | AD30: Des Moines | AE30: Ford | AF30: Cumberland | AG30: Lafourche | AK30: Gratiot | AL30: Hennepin | AM30: Itawamba | AN30: Dade | AO30: McCone | AP30: Dixon | AT30: Taos | AU30: Oneida | AV30: Davidson | AW30: Mercer | AX30: Geauga | AY30: Harmon | AZ30: Tillamook | BA30: Fulton | BC30: Lancaster | BD30: Hand | BE30: Grainger | BF30: Callahan | BG30: Weber | BI30: Danville | BJ30: Skamania | BK30: Monongalia | BL30: Juneau
N31: New York | O31: NewYork | P31: Franklin | S31: Hot Spring | T31: Plumas | U31: Larimer | X31: Nassau | Y31: Clay | AA31: Lewis | AB31: Gallatin | AC31: Hancock | AD31: Dickinson | AE31: Franklin | AF31: Daviess | AG31: Lincoln | AK31: Hillsdale | AL31: Houston | AM31: Jackson | AN31: Dallas | AO31: Meagher | AP31: Dodge | AT31: Torrance | AU31: Onondaga | AV31: Davie | AW31: Morton | AX31: Greene | AY31: Harper | AZ31: Umatilla | BA31: Greene | BC31: Laurens | BD31: Hanson | BE31: Greene | BF31: Cameron | BI31: Dickenson | BJ31: Snohomish, North King | BK31: Monroe | BL31: Kenosha
N32: North Carolina | O32: NorthCarolina | P32: Geneva | S32: Howard | T32: Riverside | U32: Las Animas | X32: Okaloosa | Y32: Clayton | AA32: Lincoln | AB32: Greene | AC32: Harrison | AD32: Dubuque | AE32: Geary | AF32: Edmonson | AG32: Livingston | AK32: Houghton | AL32: Hubbard | AM32: Jasper | AN32: Daviess | AO32: Mineral | AP32: Douglas | AT32: Union | AU32: Ontario | AV32: Duplin | AW32: Mountrail | AX32: Guernsey | AY32: Haskell | AZ32: Union | BA32: Huntingdon | BC32: Lee | BD32: Harding | BE32: Grundy | BF32: Camp | BI32: Dinwiddie, Petersburg City | BJ32: South King | BK32: Morgan | BL32: Kewaunee
N33: North Dakota | O33: NorthDakota | P33: Greene | S33: Independence | T33: Sacramento | U33: Lincoln | X33: Okeechobee | Y33: Clinch | AA33: Madison | AB33: Grundy | AC33: Hendricks | AD33: East Pottawattamie | AE33: Gove | AF33: Elliott | AG33: Madison | AK33: Huron | AL33: Isanti | AM33: Jefferson | AN33: DeKalb | AO33: Missoula | AP33: Dundy | AT33: Valencia | AU33: Orange, Rockland | AV33: Durham | AW33: Nelson | AX33: Hamilton | AY33: Hughes | AZ33: Wallowa | BA33: Indiana | BC33: Lexington | BD33: Hughes | BE33: Hamblen | BF33: Carson | BI33: Essex | BJ33: Spokane | BK33: Nicholas | BL33: La Crosse
N34: Ohio | O34: Ohio | P34: Hale | S34: Izard | T34: San Benito | U34: Logan | X34: Orange | Y34: Cobb | AA34: Minidoka | AB34: Hamilton | AC34: Henry | AD34: Emmet | AE34: Graham | AF34: Estill | AG34: Morehouse | AK34: Ingham | AL34: Itasca | AM34: Jefferson Davis | AN34: Dent | AO34: Musselshell | AP34: Eureka | AU34: Orleans | AV34: Edgecombe | AW34: Oliver | AX34: Hancock | AY34: Jackson | AZ34: Wasco | BA34: Jefferson | BC34: Marion | BD34: Hutchinson | BE34: Hamilton | BF34: Cass | BI34: Fairfax | BJ34: Stevens | BK34: Ohio | BL34: Lafayette
N35: Oklahoma | O35: Oklahoma | P35: Henry | S35: Jackson | T35: San Bernardino | U35: Mesa | X35: Osceola | Y35: Coffee | AA35: Nez Perce | AB35: Hancock | AC35: Howard | AD35: Fayette | AE35: Grant | AF35: Fayette | AG35: Natchitoches | AK35: Ionia | AL35: Jackson | AM35: Jones | AN35: Douglas | AO35: Park | AP35: Fillmore | AU35: Oswego | AV35: Forsyth | AW35: Pembina | AX35: Hardin | AY35: Jefferson | AZ35: Washington | BA35: Juniata | BC35: Marlboro | BD35: Hyde | BE35: Hancock | BF35: Castro | BI35: Falls Church | BJ35: Thurston | BK35: Pendleton | BL35: Langlade
N36: Oregon | O36: Oregon | P36: Houston | S36: Jefferson | T36: San Diego | U36: Mineral | X36: Palm Beach | Y36: Colquitt | AA36: Oneida | AB36: Hardin | AC36: Huntington | AD36: Floyd | AE36: Gray | AF36: Fleming | AG36: Ouachita | AK36: Iosco | AL36: Kanabec | AM36: Kemper | AN36: Dunklin | AO36: Petroleum | AP36: Franklin | AU36: Otsego | AV36: Franklin | AW36: Pierce | AX36: Harrison | AY36: Johnston | AZ36: Wheeler | BA36: Lackawanna | BC36: McCormick | BD36: Jackson | BE36: Hardeman | BF36: Chambers | BI36: Fauquier | BJ36: Wahkiakum | BK36: Pleasants | BL36: Lincoln
N37: Pennsylvania | O37: Pennsylvania | P37: Jackson | S37: Johnson | T37: San Joaquin | U37: Moffat | X37: Pasco | Y37: Columbia | AA37: Owyhee | AB37: Henderson | AC37: Jackson | AD37: Franklin | AE37: Greeley | AF37: Floyd | AG37: Pointe Coupee | AK37: Iron | AL37: Kandiyohi | AM37: Lafayette | AN37: Franklin | AO37: Phillips | AP37: Frontier | AU37: Putnam | AV37: Gaston | AW37: Ramsey | AX37: Henry | AY37: Kay | AZ37: Yamhill | BA37: Lancaster | BC37: Newberry | BD37: Jerauld | BE37: Hardin | BF37: Cherokee | BI37: Floyd | BJ37: Walla Walla | BK37: Pocahontas | BL37: Manitowoc
N38: Rhode Island | O38: Rhode Island | P38: Jefferson | S38: Lafayette | T38: San Luis Obispo | U38: Montezuma | X38: Pinellas | Y38: Cook | AA38: Payette | AB38: Henry | AC38: Jasper | AD38: Fremont | AE38: Greenwood | AF38: Franklin | AG38: Rapides | AK38: Isabella | AL38: Kittson | AM38: Lamar | AN38: Gasconade | AO38: Pondera | AP38: Furnas | AU38: Rensselaer | AV38: Gates | AW38: Ransom | AX38: Highland | AY38: Kingfisher | BA38: Lawrence | BC38: Oconee | BD38: Jones | BE38: Hawkins | BF38: Childress | BI38: Fluvanna | BJ38: Whatcom | BK38: Preston | BL38: Marathon
N39: South Carolina | O39: South Carolina | P39: Lamar | S39: Lawrence | T39: San Mateo | U39: Montrose | X39: Polk | Y39: Coweta | AA39: Power | AB39: Iroquois | AC39: Jay | AD39: Greene | AE39: Hamilton | AF39: Fulton | AG39: Red River | AK39: Jackson | AL39: Koochiching | AM39: Lauderdale | AN39: Gentry | AO39: Powder River | AP39: Gage | AU39: Saratoga | AV39: Graham | AW39: Renville | AX39: Hocking | AY39: Kiowa | BA39: Lebanon | BC39: Orangeburg | BD39: Kingsbury | BE39: Haywood | BF39: Clay | BI39: Franklin | BJ39: Whitman | BK39: Putnam | BL39: Marinette
N40: South Dakota | O40: South Dakota | P40: Lauderdale | S40: Lee | T40: Santa Barbara | U40: Morgan | X40: Putnam | Y40: Crawford | AA40: South Custer | AB40: Jackson | AC40: Jefferson | AD40: Grundy | AE40: Harper | AF40: Gallatin | AG40: Richland | AK40: Kalamazoo | AL40: Lac qui Parle | AM40: Lawrence | AN40: Greene | AO40: Powell | AP40: Garden | AU40: Schenectady | AV40: Granville | AW40: Richland | AX40: Holmes | AY40: Latimer | BA40: Lehigh | BC40: Pickens | BD40: Lake | BE40: Henderson | BF40: Cochran | BI40: Frederick, Winchester City | BJ40: Yakima | BK40: Raleigh | BL40: Marquette
N41: Tennessee | O41: Tennessee | P41: Lawrence | S41: Lincoln | T41: Santa Clara | U41: Otero | X41: Saint Johns | Y41: Crisp | AA41: Teton | AB41: Jasper | AC41: Jennings | AD41: Guthrie | AE41: Harvey | AF41: Garrard | AG41: Sabine | AK41: Kalkaska | AL41: Lake | AM41: Leake | AN41: Grundy | AO41: Prairie | AP41: Garfield | AU41: Schoharie | AV41: Greene | AW41: Rolette | AX41: Huron | AY41: Le Flore | BA41: Luzerne | BC41: Richland | BD41: Lawrence | BE41: Henry | BF41: Coke | BI41: Giles | BK41: Randolph | BL41: Menominee
N42: Texas | O42: Texas | P42: Lee | S42: Little River | T42: Santa Cruz | U42: Ouray | X42: Saint Lucie | Y42: Dade | AA42: Twin Falls | AB42: Jefferson | AC42: Johnson | AD42: Hamilton | AE42: Haskell | AF42: Grant | AG42: St. Charles | AK42: Kent | AL42: Lake of the Woods | AM42: Lee | AN42: Harrison | AO42: Ravalli | AP42: Gosper | AU42: Schuyler | AV42: Guilford | AW42: Sargent | AX42: Jackson | AY42: Lincoln | BA42: Lycoming | BC42: Saluda | BD42: Lincoln | BE42: Hickman | BF42: Coleman | BI42: Gloucester | BK42: Ritchie | BL42: Milwaukee
N43: Utah | O43: Utah | P43: Limestone | S43: Logan | T43: Shasta | U43: Phillips | X43: Santa Rosa | Y43: Dawson | AA43: Valley | AB43: Jersey | AC43: Knox | AD43: Hancock | AE43: Hodgeman | AF43: Graves | AG43: St. Helena | AK43: Keweenaw | AL43: Le Sueur | AM43: Leflore | AN43: Henry | AO43: Richland | AP43: Grant | AU43: Seneca | AV43: Halifax | AW43: Sheridan | AX43: Jefferson | AY43: Logan | BA43: McKean | BC43: Spartanburg | BD43: Lyman | BE43: Houston | BF43: Collin | BI43: Goochland | BK43: Roane | BL43: Monroe
N44: Vermont | O44: Vermont | P44: Lowndes | S44: Lonoke | T44: Sierra | U44: Pitkin | X44: Sarasota | Y44: Decatur | AA44: Washington | AB44: Jo Daviess | AC44: Kosciusko | AD44: Hardin | AE44: Jackson | AF44: Grayson | AG44: St. James | AK44: Lake | AL44: Lincoln | AM44: Lincoln | AN44: Hickory | AO44: Roosevelt | AP44: Greeley | AU44: St. Lawrence | AV44: Harnett | AW44: Sioux | AX44: Knox | AY44: Love | BA44: Mercer | BC44: Sumter | BD44: Marshall | BE44: Humphreys | BF44: Collingsworth | BI44: Grayson, West Galax City | BK44: Summers | BL44: Oconto
N45: Virginia | O45: Virginia | P45: Macon | S45: Madison | T45: Siskiyou | U45: Prowers | X45: Seminole | Y45: DeKalb | AB45: Johnson | AC45: LaGrange | AD45: Harrison | AE45: Jefferson | AF45: Green | AG45: St. John the Baptist | AK45: Lapeer | AL45: Lyon | AM45: Lowndes | AN45: Holt | AO45: Rosebud | AP45: Hall | AU45: Steuben | AV45: Haywood | AW45: Slope | AX45: Lake | AY45: Major | BA45: Mifflin | BC45: Union | BD45: McCook | BE45: Jackson | BF45: Colorado | BI45: Greene | BK45: Taylor | BL45: Oneida
N46: Washington | O46: Washington | P46: Madison | S46: Marion | T46: Solano | U46: Pueblo | X46: Sumter | Y46: Dodge | AB46: Kane | AC46: Lake | AD46: Henry | AE46: Jewell | AF46: Greenup | AG46: St. Landry | AK46: Leelanau | AL46: Mahnomen | AM46: Madison | AN46: Howard | AO46: Sanders | AP46: Hamilton | AU46: Suffolk, Nassau | AV46: Henderson | AW46: Stark | AX46: Lawrence | AY46: Marshall | BA46: Monroe | BC46: Williamsburg | BD46: McPherson | BE46: Jefferson | BF46: Comal | BI46: Greensville, Emporia City | BK46: Tucker | BL46: Outagamie
N47: West Virginia | O47: West Virginia | P47: Marengo | S47: Miller | T47: Sonoma | U47: Rio Blanco | X47: Suwannee | Y47: Dooly | AB47: Kankakee | AC47: LaPorte | AD47: Howard | AE47: Johnson | AF47: Hancock | AG47: St. Martin | AK47: Lenawee | AL47: Marshall | AM47: Marion | AN47: Howell | AO47: Sheridan | AP47: Harlan | AU47: Sullivan | AV47: Hertford | AW47: Steele | AX47: Licking | AY47: Mayes | BA47: Montgomery | BC47: York | BD47: Meade | BE47: Johnson | BF47: Comanche | BI47: Halifax | BK47: Tyler | BL47: Ozaukee
N48: Wisconsin | O48: Wisconsin | P48: Marion | S48: Mississippi | T48: Stanislaus | U48: Rio Grande | X48: Taylor | Y48: Dougherty | AB48: Kendall | AC48: Lawrence | AD48: Humboldt | AE48: Kearny | AF48: Hardin | AG48: St. Mary | AK48: Livingston | AL48: Martin | AM48: Marshall | AN48: Iron | AO48: Silver Bow | AP48: Hayes | AU48: Tioga | AV48: Hoke | AW48: Stutsman | AX48: Logan | AY48: McClain | BA48: Montour | BD48: Mellette | BE48: Knox | BF48: Concho | BI48: Hampton | BK48: Upshur | BL48: Pepin
N49: Wyoming | O49: Wyoming | P49: Marshall | S49: Monroe | T49: Sutter | U49: Routt | X49: Union | Y49: Douglas | AB49: Knox | AC49: Madison | AD49: Ida | AE49: Kingman | AF49: Harlan | AG49: St. Tammany | AK49: Luce | AL49: McLeod | AM49: Monroe | AN49: Jackson | AO49: Stillwater | AP49: Hitchcock | AU49: Tompkins | AV49: Hyde | AW49: Towner | AX49: Lorain | AY49: McCurtain | BA49: Northampton | BD49: Miner | BE49: Lake | BF49: Cooke | BI49: Hanover | BK49: Wayne | BL49: Pierce
P50: Mobile | S50: Montgomery | T50: Tehama | U50: Saguache | X50: Volusia | Y50: Early | AB50: Lake | AC50: Marion | AD50: Iowa | AE50: Kiowa | AF50: Harrison | AG50: Tangipahoa | AK50: Mackinac | AL50: Meeker | AM50: Montgomery | AN50: Jasper | AO50: Sweet Grass | AP50: Holt | AU50: Ulster | AV50: Iredell | AW50: Traill | AX50: Madison | AY50: McIntosh | BA50: Northumberland | BD50: Minnehaha | BE50: Lauderdale | BF50: Coryell | BI50: Henrico, Richmond City | BK50: Webster | BL50: Polk
P51: Monroe | S51: Nevada | T51: Trinity | U51: San Juan | X51: Wakulla | Y51: Echols | AB51: LaSalle | AC51: Marshall | AD51: Jackson | AE51: Labette | AF51: Hart | AG51: Tensas | AK51: Macomb | AL51: Mille Lacs | AM51: Neshoba | AN51: Jefferson | AO51: Teton | AP51: Hooker | AU51: Warren | AV51: Jackson | AW51: Walsh | AX51: Mahoning | AY51: Murray | BA51: Perry | BD51: Moody | BE51: Lawrence | BF51: Cottle | BI51: Henry, Martinsville City | BK51: Wetzel | BL51: Portage
P52: Montgomery | S52: Newton | T52: Tulare | U52: San Miguel | X52: Walton | Y52: Effingham | AB52: Lawrence | AC52: Martin | AD52: Jasper | AE52: Lane | AF52: Henderson | AG52: Terrebonne | AK52: Manistee | AL52: Morrison | AM52: Newton | AN52: Johnson | AO52: Toole | AP52: Howard | AU52: Washington | AV52: Johnston | AW52: Ward | AX52: Marion | AY52: Muskogee | BA52: Philadelphia | BD52: Pennington | BE52: Lewis | BF52: Crockett | BI52: Highland | BK52: Wirt | BL52: Price
P53: Morgan | S53: Ouachita | T53: Tuolumne | U53: Sedgwick | X53: Washington | Y53: Elbert | AB53: Lee | AC53: Miami | AD53: Jefferson | AE53: Leavenworth | AF53: Henry | AG53: Union | AK53: Marquette | AL53: Mower | AM53: Noxubee | AN53: Knox | AO53: Treasure | AP53: Humboldt | AU53: Wayne | AV53: Jones | AW53: Wells | AX53: Medina | AY53: Noble | BA53: Pike | BD53: Perkins | BE53: Lincoln | BF53: Crosby | BI53: Hopewell | BK53: Wood | BL53: Racine
P54: Perry | S54: Perry | T54: Ventura | U54: Washington | Y54: Emanuel | AB54: Livingston | AC54: Monroe | AD54: Johnson | AE54: Lincoln | AF54: Hickman | AG54: Vermilion | AK54: Mason | AL54: Murray | AM54: Oktibbeha | AN54: Laclede | AO54: Valley | AP54: Jefferson | AU54: Westchester | AV54: Lee | AW54: Williams | AX54: Meigs | AY54: Nowata | BA54: Potter | BD54: Potter | BE54: Loudon | BF54: Culberson | BI54: Isle of Wight | BK54: Wyoming | BL54: Richland
P55: Pickens | S55: Phillips | T55: Yolo | U55: Weld | Y55: Evans | AB55: Logan | AC55: Montgomery | AD55: Jones | AE55: Linn | AF55: Hopkins | AG55: Vernon | AK55: Mecosta | AL55: Nicollet | AM55: Panola | AN55: Lafayette | AO55: Wheatland | AP55: Johnson | AU55: Wyoming | AV55: Lenoir | AX55: Mercer | AY55: Okfuskee | BA55: Schuylkill | BD55: Roberts | BE55: Macon | BF55: Dallam | BI55: James City, Williamsburg City | BL55: Rock
P56: Pike | S56: Pike | T56: Yuba | U56: Yuma | Y56: Fannin | AB56: Macon | AC56: Morgan | AD56: Keokuk | AE56: Logan | AF56: Jackson | AG56: Washington | AK56: Menominee | AL56: Nobles | AM56: Pearl River | AN56: Lawrence | AO56: Wibaux | AP56: Kearney | AU56: Yates | AV56: Lincoln | AX56: Miami | AY56: Oklahoma | BA56: Snyder | BD56: Sanborn | BE56: Madison | BF56: Dallas | BI56: King and Queen | BL56: Rusk
P57: Randolph | S57: Poinsett | T57: Ventura | U57: Saguache | Y57: Fayette | AB57: Macoupin | AC57: Newton | AD57: Kossuth | AE57: Lyon | AF57: Jefferson | AG57: Webster | AK57: Midland | AL57: Norman | AM57: Perry | AN57: Lewis | AO57: Yellowstone | AP57: Keith | AV57: Macon | AX57: Monroe | AY57: Okmulgee | BA57: Somerset | BD57: Shannon | BE57: Marion | BF57: Dawson | BI57: King George | BL57: Sauk
P58: Russell | S58: Polk | T58: Yolo | U58: San Juan | Y58: Floyd | AB58: Madison | AC58: Noble | AD58: Lee | AE58: Marion | AF58: Jessamine | AG58: West Baton Rouge | AK58: Missaukee | AL58: North St. Louis | AM58: Pike | AN58: Lincoln | AP58: Keya Paha | AV58: Madison | AX58: Montgomery | AY58: Osage | BA58: Sullivan | BD58: Spink | BE58: Marshall | BF58: Deaf Smith | BI58: King William | BL58: Sawyer
P59: Shelby | S59: Pope | T59: Yuba | U59: San Miguel | Y59: Forsyth | AB59: Marion | AC59: Ohio | AD59: Linn | AE59: Marshall | AF59: Johnson | AG59: West Carroll | AK59: Monroe | AL59: Olmsted | AM59: Pontotoc | AN59: Linn | AP59: Kimball | AV59: Martin | AX59: Morgan | AY59: Ottawa | BA59: Susquehanna | BD59: Stanley | BE59: Maury | BF59: Delta | BI59: Lancaster | BL59: Shawano
P60: St. Clair | S60: Prairie | U60: Sedgwick | Y60: Franklin | AB60: Marshall | AC60: Orange | AD60: Louisa | AE60: McPherson | AF60: Kenton | AG60: West Feliciana | AK60: Montcalm | AL60: Pennington | AM60: Prentiss | AN60: Livingston | AP60: Knox | AV60: McDowell | AX60: Morrow | AY60: Pawnee | BA60: Tioga | BD60: Sully | BE60: McMinn | BF60: Denton | BI60: Lee | BL60: Sheboygan
P61: Sumter | S61: Pulaski | U61: Summit | Y61: Fulton | AB61: Mason | AC61: Owen | AD61: Lucas | AE61: Meade | AF61: Knott | AG61: Winn | AK61: Montmorency | AL61: Pine | AM61: Quitman | AN61: Macon | AP61: Lancaster | AV61: Mecklenburg | AX61: Muskingum | AY61: Payne | BA61: Union | BD61: Todd | BE61: McNairy | BF61: DeWitt | BI61: Loudoun | BL61: St. Croix
P62: Talladega | S62: Randolph | U62: Teller | Y62: Gilmer | AB62: Massac | AC62: Parke | AD62: Lyon | AE62: Miami | AF62: Knox | AK62: Muskegon | AL62: Pipestone | AM62: Rankin | AN62: Madison | AP62: Lander | AV62: Mitchell | AX62: Noble | AY62: Pittsburg | BA62: Venango | BD62: Tripp | BE62: Meigs | BF62: Dickens | BI62: Louisa | BL62: Taylor
P63: Tallapoosa | S63: Saline | U63: Washington | Y63: Glascock | AB63: McDonough | AC63: Perry | AD63: Madison | AE63: Mitchell | AF63: Larue | AK63: Newaygo | AL63: Pope | AM63: Scott | AN63: Maries | AP63: Lincoln | AV63: Montgomery | AX63: Ottawa | AY63: Pontotoc | BA63: Warren | BD63: Turner | BE63: Monroe | BF63: Dimmit | BI63: Lunenburg | BL63: Trempealeau
P64: Tuscaloosa | S64: Scott | U64: Weld | Y64: Glynn | AB64: McHenry | AC64: Pike | AD64: Mahaska | AE64: Montgomery | AF64: Laurel | AK64: Oakland | AL64: Ramsey | AM64: Sharkey | AN64: Marion | AP64: Logan | AV64: Moore | AX64: Paulding | AY64: Pottawatomie | BA64: Washington | BD64: Union | BE64: Montgomery | BF64: Donley | BI64: Madison | BL64: Vernon
P65: Walker | S65: Searcy | U65: Yuma | Y65: Gordon | AB65: McLean | AC65: Porter | AD65: Marion | AE65: Morris | AF65: Lawrence | AK65: Oceana | AL65: Red Lake | AM65: Simpson | AN65: McDonald | AP65: Loup | AV65: Nash | AX65: Perry | AY65: Pushmataha | BA65: Wayne | BD65: Walworth | BE65: Moore | BF65: Duval | BI65: Manassas | BL65: Vilas
P66: Washington | S66: Sebastian | Y66: Grady | AB66: Menard | AC66: Posey | AD66: Marshall | AE66: Morton | AF66: Lee | AK66: Ogemaw | AL66: Redwood | AM66: Smith | AN66: Mercer | AP66: Lyon | AV66: New Hanover | AX66: Pickaway | AY66: Roger Mills | BA66: Westmoreland | BD66: Yankton | BE66: Morgan | BF66: Eastland | BI66: Manassas Park | BL66: Walworth
P67: Wilcox | S67: Sevier | Y67: Greene | AB67: Mercer | AC67: Pulaski | AD67: Mills | AE67: Nemaha | AF67: Leslie | AK67: Ontonagon | AL67: Renville | AM67: Stone | AN67: Miller | AP67: Madison | AV67: Northampton | AX67: Pike | AY67: Rogers | BA67: Wyoming | BD67: Ziebach | BE67: Obion | BF67: Edwards | BI67: Mathews | BL67: Washburn
P68: Winston | S68: Sharp | Y68: Gwinnett | AB68: Monroe | AC68: Putnam | AD68: Mitchell | AE68: Neosho | AF68: Letcher | AK68: Osceola | AL68: Rice | AM68: Sunflower | AN68: Mississippi | AP68: McPherson | AV68: Onslow | AX68: Portage | AY68: Seminole | BA68: York | BE68: Overton | BF68: El Paso | BI68: Mecklenburg | BL68: Washington
S69: St. Francis | Y69: Habersham | AB69: Montgomery | AC69: Randolph | AD69: Monona | AE69: Ness | AF69: Lewis | AK69: Oscoda | AL69: Rock | AM69: Tallahatchie | AN69: Moniteau | AP69: Merrick | AV69: Orange | AX69: Preble | AY69: Sequoyah | BE69: Perry | BF69: Ellis | BI69: Middlesex | BL69: Waukesha
S70: Stone | Y70: Hall | AB70: Morgan | AC70: Ripley | AD70: Monroe | AE70: Norton | AF70: Lincoln | AK70: Otsego | AL70: Roseau | AM70: Tate | AN70: Monroe | AP70: Morrill | AV70: Pamlico | AX70: Putnam | AY70: Stephens | BE70: Pickett | BF70: Erath | BI70: Montgomery, Radford City | BL70: Waupaca
S71: Union | Y71: Hancock | AB71: Moultrie | AC71: Rush | AD71: Montgomery | AE71: Osage | AF71: Livingston | AK71: Ottawa | AL71: Scott | AM71: Tippah | AN71: Montgomery | AP71: Nance | AV71: Pasquotank | AX71: Richland | AY71: Texas | BE71: Polk | BF71: Falls | BI71: Nelson | BL71: Waushara
S72: Van Buren | Y72: Haralson | AB72: Ogle | AC72: Scott | AD72: Muscatine | AE72: Osborne | AF72: Logan | AK72: Presque Isle | AL72: Sherburne | AM72: Tishomingo | AN72: Morgan | AP72: Nemaha | AV72: Pender | AX72: Ross | AY72: Tillman | BE72: Putnam | BF72: Fannin | BI72: New Kent | BL72: Winnebago
S73: Washington | Y73: Harris | AB73: Peoria | AC73: Shelby | AD73: O'Brien | AE73: Ottawa | AF73: Lyon | AK73: Roscommon | AL73: Sibley | AM73: Tunica | AN73: New Madrid | AP73: Northwest Nye | AV73: Perquimans | AX73: Sandusky | AY73: Tulsa | BE73: Rhea | BF73: Fayette | BI73: Newport News | BL73: Wood
S74: White | Y74: Hart | AB74: Perry | AC74: Spencer | AD74: Osceola | AE74: Pawnee | AF74: Madison | AK74: Saginaw | AL74: South St. Louis | AM74: Union | AN74: Newton | AP74: Nuckolls | AV74: Person | AX74: Scioto | AY74: Wagoner | BE74: Roane | BF74: Fisher | BI74: Norfolk
S75: Woodruff | Y75: Heard | AB75: Piatt | AC75: St. Joseph | AD75: Page | AE75: Phillips | AF75: Magoffin | AK75: Sanilac | AL75: Stearns | AM75: Walthall | AN75: Nodaway | AP75: Otoe | AV75: Pitt | AX75: Seneca | AY75: Washington | BE75: Robertson | BF75: Floyd | BI75: Northampton
S76: Yell | Y76: Henry | AB76: Pike | AC76: Starke | AD76: Palo Alto | AE76: Pottawatomie | AF76: Marion | AK76: Schoolcraft | AL76: Steele | AM76: Warren | AN76: Oregon | AP76: Pawnee | AV76: Polk | AX76: Shelby | AY76: Washita | BE76: Rutherford | BF76: Foard | BI76: Northumberland
Y77: Houston | AB77: Pope | AC77: Steuben | AD77: Plymouth | AE77: Pratt | AF77: Marshall | AK77: Shiawassee | AL77: Stevens | AM77: Washington | AN77: Osage | AP77: Perkins | AV77: Randolph | AX77: Stark | AY77: Woods | BE77: Scott | BF77: Fort Bend | BI77: Norton
Y78: Irwin | AB78: Pulaski | AC78: Sullivan | AD78: Pocahontas | AE78: Rawlins | AF78: Martin | AK78: St. Clair | AL78: Swift | AM78: Wayne | AN78: Ozark | AP78: Pershing | AV78: Richmond | AX78: Summit | AY78: Woodward | BE78: Sequatchie | BF78: Franklin | BI78: Nottoway
Y79: Jackson | AB79: Putnam | AC79: Switzerland | AD79: Polk | AE79: Reno | AF79: Mason | AK79: St. Joseph | AL79: Todd | AM79: Webster | AN79: Pemiscot | AP79: Phelps | AV79: Robeson | AX79: Trumbull | BE79: Sevier | BF79: Frio | BI79: Orange
Y80: Jasper | AB80: Randolph | AC80: Tippecanoe | AD80: Poweshiek | AE80: Republic | AF80: McCracken | AK80: Tuscola | AL80: Traverse | AM80: Wilkinson | AN80: Perry | AP80: Pierce | AV80: Rockingham | AX80: Tuscarawas | BE80: Shelby | BF80: Gaines | BI80: Page
Y81: Jeff Davis | AB81: Richland | AC81: Tipton | AD81: Ringgold | AE81: Rice | AF81: McCreary | AK81: Van Buren | AL81: Wabasha | AM81: Winston | AN81: Pettis | AP81: Platte | AV81: Rowan | AX81: Union | BE81: Smith | BF81: Galveston | BI81: Patrick
Y82: Jefferson | AB82: Rock Island | AC82: Union | AD82: Sac | AE82: Riley | AF82: McLean | AK82: Washtenaw | AL82: Wadena | AM82: Yalobusha | AN82: Phelps | AP82: Polk | AV82: Rutherford | AX82: Van Wert | BE82: Stewart | BF82: Garza | BI82: Pittsylvania
Y83: Jenkins | AB83: Saline | AC83: Vanderburgh | AD83: Scott | AE83: Rooks | AF83: Meade | AK83: Wayne | AL83: Waseca | AM83: Yazoo | AN83: Pike | AP83: Red Willow | AV83: Sampson | AX83: Vinton | BE83: Sullivan | BF83: Gillespie | BI83: Portsmouth
Y84: Johnson | AB84: Sangamon | AC84: Vermillion | AD84: Shelby | AE84: Rush | AF84: Menifee | AK84: Wexford | AL84: Washington | AN84: Platte | AP84: Richardson | AV84: Scotland | AX84: Warren | BE84: Sumner | BF84: Glasscock | BI84: Powhatan
Y85: Jones | AB85: Schuyler | AC85: Vigo | AD85: Sioux | AE85: Russell | AF85: Mercer | AL85: Watonwan | AN85: Polk | AP85: Rock | AV85: Stanly | AX85: Washington | BE85: Tipton | BF85: Goliad | BI85: Prince Edward
Y86: Lamar | AB86: Scott | AC86: Wabash | AD86: Story | AE86: Saline | AF86: Metcalfe | AL86: West Otter Tail | AN86: Pulaski | AP86: Saline | AV86: Stokes | AX86: Wayne | BE86: Trousdale | BF86: Gonzales | BI86: Prince George
Y87: Lanier | AB87: Shelby | AC87: Warren | AD87: Tama | AE87: Scott | AF87: Monroe | AL87: West Polk | AN87: Putnam | AP87: Sarpy | AV87: Surry | AX87: West Lucas | BE87: Unicoi | BF87: Gray | BI87: Prince William
Y88: Laurens | AB88: St. Clair | AC88: Warrick | AD88: Taylor | AE88: Sedgwick | AF88: Montgomery | AL88: Wilkin | AN88: Ralls | AP88: Saunders | AV88: Swain | AX88: Williams | BE88: Union | BF88: Grayson | BI88: Pulaski
Y89: Lee | AB89: Stark | AC89: Washington | AD89: Union | AE89: Seward | AF89: Morgan | AL89: Winona | AN89: Randolph | AP89: Scotts Bluff | AV89: Transylvania | AX89: Wood | BE89: Van Buren | BF89: Gregg | BI89: Rappahannock
Y90: Liberty | AB90: Stephenson | AC90: Wayne | AD90: Van Buren | AE90: Shawnee | AF90: Muhlenberg | AL90: Wright | AN90: Ray | AP90: Seward | AV90: Tyrrell | AX90: Wyandot | BE90: Warren | BF90: Grimes | BI90: Richmond
Y91: Lincoln | AB91: Tazewell | AC91: Wells | AD91: Wapello | AE91: Sheridan | AF91: Nelson | AL91: Yellow Medicine | AN91: Reynolds | AP91: Sheridan | AV91: Union | BE91: Washington | BF91: Guadalupe | BI91: Roanoke, Roanoke City, Salem City
Y92: Long | AB92: Union | AC92: White | AD92: Warren | AE92: Sherman | AF92: Nicholas | AN92: Ripley | AP92: Sherman | AV92: Vance | BE92: Wayne | BF92: Hale | BI92: Rockbridge, Buena Vista City, Lexington City
Y93: Lowndes | AB93: Vermilion | AC93: Whitley | AD93: Washington | AE93: Smith | AF93: Ohio | AN93: Saline | AP93: South Sioux | AV93: Wake | BE93: Weakley | BF93: Hall | BI93: Rockingham, Harrisonburg City
Y94: Lumpkin | AB94: Wabash | AD94: Wayne | AE94: Stafford | AF94: Oldham | AN94: Schuyler | AP94: Southeast Nye | AV94: Warren | BE94: White | BF94: Hamilton | BI94: Russell
Y95: Macon | AB95: Warren | AD95: Webster | AE95: Stanton | AF95: Owen | AN95: Scotland | AP95: Stanton | AV95: Washington | BE95: Williamson | BF95: Hansford | BI95: Scott
Y96: Madison | AB96: Washington | AD96: West Pottawattamie | AE96: Stevens | AF96: Owsley | AN96: Scott | AP96: Storey | AV96: Watauga | BE96: Wilson | BF96: Hardeman | BI96: Shenandoah
Y97: Marion | AB97: Wayne | AD97: Winnebago | AE97: Sumner | AF97: Pendleton | AN97: Shannon | AP97: Thayer | AV97: Wayne | BF97: Hardin | BI97: Smyth
Y98: McDuffie | AB98: White | AD98: Winneshiek | AE98: Thomas | AF98: Perry | AN98: Shelby | AP98: Thomas | AV98: Wilkes | BF98: Harris | BI98: Southampton, Franklin City
Y99: McIntosh | AB99: Whiteside | AD99: Woodbury | AE99: Trego | AF99: Pike | AN99: St. Charles | AP99: Thurston | AV99: Wilson | BF99: Harrison | BI99: Spotsylvania, Fredericksburg City
Y100: Meriwether | AB100: Will | AD100: Worth | AE100: Wabaunsee | AF100: Powell | AN100: St. Clair | AP100: Valley | AV100: Yadkin | BF100: Hartley | BI100: Stafford
Y101: Miller | AB101: Williamson | AD101: Wright | AE101: Wallace | AF101: Pulaski | AN101: St. Francois | AP101: Washington | AV101: Yancey | BF101: Haskell | BI101: Staunton
Y102: Mitchell | AB102: Winnebago | AE102: Washington | AF102: Robertson | AN102: St. Louis | AP102: Washoe | BF102: Hays | BI102: Suffolk
Y103: Monroe | AB103: Woodford | AE103: Wichita | AF103: Rockcastle | AN103: Ste. Genevieve | AP103: Wayne | BF103: Hemphill | BI103: Surry
Y104: Montgomery | AE104: Wilson | AF104: Rowan | AN104: Stoddard | AP104: Webster | BF104: Henderson | BI104: Sussex
Y105: Morgan | AE105: Woodson | AF105: Russell | AN105: Stone | AP105: Wheeler | BF105: Hidalgo | BI105: Tazewell
Y106: Murray | AE106: Wyandotte | AF106: Scott | AN106: Sullivan | AP106: White Pine | BF106: Hill | BI106: Virginia Beach
Y107: Muscogee | AF107: Shelby | AN107: Taney | AP107: York | BF107: Hockley | BI107: Warren
Y108: Newton | AF108: Simpson | AN108: Texas | BF108: Hood | BI108: Washington, Bristol City
Y109: Oconee | AF109: Spencer | AN109: Vernon | BF109: Hopkins | BI109: Waynesboro
Y110: Oglethorpe | AF110: Taylor | AN110: Warren | BF110: Houston | BI110: Westmoreland
Y111: Paulding | AF111: Todd | AN111: Washington | BF111: Howard | BI111: Wise
Y112: Peach | AF112: Trigg | AN112: Wayne | BF112: Hudspeth | BI112: Wythe
Y113: Pickens | AF113: Trimble | AN113: Webster | BF113: Hunt | BI113: York, Poquoson City
Y114: Pierce | AF114: Union | AN114: Worth | BF114: Hutchinson
Y115: Pike | AF115: Warren | AN115: Wright | BF115: Irion
Y116: Polk | AF116: Washington | BF116: Jack
Y117: Pulaski | AF117: Wayne | BF117: Jackson
Y118: Putnam | AF118: Webster | BF118: Jeff Davis
Y119: Quitman | AF119: Whitley | BF119: Jefferson
Y120: Rabun | AF120: Wolfe | BF120: Jim Hogg
Y121: Randolph | AF121: Woodford | BF121: Jim Wells
Y122: Richmond | BF122: Johnson
Y123: Rockdale | BF123: Jones
Y124: Schley | BF124: Karnes
Y125: Screven | BF125: Kaufman
Y126: Seminole | BF126: Kendall
Y127: Spalding | BF127: Kenedy
Y128: Stephens | BF128: Kent
Y129: Stewart | BF129: Kerr
Y130: Sumter | BF130: Kimble
Y131: Talbot | BF131: King
Y132: Taliaferro | BF132: Kinney
Y133: Tattnall | BF133: Kleberg
Y134: Taylor | BF134: Knox
Y135: Telfair | BF135: La Salle
Y136: Terrell | BF136: Lamar
Y137: Thomas | BF137: Lamb
Y138: Tift | BF138: Lampasas
Y139: Toombs | BF139: Lavaca
Y140: Towns | BF140: Lee
Y141: Treutlen | BF141: Leon
Y142: Troup | BF142: Liberty
Y143: Turner | BF143: Limestone
Y144: Twiggs | BF144: Lipscomb
Y145: Union | BF145: Live Oak
Y146: Upson | BF146: Llano
Y147: Walker | BF147: Lubbock
Y148: Walton | BF148: Lynn
Y149: Ware | BF149: Madison
Y150: Warren | BF150: Martin
Y151: Washington | BF151: Mason
Y152: Wayne | BF152: Matagorda
Y153: Webster | BF153: Maverick
Y154: Wheeler | BF154: McCulloch
Y155: White | BF155: McLennan
Y156: Whitfield | BF156: McMullen
Y157: Wilcox | BF157: Medina
Y158: Wilkes | BF158: Menard
Y159: Wilkinson | BF159: Midland
Y160: Worth | BF160: Milam
BF161: Mills
BF162: Mitchell
BF163: Montague
BF164: Moore
BF165: Morris
BF166: Motley
BF167: Nacogdoches
BF168: Navarro
BF169: Nolan
BF170: Nueces
BF171: Ochiltree
BF172: Oldham
BF173: Orange
BF174: Palo Pinto
BF175: Panola
BF176: Parker
BF177: Parmer
BF178: Pecos
BF179: Polk
BF180: Potter
BF181: Rains
BF182: Randall
BF183: Reagan
BF184: Real
BF185: Red River
BF186: Reeves
BF187: Refugio
BF188: Roberts
BF189: Robertson
BF190: Rockwall
BF191: Runnels
BF192: Rusk
BF193: San Jacinto
BF194: San Patricio
BF195: San Saba
BF196: Schleicher
BF197: Scurry
BF198: Shackelford
BF199: Sherman
BF200: Smith
... 37 more rows

Sheet 2017 Data (hidden)
A1: ID | B1: Commodity Year | C1: Commodity Code | D1: Commodity Name | E1: Insurance Policy Name | F1: State Code | G1: State Name | H1: State Abbreviation | I1: County Code | J1: County Name | K1: Insurance Option Code | L1: Insurance Option Name | M1: Type Code | N1: Type Name | O1: Practice Code | P1: Practice Name | Q1: Commodity Type Code | R1: Commodity Type Name | S1: Class Code | T1: Class Name | U1: Sub Class Code | V1: Sub Class Name | W1: Intended Use Code | X1: Intended Use Name | Y1: Irrigation Practice Code | Z1: Irrigation Practice Name | AA1: Cropping Practice Code | AB1: Cropping Practice Name | AC1: Organic Practice Code | AD1: Organic Practice Name | AE1: Interval Code | AF1: Interval Name | AG1: Expected County Yield | AH1: Final County Yield | AI1: Projected Price | AJ1: Expected Revenue Amount | AK1: Harvest Price | AL1: Final Revenue Amount | AM1: Supp Cov Opt - Yield Prot (31) | AN1: Supp Cov Opt - Rev Prot (32) | AO1: Supp Cov Opt - Rev Prot with Harv Price Excl (33) | AP1: Individual APH (bu.) | AQ1: RP County Payment Rate @75% | AR1: RP-HPE County Payment Rate @75% | AS1: YP County Payment Rate @75% | AT1: RP Payment @75% | AU1: RP-HPE Payment @75% | AV1: YP Payment @75% | AW1: RP County Payment Rate @70% | AX1: RP Payment @70% | AY1: RP County Payment Rate @80% | AZ1: RP Payment @80% | BA1: RP Payment Factor @80% | BB1: RP Payment Factor @75% | BC1: RP Payment Factor @70%
A2: 1 | B2: 2017 | C2: 0041 | D2: Corn | E2: SCO | F2: 01 | G2: Alabama | H2: AL | I2: 001 | J2: Autauga | M2: 016 | N2: Grain | O2: 002 | P2: Irrigated | Q2: 997 | R2: No Commodity Type Specified | S2: 997 | T2: No Class Specified | U2: 997 | V2: No Subclass Specified | W2: 016 | X2: Grain | Y2: 002 | Z2: Irrigated | AA2: 997 | AB2: No Cropping Practice Specified | AC2: 997 | AD2: No Organic Practice Specified | AE2: 997 | AF2: No Interval Specified | AG2: 172.7 | AH2: 193.28 | AI2: 3.87 | AJ2: 668.35 | AK2: 3.53 | AL2: 682.28 | AM2: - | AN2: - | AO2: - | AP2: =AG2 -> 172.7 | AQ2: =MIN(((0.86-(AL2/(AG2*MAX(AI2,AK2))))/(0.86-0.75)),1) -> -1.462217277 | AR2: =MIN((((0.86-(AL2/AJ2)))/(0.86-0.75)),1) -> -1.462203391 | AS2: =MIN(((0.86-(AH2/AG2))/(0.86-0.75)),1) -> -2.356056219 | AT2: =IF(AQ2>0,((AP2*MAX(AI2,AK2))*(0.86-0.75)*AQ2),0) -> 0 | AU2: =IF(AR2>0,(AR2*(AP2*AI2)*(0.86-0.75)),0) -> 0 | AV2: =IF(AS2>0,(AS2*(AP2*AI2)*(0.86-0.75)),0) -> 0 | AW2: =MIN(((0.86-(AL2/(AG2*MAX(AI2,AK2))))/(0.86-0.7)),1) -> -1.005274378 | AX2: =IF(AW2>0,((AP2*MAX(AI2,AK2))*(0.86-0.7)*AW2),0) -> 0 | AY2: =MIN(((0.86-(AL2/(AG2*MAX(AI2,AK2))))/(0.86-0.8)),1) -> -2.680731674 | AZ2: =IF(AY2>0,((AP2*MAX(AI2,AK2))*(0.86-0.8)*AY2),0) -> 0 | BA2: =IF(AY2>0,((MAX(AI2,AK2))*(0.86-0.8)*AY2),0) -> 0 | BB2: =IF(AQ2>0,((MAX(AI2,AK2))*(0.86-0.75)*AQ2),0) -> 0 | BC2: =IF(AW2>0,((MAX(AI2,AK2))*(0.86-0.7)*AW2),0) -> 0
A3: 2 | B3: 2017 | C3: 0041 | D3: Corn | E3: SCO | F3: 01 | G3: Alabama | H3: AL | I3: 001 | J3: Autauga | M3: 016 | N3: Grain | O3: 003 | P3: Non-Irrigated | Q3: 997 | R3: No Commodity Type Specified | S3: 997 | T3: No Class Specified | U3: 997 | V3: No Subclass Specified | W3: 016 | X3: Grain | Y3: 003 | Z3: Non-Irrigated | AA3: 997 | AB3: No Cropping Practice Specified | AC3: 997 | AD3: No Organic Practice Specified | AE3: 997 | AF3: No Interval Specified | AG3: 93.3 | AH3: 131.91 | AI3: 3.87 | AJ3: 361.07 | AK3: 3.53 | AL3: 465.64 | AM3: - | AN3: - | AO3: - | AP3: 93.3 | AQ3: =MIN(((0.86-(AL3/(AG3*MAX(AI3,AK3))))/(0.86-0.75)),1) -> -3.90552601 | AR3: =MIN((((0.86-(AL3/AJ3)))/(0.86-0.75)),1) -> -3.905558479 | AS3: =MIN(((0.86-(AH3/AG3))/(0.86-0.75)),1) -> -5.034785151 | AT3: =IF(AQ3>0,((AP3*MAX(AI3,AK3))*(0.86-0.75)*AQ3),0) -> 0 | AU3: 0 | AV3: 0 | AW3: =MIN(((0.86-(AL3/(AG3*MAX(AI3,AK3))))/(0.86-0.7)),1) -> -2.685049132 | AX3: =IF(AW3>0,((AP3*MAX(AI3,AK3))*(0.86-0.7)*AW3),0) -> 0 | AY3: =MIN(((0.86-(AL3/(AG3*MAX(AI3,AK3))))/(0.86-0.8)),1) -> -7.160131018 | AZ3: =IF(AY3>0,((AP3*MAX(AI3,AK3))*(0.86-0.8)*AY3),0) -> 0 | BA3: =IF(AY3>0,((MAX(AI3,AK3))*(0.86-0.8)*AY3),0) -> 0 | BB3: =IF(AQ3>0,((MAX(AI3,AK3))*(0.86-0.75)*AQ3),0) -> 0 | BC3: =IF(AW3>0,((MAX(AI3,AK3))*(0.86-0.7)*AW3),0) -> 0
A4: 7 | B4: 2017 | C4: 0041 | D4: Corn | E4: SCO | F4: 01 | G4: Alabama | H4: AL | I4: 003 | J4: Baldwin | M4: 016 | N4: Grain | O4: 002 | P4: Irrigated | Q4: 997 | R4: No Commodity Type Specified | S4: 997 | T4: No Class Specified | U4: 997 | V4: No Subclass Specified | W4: 016 | X4: Grain | Y4: 002 | Z4: Irrigated | AA4: 997 | AB4: No Cropping Practice Specified | AC4: 997 | AD4: No Organic Practice Specified | AE4: 997 | AF4: No Interval Specified | AG4: 124.4 | AH4: 169.57 | AI4: 3.87 | AJ4: 481.43 | AK4: 3.53 | AL4: 598.58 | AM4: - | AN4: - | AO4: - | AP4: 124.4 | AQ4: -3.484933837 | AR4: -3.484886881 | AS4: -4.573662672 | AT4: 0 | AU4: 0 | AV4: 0 | AW4: -2.395892013 | AX4: 0 | AY4: -6.389045368 | AZ4: 0 | BA4: 0 | BB4: 0 | BC4: 0
A5: 8 | B5: 2017 | C5: 0041 | D5: Corn | E5: SCO | F5: 01 | G5: Alabama | H5: AL | I5: 003 | J5: Baldwin | M5: 016 | N5: Grain | O5: 003 | P5: Non-Irrigated | Q5: 997 | R5: No Commodity Type Specified | S5: 997 | T5: No Class Specified | U5: 997 | V5: No Subclass Specified | W5: 016 | X5: Grain | Y5: 003 | Z5: Non-Irrigated | AA5: 997 | AB5: No Cropping Practice Specified | AC5: 997 | AD5: No Organic Practice Specified | AE5: 997 | AF5: No Interval Specified | AG5: 124.4 | AH5: 169.57 | AI5: 3.87 | AJ5: 481.43 | AK5: 3.53 | AL5: 598.58 | AM5: - | AN5: - | AO5: - | AP5: 124.4 | AQ5: -3.484933837 | AR5: -3.484886881 | AS5: -4.573662672 | AT5: 0 | AU5: 0 | AV5: 0 | AW5: -2.395892013 | AX5: 0 | AY5: -6.389045368 | AZ5: 0 | BA5: 0 | BB5: 0 | BC5: 0
A6: 13 | B6: 2017 | C6: 0041 | D6: Corn | E6: SCO | F6: 01 | G6: Alabama | H6: AL | I6: 005 | J6: Barbour | M6: 016 | N6: Grain | O6: 002 | P6: Irrigated | Q6: 997 | R6: No Commodity Type Specified | S6: 997 | T6: No Class Specified | U6: 997 | V6: No Subclass Specified | W6: 016 | X6: Grain | Y6: 002 | Z6: Irrigated | AA6: 997 | AB6: No Cropping Practice Specified | AC6: 997 | AD6: No Organic Practice Specified | AE6: 997 | AF6: No Interval Specified | AG6: 191.9 | AH6: 169.46 | AI6: 3.87 | AJ6: 742.65 | AK6: 3.53 | AL6: 598.19 | AM6: - | AN6: P | AO6: P | AP6: 191.9 | AQ6: 0.4956625406 | AR6: 0.4956329606 | AS6: -0.2096735989 | AT6: 40.49158 | AU6: 40.48916356 | AV6: 0 | AW6: 0.3407679966 | AX6: 40.49158 | AY6: 0.9087146577 | AZ6: 40.49158 | BA6: 0.2110035435 | BB6: 0.2110035435 | BC6: 0.2110035435
A7: 14 | B7: 2017 | C7: 0041 | D7: Corn | E7: SCO | F7: 01 | G7: Alabama | H7: AL | I7: 005 | J7: Barbour | M7: 016 | N7: Grain | O7: 003 | P7: Non-Irrigated | Q7: 997 | R7: No Commodity Type Specified | S7: 997 | T7: No Class Specified | U7: 997 | V7: No Subclass Specified | W7: 016 | X7: Grain | Y7: 003 | Z7: Non-Irrigated | AA7: 997 | AB7: No Cropping Practice Specified | AC7: 997 | AD7: No Organic Practice Specified | AE7: 997 | AF7: No Interval Specified | AG7: 63 | AH7: 118.33 | AI7: 3.87 | AJ7: 243.81 | AK7: 3.53 | AL7: 417.7 | AM7: - | AN7: - | AO7: - | AP7: 63 | AQ7: -7.756539183 | AR7: -7.756539183 | AS7: -9.256854257 | AT7: 0 | AU7: 0 | AV7: 0 | AW7: -5.332620688 | AX7: 0 | AY7: -14.22032184 | AZ7: 0 | BA7: 0 | BB7: 0 | BC7: 0
A8: 19 | B8: 2017 | C8: 0041 | D8: Corn | E8: SCO | F8: 01 | G8: Alabama | H8: AL | I8: 007 | J8: Bibb | M8: 016 | N8: Grain | O8: 002 | P8: Irrigated | Q8: 997 | R8: No Commodity Type Specified | S8: 997 | T8: No Class Specified | U8: 997 | V8: No Subclass Specified | W8: 016 | X8: Grain | Y8: 002 | Z8: Irrigated | AA8: 997 | AB8: No Cropping Practice Specified | AC8: 997 | AD8: No Organic Practice Specified | AE8: 997 | AF8: No Interval Specified | AG8: 180.3 | AH8: 205.76 | AI8: 3.87 | AJ8: 697.76 | AK8: 3.53 | AL8: 726.33 | AM8: - | AN8: - | AO8: - | AP8: 180.3 | AQ8: -1.644943808 | AR8: -1.64495737 | AS8: -2.556446327 | AT8: 0 | AU8: 0 | AV8: 0 | AW8: -1.130898868 | AX8: 0 | AY8: -3.015730315 | AZ8: 0 | BA8: 0 | BB8: 0 | BC8: 0
A9: 20 | B9: 2017 | C9: 0041 | D9: Corn | E9: SCO | F9: 01 | G9: Alabama | H9: AL | I9: 007 | J9: Bibb | M9: 016 | N9: Grain | O9: 003 | P9: Non-Irrigated | Q9: 997 | R9: No Commodity Type Specified | S9: 997 | T9: No Class Specified | U9: 997 | V9: No Subclass Specified | W9: 016 | X9: Grain | Y9: 003 | Z9: Non-Irrigated | AA9: 997 | AB9: No Cropping Practice Specified | AC9: 997 | AD9: No Organic Practice Specified | AE9: 997 | AF9: No Interval Specified | AG9: 87.5 | AH9: 135.13 | AI9: 3.87 | AJ9: 338.63 | AK9: 3.53 | AL9: 477.01 | AM9: - | AN9: - | AO9: - | AP9: 87.5 | AQ9: -4.9878855 | AR9: -4.987696413 | AS9: -6.221298701 | AT9: 0 | AU9: 0 | AV9: 0 | AW9: -3.429171281 | AX9: 0 | AY9: -9.144456749 | AZ9: 0 | BA9: 0 | BB9: 0 | BC9: 0
A10: 25 | B10: 2017 | C10: 0041 | D10: Corn | E10: SCO | F10: 01 | G10: Alabama | H10: AL | I10: 009 | J10: Blount | M10: 016 | N10: Grain | O10: 002 | P10: Irrigated | Q10: 997 | R10: No Commodity Type Specified | S10: 997 | T10: No Class Specified | U10: 997 | V10: No Subclass Specified | W10: 016 | X10: Grain | Y10: 002 | Z10: Irrigated | AA10: 997 | AB10: No Cropping Practice Specified | AC10: 997 | AD10: No Organic Practice Specified | AE10: 997 | AF10: No Interval Specified | AG10: 195.6 | AH10: 229.98 | AI10: 3.87 | AJ10: 756.97 | AK10: 3.53 | AL10: 811.83 | AM10: - | AN10: - | AO10: - | AP10: 195.6 | AQ10: -1.931548327 | AR10: -1.931574087 | AS10: -2.87060792 | AT10: 0 | AU10: 0 | AV10: 0 | AW10: -1.327939475 | AX10: 0 | AY10: -3.541171932 | AZ10: 0 | BA10: 0 | BB10: 0 | BC10: 0
A11: 26 | B11: 2017 | C11: 0041 | D11: Corn | E11: SCO | F11: 01 | G11: Alabama | H11: AL | I11: 009 | J11: Blount | M11: 016 | N11: Grain | O11: 003 | P11: Non-Irrigated | Q11: 997 | R11: No Commodity Type Specified | S11: 997 | T11: No Class Specified | U11: 997 | V11: No Subclass Specified | W11: 016 | X11: Grain | Y11: 003 | Z11: Non-Irrigated | AA11: 997 | AB11: No Cropping Practice Specified | AC11: 997 | AD11: No Organic Practice Specified | AE11: 997 | AF11: No Interval Specified | AG11: 120.5 | AH11: 167.38 | AI11: 3.87 | AJ11: 466.34 | AK11: 3.53 | AL11: 590.85 | AM11: - | AN11: - | AO11: - | AP11: 120.5 | AQ11: -3.700069303 | AR11: -3.699945806 | AS11: -4.809505847 | AT11: 0 | AU11: 0 | AV11: 0 | AW11: -2.543797645 | AX11: 0 | AY11: -6.783460388 | AZ11: 0 | BA11: 0 | BB11: 0 | BC11: 0
A12: 31 | B12: 2017 | C12: 0041 | D12: Corn | E12: SCO | F12: 01 | G12: Alabama | H12: AL | I12: 011 | J12: Bullock | M12: 016 | N12: Grain | O12: 002 | P12: Irrigated | Q12: 997 | R12: No Commodity Type Specified | S12: 997 | T12: No Class Specified | U12: 997 | V12: No Subclass Specified | W12: 016 | X12: Grain | Y12: 002 | Z12: Irrigated | AA12: 997 | AB12: No Cropping Practice Specified | AC12: 997 | AD12: No Organic Practice Specified | AE12: 997 | AF12: No Interval Specified | AG12: 175.2 | AH12: 187.71 | AI12: 3.87 | AJ12: 678.02 | AK12: 3.53 | AL12: 662.62 | AM12: - | AN12: - | AO12: - | AP12: 175.2 | AQ12: -1.066191275 | AR12: -1.066243688 | AS12: -1.921855542 | AT12: 0 | AU12: 0 | AV12: 0 | AW12: -0.7330065012 | AX12: 0 | AY12: -1.954684003 | AZ12: 0 | BA12: 0 | BB12: 0 | BC12: 0
A13: 32 | B13: 2017 | C13: 0041 | D13: Corn | E13: SCO | F13: 01 | G13: Alabama | H13: AL | I13: 011 | J13: Bullock | M13: 016 | N13: Grain | O13: 003 | P13: Non-Irrigated | Q13: 997 | R13: No Commodity Type Specified | S13: 997 | T13: No Class Specified | U13: 997 | V13: No Subclass Specified | W13: 016 | X13: Grain | Y13: 003 | Z13: Non-Irrigated | AA13: 997 | AB13: No Cropping Practice Specified | AC13: 997 | AD13: No Organic Practice Specified | AE13: 997 | AF13: No Interval Specified | AG13: 73.7 | AH13: 136.26 | AI13: 3.87 | AJ13: 285.22 | AK13: 3.53 | AL13: 481 | AM13: - | AN13: - | AO13: - | AP13: 73.7 | AQ13: -7.512940136 | AR13: -7.512886384 | AS13: -8.989515234 | AT13: 0 | AU13: 0 | AV13: 0 | AW13: -5.165146344 | AX13: 0 | AY13: -13.77372358 | AZ13: 0 | BA13: 0 | BB13: 0 | BC13: 0
A14: 37 | B14: 2017 | C14: 0041 | D14: Corn | E14: SCO | F14: 01 | G14: Alabama | H14: AL | I14: 013 | J14: Butler | M14: 016 | N14: Grain | O14: 002 | P14: Irrigated | Q14: 997 | R14: No Commodity Type Specified | S14: 997 | T14: No Class Specified | U14: 997 | V14: No Subclass Specified | W14: 016 | X14: Grain | Y14: 002 | Z14: Irrigated | AA14: 997 | AB14: No Cropping Practice Specified | AC14: 997 | AD14: No Organic Practice Specified | AE14: 997 | AF14: No Interval Specified | AG14: 74.8 | AH14: 140.72 | AI14: 3.87 | AJ14: 289.48 | AK14: 3.53 | AL14: 496.74 | AM14: - | AN14: - | AO14: - | AP14: 74.8 | AQ14: -7.781792556 | AR14: -7.781576997 | AS14: -9.28439475 | AT14: 0 | AU14: 0 | AV14: 0 | AW14: -5.349982382 | AX14: 0 | AY14: -14.26661969 | AZ14: 0 | BA14: 0 | BB14: 0 | BC14: 0
A15: 38 | B15: 2017 | C15: 0041 | D15: Corn | E15: SCO | F15: 01 | G15: Alabama | H15: AL | I15: 013 | J15: Butler | M15: 016 | N15: Grain | O15: 003 | P15: Non-Irrigated | Q15: 997 | R15: No Commodity Type Specified | S15: 997 | T15: No Class Specified | U15: 997 | V15: No Subclass Specified | W15: 016 | X15: Grain | Y15: 003 | Z15: Non-Irrigated | AA15: 997 | AB15: No Cropping Practice Specified | AC15: 997 | AD15: No Organic Practice Specified | AE15: 997 | AF15: No Interval Specified | AG15: 74.8 | AH15: 140.72 | AI15: 3.87 | AJ15: 289.48 | AK15: 3.53 | AL15: 496.74 | AM15: - | AN15: - | AO15: - | AP15: 74.8 | AQ15: -7.781792556 | AR15: -7.781576997 | AS15: -9.28439475 | AT15: 0 | AU15: 0 | AV15: 0 | AW15: -5.349982382 | AX15: 0 | AY15: -14.26661969 | AZ15: 0 | BA15: 0 | BB15: 0 | BC15: 0
A16: 43 | B16: 2017 | C16: 0041 | D16: Corn | E16: SCO | F16: 01 | G16: Alabama | H16: AL | I16: 015 | J16: Calhoun | M16: 016 | N16: Grain | O16: 002 | P16: Irrigated | Q16: 997 | R16: No Commodity Type Specified | S16: 997 | T16: No Class Specified | U16: 997 | V16: No Subclass Specified | W16: 016 | X16: Grain | Y16: 002 | Z16: Irrigated | AA16: 997 | AB16: No Cropping Practice Specified | AC16: 997 | AD16: No Organic Practice Specified | AE16: 997 | AF16: No Interval Specified | AG16: 100.2 | AH16: 154.33 | AI16: 3.87 | AJ16: 387.77 | AK16: 3.53 | AL16: 544.78 | AM16: - | AN16: - | AO16: - | AP16: 100.2 | AQ16: -4.953549795 | AR16: -4.95368154 | AS16: -6.18381419 | AT16: 0 | AU16: 0 | AV16: 0 | AW16: -3.405565484 | AX16: 0 | AY16: -9.081507957 | AZ16: 0 | BA16: 0 | BB16: 0 | BC16: 0
A17: 44 | B17: 2017 | C17: 0041 | D17: Corn | E17: SCO | F17: 01 | G17: Alabama | H17: AL | I17: 015 | J17: Calhoun | M17: 016 | N17: Grain | O17: 003 | P17: Non-Irrigated | Q17: 997 | R17: No Commodity Type Specified | S17: 997 | T17: No Class Specified | U17: 997 | V17: No Subclass Specified | W17: 016 | X17: Grain | Y17: 003 | Z17: Non-Irrigated | AA17: 997 | AB17: No Cropping Practice Specified | AC17: 997 | AD17: No Organic Practice Specified | AE17: 997 | AF17: No Interval Specified | AG17: 100.2 | AH17: 154.33 | AI17: 3.87 | AJ17: 387.77 | AK17: 3.53 | AL17: 544.78 | AM17: - | AN17: - | AO17: - | AP17: 100.2 | AQ17: -4.953549795 | AR17: -4.95368154 | AS17: -6.18381419 | AT17: 0 | AU17: 0 | AV17: 0 | AW17: -3.405565484 | AX17: 0 | AY17: -9.081507957 | AZ17: 0 | BA17: 0 | BB17: 0 | BC17: 0
A18: 49 | B18: 2017 | C18: 0041 | D18: Corn | E18: SCO | F18: 01 | G18: Alabama | H18: AL | I18: 017 | J18: Chambers | M18: 016 | N18: Grain | O18: 002 | P18: Irrigated | Q18: 997 | R18: No Commodity Type Specified | S18: 997 | T18: No Class Specified | U18: 997 | V18: No Subclass Specified | W18: 016 | X18: Grain | Y18: 002 | Z18: Irrigated | AA18: 997 | AB18: No Cropping Practice Specified | AC18: 997 | AD18: No Organic Practice Specified | AE18: 997 | AF18: No Interval Specified | AG18: 178.2 | AH18: 198.76 | AI18: 3.87 | AJ18: 689.63 | AK18: 3.53 | AL18: 701.62 | AM18: - | AN18: - | AO18: - | AP18: 178.2 | AQ18: -1.430729396 | AR18: -1.430783042 | AS18: -2.321599837 | AT18: 0 | AU18: 0 | AV18: 0 | AW18: -0.9836264598 | AX18: 0 | AY18: -2.623003893 | AZ18: 0 | BA18: 0 | BB18: 0 | BC18: 0
A19: 50 | B19: 2017 | C19: 0041 | D19: Corn | E19: SCO | F19: 01 | G19: Alabama | H19: AL | I19: 017 | J19: Chambers | M19: 016 | N19: Grain | O19: 003 | P19: Non-Irrigated | Q19: 997 | R19: No Commodity Type Specified | S19: 997 | T19: No Class Specified | U19: 997 | V19: No Subclass Specified | W19: 016 | X19: Grain | Y19: 003 | Z19: Non-Irrigated | AA19: 997 | AB19: No Cropping Practice Specified | AC19: 997 | AD19: No Organic Practice Specified | AE19: 997 | AF19: No Interval Specified | AG19: 99.5 | AH19: 146.05 | AI19: 3.87 | AJ19: 385.07 | AK19: 3.53 | AL19: 515.56 | AM19: - | AN19: - | AO19: - | AP19: 99.5 | AQ19: -4.35355306 | AR19: -4.353395014 | AS19: -5.525810873 | AT19: 0 | AU19: 0 | AV19: 0 | AW19: -2.993067729 | AX19: 0 | AY19: -7.981513944 | AZ19: 0 | BA19: 0 | BB19: 0 | BC19: 0
A20: 55 | B20: 2017 | C20: 0041 | D20: Corn | E20: SCO | F20: 01 | G20: Alabama | H20: AL | I20: 019 | J20: Cherokee | M20: 016 | N20: Grain | O20: 002 | P20: Irrigated | Q20: 997 | R20: No Commodity Type Specified | S20: 997 | T20: No Class Specified | U20: 997 | V20: No Subclass Specified | W20: 016 | X20: Grain | Y20: 002 | Z20: Irrigated | AA20: 997 | AB20: No Cropping Practice Specified | AC20: 997 | AD20: No Organic Practice Specified | AE20: 997 | AF20: No Interval Specified | AG20: 121.2 | AH20: 150.51 | AI20: 3.87 | AJ20: 469.04 | AK20: 3.53 | AL20: 531.3 | AM20: - | AN20: - | AO20: - | AP20: 121.2 | AQ20: -2.479359564 | AR20: -2.479447382 | AS20: -3.47119712 | AT20: 0 | AU20: 0 | AV20: 0 | AW20: -1.7045597 | AX20: 0 | AY20: -4.545492534 | AZ20: 0 | BA20: 0 | BB20: 0 | BC20: 0
A21: 56 | B21: 2017 | C21: 0041 | D21: Corn | E21: SCO | F21: 01 | G21: Alabama | H21: AL | I21: 019 | J21: Cherokee | M21: 016 | N21: Grain | O21: 003 | P21: Non-Irrigated | Q21: 997 | R21: No Commodity Type Specified | S21: 997 | T21: No Class Specified | U21: 997 | V21: No Subclass Specified | W21: 016 | X21: Grain | Y21: 003 | Z21: Non-Irrigated | AA21: 997 | AB21: No Cropping Practice Specified | AC21: 997 | AD21: No Organic Practice Specified | AE21: 997 | AF21: No Interval Specified | AG21: 121.2 | AH21: 150.51 | AI21: 3.87 | AJ21: 469.04 | AK21: 3.53 | AL21: 531.3 | AM21: - | AN21: - | AO21: - | AP21: 121.2 | AQ21: -2.479359564 | AR21: -2.479447382 | AS21: -3.47119712 | AT21: 0 | AU21: 0 | AV21: 0 | AW21: -1.7045597 | AX21: 0 | AY21: -4.545492534 | AZ21: 0 | BA21: 0 | BB21: 0 | BC21: 0
A22: 61 | B22: 2017 | C22: 0041 | D22: Corn | E22: SCO | F22: 01 | G22: Alabama | H22: AL | I22: 021 | J22: Chilton | M22: 016 | N22: Grain | O22: 002 | P22: Irrigated | Q22: 997 | R22: No Commodity Type Specified | S22: 997 | T22: No Class Specified | U22: 997 | V22: No Subclass Specified | W22: 016 | X22: Grain | Y22: 002 | Z22: Irrigated | AA22: 997 | AB22: No Cropping Practice Specified | AC22: 997 | AD22: No Organic Practice Specified | AE22: 997 | AF22: No Interval Specified | AG22: 178.1 | AH22: 201.75 | AI22: 3.87 | AJ22: 689.25 | AK22: 3.53 | AL22: 712.18 | AM22: - | AN22: - | AO22: - | AP22: 178.1 | AQ22: -1.57520493 | AR22: -1.575164045 | AS22: -2.479914246 | AT22: 0 | AU22: 0 | AV22: 0 | AW22: -1.08295339 | AX22: 0 | AY22: -2.887875706 | AZ22: 0 | BA22: 0 | BB22: 0 | BC22: 0
A23: 62 | B23: 2017 | C23: 0041 | D23: Corn | E23: SCO | F23: 01 | G23: Alabama | H23: AL | I23: 021 | J23: Chilton | M23: 016 | N23: Grain | O23: 003 | P23: Non-Irrigated | Q23: 997 | R23: No Commodity Type Specified | S23: 997 | T23: No Class Specified | U23: 997 | V23: No Subclass Specified | W23: 016 | X23: Grain | Y23: 003 | Z23: Non-Irrigated | AA23: 997 | AB23: No Cropping Practice Specified | AC23: 997 | AD23: No Organic Practice Specified | AE23: 997 | AF23: No Interval Specified | AG23: 88.7 | AH23: 128.37 | AI23: 3.87 | AJ23: 343.27 | AK23: 3.53 | AL23: 453.15 | AM23: - | AN23: - | AO23: - | AP23: 88.7 | AQ23: -4.18274298 | AR23: -4.182708019 | AS23: -5.338526186 | AT23: 0 | AU23: 0 | AV23: 0 | AW23: -2.875635799 | AX23: 0 | AY23: -7.66836213 | AZ23: 0 | BA23: 0 | BB23: 0 | BC23: 0
A24: 67 | B24: 2017 | C24: 0041 | D24: Corn | E24: SCO | F24: 01 | G24: Alabama | H24: AL | I24: 023 | J24: Choctaw | M24: 016 | N24: Grain | O24: 002 | P24: Irrigated | Q24: 997 | R24: No Commodity Type Specified | S24: 997 | T24: No Class Specified | U24: 997 | V24: No Subclass Specified | W24: 016 | X24: Grain | Y24: 002 | Z24: Irrigated | AA24: 997 | AB24: No Cropping Practice Specified | AC24: 997 | AD24: No Organic Practice Specified | AE24: 997 | AF24: No Interval Specified | AG24: 175.1 | AH24: 193.34 | AI24: 3.87 | AJ24: 677.64 | AK24: 3.53 | AL24: 682.49 | AM24: - | AN24: - | AO24: - | AP24: 175.1 | AQ24: -1.337833195 | AR24: -1.33779266 | AS24: -2.219718602 | AT24: 0 | AU24: 0 | AV24: 0 | AW24: -0.9197603215 | AX24: 0 | AY24: -2.452694191 | AZ24: 0 | BA24: 0 | BB24: 0 | BC24: 0
A25: 68 | B25: 2017 | C25: 0041 | D25: Corn | E25: SCO | F25: 01 | G25: Alabama | H25: AL | I25: 023 | J25: Choctaw | M25: 016 | N25: Grain | O25: 003 | P25: Non-Irrigated | Q25: 997 | R25: No Commodity Type Specified | S25: 997 | T25: No Class Specified | U25: 997 | V25: No Subclass Specified | W25: 016 | X25: Grain | Y25: 003 | Z25: Non-Irrigated | AA25: 997 | AB25: No Cropping Practice Specified | AC25: 997 | AD25: No Organic Practice Specified | AE25: 997 | AF25: No Interval Specified | AG25: 131.6 | AH25: 155.77 | AI25: 3.87 | AJ25: 509.29 | AK25: 3.53 | AL25: 549.87 | AM25: - | AN25: - | AO25: - | AP25: 131.6 | AQ25: -1.997048309 | AR25: -1.997086854 | AS25: -2.9423874 | AT25: 0 | AU25: 0 | AV25: 0 | AW25: -1.372970712 | AX25: 0 | AY25: -3.661255233 | AZ25: 0 | BA25: 0 | BB25: 0 | BC25: 0
A26: 73 | B26: 2017 | C26: 0041 | D26: Corn | E26: SCO | F26: 01 | G26: Alabama | H26: AL | I26: 025 | J26: Clarke | M26: 016 | N26: Grain | O26: 002 | P26: Irrigated | Q26: 997 | R26: No Commodity Type Specified | S26: 997 | T26: No Class Specified | U26: 997 | V26: No Subclass Specified | W26: 016 | X26: Grain | Y26: 002 | Z26: Irrigated | AA26: 997 | AB26: No Cropping Practice Specified | AC26: 997 | AD26: No Organic Practice Specified | AE26: 997 | AF26: No Interval Specified | AG26: 176 | AH26: 192.45 | AI26: 3.87 | AJ26: 681.12 | AK26: 3.53 | AL26: 679.35 | AM26: - | AN26: - | AO26: - | AP26: 176 | AQ26: -1.249103082 | AR26: -1.249103082 | AS26: -2.122417355 | AT26: 0 | AU26: 0 | AV26: 0 | AW26: -0.8587583686 | AX26: 0 | AY26: -2.290022316 | AZ26: 0 | BA26: 0 | BB26: 0 | BC26: 0
A27: 74 | B27: 2017 | C27: 0041 | D27: Corn | E27: SCO | F27: 01 | G27: Alabama | H27: AL | I27: 025 | J27: Clarke | M27: 016 | N27: Grain | O27: 003 | P27: Non-Irrigated | Q27: 997 | R27: No Commodity Type Specified | S27: 997 | T27: No Class Specified | U27: 997 | V27: No Subclass Specified | W27: 016 | X27: Grain | Y27: 003 | Z27: Non-Irrigated | AA27: 997 | AB27: No Cropping Practice Specified | AC27: 997 | AD27: No Organic Practice Specified | AE27: 997 | AF27: No Interval Specified | AG27: 117.2 | AH27: 133.16 | AI27: 3.87 | AJ27: 453.56 | AK27: 3.53 | AL27: 470.05 | AM27: - | AN27: - | AO27: - | AP27: 117.2 | AQ27: -1.603160745 | AR27: -1.603243833 | AS27: -2.510704313 | AT27: 0 | AU27: 0 | AV27: 0 | AW27: -1.102173012 | AX27: 0 | AY27: -2.939128032 | AZ27: 0 | BA27: 0 | BB27: 0 | BC27: 0
A28: 79 | B28: 2017 | C28: 0041 | D28: Corn | E28: SCO | F28: 01 | G28: Alabama | H28: AL | I28: 027 | J28: Clay | M28: 016 | N28: Grain | O28: 002 | P28: Irrigated | Q28: 997 | R28: No Commodity Type Specified | S28: 997 | T28: No Class Specified | U28: 997 | V28: No Subclass Specified | W28: 016 | X28: Grain | Y28: 002 | Z28: Irrigated | AA28: 997 | AB28: No Cropping Practice Specified | AC28: 997 | AD28: No Organic Practice Specified | AE28: 997 | AF28: No Interval Specified | AG28: 178.2 | AH28: 198.76 | AI28: 3.87 | AJ28: 689.63 | AK28: 3.53 | AL28: 701.62 | AM28: - | AN28: - | AO28: - | AP28: 178.2 | AQ28: -1.430729396 | AR28: -1.430783042 | AS28: -2.321599837 | AT28: 0 | AU28: 0 | AV28: 0 | AW28: -0.9836264598 | AX28: 0 | AY28: -2.623003893 | AZ28: 0 | BA28: 0 | BB28: 0 | BC28: 0
A29: 80 | B29: 2017 | C29: 0041 | D29: Corn | E29: SCO | F29: 01 | G29: Alabama | H29: AL | I29: 027 | J29: Clay | M29: 016 | N29: Grain | O29: 003 | P29: Non-Irrigated | Q29: 997 | R29: No Commodity Type Specified | S29: 997 | T29: No Class Specified | U29: 997 | V29: No Subclass Specified | W29: 016 | X29: Grain | Y29: 003 | Z29: Non-Irrigated | AA29: 997 | AB29: No Cropping Practice Specified | AC29: 997 | AD29: No Organic Practice Specified | AE29: 997 | AF29: No Interval Specified | AG29: 110.3 | AH29: 145.23 | AI29: 3.87 | AJ29: 426.86 | AK29: 3.53 | AL29: 512.66 | AM29: - | AN29: - | AO29: - | AP29: 110.3 | AQ29: -3.099998701 | AR29: -3.100024279 | AS29: -4.151652518 | AT29: 0 | AU29: 0 | AV29: 0 | AW29: -2.131249107 | AX29: 0 | AY29: -5.683330952 | AZ29: 0 | BA29: 0 | BB29: 0 | BC29: 0
A30: 85 | B30: 2017 | C30: 0041 | D30: Corn | E30: SCO | F30: 01 | G30: Alabama | H30: AL | I30: 029 | J30: Cleburne | M30: 016 | N30: Grain | O30: 002 | P30: Irrigated | Q30: 997 | R30: No Commodity Type Specified | S30: 997 | T30: No Class Specified | U30: 997 | V30: No Subclass Specified | W30: 016 | X30: Grain | Y30: 002 | Z30: Irrigated | AA30: 997 | AB30: No Cropping Practice Specified | AC30: 997 | AD30: No Organic Practice Specified | AE30: 997 | AF30: No Interval Specified | AG30: 100.8 | AH30: 145.99 | AI30: 3.87 | AJ30: 390.1 | AK30: 3.53 | AL30: 515.34 | AM30: - | AN30: - | AO30: - | AP30: 100.8 | AQ30: -4.191449377 | AR30: -4.191326233 | AS30: -5.348304473 | AT30: 0 | AU30: 0 | AV30: 0 | AW30: -2.881621447 | AX30: 0 | AY30: -7.684323859 | AZ30: 0 | BA30: 0 | BB30: 0 | BC30: 0
A31: 86 | B31: 2017 | C31: 0041 | D31: Corn | E31: SCO | F31: 01 | G31: Alabama | H31: AL | I31: 029 | J31: Cleburne | M31: 016 | N31: Grain | O31: 003 | P31: Non-Irrigated | Q31: 997 | R31: No Commodity Type Specified | S31: 997 | T31: No Class Specified | U31: 997 | V31: No Subclass Specified | W31: 016 | X31: Grain | Y31: 003 | Z31: Non-Irrigated | AA31: 997 | AB31: No Cropping Practice Specified | AC31: 997 | AD31: No Organic Practice Specified | AE31: 997 | AF31: No Interval Specified | AG31: 100.8 | AH31: 145.99 | AI31: 3.87 | AJ31: 390.1 | AK31: 3.53 | AL31: 515.34 | AM31: - | AN31: - | AO31: - | AP31: 100.8 | AQ31: -4.191449377 | AR31: -4.191326233 | AS31: -5.348304473 | AT31: 0 | AU31: 0 | AV31: 0 | AW31: -2.881621447 | AX31: 0 | AY31: -7.684323859 | AZ31: 0 | BA31: 0 | BB31: 0 | BC31: 0
A32: 91 | B32: 2017 | C32: 0041 | D32: Corn | E32: SCO | F32: 01 | G32: Alabama | H32: AL | I32: 031 | J32: Coffee | M32: 016 | N32: Grain | O32: 002 | P32: Irrigated | Q32: 997 | R32: No Commodity Type Specified | S32: 997 | T32: No Class Specified | U32: 997 | V32: No Subclass Specified | W32: 016 | X32: Grain | Y32: 002 | Z32: Irrigated | AA32: 997 | AB32: No Cropping Practice Specified | AC32: 997 | AD32: No Organic Practice Specified | AE32: 997 | AF32: No Interval Specified | AG32: 175.6 | AH32: 181.66 | AI32: 3.87 | AJ32: 679.57 | AK32: 3.53 | AL32: 641.26 | AM32: - | AN32: - | AO32: - | AP32: 175.6 | AQ32: -0.7602121763 | AR32: -0.7602374229 | AS32: -1.586456823 | AT32: 0 | AU32: 0 | AV32: 0 | AW32: -0.5226458712 | AX32: 0 | AY32: -1.393722323 | AZ32: 0 | BA32: 0 | BB32: 0 | BC32: 0
A33: 92 | B33: 2017 | C33: 0041 | D33: Corn | E33: SCO | F33: 01 | G33: Alabama | H33: AL | I33: 031 | J33: Coffee | M33: 016 | N33: Grain | O33: 003 | P33: Non-Irrigated | Q33: 997 | R33: No Commodity Type Specified | S33: 997 | T33: No Class Specified | U33: 997 | V33: No Subclass Specified | W33: 016 | X33: Grain | Y33: 003 | Z33: Non-Irrigated | AA33: 997 | AB33: No Cropping Practice Specified | AC33: 997 | AD33: No Organic Practice Specified | AE33: 997 | AF33: No Interval Specified | AG33: 69.9 | AH33: 120.61 | AI33: 3.87 | AJ33: 270.51 | AK33: 3.53 | AL33: 425.75 | AM33: - | AN33: - | AO33: - | AP33: 69.9 | AQ33: -6.489650136 | AR33: -6.489808812 | AS33: -7.867863181 | AT33: 0 | AU33: 0 | AV33: 0 | AW33: -4.461634469 | AX33: 0 | AY33: -11.89769192 | AZ33: 0 | BA33: 0 | BB33: 0 | BC33: 0
A34: 97 | B34: 2017 | C34: 0041 | D34: Corn | E34: SCO | F34: 01 | G34: Alabama | H34: AL | I34: 033 | J34: Colbert | M34: 016 | N34: Grain | O34: 002 | P34: Irrigated | Q34: 997 | R34: No Commodity Type Specified | S34: 997 | T34: No Class Specified | U34: 997 | V34: No Subclass Specified | W34: 016 | X34: Grain | Y34: 002 | Z34: Irrigated | AA34: 997 | AB34: No Cropping Practice Specified | AC34: 997 | AD34: No Organic Practice Specified | AE34: 997 | AF34: No Interval Specified | AG34: 184.5 | AH34: 236.35 | AI34: 3.87 | AJ34: 714.02 | AK34: 3.53 | AL34: 834.32 | AM34: - | AN34: - | AO34: - | AP34: 184.5 | AQ34: -2.804462346 | AR34: -2.80438796 | AS34: -3.82754373 | AT34: 0 | AU34: 0 | AV34: 0 | AW34: -1.928067863 | AX34: 0 | AY34: -5.141514301 | AZ34: 0 | BA34: 0 | BB34: 0 | BC34: 0
A35: 98 | B35: 2017 | C35: 0041 | D35: Corn | E35: SCO | F35: 01 | G35: Alabama | H35: AL | I35: 033 | J35: Colbert | M35: 016 | N35: Grain | O35: 003 | P35: Non-Irrigated | Q35: 997 | R35: No Commodity Type Specified | S35: 997 | T35: No Class Specified | U35: 997 | V35: No Subclass Specified | W35: 016 | X35: Grain | Y35: 003 | Z35: Non-Irrigated | AA35: 997 | AB35: No Cropping Practice Specified | AC35: 997 | AD35: No Organic Practice Specified | AE35: 997 | AF35: No Interval Specified | AG35: 134.2 | AH35: 191.34 | AI35: 3.87 | AJ35: 519.35 | AK35: 3.53 | AL35: 675.43 | AM35: - | AN35: - | AO35: - | AP35: 134.2 | AQ35: -4.00472265 | AR35: -4.004813709 | AS35: -5.143476494 | AT35: 0 | AU35: 0 | AV35: 0 | AW35: -2.753246822 | AX35: 0 | AY35: -7.341991525 | AZ35: 0 | BA35: 0 | BB35: 0 | BC35: 0
A36: 103 | B36: 2017 | C36: 0041 | D36: Corn | E36: SCO | F36: 01 | G36: Alabama | H36: AL | I36: 035 | J36: Conecuh | M36: 016 | N36: Grain | O36: 002 | P36: Irrigated | Q36: 997 | R36: No Commodity Type Specified | S36: 997 | T36: No Class Specified | U36: 997 | V36: No Subclass Specified | W36: 016 | X36: Grain | Y36: 002 | Z36: Irrigated | AA36: 997 | AB36: No Cropping Practice Specified | AC36: 997 | AD36: No Organic Practice Specified | AE36: 997 | AF36: No Interval Specified | AG36: 84.1 | AH36: 154.02 | AI36: 3.87 | AJ36: 325.47 | AK36: 3.53 | AL36: 543.69 | AM36: - | AN36: - | AO36: - | AP36: 84.1 | AQ36: -7.368108539 | AR36: -7.36796856 | AS36: -8.8308291 | AT36: 0 | AU36: 0 | AV36: 0 | AW36: -5.06557462 | AX36: 0 | AY36: -13.50819899 | AZ36: 0 | BA36: 0 | BB36: 0 | BC36: 0
A37: 104 | B37: 2017 | C37: 0041 | D37: Corn | E37: SCO | F37: 01 | G37: Alabama | H37: AL | I37: 035 | J37: Conecuh | M37: 016 | N37: Grain | O37: 003 | P37: Non-Irrigated | Q37: 997 | R37: No Commodity Type Specified | S37: 997 | T37: No Class Specified | U37: 997 | V37: No Subclass Specified | W37: 016 | X37: Grain | Y37: 003 | Z37: Non-Irrigated | AA37: 997 | AB37: No Cropping Practice Specified | AC37: 997 | AD37: No Organic Practice Specified | AE37: 997 | AF37: No Interval Specified | AG37: 84.1 | AH37: 154.02 | AI37: 3.87 | AJ37: 325.47 | AK37: 3.53 | AL37: 543.69 | AM37: - | AN37: - | AO37: - | AP37: 84.1 | AQ37: -7.368108539 | AR37: -7.36796856 | AS37: -8.8308291 | AT37: 0 | AU37: 0 | AV37: 0 | AW37: -5.06557462 | AX37: 0 | AY37: -13.50819899 | AZ37: 0 | BA37: 0 | BB37: 0 | BC37: 0
A38: 109 | B38: 2017 | C38: 0041 | D38: Corn | E38: SCO | F38: 01 | G38: Alabama | H38: AL | I38: 039 | J38: Covington | M38: 016 | N38: Grain | O38: 002 | P38: Irrigated | Q38: 997 | R38: No Commodity Type Specified | S38: 997 | T38: No Class Specified | U38: 997 | V38: No Subclass Specified | W38: 016 | X38: Grain | Y38: 002 | Z38: Irrigated | AA38: 997 | AB38: No Cropping Practice Specified | AC38: 997 | AD38: No Organic Practice Specified | AE38: 997 | AF38: No Interval Specified | AG38: 172.4 | AH38: 183.73 | AI38: 3.87 | AJ38: 667.19 | AK38: 3.53 | AL38: 648.57 | AM38: - | AN38: - | AO38: - | AP38: 172.4 | AQ38: -1.019043835 | AR38: -1.019017344 | AS38: -1.870175069 | AT38: 0 | AU38: 0 | AV38: 0 | AW38: -0.7005926366 | AX38: 0 | AY38: -1.868247031 | AZ38: 0 | BA38: 0 | BB38: 0 | BC38: 0
A39: 110 | B39: 2017 | C39: 0041 | D39: Corn | E39: SCO | F39: 01 | G39: Alabama | H39: AL | I39: 039 | J39: Covington | M39: 016 | N39: Grain | O39: 003 | P39: Non-Irrigated | Q39: 997 | R39: No Commodity Type Specified | S39: 997 | T39: No Class Specified | U39: 997 | V39: No Subclass Specified | W39: 016 | X39: Grain | Y39: 003 | Z39: Non-Irrigated | AA39: 997 | AB39: No Cropping Practice Specified | AC39: 997 | AD39: No Organic Practice Specified | AE39: 997 | AF39: No Interval Specified | AG39: 77.2 | AH39: 133.34 | AI39: 3.87 | AJ39: 298.76 | AK39: 3.53 | AL39: 470.69 | AM39: - | AN39: - | AO39: - | AP39: 77.2 | AQ39: -6.504159562 | AR39: -6.504351319 | AS39: -7.883655205 | AT39: 0 | AU39: 0 | AV39: 0 | AW39: -4.471609699 | AX39: 0 | AY39: -11.92429253 | AZ39: 0 | BA39: 0 | BB39: 0 | BC39: 0
A40: 115 | B40: 2017 | C40: 0041 | D40: Corn | E40: SCO | F40: 01 | G40: Alabama | H40: AL | I40: 041 | J40: Crenshaw | M40: 016 | N40: Grain | O40: 002 | P40: Irrigated | Q40: 997 | R40: No Commodity Type Specified | S40: 997 | T40: No Class Specified | U40: 997 | V40: No Subclass Specified | W40: 016 | X40: Grain | Y40: 002 | Z40: Irrigated | AA40: 997 | AB40: No Cropping Practice Specified | AC40: 997 | AD40: No Organic Practice Specified | AE40: 997 | AF40: No Interval Specified | AG40: 171.4 | AH40: 189.72 | AI40: 3.87 | AJ40: 663.32 | AK40: 3.53 | AL40: 669.71 | AM40: - | AN40: - | AO40: - | AP40: 171.4 | AQ40: -1.360330942 | AR40: -1.360303268 | AS40: -2.24440437 | AT40: 0 | AU40: 0 | AV40: 0 | AW40: -0.9352275228 | AX40: 0 | AY40: -2.493940061 | AZ40: 0 | BA40: 0 | BB40: 0 | BC40: 0
A41: 116 | B41: 2017 | C41: 0041 | D41: Corn | E41: SCO | F41: 01 | G41: Alabama | H41: AL | I41: 041 | J41: Crenshaw | M41: 016 | N41: Grain | O41: 003 | P41: Non-Irrigated | Q41: 997 | R41: No Commodity Type Specified | S41: 997 | T41: No Class Specified | U41: 997 | V41: No Subclass Specified | W41: 016 | X41: Grain | Y41: 003 | Z41: Non-Irrigated | AA41: 997 | AB41: No Cropping Practice Specified | AC41: 997 | AD41: No Organic Practice Specified | AE41: 997 | AF41: No Interval Specified | AG41: 73.1 | AH41: 129.92 | AI41: 3.87 | AJ41: 282.9 | AK41: 3.53 | AL41: 458.62 | AM41: - | AN41: - | AO41: - | AP41: 73.1 | AQ41: -6.919594571 | AR41: -6.919438285 | AS41: -8.339012561 | AT41: 0 | AU41: 0 | AV41: 0 | AW41: -4.757221268 | AX41: 0 | AY41: -12.68592338 | AZ41: 0 | BA41: 0 | BB41: 0 | BC41: 0
A42: 121 | B42: 2017 | C42: 0041 | D42: Corn | E42: SCO | F42: 01 | G42: Alabama | H42: AL | I42: 043 | J42: Cullman | M42: 016 | N42: Grain | O42: 002 | P42: Irrigated | Q42: 997 | R42: No Commodity Type Specified | S42: 997 | T42: No Class Specified | U42: 997 | V42: No Subclass Specified | W42: 016 | X42: Grain | Y42: 002 | Z42: Irrigated | AA42: 997 | AB42: No Cropping Practice Specified | AC42: 997 | AD42: No Organic Practice Specified | AE42: 997 | AF42: No Interval Specified | AG42: 185.1 | AH42: 237.08 | AI42: 3.87 | AJ42: 716.34 | AK42: 3.53 | AL42: 836.89 | AM42: - | AN42: - | AO42: - | AP42: 185.1 | AQ42: -2.802644565 | AR42: -2.802600086 | AS42: -3.82564707 | AT42: 0 | AU42: 0 | AV42: 0 | AW42: -1.926818139 | AX42: 0 | AY42: -5.138181703 | AZ42: 0 | BA42: 0 | BB42: 0 | BC42: 0
A43: 122 | B43: 2017 | C43: 0041 | D43: Corn | E43: SCO | F43: 01 | G43: Alabama | H43: AL | I43: 043 | J43: Cullman | M43: 016 | N43: Grain | O43: 003 | P43: Non-Irrigated | Q43: 997 | R43: No Commodity Type Specified | S43: 997 | T43: No Class Specified | U43: 997 | V43: No Subclass Specified | W43: 016 | X43: Grain | Y43: 003 | Z43: Non-Irrigated | AA43: 997 | AB43: No Cropping Practice Specified | AC43: 997 | AD43: No Organic Practice Specified | AE43: 997 | AF43: No Interval Specified | AG43: 133.3 | AH43: 200.38 | AI43: 3.87 | AJ43: 515.87 | AK43: 3.53 | AL43: 707.34 | AM43: - | AN43: - | AO43: - | AP43: 133.3 | AQ43: -4.646879479 | AR43: -4.646903642 | AS43: -5.847507331 | AT43: 0 | AU43: 0 | AV43: 0 | AW43: -3.194729642 | AX43: 0 | AY43: -8.519279045 | AZ43: 0 | BA43: 0 | BB43: 0 | BC43: 0
A44: 127 | B44: 2017 | C44: 0041 | D44: Corn | E44: SCO | F44: 01 | G44: Alabama | H44: AL | I44: 045 | J44: Dale | M44: 016 | N44: Grain | O44: 002 | P44: Irrigated | Q44: 997 | R44: No Commodity Type Specified | S44: 997 | T44: No Class Specified | U44: 997 | V44: No Subclass Specified | W44: 016 | X44: Grain | Y44: 002 | Z44: Irrigated | AA44: 997 | AB44: No Cropping Practice Specified | AC44: 997 | AD44: No Organic Practice Specified | AE44: 997 | AF44: No Interval Specified | AG44: 191.8 | AH44: 196.64 | AI44: 3.87 | AJ44: 742.27 | AK44: 3.53 | AL44: 694.14 | AM44: - | AN44: - | AO44: - | AP44: 191.8 | AQ44: -0.6833036821 | AR44: -0.6832578687 | AS44: -1.502132904 | AT44: 0 | AU44: 0 | AV44: 0 | AW44: -0.4697712815 | AX44: 0 | AY44: -1.252723417 | AZ44: 0 | BA44: 0 | BB44: 0 | BC44: 0
A45: 128 | B45: 2017 | C45: 0041 | D45: Corn | E45: SCO | F45: 01 | G45: Alabama | H45: AL | I45: 045 | J45: Dale | M45: 016 | N45: Grain | O45: 003 | P45: Non-Irrigated | Q45: 997 | R45: No Commodity Type Specified | S45: 997 | T45: No Class Specified | U45: 997 | V45: No Subclass Specified | W45: 016 | X45: Grain | Y45: 003 | Z45: Non-Irrigated | AA45: 997 | AB45: No Cropping Practice Specified | AC45: 997 | AD45: No Organic Practice Specified | AE45: 997 | AF45: No Interval Specified | AG45: 67.1 | AH45: 110.79 | AI45: 3.87 | AJ45: 259.68 | AK45: 3.53 | AL45: 391.09 | AM45: - | AN45: - | AO45: - | AP45: 67.1 | AQ45: -5.873302743 | AR45: -5.87314457 | AS45: -7.191979407 | AT45: 0 | AU45: 0 | AV45: 0 | AW45: -4.037895636 | AX45: 0 | AY45: -10.7677217 | AZ45: 0 | BA45: 0 | BB45: 0 | BC45: 0
A46: 133 | B46: 2017 | C46: 0041 | D46: Corn | E46: SCO | F46: 01 | G46: Alabama | H46: AL | I46: 047 | J46: Dallas | M46: 016 | N46: Grain | O46: 002 | P46: Irrigated | Q46: 997 | R46: No Commodity Type Specified | S46: 997 | T46: No Class Specified | U46: 997 | V46: No Subclass Specified | W46: 016 | X46: Grain | Y46: 002 | Z46: Irrigated | AA46: 997 | AB46: No Cropping Practice Specified | AC46: 997 | AD46: No Organic Practice Specified | AE46: 997 | AF46: No Interval Specified | AG46: 173.9 | AH46: 192.9 | AI46: 3.87 | AJ46: 672.99 | AK46: 3.53 | AL46: 680.94 | AM46: - | AN46: - | AO46: - | AP46: 173.9 | AQ46: -1.380076762 | AR46: -1.380117765 | AS46: -2.265983585 | AT46: 0 | AU46: 0 | AV46: 0 | AW46: -0.9488027736 | AX46: 0 | AY46: -2.53014073 | AZ46: 0 | BA46: 0 | BB46: 0 | BC46: 0
A47: 134 | B47: 2017 | C47: 0041 | D47: Corn | E47: SCO | F47: 01 | G47: Alabama | H47: AL | I47: 047 | J47: Dallas | M47: 016 | N47: Grain | O47: 003 | P47: Non-Irrigated | Q47: 997 | R47: No Commodity Type Specified | S47: 997 | T47: No Class Specified | U47: 997 | V47: No Subclass Specified | W47: 016 | X47: Grain | Y47: 003 | Z47: Non-Irrigated | AA47: 997 | AB47: No Cropping Practice Specified | AC47: 997 | AD47: No Organic Practice Specified | AE47: 997 | AF47: No Interval Specified | AG47: 80 | AH47: 111.62 | AI47: 3.87 | AJ47: 309.6 | AK47: 3.53 | AL47: 394.02 | AM47: - | AN47: - | AO47: - | AP47: 80 | AQ47: -3.751585624 | AR47: -3.751585624 | AS47: -4.865909091 | AT47: 0 | AU47: 0 | AV47: 0 | AW47: -2.579215116 | AX47: 0 | AY47: -6.877906977 | AZ47: 0 | BA47: 0 | BB47: 0 | BC47: 0
A48: 139 | B48: 2017 | C48: 0041 | D48: Corn | E48: SCO | F48: 01 | G48: Alabama | H48: AL | I48: 049 | J48: De Kalb | M48: 016 | N48: Grain | O48: 002 | P48: Irrigated | Q48: 997 | R48: No Commodity Type Specified | S48: 997 | T48: No Class Specified | U48: 997 | V48: No Subclass Specified | W48: 016 | X48: Grain | Y48: 002 | Z48: Irrigated | AA48: 997 | AB48: No Cropping Practice Specified | AC48: 997 | AD48: No Organic Practice Specified | AE48: 997 | AF48: No Interval Specified | AG48: 210.3 | AH48: 216.8 | AI48: 3.87 | AJ48: 813.86 | AK48: 3.53 | AL48: 765.3 | AM48: - | AN48: - | AO48: - | AP48: 210.3 | AQ48: -0.7302960267 | AR48: -0.7303065303 | AS48: -1.553711149 | AT48: 0 | AU48: 0 | AV48: 0 | AW48: -0.5020785183 | AX48: 0 | AY48: -1.338876049 | AZ48: 0 | BA48: 0 | BB48: 0 | BC48: 0
A49: 140 | B49: 2017 | C49: 0041 | D49: Corn | E49: SCO | F49: 01 | G49: Alabama | H49: AL | I49: 049 | J49: De Kalb | M49: 016 | N49: Grain | O49: 003 | P49: Non-Irrigated | Q49: 997 | R49: No Commodity Type Specified | S49: 997 | T49: No Class Specified | U49: 997 | V49: No Subclass Specified | W49: 016 | X49: Grain | Y49: 003 | Z49: Non-Irrigated | AA49: 997 | AB49: No Cropping Practice Specified | AC49: 997 | AD49: No Organic Practice Specified | AE49: 997 | AF49: No Interval Specified | AG49: 128.8 | AH49: 161.32 | AI49: 3.87 | AJ49: 498.46 | AK49: 3.53 | AL49: 569.46 | AM49: - | AN49: - | AO49: - | AP49: 128.8 | AQ49: -2.567707991 | AR49: -2.567624648 | AS49: -3.568040655 | AT49: 0 | AU49: 0 | AV49: 0 | AW49: -1.765299244 | AX49: 0 | AY49: -4.707464651 | AZ49: 0 | BA49: 0 | BB49: 0 | BC49: 0
A50: 145 | B50: 2017 | C50: 0041 | D50: Corn | E50: SCO | F50: 01 | G50: Alabama | H50: AL | I50: 051 | J50: Elmore | M50: 016 | N50: Grain | O50: 002 | P50: Irrigated | Q50: 997 | R50: No Commodity Type Specified | S50: 997 | T50: No Class Specified | U50: 997 | V50: No Subclass Specified | W50: 016 | X50: Grain | Y50: 002 | Z50: Irrigated | AA50: 997 | AB50: No Cropping Practice Specified | AC50: 997 | AD50: No Organic Practice Specified | AE50: 997 | AF50: No Interval Specified | AG50: 172 | AH50: 197.53 | AI50: 3.87 | AJ50: 665.64 | AK50: 3.53 | AL50: 697.28 | AM50: - | AN50: - | AO50: - | AP50: 172 | AQ50: -1.704847283 | AR50: -1.704847283 | AS50: -2.622093023 | AT50: 0 | AU50: 0 | AV50: 0 | AW50: -1.172082507 | AX50: 0 | AY50: -3.125553352 | AZ50: 0 | BA50: 0 | BB50: 0 | BC50: 0
A51: 146 | B51: 2017 | C51: 0041 | D51: Corn | E51: SCO | F51: 01 | G51: Alabama | H51: AL | I51: 051 | J51: Elmore | M51: 016 | N51: Grain | O51: 003 | P51: Non-Irrigated | Q51: 997 | R51: No Commodity Type Specified | S51: 997 | T51: No Class Specified | U51: 997 | V51: No Subclass Specified | W51: 016 | X51: Grain | Y51: 003 | Z51: Non-Irrigated | AA51: 997 | AB51: No Cropping Practice Specified | AC51: 997 | AD51: No Organic Practice Specified | AE51: 997 | AF51: No Interval Specified | AG51: 89.5 | AH51: 136.86 | AI51: 3.87 | AJ51: 346.37 | AK51: 3.53 | AL51: 483.12 | AM51: - | AN51: - | AO51: - | AP51: 89.5 | AQ51: -4.86208322 | AR51: -4.861900175 | AS51: -6.083291011 | AT51: 0 | AU51: 0 | AV51: 0 | AW51: -3.342682214 | AX51: 0 | AY51: -8.913819237 | AZ51: 0 | BA51: 0 | BB51: 0 | BC51: 0
A52: 151 | B52: 2017 | C52: 0041 | D52: Corn | E52: SCO | F52: 01 | G52: Alabama | H52: AL | I52: 053 | J52: Escambia | M52: 016 | N52: Grain | O52: 002 | P52: Irrigated | Q52: 997 | R52: No Commodity Type Specified | S52: 997 | T52: No Class Specified | U52: 997 | V52: No Subclass Specified | W52: 016 | X52: Grain | Y52: 002 | Z52: Irrigated | AA52: 997 | AB52: No Cropping Practice Specified | AC52: 997 | AD52: No Organic Practice Specified | AE52: 997 | AF52: No Interval Specified | AG52: 110.6 | AH52: 162.16 | AI52: 3.87 | AJ52: 428.02 | AK52: 3.53 | AL52: 572.42 | AM52: - | AN52: - | AO52: - | AP52: 110.6 | AQ52: -4.339646943 | AR52: -4.339703752 | AS52: -5.510767713 | AT52: 0 | AU52: 0 | AV52: 0 | AW52: -2.983507273 | AX52: 0 | AY52: -7.956019395 | AZ52: 0 | BA52: 0 | BB52: 0 | BC52: 0
A53: 152 | B53: 2017 | C53: 0041 | D53: Corn | E53: SCO | F53: 01 | G53: Alabama | H53: AL | I53: 053 | J53: Escambia | M53: 016 | N53: Grain | O53: 003 | P53: Non-Irrigated | Q53: 997 | R53: No Commodity Type Specified | S53: 997 | T53: No Class Specified | U53: 997 | V53: No Subclass Specified | W53: 016 | X53: Grain | Y53: 003 | Z53: Non-Irrigated | AA53: 997 | AB53: No Cropping Practice Specified | AC53: 997 | AD53: No Organic Practice Specified | AE53: 997 | AF53: No Interval Specified | AG53: 110.6 | AH53: 162.16 | AI53: 3.87 | AJ53: 428.02 | AK53: 3.53 | AL53: 572.42 | AM53: - | AN53: - | AO53: - | AP53: 110.6 | AQ53: -4.339646943 | AR53: -4.339703752 | AS53: -5.510767713 | AT53: 0 | AU53: 0 | AV53: 0 | AW53: -2.983507273 | AX53: 0 | AY53: -7.956019395 | AZ53: 0 | BA53: 0 | BB53: 0 | BC53: 0
A54: 157 | B54: 2017 | C54: 0041 | D54: Corn | E54: SCO | F54: 01 | G54: Alabama | H54: AL | I54: 055 | J54: Etowah | M54: 016 | N54: Grain | O54: 002 | P54: Irrigated | Q54: 997 | R54: No Commodity Type Specified | S54: 997 | T54: No Class Specified | U54: 997 | V54: No Subclass Specified | W54: 016 | X54: Grain | Y54: 002 | Z54: Irrigated | AA54: 997 | AB54: No Cropping Practice Specified | AC54: 997 | AD54: No Organic Practice Specified | AE54: 997 | AF54: No Interval Specified | AG54: 205.4 | AH54: 227.79 | AI54: 3.87 | AJ54: 794.9 | AK54: 3.53 | AL54: 804.1 | AM54: - | AN54: - | AO54: - | AP54: 205.4 | AQ54: -1.377966618 | AR54: -1.377943481 | AS54: -2.263698327 | AT54: 0 | AU54: 0 | AV54: 0 | AW54: -0.9473520502 | AX54: 0 | AY54: -2.526272134 | AZ54: 0 | BA54: 0 | BB54: 0 | BC54: 0
A55: 158 | B55: 2017 | C55: 0041 | D55: Corn | E55: SCO | F55: 01 | G55: Alabama | H55: AL | I55: 055 | J55: Etowah | M55: 016 | N55: Grain | O55: 003 | P55: Non-Irrigated | Q55: 997 | R55: No Commodity Type Specified | S55: 997 | T55: No Class Specified | U55: 997 | V55: No Subclass Specified | W55: 016 | X55: Grain | Y55: 003 | Z55: Non-Irrigated | AA55: 997 | AB55: No Cropping Practice Specified | AC55: 997 | AD55: No Organic Practice Specified | AE55: 997 | AF55: No Interval Specified | AG55: 127 | AH55: 161.94 | AI55: 3.87 | AJ55: 491.49 | AK55: 3.53 | AL55: 571.65 | AM55: - | AN55: - | AO55: - | AP55: 127 | AQ55: -2.755417201 | AR55: -2.755417201 | AS55: -3.773801002 | AT55: 0 | AU55: 0 | AV55: 0 | AW55: -1.894349326 | AX55: 0 | AY55: -5.051598201 | AZ55: 0 | BA55: 0 | BB55: 0 | BC55: 0
A56: 163 | B56: 2017 | C56: 0041 | D56: Corn | E56: SCO | F56: 01 | G56: Alabama | H56: AL | I56: 057 | J56: Fayette | M56: 016 | N56: Grain | O56: 002 | P56: Irrigated | Q56: 997 | R56: No Commodity Type Specified | S56: 997 | T56: No Class Specified | U56: 997 | V56: No Subclass Specified | W56: 016 | X56: Grain | Y56: 002 | Z56: Irrigated | AA56: 997 | AB56: No Cropping Practice Specified | AC56: 997 | AD56: No Organic Practice Specified | AE56: 997 | AF56: No Interval Specified | AG56: 176 | AH56: 195.92 | AI56: 3.87 | AJ56: 681.12 | AK56: 3.53 | AL56: 691.6 | AM56: - | AN56: - | AO56: - | AP56: 176 | AQ56: -1.41260384 | AR56: -1.41260384 | AS56: -2.301652893 | AT56: 0 | AU56: 0 | AV56: 0 | AW56: -0.9711651398 | AX56: 0 | AY56: -2.589773706 | AZ56: 0 | BA56: 0 | BB56: 0 | BC56: 0
A57: 164 | B57: 2017 | C57: 0041 | D57: Corn | E57: SCO | F57: 01 | G57: Alabama | H57: AL | I57: 057 | J57: Fayette | M57: 016 | N57: Grain | O57: 003 | P57: Non-Irrigated | Q57: 997 | R57: No Commodity Type Specified | S57: 997 | T57: No Class Specified | U57: 997 | V57: No Subclass Specified | W57: 016 | X57: Grain | Y57: 003 | Z57: Non-Irrigated | AA57: 997 | AB57: No Cropping Practice Specified | AC57: 997 | AD57: No Organic Practice Specified | AE57: 997 | AF57: No Interval Specified | AG57: 104.8 | AH57: 152.97 | AI57: 3.87 | AJ57: 405.58 | AK57: 3.53 | AL57: 539.98 | AM57: - | AN57: - | AO57: - | AP57: 104.8 | AQ57: -4.285367433 | AR57: -4.285248062 | AS57: -5.451249133 | AT57: 0 | AU57: 0 | AV57: 0 | AW57: -2.94619011 | AX57: 0 | AY57: -7.85650696 | AZ57: 0 | BA57: 0 | BB57: 0 | BC57: 0
A58: 169 | B58: 2017 | C58: 0041 | D58: Corn | E58: SCO | F58: 01 | G58: Alabama | H58: AL | I58: 059 | J58: Franklin | M58: 016 | N58: Grain | O58: 002 | P58: Irrigated | Q58: 997 | R58: No Commodity Type Specified | S58: 997 | T58: No Class Specified | U58: 997 | V58: No Subclass Specified | W58: 016 | X58: Grain | Y58: 002 | Z58: Irrigated | AA58: 997 | AB58: No Cropping Practice Specified | AC58: 997 | AD58: No Organic Practice Specified | AE58: 997 | AF58: No Interval Specified | AG58: 184.5 | AH58: 236.35 | AI58: 3.87 | AJ58: 714.02 | AK58: 3.53 | AL58: 834.32 | AM58: - | AN58: - | AO58: - | AP58: 184.5 | AQ58: -2.804462346 | AR58: -2.80438796 | AS58: -3.82754373 | AT58: 0 | AU58: 0 | AV58: 0 | AW58: -1.928067863 | AX58: 0 | AY58: -5.141514301 | AZ58: 0 | BA58: 0 | BB58: 0 | BC58: 0
A59: 170 | B59: 2017 | C59: 0041 | D59: Corn | E59: SCO | F59: 01 | G59: Alabama | H59: AL | I59: 059 | J59: Franklin | M59: 016 | N59: Grain | O59: 003 | P59: Non-Irrigated | Q59: 997 | R59: No Commodity Type Specified | S59: 997 | T59: No Class Specified | U59: 997 | V59: No Subclass Specified | W59: 016 | X59: Grain | Y59: 003 | Z59: Non-Irrigated | AA59: 997 | AB59: No Cropping Practice Specified | AC59: 997 | AD59: No Organic Practice Specified | AE59: 997 | AF59: No Interval Specified | AG59: 133.1 | AH59: 189.84 | AI59: 3.87 | AJ59: 515.1 | AK59: 3.53 | AL59: 670.14 | AM59: - | AN59: - | AO59: - | AP59: 133.1 | AQ59: -4.009069783 | AR59: -4.0090009 | AS59: -5.148145618 | AT59: 0 | AU59: 0 | AV59: 0 | AW59: -2.756235476 | AX59: 0 | AY59: -7.349961269 | AZ59: 0 | BA59: 0 | BB59: 0 | BC59: 0
A60: 175 | B60: 2017 | C60: 0041 | D60: Corn | E60: SCO | F60: 01 | G60: Alabama | H60: AL | I60: 061 | J60: Geneva | M60: 016 | N60: Grain | O60: 002 | P60: Irrigated | Q60: 997 | R60: No Commodity Type Specified | S60: 997 | T60: No Class Specified | U60: 997 | V60: No Subclass Specified | W60: 016 | X60: Grain | Y60: 002 | Z60: Irrigated | AA60: 997 | AB60: No Cropping Practice Specified | AC60: 997 | AD60: No Organic Practice Specified | AE60: 997 | AF60: No Interval Specified | AG60: 186.8 | AH60: 200.49 | AI60: 3.87 | AJ60: 722.92 | AK60: 3.53 | AL60: 707.73 | AM60: - | AN60: - | AO60: - | AP60: 186.8 | AQ60: -1.081758273 | AR60: -1.081709029 | AS60: -1.938972163 | AT60: 0 | AU60: 0 | AV60: 0 | AW60: -0.7437088126 | AX60: 0 | AY60: -1.9832235 | AZ60: 0 | BA60: 0 | BB60: 0 | BC60: 0
A61: 176 | B61: 2017 | C61: 0041 | D61: Corn | E61: SCO | F61: 01 | G61: Alabama | H61: AL | I61: 061 | J61: Geneva | M61: 016 | N61: Grain | O61: 003 | P61: Non-Irrigated | Q61: 997 | R61: No Commodity Type Specified | S61: 997 | T61: No Class Specified | U61: 997 | V61: No Subclass Specified | W61: 016 | X61: Grain | Y61: 003 | Z61: Non-Irrigated | AA61: 997 | AB61: No Cropping Practice Specified | AC61: 997 | AD61: No Organic Practice Specified | AE61: 997 | AF61: No Interval Specified | AG61: 69.7 | AH61: 115.08 | AI61: 3.87 | AJ61: 269.74 | AK61: 3.53 | AL61: 406.23 | AM61: - | AN61: - | AO61: - | AP61: 69.7 | AQ61: -5.872830605 | AR61: -5.872779849 | AS61: -7.191600365 | AT61: 0 | AU61: 0 | AV61: 0 | AW61: -4.037571041 | AX61: 0 | AY61: -10.76685611 | AZ61: 0 | BA61: 0 | BB61: 0 | BC61: 0
A62: 181 | B62: 2017 | C62: 0041 | D62: Corn | E62: SCO | F62: 01 | G62: Alabama | H62: AL | I62: 063 | J62: Greene | M62: 016 | N62: Grain | O62: 002 | P62: Irrigated | Q62: 997 | R62: No Commodity Type Specified | S62: 997 | T62: No Class Specified | U62: 997 | V62: No Subclass Specified | W62: 016 | X62: Grain | Y62: 002 | Z62: Irrigated | AA62: 997 | AB62: No Cropping Practice Specified | AC62: 997 | AD62: No Organic Practice Specified | AE62: 997 | AF62: No Interval Specified | AG62: 174.6 | AH62: 197.29 | AI62: 3.87 | AJ62: 675.7 | AK62: 3.53 | AL62: 696.43 | AM62: - | AN62: - | AO62: - | AP62: 174.6 | AQ62: -1.551602226 | AR62: -1.55162996 | AS62: -2.454128918 | AT62: 0 | AU62: 0 | AV62: 0 | AW62: -1.06672653 | AX62: 0 | AY62: -2.844604081 | AZ62: 0 | BA62: 0 | BB62: 0 | BC62: 0
A63: 182 | B63: 2017 | C63: 0041 | D63: Corn | E63: SCO | F63: 01 | G63: Alabama | H63: AL | I63: 063 | J63: Greene | M63: 016 | N63: Grain | O63: 003 | P63: Non-Irrigated | Q63: 997 | R63: No Commodity Type Specified | S63: 997 | T63: No Class Specified | U63: 997 | V63: No Subclass Specified | W63: 016 | X63: Grain | Y63: 003 | Z63: Non-Irrigated | AA63: 997 | AB63: No Cropping Practice Specified | AC63: 997 | AD63: No Organic Practice Specified | AE63: 997 | AF63: No Interval Specified | AG63: 77.8 | AH63: 103.26 | AI63: 3.87 | AJ63: 301.09 | AK63: 3.53 | AL63: 364.51 | AM63: - | AN63: - | AO63: - | AP63: 77.8 | AQ63: -3.187734341 | AR63: -3.187588127 | AS63: -4.24772143 | AT63: 0 | AU63: 0 | AV63: 0 | AW63: -2.191567359 | AX63: 0 | AY63: -5.844179625 | AZ63: 0 | BA63: 0 | BB63: 0 | BC63: 0
A64: 187 | B64: 2017 | C64: 0041 | D64: Corn | E64: SCO | F64: 01 | G64: Alabama | H64: AL | I64: 065 | J64: Hale | M64: 016 | N64: Grain | O64: 002 | P64: Irrigated | Q64: 997 | R64: No Commodity Type Specified | S64: 997 | T64: No Class Specified | U64: 997 | V64: No Subclass Specified | W64: 016 | X64: Grain | Y64: 002 | Z64: Irrigated | AA64: 997 | AB64: No Cropping Practice Specified | AC64: 997 | AD64: No Organic Practice Specified | AE64: 997 | AF64: No Interval Specified | AG64: 173.2 | AH64: 196.27 | AI64: 3.87 | AJ64: 670.28 | AK64: 3.53 | AL64: 692.83 | AM64: - | AN64: - | AO64: - | AP64: 173.2 | AQ64: -1.578513531 | AR64: -1.578569607 | AS64: -2.483623767 | AT64: 0 | AU64: 0 | AV64: 0 | AW64: -1.085228053 | AX64: 0 | AY64: -2.893941474 | AZ64: 0 | BA64: 0 | BB64: 0 | BC64: 0
A65: 188 | B65: 2017 | C65: 0041 | D65: Corn | E65: SCO | F65: 01 | G65: Alabama | H65: AL | I65: 065 | J65: Hale | M65: 016 | N65: Grain | O65: 003 | P65: Non-Irrigated | Q65: 997 | R65: No Commodity Type Specified | S65: 997 | T65: No Class Specified | U65: 997 | V65: No Subclass Specified | W65: 016 | X65: Grain | Y65: 003 | Z65: Non-Irrigated | AA65: 997 | AB65: No Cropping Practice Specified | AC65: 997 | AD65: No Organic Practice Specified | AE65: 997 | AF65: No Interval Specified | AG65: 81 | AH65: 112.26 | AI65: 3.87 | AJ65: 313.47 | AK65: 3.53 | AL65: 396.28 | AM65: - | AN65: - | AO65: - | AP65: 81 | AQ65: -3.674291001 | AR65: -3.674291001 | AS65: -4.781144781 | AT65: 0 | AU65: 0 | AV65: 0 | AW65: -2.526075063 | AX65: 0 | AY65: -6.736200168 | AZ65: 0 | BA65: 0 | BB65: 0 | BC65: 0
A66: 193 | B66: 2017 | C66: 0041 | D66: Corn | E66: SCO | F66: 01 | G66: Alabama | H66: AL | I66: 067 | J66: Henry | M66: 016 | N66: Grain | O66: 002 | P66: Irrigated | Q66: 997 | R66: No Commodity Type Specified | S66: 997 | T66: No Class Specified | U66: 997 | V66: No Subclass Specified | W66: 016 | X66: Grain | Y66: 002 | Z66: Irrigated | AA66: 997 | AB66: No Cropping Practice Specified | AC66: 997 | AD66: No Organic Practice Specified | AE66: 997 | AF66: No Interval Specified | AG66: 186.4 | AH66: 194.7 | AI66: 3.87 | AJ66: 721.37 | AK66: 3.53 | AL66: 687.29 | AM66: - | AN66: - | AO66: - | AP66: =AG66 -> 186.4 | AQ66: -0.8432654724 | AR66: -0.8432414585 | AS66: -1.677526336 | AT66: =IF(AQ66>0,((AP66*MAX(AI66,AK66))*(0.86-0.75)*AQ66),0) -> 0 | AU66: =IF(AR66>0,(AR66*(AP66*AI66)*(0.86-0.75)),0) -> 0 | AV66: =IF(AS66>0,(AS66*(AP66*AI66)*(0.86-0.75)),0) -> 0 | AW66: -0.5797450123 | AX66: 0 | AY66: -1.545986699 | AZ66: 0 | BA66: 0 | BB66: 0 | BC66: 0
A67: 194 | B67: 2017 | C67: 0041 | D67: Corn | E67: SCO | F67: 01 | G67: Alabama | H67: AL | I67: 067 | J67: Henry | M67: 016 | N67: Grain | O67: 003 | P67: Non-Irrigated | Q67: 997 | R67: No Commodity Type Specified | S67: 997 | T67: No Class Specified | U67: 997 | V67: No Subclass Specified | W67: 016 | X67: Grain | Y67: 003 | Z67: Non-Irrigated | AA67: 997 | AB67: No Cropping Practice Specified | AC67: 997 | AD67: No Organic Practice Specified | AE67: 997 | AF67: No Interval Specified | AG67: 66.9 | AH67: 111.96 | AI67: 3.87 | AJ67: 258.9 | AK67: 3.53 | AL67: 395.22 | AM67: - | AN67: - | AO67: - | AP67: 66.9 | AQ67: =MIN(((0.86-(AL67/(AG67*MAX(AI67,AK67))))/(0.86-0.75)),1) -> -6.059251394 | AR67: =MIN((((0.86-(AL67/AJ67)))/(0.86-0.75)),1) -> -6.059412198 | AS67: =MIN(((0.86-(AH67/AG67))/(0.86-0.75)),1) -> -7.395841826 | AT67: 0 | AU67: 0 | AV67: 0 | AW67: =MIN(((0.86-(AL67/(AG67*MAX(AI67,AK67))))/(0.86-0.7)),1) -> -4.165735333 | AX67: =IF(AW67>0,((AP67*MAX(AI67,AK67))*(0.86-0.7)*AW67),0) -> 0 | AY67: =MIN(((0.86-(AL67/(AG67*MAX(AI67,AK67))))/(0.86-0.8)),1) -> -11.10862756 | AZ67: =IF(AY67>0,((AP67*MAX(AI67,AK67))*(0.86-0.8)*AY67),0) -> 0 | BA67: =IF(AY67>0,((MAX(AI67,AK67))*(0.86-0.8)*AY67),0) -> 0 | BB67: =IF(AQ67>0,((MAX(AI67,AK67))*(0.86-0.75)*AQ67),0) -> 0 | BC67: =IF(AW67>0,((MAX(AI67,AK67))*(0.86-0.7)*AW67),0) -> 0
A68: 199 | B68: 2017 | C68: 0041 | D68: Corn | E68: SCO | F68: 01 | G68: Alabama | H68: AL | I68: 069 | J68: Houston | M68: 016 | N68: Grain | O68: 002 | P68: Irrigated | Q68: 997 | R68: No Commodity Type Specified | S68: 997 | T68: No Class Specified | U68: 997 | V68: No Subclass Specified | W68: 016 | X68: Grain | Y68: 002 | Z68: Irrigated | AA68: 997 | AB68: No Cropping Practice Specified | AC68: 997 | AD68: No Organic Practice Specified | AE68: 997 | AF68: No Interval Specified | AG68: 200.5 | AH68: 201.61 | AI68: 3.87 | AJ68: 775.94 | AK68: 3.53 | AL68: 711.68 | AM68: - | AN68: - | AO68: - | AP68: 200.5 | AQ68: -0.5199111688 | AR68: -0.5198574398 | AS68: -1.323055996 | AT68: 0 | AU68: 0 | AV68: 0 | AW68: -0.3574389285 | AX68: 0 | AY68: -0.953170476 | AZ68: 0 | BA68: 0 | BB68: 0 | BC68: 0
A69: 200 | B69: 2017 | C69: 0041 | D69: Corn | E69: SCO | F69: 01 | G69: Alabama | H69: AL | I69: 069 | J69: Houston | M69: 016 | N69: Grain | O69: 003 | P69: Non-Irrigated | Q69: 997 | R69: No Commodity Type Specified | S69: 997 | T69: No Class Specified | U69: 997 | V69: No Subclass Specified | W69: 016 | X69: Grain | Y69: 003 | Z69: Non-Irrigated | AA69: 997 | AB69: No Cropping Practice Specified | AC69: 997 | AD69: No Organic Practice Specified | AE69: 997 | AF69: No Interval Specified | AG69: 70.4 | AH69: 113.68 | AI69: 3.87 | AJ69: 272.45 | AK69: 3.53 | AL69: 401.29 | AM69: - | AN69: - | AO69: - | AP69: 70.4 | AQ69: -5.571862921 | AR69: -5.571764627 | AS69: -6.861570248 | AT69: 0 | AU69: 0 | AV69: 0 | AW69: -3.830655758 | AX69: 0 | AY69: -10.21508202 | AZ69: 0 | BA69: 0 | BB69: 0 | BC69: 0
A70: 205 | B70: 2017 | C70: 0041 | D70: Corn | E70: SCO | F70: 01 | G70: Alabama | H70: AL | I70: 071 | J70: Jackson | M70: 016 | N70: Grain | O70: 002 | P70: Irrigated | Q70: 997 | R70: No Commodity Type Specified | S70: 997 | T70: No Class Specified | U70: 997 | V70: No Subclass Specified | W70: 016 | X70: Grain | Y70: 002 | Z70: Irrigated | AA70: 997 | AB70: No Cropping Practice Specified | AC70: 997 | AD70: No Organic Practice Specified | AE70: 997 | AF70: No Interval Specified | AG70: 211.1 | AH70: 221.21 | AI70: 3.87 | AJ70: 816.96 | AK70: 3.53 | AL70: 780.87 | AM70: - | AN70: - | AO70: - | AP70: 211.1 | AQ70: -0.871159459 | AR70: -0.8711275505 | AS70: -1.708109039 | AT70: 0 | AU70: 0 | AV70: 0 | AW70: -0.5989221281 | AX70: 0 | AY70: -1.597125675 | AZ70: 0 | BA70: 0 | BB70: 0 | BC70: 0
A71: 206 | B71: 2017 | C71: 0041 | D71: Corn | E71: SCO | F71: 01 | G71: Alabama | H71: AL | I71: 071 | J71: Jackson | M71: 016 | N71: Grain | O71: 003 | P71: Non-Irrigated | Q71: 997 | R71: No Commodity Type Specified | S71: 997 | T71: No Class Specified | U71: 997 | V71: No Subclass Specified | W71: 016 | X71: Grain | Y71: 003 | Z71: Non-Irrigated | AA71: 997 | AB71: No Cropping Practice Specified | AC71: 997 | AD71: No Organic Practice Specified | AE71: 997 | AF71: No Interval Specified | AG71: 123.7 | AH71: 145.43 | AI71: 3.87 | AJ71: 478.72 | AK71: 3.53 | AL71: 513.37 | AM71: - | AN71: - | AO71: - | AP71: 123.7 | AQ71: -1.930752316 | AR71: -1.930731952 | AS71: -2.869699419 | AT71: 0 | AU71: 0 | AV71: 0 | AW71: -1.327392218 | AX71: 0 | AY71: -3.53971258 | AZ71: 0 | BA71: 0 | BB71: 0 | BC71: 0
A72: 211 | B72: 2017 | C72: 0041 | D72: Corn | E72: SCO | F72: 01 | G72: Alabama | H72: AL | I72: 075 | J72: Lamar | M72: 016 | N72: Grain | O72: 002 | P72: Irrigated | Q72: 997 | R72: No Commodity Type Specified | S72: 997 | T72: No Class Specified | U72: 997 | V72: No Subclass Specified | W72: 016 | X72: Grain | Y72: 002 | Z72: Irrigated | AA72: 997 | AB72: No Cropping Practice Specified | AC72: 997 | AD72: No Organic Practice Specified | AE72: 997 | AF72: No Interval Specified | AG72: 175.7 | AH72: 196.41 | AI72: 3.87 | AJ72: 679.96 | AK72: 3.53 | AL72: 693.33 | AM72: - | AN72: - | AO72: - | AP72: 175.7 | AQ72: -1.451494736 | AR72: -1.451481103 | AS72: -2.344285197 | AT72: 0 | AU72: 0 | AV72: 0 | AW72: -0.9979026309 | AX72: 0 | AY72: -2.661073682 | AZ72: 0 | BA72: 0 | BB72: 0 | BC72: 0
A73: 212 | B73: 2017 | C73: 0041 | D73: Corn | E73: SCO | F73: 01 | G73: Alabama | H73: AL | I73: 075 | J73: Lamar | M73: 016 | N73: Grain | O73: 003 | P73: Non-Irrigated | Q73: 997 | R73: No Commodity Type Specified | S73: 997 | T73: No Class Specified | U73: 997 | V73: No Subclass Specified | W73: 016 | X73: Grain | Y73: 003 | Z73: Non-Irrigated | AA73: 997 | AB73: No Cropping Practice Specified | AC73: 997 | AD73: No Organic Practice Specified | AE73: 997 | AF73: No Interval Specified | AG73: 104.9 | AH73: 161.07 | AI73: 3.87 | AJ73: 405.96 | AK73: 3.53 | AL73: 568.58 | AM73: - | AN73: - | AO73: - | AP73: 104.9 | AQ73: -4.914281709 | AR73: -4.914375801 | AS73: -6.140566774 | AT73: 0 | AU73: 0 | AV73: 0 | AW73: -3.378568675 | AX73: 0 | AY73: -9.009516467 | AZ73: 0 | BA73: 0 | BB73: 0 | BC73: 0
A74: 217 | B74: 2017 | C74: 0041 | D74: Corn | E74: SCO | F74: 01 | G74: Alabama | H74: AL | I74: 077 | J74: Lauderdale | M74: 016 | N74: Grain | O74: 002 | P74: Irrigated | Q74: 997 | R74: No Commodity Type Specified | S74: 997 | T74: No Class Specified | U74: 997 | V74: No Subclass Specified | W74: 016 | X74: Grain | Y74: 002 | Z74: Irrigated | AA74: 997 | AB74: No Cropping Practice Specified | AC74: 997 | AD74: No Organic Practice Specified | AE74: 997 | AF74: No Interval Specified | AG74: 192.8 | AH74: 239.76 | AI74: 3.87 | AJ74: 746.14 | AK74: 3.53 | AL74: 846.35 | AM74: - | AN74: - | AO74: - | AP74: 192.8 | AQ74: -2.493733046 | AR74: -2.493677765 | AS74: -3.486986043 | AT74: 0 | AU74: 0 | AV74: 0 | AW74: -1.714441469 | AX74: 0 | AY74: -4.571843918 | AZ74: 0 | BA74: 0 | BB74: 0 | BC74: 0
A75: 218 | B75: 2017 | C75: 0041 | D75: Corn | E75: SCO | F75: 01 | G75: Alabama | H75: AL | I75: 077 | J75: Lauderdale | M75: 016 | N75: Grain | O75: 003 | P75: Non-Irrigated | Q75: 997 | R75: No Commodity Type Specified | S75: 997 | T75: No Class Specified | U75: 997 | V75: No Subclass Specified | W75: 016 | X75: Grain | Y75: 003 | Z75: Non-Irrigated | AA75: 997 | AB75: No Cropping Practice Specified | AC75: 997 | AD75: No Organic Practice Specified | AE75: 997 | AF75: No Interval Specified | AG75: 135.4 | AH75: 182.5 | AI75: 3.87 | AJ75: 524 | AK75: 3.53 | AL75: 644.23 | AM75: - | AN75: - | AO75: - | AP75: 135.4 | AQ75: -3.358647795 | AR75: -3.358605135 | AS75: -4.435074527 | AT75: 0 | AU75: 0 | AV75: 0 | AW75: -2.309070359 | AX75: 0 | AY75: -6.157520957 | AZ75: 0 | BA75: 0 | BB75: 0 | BC75: 0
A76: 223 | B76: 2017 | C76: 0041 | D76: Corn | E76: SCO | F76: 01 | G76: Alabama | H76: AL | I76: 079 | J76: Lawrence | M76: 016 | N76: Grain | O76: 002 | P76: Irrigated | Q76: 997 | R76: No Commodity Type Specified | S76: 997 | T76: No Class Specified | U76: 997 | V76: No Subclass Specified | W76: 016 | X76: Grain | Y76: 002 | Z76: Irrigated | AA76: 997 | AB76: No Cropping Practice Specified | AC76: 997 | AD76: No Organic Practice Specified | AE76: 997 | AF76: No Interval Specified | AG76: 185.3 | AH76: 237.08 | AI76: 3.87 | AJ76: 717.11 | AK76: 3.53 | AL76: 836.89 | AM76: - | AN76: - | AO76: - | AP76: 185.3 | AQ76: -2.79118118 | AR76: -2.791195975 | AS76: -3.813079527 | AT76: 0 | AU76: 0 | AV76: 0 | AW76: -1.918937061 | AX76: 0 | AY76: -5.117165497 | AZ76: 0 | BA76: 0 | BB76: 0 | BC76: 0
A77: 224 | B77: 2017 | C77: 0041 | D77: Corn | E77: SCO | F77: 01 | G77: Alabama | H77: AL | I77: 079 | J77: Lawrence | M77: 016 | N77: Grain | O77: 003 | P77: Non-Irrigated | Q77: 997 | R77: No Commodity Type Specified | S77: 997 | T77: No Class Specified | U77: 997 | V77: No Subclass Specified | W77: 016 | X77: Grain | Y77: 003 | Z77: Non-Irrigated | AA77: 997 | AB77: No Cropping Practice Specified | AC77: 997 | AD77: No Organic Practice Specified | AE77: 997 | AF77: No Interval Specified | AG77: 134.9 | AH77: 202.05 | AI77: 3.87 | AJ77: 522.06 | AK77: 3.53 | AL77: 713.24 | AM77: - | AN77: - | AO77: - | AP77: 134.9 | AQ77: -4.60177516 | AR77: -4.601846531 | AS77: -5.797964822 | AT77: 0 | AU77: 0 | AV77: 0 | AW77: -3.163720423 | AX77: 0 | AY77: -8.436587794 | AZ77: 0 | BA77: 0 | BB77: 0 | BC77: 0
A78: 229 | B78: 2017 | C78: 0041 | D78: Corn | E78: SCO | F78: 01 | G78: Alabama | H78: AL | I78: 081 | J78: Lee | M78: 016 | N78: Grain | O78: 002 | P78: Irrigated | Q78: 997 | R78: No Commodity Type Specified | S78: 997 | T78: No Class Specified | U78: 997 | V78: No Subclass Specified | W78: 016 | X78: Grain | Y78: 002 | Z78: Irrigated | AA78: 997 | AB78: No Cropping Practice Specified | AC78: 997 | AD78: No Organic Practice Specified | AE78: 997 | AF78: No Interval Specified | AG78: 188.2 | AH78: 169.06 | AI78: 3.87 | AJ78: 728.33 | AK78: 3.53 | AL78: 596.78 | AM78: - | AN78: P | AO78: P | AP78: 188.2 | AQ78: 0.3693015966 | AR78: 0.3692606873 | AS78: -0.3481789199 | AT78: 29.58724 | AU78: 29.58396247 | AV78: 0 | AW78: 0.2538948477 | AX78: 29.58724 | AY78: 0.6770529272 | AZ78: 29.58724 | BA78: 0.1572116897 | BB78: 0.1572116897 | BC78: 0.1572116897
A79: 230 | B79: 2017 | C79: 0041 | D79: Corn | E79: SCO | F79: 01 | G79: Alabama | H79: AL | I79: 081 | J79: Lee | M79: 016 | N79: Grain | O79: 003 | P79: Non-Irrigated | Q79: 997 | R79: No Commodity Type Specified | S79: 997 | T79: No Class Specified | U79: 997 | V79: No Subclass Specified | W79: 016 | X79: Grain | Y79: 003 | Z79: Non-Irrigated | AA79: 997 | AB79: No Cropping Practice Specified | AC79: 997 | AD79: No Organic Practice Specified | AE79: 997 | AF79: No Interval Specified | AG79: 84 | AH79: 133.79 | AI79: 3.87 | AJ79: 325.08 | AK79: 3.53 | AL79: 472.28 | AM79: - | AN79: - | AO79: - | AP79: 84 | AQ79: -5.389196505 | AR79: -5.389196505 | AS79: -6.661255411 | AT79: 0 | AU79: 0 | AV79: 0 | AW79: -3.705072598 | AX79: 0 | AY79: -9.880193593 | AZ79: 0 | BA79: 0 | BB79: 0 | BC79: 0
A80: 235 | B80: 2017 | C80: 0041 | D80: Corn | E80: SCO | F80: 01 | G80: Alabama | H80: AL | I80: 083 | J80: Limestone | M80: 016 | N80: Grain | O80: 002 | P80: Irrigated | Q80: 997 | R80: No Commodity Type Specified | S80: 997 | T80: No Class Specified | U80: 997 | V80: No Subclass Specified | W80: 016 | X80: Grain | Y80: 002 | Z80: Irrigated | AA80: 997 | AB80: No Cropping Practice Specified | AC80: 997 | AD80: No Organic Practice Specified | AE80: 997 | AF80: No Interval Specified | AG80: 192.8 | AH80: 239.76 | AI80: 3.87 | AJ80: 746.14 | AK80: 3.53 | AL80: 846.35 | AM80: - | AN80: - | AO80: - | AP80: 192.8 | AQ80: -2.493733046 | AR80: -2.493677765 | AS80: -3.486986043 | AT80: 0 | AU80: 0 | AV80: 0 | AW80: -1.714441469 | AX80: 0 | AY80: -4.571843918 | AZ80: 0 | BA80: 0 | BB80: 0 | BC80: 0
A81: 236 | B81: 2017 | C81: 0041 | D81: Corn | E81: SCO | F81: 01 | G81: Alabama | H81: AL | I81: 083 | J81: Limestone | M81: 016 | N81: Grain | O81: 003 | P81: Non-Irrigated | Q81: 997 | R81: No Commodity Type Specified | S81: 997 | T81: No Class Specified | U81: 997 | V81: No Subclass Specified | W81: 016 | X81: Grain | Y81: 003 | Z81: Non-Irrigated | AA81: 997 | AB81: No Cropping Practice Specified | AC81: 997 | AD81: No Organic Practice Specified | AE81: 997 | AF81: No Interval Specified | AG81: 129.8 | AH81: 195.68 | AI81: 3.87 | AJ81: 502.33 | AK81: 3.53 | AL81: 690.75 | AM81: - | AN81: - | AO81: - | AP81: 129.8 | AQ81: -4.682754734 | AR81: -4.68265519 | AS81: -5.886818882 | AT81: 0 | AU81: 0 | AV81: 0 | AW81: -3.21939388 | AX81: 0 | AY81: -8.585050346 | AZ81: 0 | BA81: 0 | BB81: 0 | BC81: 0
A82: 241 | B82: 2017 | C82: 0041 | D82: Corn | E82: SCO | F82: 01 | G82: Alabama | H82: AL | I82: 085 | J82: Lowndes | M82: 016 | N82: Grain | O82: 002 | P82: Irrigated | Q82: 997 | R82: No Commodity Type Specified | S82: 997 | T82: No Class Specified | U82: 997 | V82: No Subclass Specified | W82: 016 | X82: Grain | Y82: 002 | Z82: Irrigated | AA82: 997 | AB82: No Cropping Practice Specified | AC82: 997 | AD82: No Organic Practice Specified | AE82: 997 | AF82: No Interval Specified | AG82: 172.7 | AH82: 193.28 | AI82: 3.87 | AJ82: 668.35 | AK82: 3.53 | AL82: 682.28 | AM82: - | AN82: - | AO82: - | AP82: 172.7 | AQ82: -1.462217277 | AR82: -1.462203391 | AS82: -2.356056219 | AT82: 0 | AU82: 0 | AV82: 0 | AW82: -1.005274378 | AX82: 0 | AY82: -2.680731674 | AZ82: 0 | BA82: 0 | BB82: 0 | BC82: 0
A83: 242 | B83: 2017 | C83: 0041 | D83: Corn | E83: SCO | F83: 01 | G83: Alabama | H83: AL | I83: 085 | J83: Lowndes | M83: 016 | N83: Grain | O83: 003 | P83: Non-Irrigated | Q83: 997 | R83: No Commodity Type Specified | S83: 997 | T83: No Class Specified | U83: 997 | V83: No Subclass Specified | W83: 016 | X83: Grain | Y83: 003 | Z83: Non-Irrigated | AA83: 997 | AB83: No Cropping Practice Specified | AC83: 997 | AD83: No Organic Practice Specified | AE83: 997 | AF83: No Interval Specified | AG83: 82.5 | AH83: 138.42 | AI83: 3.87 | AJ83: 319.28 | AK83: 3.53 | AL83: 488.62 | AM83: - | AN83: - | AO83: - | AP83: 82.5 | AQ83: -6.094589304 | AR83: -6.094371427 | AS83: -7.434710744 | AT83: 0 | AU83: 0 | AV83: 0 | AW83: -4.190030146 | AX83: 0 | AY83: -11.17341372 | AZ83: 0 | BA83: 0 | BB83: 0 | BC83: 0
A84: 247 | B84: 2017 | C84: 0041 | D84: Corn | E84: SCO | F84: 01 | G84: Alabama | H84: AL | I84: 087 | J84: Macon | M84: 016 | N84: Grain | O84: 002 | P84: Irrigated | Q84: 997 | R84: No Commodity Type Specified | S84: 997 | T84: No Class Specified | U84: 997 | V84: No Subclass Specified | W84: 016 | X84: Grain | Y84: 002 | Z84: Irrigated | AA84: 997 | AB84: No Cropping Practice Specified | AC84: 997 | AD84: No Organic Practice Specified | AE84: 997 | AF84: No Interval Specified | AG84: 189.7 | AH84: 169.61 | AI84: 3.87 | AJ84: 734.14 | AK84: 3.53 | AL84: 598.72 | AM84: - | AN84: P | AO84: P | AP84: 189.7 | AQ84: 0.4041783517 | AR84: 0.4041884506 | AS84: -0.3099630996 | AT84: 32.63954 | AU84: 32.64035554 | AV84: 0 | AW84: 0.2778726168 | AX84: 32.63954 | AY84: 0.7409936447 | AZ84: 32.63954 | BA84: 0.1720587243 | BB84: 0.1720587243 | BC84: 0.1720587243
A85: 248 | B85: 2017 | C85: 0041 | D85: Corn | E85: SCO | F85: 01 | G85: Alabama | H85: AL | I85: 087 | J85: Macon | M85: 016 | N85: Grain | O85: 003 | P85: Non-Irrigated | Q85: 997 | R85: No Commodity Type Specified | S85: 997 | T85: No Class Specified | U85: 997 | V85: No Subclass Specified | W85: 016 | X85: Grain | Y85: 003 | Z85: Non-Irrigated | AA85: 997 | AB85: No Cropping Practice Specified | AC85: 997 | AD85: No Organic Practice Specified | AE85: 997 | AF85: No Interval Specified | AG85: 77.1 | AH85: 135.59 | AI85: 3.87 | AJ85: 298.38 | AK85: 3.53 | AL85: 478.63 | AM85: - | AN85: - | AO85: - | AP85: 77.1 | AQ85: -6.7646507 | AR85: -6.76450408 | AS85: -8.169319656 | AT85: 0 | AU85: 0 | AV85: 0 | AW85: -4.650697356 | AX85: 0 | AY85: -12.40185962 | AZ85: 0 | BA85: 0 | BB85: 0 | BC85: 0
A86: 253 | B86: 2017 | C86: 0041 | D86: Corn | E86: SCO | F86: 01 | G86: Alabama | H86: AL | I86: 089 | J86: Madison | M86: 016 | N86: Grain | O86: 002 | P86: Irrigated | Q86: 997 | R86: No Commodity Type Specified | S86: 997 | T86: No Class Specified | U86: 997 | V86: No Subclass Specified | W86: 016 | X86: Grain | Y86: 002 | Z86: Irrigated | AA86: 997 | AB86: No Cropping Practice Specified | AC86: 997 | AD86: No Organic Practice Specified | AE86: 997 | AF86: No Interval Specified | AG86: 205.4 | AH86: 239.81 | AI86: 3.87 | AJ86: 794.9 | AK86: 3.53 | AL86: 846.53 | AM86: - | AN86: - | AO86: - | AP86: 205.4 | AQ86: -1.863220415 | AR86: -1.863196057 | AS86: -2.795697973 | AT86: 0 | AU86: 0 | AV86: 0 | AW86: -1.280964036 | AX86: 0 | AY86: -3.415904095 | AZ86: 0 | BA86: 0 | BB86: 0 | BC86: 0
A87: 254 | B87: 2017 | C87: 0041 | D87: Corn | E87: SCO | F87: 01 | G87: Alabama | H87: AL | I87: 089 | J87: Madison | M87: 016 | N87: Grain | O87: 003 | P87: Non-Irrigated | Q87: 997 | R87: No Commodity Type Specified | S87: 997 | T87: No Class Specified | U87: 997 | V87: No Subclass Specified | W87: 016 | X87: Grain | Y87: 003 | Z87: Non-Irrigated | AA87: 997 | AB87: No Cropping Practice Specified | AC87: 997 | AD87: No Organic Practice Specified | AE87: 997 | AF87: No Interval Specified | AG87: 128.5 | AH87: 172.66 | AI87: 3.87 | AJ87: 497.3 | AK87: 3.53 | AL87: 609.49 | AM87: - | AN87: - | AO87: - | AP87: 128.5 | AQ87: -3.323732301 | AR87: -3.323620277 | AS87: -4.39688716 | AT87: 0 | AU87: 0 | AV87: 0 | AW87: -2.285065957 | AX87: 0 | AY87: -6.093509218 | AZ87: 0 | BA87: 0 | BB87: 0 | BC87: 0
A88: 259 | B88: 2017 | C88: 0041 | D88: Corn | E88: SCO | F88: 01 | G88: Alabama | H88: AL | I88: 091 | J88: Marengo | M88: 016 | N88: Grain | O88: 002 | P88: Irrigated | Q88: 997 | R88: No Commodity Type Specified | S88: 997 | T88: No Class Specified | U88: 997 | V88: No Subclass Specified | W88: 016 | X88: Grain | Y88: 002 | Z88: Irrigated | AA88: 997 | AB88: No Cropping Practice Specified | AC88: 997 | AD88: No Organic Practice Specified | AE88: 997 | AF88: No Interval Specified | AG88: 173.8 | AH88: 193.9 | AI88: 3.87 | AJ88: 672.61 | AK88: 3.53 | AL88: 684.47 | AM88: - | AN88: - | AO88: - | AP88: 173.8 | AQ88: -1.433080504 | AR88: -1.433025487 | AS88: -2.324092478 | AT88: 0 | AU88: 0 | AV88: 0 | AW88: -0.9852428465 | AX88: 0 | AY88: -2.627314257 | AZ88: 0 | BA88: 0 | BB88: 0 | BC88: 0
A89: 260 | B89: 2017 | C89: 0041 | D89: Corn | E89: SCO | F89: 01 | G89: Alabama | H89: AL | I89: 091 | J89: Marengo | M89: 016 | N89: Grain | O89: 003 | P89: Non-Irrigated | Q89: 997 | R89: No Commodity Type Specified | S89: 997 | T89: No Class Specified | U89: 997 | V89: No Subclass Specified | W89: 016 | X89: Grain | Y89: 003 | Z89: Non-Irrigated | AA89: 997 | AB89: No Cropping Practice Specified | AC89: 997 | AD89: No Organic Practice Specified | AE89: 997 | AF89: No Interval Specified | AG89: 76.1 | AH89: 110.59 | AI89: 3.87 | AJ89: 294.51 | AK89: 3.53 | AL89: 390.38 | AM89: - | AN89: - | AO89: - | AP89: 76.1 | AQ89: -4.232156853 | AR89: -4.232034103 | AS89: -5.392904074 | AT89: 0 | AU89: 0 | AV89: 0 | AW89: -2.909607836 | AX89: 0 | AY89: -7.75895423 | AZ89: 0 | BA89: 0 | BB89: 0 | BC89: 0
A90: 265 | B90: 2017 | C90: 0041 | D90: Corn | E90: SCO | F90: 01 | G90: Alabama | H90: AL | I90: 093 | J90: Marion | M90: 016 | N90: Grain | O90: 002 | P90: Irrigated | Q90: 997 | R90: No Commodity Type Specified | S90: 997 | T90: No Class Specified | U90: 997 | V90: No Subclass Specified | W90: 016 | X90: Grain | Y90: 002 | Z90: Irrigated | AA90: 997 | AB90: No Cropping Practice Specified | AC90: 997 | AD90: No Organic Practice Specified | AE90: 997 | AF90: No Interval Specified | AG90: 174.2 | AH90: 213.74 | AI90: 3.87 | AJ90: 674.15 | AK90: 3.53 | AL90: 754.5 | AM90: - | AN90: - | AO90: - | AP90: 174.2 | AQ90: -2.356186218 | AR90: -2.356246587 | AS90: -3.336186202 | AT90: 0 | AU90: 0 | AV90: 0 | AW90: -1.619878025 | AX90: 0 | AY90: -4.319674733 | AZ90: 0 | BA90: 0 | BB90: 0 | BC90: 0
A91: 266 | B91: 2017 | C91: 0041 | D91: Corn | E91: SCO | F91: 01 | G91: Alabama | H91: AL | I91: 093 | J91: Marion | M91: 016 | N91: Grain | O91: 003 | P91: Non-Irrigated | Q91: 997 | R91: No Commodity Type Specified | S91: 997 | T91: No Class Specified | U91: 997 | V91: No Subclass Specified | W91: 016 | X91: Grain | Y91: 003 | Z91: Non-Irrigated | AA91: 997 | AB91: No Cropping Practice Specified | AC91: 997 | AD91: No Organic Practice Specified | AE91: 997 | AF91: No Interval Specified | AG91: 108.5 | AH91: 161.26 | AI91: 3.87 | AJ91: 419.9 | AK91: 3.53 | AL91: 569.25 | AM91: - | AN91: - | AO91: - | AP91: 108.5 | AQ91: -4.506327881 | AR91: -4.506181125 | AS91: -5.693338919 | AT91: 0 | AU91: 0 | AV91: 0 | AW91: -3.098100418 | AX91: 0 | AY91: -8.261601115 | AZ91: 0 | BA91: 0 | BB91: 0 | BC91: 0
A92: 271 | B92: 2017 | C92: 0041 | D92: Corn | E92: SCO | F92: 01 | G92: Alabama | H92: AL | I92: 095 | J92: Marshall | M92: 016 | N92: Grain | O92: 002 | P92: Irrigated | Q92: 997 | R92: No Commodity Type Specified | S92: 997 | T92: No Class Specified | U92: 997 | V92: No Subclass Specified | W92: 016 | X92: Grain | Y92: 002 | Z92: Irrigated | AA92: 997 | AB92: No Cropping Practice Specified | AC92: 997 | AD92: No Organic Practice Specified | AE92: 997 | AF92: No Interval Specified | AG92: 204.2 | AH92: 238.09 | AI92: 3.87 | AJ92: 790.25 | AK92: 3.53 | AL92: 840.46 | AM92: - | AN92: - | AO92: - | AP92: 204.2 | AQ92: -1.850286111 | AR92: -1.850335049 | AS92: -2.78149764 | AT92: 0 | AU92: 0 | AV92: 0 | AW92: -1.272071701 | AX92: 0 | AY92: -3.392191203 | AZ92: 0 | BA92: 0 | BB92: 0 | BC92: 0
A93: 272 | B93: 2017 | C93: 0041 | D93: Corn | E93: SCO | F93: 01 | G93: Alabama | H93: AL | I93: 095 | J93: Marshall | M93: 016 | N93: Grain | O93: 003 | P93: Non-Irrigated | Q93: 997 | R93: No Commodity Type Specified | S93: 997 | T93: No Class Specified | U93: 997 | V93: No Subclass Specified | W93: 016 | X93: Grain | Y93: 003 | Z93: Non-Irrigated | AA93: 997 | AB93: No Cropping Practice Specified | AC93: 997 | AD93: No Organic Practice Specified | AE93: 997 | AF93: No Interval Specified | AG93: 127.1 | AH93: 165.6 | AI93: 3.87 | AJ93: 491.88 | AK93: 3.53 | AL93: 584.57 | AM93: - | AN93: - | AO93: - | AP93: 127.1 | AQ93: -2.985886531 | AR93: -2.985820636 | AS93: -4.026464488 | AT93: 0 | AU93: 0 | AV93: 0 | AW93: -2.05279699 | AX93: 0 | AY93: -5.474125306 | AZ93: 0 | BA93: 0 | BB93: 0 | BC93: 0
A94: 277 | B94: 2017 | C94: 0041 | D94: Corn | E94: SCO | F94: 01 | G94: Alabama | H94: AL | I94: 097 | J94: Mobile | M94: 016 | N94: Grain | O94: 002 | P94: Irrigated | Q94: 997 | R94: No Commodity Type Specified | S94: 997 | T94: No Class Specified | U94: 997 | V94: No Subclass Specified | W94: 016 | X94: Grain | Y94: 002 | Z94: Irrigated | AA94: 997 | AB94: No Cropping Practice Specified | AC94: 997 | AD94: No Organic Practice Specified | AE94: 997 | AF94: No Interval Specified | AG94: 124.8 | AH94: 158.27 | AI94: 3.87 | AJ94: 482.98 | AK94: 3.53 | AL94: 558.69 | AM94: - | AN94: - | AO94: - | AP94: 124.8 | AQ94: -2.697868669 | AR94: -2.697781576 | AS94: -3.710810023 | AT94: 0 | AU94: 0 | AV94: 0 | AW94: -1.85478471 | AX94: 0 | AY94: -4.946092559 | AZ94: 0 | BA94: 0 | BB94: 0 | BC94: 0
A95: 278 | B95: 2017 | C95: 0041 | D95: Corn | E95: SCO | F95: 01 | G95: Alabama | H95: AL | I95: 097 | J95: Mobile | M95: 016 | N95: Grain | O95: 003 | P95: Non-Irrigated | Q95: 997 | R95: No Commodity Type Specified | S95: 997 | T95: No Class Specified | U95: 997 | V95: No Subclass Specified | W95: 016 | X95: Grain | Y95: 003 | Z95: Non-Irrigated | AA95: 997 | AB95: No Cropping Practice Specified | AC95: 997 | AD95: No Organic Practice Specified | AE95: 997 | AF95: No Interval Specified | AG95: 124.8 | AH95: 158.27 | AI95: 3.87 | AJ95: 482.98 | AK95: 3.53 | AL95: 558.69 | AM95: - | AN95: - | AO95: - | AP95: 124.8 | AQ95: -2.697868669 | AR95: -2.697781576 | AS95: -3.710810023 | AT95: 0 | AU95: 0 | AV95: 0 | AW95: -1.85478471 | AX95: 0 | AY95: -4.946092559 | AZ95: 0 | BA95: 0 | BB95: 0 | BC95: 0
A96: 283 | B96: 2017 | C96: 0041 | D96: Corn | E96: SCO | F96: 01 | G96: Alabama | H96: AL | I96: 099 | J96: Monroe | M96: 016 | N96: Grain | O96: 002 | P96: Irrigated | Q96: 997 | R96: No Commodity Type Specified | S96: 997 | T96: No Class Specified | U96: 997 | V96: No Subclass Specified | W96: 016 | X96: Grain | Y96: 002 | Z96: Irrigated | AA96: 997 | AB96: No Cropping Practice Specified | AC96: 997 | AD96: No Organic Practice Specified | AE96: 997 | AF96: No Interval Specified | AG96: 110.2 | AH96: 161.99 | AI96: 3.87 | AJ96: 426.47 | AK96: 3.53 | AL96: 571.82 | AM96: - | AN96: - | AO96: - | AP96: 110.2 | AQ96: -4.370987126 | AR96: -4.371101452 | AS96: -5.545124567 | AT96: 0 | AU96: 0 | AV96: 0 | AW96: -3.005053649 | AX96: 0 | AY96: -8.013476398 | AZ96: 0 | BA96: 0 | BB96: 0 | BC96: 0
A97: 284 | B97: 2017 | C97: 0041 | D97: Corn | E97: SCO | F97: 01 | G97: Alabama | H97: AL | I97: 099 | J97: Monroe | M97: 016 | N97: Grain | O97: 003 | P97: Non-Irrigated | Q97: 997 | R97: No Commodity Type Specified | S97: 997 | T97: No Class Specified | U97: 997 | V97: No Subclass Specified | W97: 016 | X97: Grain | Y97: 003 | Z97: Non-Irrigated | AA97: 997 | AB97: No Cropping Practice Specified | AC97: 997 | AD97: No Organic Practice Specified | AE97: 997 | AF97: No Interval Specified | AG97: 110.2 | AH97: 161.99 | AI97: 3.87 | AJ97: 426.47 | AK97: 3.53 | AL97: 571.82 | AM97: - | AN97: - | AO97: - | AP97: 110.2 | AQ97: -4.370987126 | AR97: -4.371101452 | AS97: -5.545124567 | AT97: 0 | AU97: 0 | AV97: 0 | AW97: -3.005053649 | AX97: 0 | AY97: -8.013476398 | AZ97: 0 | BA97: 0 | BB97: 0 | BC97: 0
A98: 289 | B98: 2017 | C98: 0041 | D98: Corn | E98: SCO | F98: 01 | G98: Alabama | H98: AL | I98: 101 | J98: Montgomery | M98: 016 | N98: Grain | O98: 002 | P98: Irrigated | Q98: 997 | R98: No Commodity Type Specified | S98: 997 | T98: No Class Specified | U98: 997 | V98: No Subclass Specified | W98: 016 | X98: Grain | Y98: 002 | Z98: Irrigated | AA98: 997 | AB98: No Cropping Practice Specified | AC98: 997 | AD98: No Organic Practice Specified | AE98: 997 | AF98: No Interval Specified | AG98: 172.7 | AH98: 193.28 | AI98: 3.87 | AJ98: 668.35 | AK98: 3.53 | AL98: 682.28 | AM98: - | AN98: - | AO98: - | AP98: 172.7 | AQ98: -1.462217277 | AR98: -1.462203391 | AS98: -2.356056219 | AT98: 0 | AU98: 0 | AV98: 0 | AW98: -1.005274378 | AX98: 0 | AY98: -2.680731674 | AZ98: 0 | BA98: 0 | BB98: 0 | BC98: 0
A99: 290 | B99: 2017 | C99: 0041 | D99: Corn | E99: SCO | F99: 01 | G99: Alabama | H99: AL | I99: 101 | J99: Montgomery | M99: 016 | N99: Grain | O99: 003 | P99: Non-Irrigated | Q99: 997 | R99: No Commodity Type Specified | S99: 997 | T99: No Class Specified | U99: 997 | V99: No Subclass Specified | W99: 016 | X99: Grain | Y99: 003 | Z99: Non-Irrigated | AA99: 997 | AB99: No Cropping Practice Specified | AC99: 997 | AD99: No Organic Practice Specified | AE99: 997 | AF99: No Interval Specified | AG99: 83.3 | AH99: 144.34 | AI99: 3.87 | AJ99: 322.37 | AK99: 3.53 | AL99: 509.52 | AM99: - | AN99: - | AO99: - | AP99: 83.3 | AQ99: -6.550356295 | AR99: -6.550400866 | AS99: -7.934300993 | AT99: 0 | AU99: 0 | AV99: 0 | AW99: -4.503369953 | AX99: 0 | AY99: -12.00898654 | AZ99: 0 | BA99: 0 | BB99: 0 | BC99: 0
A100: 295 | B100: 2017 | C100: 0041 | D100: Corn | E100: SCO | F100: 01 | G100: Alabama | H100: AL | I100: 103 | J100: Morgan | M100: 016 | N100: Grain | O100: 002 | P100: Irrigated | Q100: 997 | R100: No Commodity Type Specified | S100: 997 | T100: No Class Specified | U100: 997 | V100: No Subclass Specified | W100: 016 | X100: Grain | Y100: 002 | Z100: Irrigated | AA100: 997 | AB100: No Cropping Practice Specified | AC100: 997 | AD100: No Organic Practice Specified | AE100: 997 | AF100: No Interval Specified | AG100: 192.4 | AH100: 239.76 | AI100: 3.87 | AJ100: 744.59 | AK100: 3.53 | AL100: 846.35 | AM100: - | AN100: - | AO100: - | AP100: 192.4 | AQ100: -2.515171538 | AR100: -2.515143783 | AS100: -3.51048951 | AT100: 0 | AU100: 0 | AV100: 0 | AW100: -1.729180433 | AX100: 0 | AY100: -4.61114782 | AZ100: 0 | BA100: 0 | BB100: 0 | BC100: 0
A101: 296 | B101: 2017 | C101: 0041 | D101: Corn | E101: SCO | F101: 01 | G101: Alabama | H101: AL | I101: 103 | J101: Morgan | M101: 016 | N101: Grain | O101: 003 | P101: Non-Irrigated | Q101: 997 | R101: No Commodity Type Specified | S101: 997 | T101: No Class Specified | U101: 997 | V101: No Subclass Specified | W101: 016 | X101: Grain | Y101: 003 | Z101: Non-Irrigated | AA101: 997 | AB101: No Cropping Practice Specified | AC101: 997 | AD101: No Organic Practice Specified | AE101: 997 | AF101: No Interval Specified | AG101: 125.9 | AH101: 189.92 | AI101: 3.87 | AJ101: 487.23 | AK101: 3.53 | AL101: 670.42 | AM101: - | AN101: - | AO101: - | AP101: 125.9 | AQ101: -4.690673848 | AR101: -4.690750868 | AS101: -5.895443714 | AT101: 0 | AU101: 0 | AV101: 0 | AW101: -3.22483827 | AX101: 0 | AY101: -8.599568721 | AZ101: 0 | BA101: 0 | BB101: 0 | BC101: 0
A102: 301 | B102: 2017 | C102: 0041 | D102: Corn | E102: SCO | F102: 01 | G102: Alabama | H102: AL | I102: 105 | J102: Perry | M102: 016 | N102: Grain | O102: 002 | P102: Irrigated | Q102: 997 | R102: No Commodity Type Specified | S102: 997 | T102: No Class Specified | U102: 997 | V102: No Subclass Specified | W102: 016 | X102: Grain | Y102: 002 | Z102: Irrigated | AA102: 997 | AB102: No Cropping Practice Specified | AC102: 997 | AD102: No Organic Practice Specified | AE102: 997 | AF102: No Interval Specified | AG102: 172.6 | AH102: 193.35 | AI102: 3.87 | AJ102: 667.96 | AK102: 3.53 | AL102: 682.53 | AM102: - | AN102: - | AO102: - | AP102: 172.6 | AQ102: -1.470996581 | AR102: -1.471024394 | AS102: -2.365637838 | AT102: 0 | AU102: 0 | AV102: 0 | AW102: -1.011310149 | AX102: 0 | AY102: -2.696827065 | AZ102: 0 | BA102: 0 | BB102: 0 | BC102: 0
A103: 302 | B103: 2017 | C103: 0041 | D103: Corn | E103: SCO | F103: 01 | G103: Alabama | H103: AL | I103: 105 | J103: Perry | M103: 016 | N103: Grain | O103: 003 | P103: Non-Irrigated | Q103: 997 | R103: No Commodity Type Specified | S103: 997 | T103: No Class Specified | U103: 997 | V103: No Subclass Specified | W103: 016 | X103: Grain | Y103: 003 | Z103: Non-Irrigated | AA103: 997 | AB103: No Cropping Practice Specified | AC103: 997 | AD103: No Organic Practice Specified | AE103: 997 | AF103: No Interval Specified | AG103: 79.1 | AH103: 111.32 | AI103: 3.87 | AJ103: 306.12 | AK103: 3.53 | AL103: 392.96 | AM103: - | AN103: - | AO103: - | AP103: 79.1 | AQ103: -3.851747119 | AR103: -3.851632752 | AS103: -4.975749914 | AT103: 0 | AU103: 0 | AV103: 0 | AW103: -2.648076144 | AX103: 0 | AY103: -7.061536384 | AZ103: 0 | BA103: 0 | BB103: 0 | BC103: 0
A104: 307 | B104: 2017 | C104: 0041 | D104: Corn | E104: SCO | F104: 01 | G104: Alabama | H104: AL | I104: 107 | J104: Pickens | M104: 016 | N104: Grain | O104: 002 | P104: Irrigated | Q104: 997 | R104: No Commodity Type Specified | S104: 997 | T104: No Class Specified | U104: 997 | V104: No Subclass Specified | W104: 016 | X104: Grain | Y104: 002 | Z104: Irrigated | AA104: 997 | AB104: No Cropping Practice Specified | AC104: 997 | AD104: No Organic Practice Specified | AE104: 997 | AF104: No Interval Specified | AG104: 176 | AH104: 195.62 | AI104: 3.87 | AJ104: 681.12 | AK104: 3.53 | AL104: 690.54 | AM104: - | AN104: - | AO104: - | AP104: 176 | AQ104: -1.398456019 | AR104: -1.398456019 | AS104: -2.286157025 | AT104: 0 | AU104: 0 | AV104: 0 | AW104: -0.961438513 | AX104: 0 | AY104: -2.563836035 | AZ104: 0 | BA104: 0 | BB104: 0 | BC104: 0
A105: 308 | B105: 2017 | C105: 0041 | D105: Corn | E105: SCO | F105: 01 | G105: Alabama | H105: AL | I105: 107 | J105: Pickens | M105: 016 | N105: Grain | O105: 003 | P105: Non-Irrigated | Q105: 997 | R105: No Commodity Type Specified | S105: 997 | T105: No Class Specified | U105: 997 | V105: No Subclass Specified | W105: 016 | X105: Grain | Y105: 003 | Z105: Non-Irrigated | AA105: 997 | AB105: No Cropping Practice Specified | AC105: 997 | AD105: No Organic Practice Specified | AE105: 997 | AF105: No Interval Specified | AG105: 134.6 | AH105: 175.57 | AI105: 3.87 | AJ105: 520.9 | AK105: 3.53 | AL105: 619.76 | AM105: - | AN105: - | AO105: - | AP105: 134.6 | AQ105: -2.998021265 | AR105: -2.998062793 | AS105: -4.03984871 | AT105: 0 | AU105: 0 | AV105: 0 | AW105: -2.061139619 | AX105: 0 | AY105: -5.496372318 | AZ105: 0 | BA105: 0 | BB105: 0 | BC105: 0
A106: 313 | B106: 2017 | C106: 0041 | D106: Corn | E106: SCO | F106: 01 | G106: Alabama | H106: AL | I106: 109 | J106: Pike | M106: 016 | N106: Grain | O106: 002 | P106: Irrigated | Q106: 997 | R106: No Commodity Type Specified | S106: 997 | T106: No Class Specified | U106: 997 | V106: No Subclass Specified | W106: 016 | X106: Grain | Y106: 002 | Z106: Irrigated | AA106: 997 | AB106: No Cropping Practice Specified | AC106: 997 | AD106: No Organic Practice Specified | AE106: 997 | AF106: No Interval Specified | AG106: 172.9 | AH106: 189.04 | AI106: 3.87 | AJ106: 669.12 | AK106: 3.53 | AL106: 667.31 | AM106: - | AN106: - | AO106: - | AP106: 172.9 | AQ106: -1.248095302 | AR106: -1.248135951 | AS106: -2.121352332 | AT106: 0 | AU106: 0 | AV106: 0 | AW106: -0.8580655201 | AX106: 0 | AY106: -2.28817472 | AZ106: 0 | BA106: 0 | BB106: 0 | BC106: 0
A107: 314 | B107: 2017 | C107: 0041 | D107: Corn | E107: SCO | F107: 01 | G107: Alabama | H107: AL | I107: 109 | J107: Pike | M107: 016 | N107: Grain | O107: 003 | P107: Non-Irrigated | Q107: 997 | R107: No Commodity Type Specified | S107: 997 | T107: No Class Specified | U107: 997 | V107: No Subclass Specified | W107: 016 | X107: Grain | Y107: 003 | Z107: Non-Irrigated | AA107: 997 | AB107: No Cropping Practice Specified | AC107: 997 | AD107: No Organic Practice Specified | AE107: 997 | AF107: No Interval Specified | AG107: 71.5 | AH107: 129.87 | AI107: 3.87 | AJ107: 276.71 | AK107: 3.53 | AL107: 458.44 | AM107: - | AN107: - | AO107: - | AP107: 71.5 | AQ107: -7.243477218 | AR107: -7.243205062 | AS107: -8.694214876 | AT107: 0 | AU107: 0 | AV107: 0 | AW107: -4.979890587 | AX107: 0 | AY107: -13.27970823 | AZ107: 0 | BA107: 0 | BB107: 0 | BC107: 0
A108: 319 | B108: 2017 | C108: 0041 | D108: Corn | E108: SCO | F108: 01 | G108: Alabama | H108: AL | I108: 111 | J108: Randolph | M108: 016 | N108: Grain | O108: 002 | P108: Irrigated | Q108: 997 | R108: No Commodity Type Specified | S108: 997 | T108: No Class Specified | U108: 997 | V108: No Subclass Specified | W108: 016 | X108: Grain | Y108: 002 | Z108: Irrigated | AA108: 997 | AB108: No Cropping Practice Specified | AC108: 997 | AD108: No Organic Practice Specified | AE108: 997 | AF108: No Interval Specified | AG108: 178.2 | AH108: 198.76 | AI108: 3.87 | AJ108: 689.63 | AK108: 3.53 | AL108: 701.62 | AM108: - | AN108: - | AO108: - | AP108: 178.2 | AQ108: -1.430729396 | AR108: -1.430783042 | AS108: -2.321599837 | AT108: 0 | AU108: 0 | AV108: 0 | AW108: -0.9836264598 | AX108: 0 | AY108: -2.623003893 | AZ108: 0 | BA108: 0 | BB108: 0 | BC108: 0
A109: 320 | B109: 2017 | C109: 0041 | D109: Corn | E109: SCO | F109: 01 | G109: Alabama | H109: AL | I109: 111 | J109: Randolph | M109: 016 | N109: Grain | O109: 003 | P109: Non-Irrigated | Q109: 997 | R109: No Commodity Type Specified | S109: 997 | T109: No Class Specified | U109: 997 | V109: No Subclass Specified | W109: 016 | X109: Grain | Y109: 003 | Z109: Non-Irrigated | AA109: 997 | AB109: No Cropping Practice Specified | AC109: 997 | AD109: No Organic Practice Specified | AE109: 997 | AF109: No Interval Specified | AG109: 99.2 | AH109: 145.77 | AI109: 3.87 | AJ109: 383.9 | AK109: 3.53 | AL109: 514.57 | AM109: - | AN109: - | AO109: - | AP109: 99.2 | AQ109: -4.366919381 | AR109: -4.367046343 | AS109: -5.540505865 | AT109: 0 | AU109: 0 | AV109: 0 | AW109: -3.002257075 | AX109: 0 | AY109: -8.006018866 | AZ109: 0 | BA109: 0 | BB109: 0 | BC109: 0
A110: 325 | B110: 2017 | C110: 0041 | D110: Corn | E110: SCO | F110: 01 | G110: Alabama | H110: AL | I110: 113 | J110: Russell | M110: 016 | N110: Grain | O110: 002 | P110: Irrigated | Q110: 997 | R110: No Commodity Type Specified | S110: 997 | T110: No Class Specified | U110: 997 | V110: No Subclass Specified | W110: 016 | X110: Grain | Y110: 002 | Z110: Irrigated | AA110: 997 | AB110: No Cropping Practice Specified | AC110: 997 | AD110: No Organic Practice Specified | AE110: 997 | AF110: No Interval Specified | AG110: 191.1 | AH110: 164.27 | AI110: 3.87 | AJ110: 739.56 | AK110: 3.53 | AL110: 579.87 | AM110: P | AN110: P | AO110: P | AP110: 191.1 | AQ110: 0.6902045905 | AR110: 0.6902335049 | AS110: 0.003615432187 | AT110: 56.14902 | AU110: 56.15137222 | AV110: 0.29412 | AW110: 0.474515656 | AX110: 56.14902 | AY110: 1 | AZ110: 44.37342 | BA110: 0.2322 | BB110: 0.2938200942 | BC110: 0.2938200942
A111: 326 | B111: 2017 | C111: 0041 | D111: Corn | E111: SCO | F111: 01 | G111: Alabama | H111: AL | I111: 113 | J111: Russell | M111: 016 | N111: Grain | O111: 003 | P111: Non-Irrigated | Q111: 997 | R111: No Commodity Type Specified | S111: 997 | T111: No Class Specified | U111: 997 | V111: No Subclass Specified | W111: 016 | X111: Grain | Y111: 003 | Z111: Non-Irrigated | AA111: 997 | AB111: No Cropping Practice Specified | AC111: 997 | AD111: No Organic Practice Specified | AE111: 997 | AF111: No Interval Specified | AG111: 70.8 | AH111: 122.49 | AI111: 3.87 | AJ111: 274 | AK111: 3.53 | AL111: 432.39 | AM111: - | AN111: - | AO111: - | AP111: 70.8 | AQ111: -6.528079375 | AR111: -6.52786994 | AS111: -7.909861325 | AT111: 0 | AU111: 0 | AV111: 0 | AW111: -4.48805457 | AX111: 0 | AY111: -11.96814552 | AZ111: 0 | BA111: 0 | BB111: 0 | BC111: 0
A112: 331 | B112: 2017 | C112: 0041 | D112: Corn | E112: SCO | F112: 01 | G112: Alabama | H112: AL | I112: 115 | J112: St Clair | M112: 016 | N112: Grain | O112: 002 | P112: Irrigated | Q112: 997 | R112: No Commodity Type Specified | S112: 997 | T112: No Class Specified | U112: 997 | V112: No Subclass Specified | W112: 016 | X112: Grain | Y112: 002 | Z112: Irrigated | AA112: 997 | AB112: No Cropping Practice Specified | AC112: 997 | AD112: No Organic Practice Specified | AE112: 997 | AF112: No Interval Specified | AG112: 110.4 | AH112: 165.3 | AI112: 3.87 | AJ112: 427.25 | AK112: 3.53 | AL112: 583.51 | AM112: - | AN112: - | AO112: - | AP112: 110.4 | AQ112: -4.597643098 | AR112: -4.597584978 | AS112: -5.793478261 | AT112: 0 | AU112: 0 | AV112: 0 | AW112: -3.16087963 | AX112: 0 | AY112: -8.429012346 | AZ112: 0 | BA112: 0 | BB112: 0 | BC112: 0
A113: 332 | B113: 2017 | C113: 0041 | D113: Corn | E113: SCO | F113: 01 | G113: Alabama | H113: AL | I113: 115 | J113: St Clair | M113: 016 | N113: Grain | O113: 003 | P113: Non-Irrigated | Q113: 997 | R113: No Commodity Type Specified | S113: 997 | T113: No Class Specified | U113: 997 | V113: No Subclass Specified | W113: 016 | X113: Grain | Y113: 003 | Z113: Non-Irrigated | AA113: 997 | AB113: No Cropping Practice Specified | AC113: 997 | AD113: No Organic Practice Specified | AE113: 997 | AF113: No Interval Specified | AG113: 110.4 | AH113: 165.3 | AI113: 3.87 | AJ113: 427.25 | AK113: 3.53 | AL113: 583.51 | AM113: - | AN113: - | AO113: - | AP113: 110.4 | AQ113: -4.597643098 | AR113: -4.597584978 | AS113: -5.793478261 | AT113: 0 | AU113: 0 | AV113: 0 | AW113: -3.16087963 | AX113: 0 | AY113: -8.429012346 | AZ113: 0 | BA113: 0 | BB113: 0 | BC113: 0
A114: 337 | B114: 2017 | C114: 0041 | D114: Corn | E114: SCO | F114: 01 | G114: Alabama | H114: AL | I114: 117 | J114: Shelby | M114: 016 | N114: Grain | O114: 002 | P114: Irrigated | Q114: 997 | R114: No Commodity Type Specified | S114: 997 | T114: No Class Specified | U114: 997 | V114: No Subclass Specified | W114: 016 | X114: Grain | Y114: 002 | Z114: Irrigated | AA114: 997 | AB114: No Cropping Practice Specified | AC114: 997 | AD114: No Organic Practice Specified | AE114: 997 | AF114: No Interval Specified | AG114: 178.2 | AH114: 198.76 | AI114: 3.87 | AJ114: 689.63 | AK114: 3.53 | AL114: 701.62 | AM114: - | AN114: - | AO114: - | AP114: 178.2 | AQ114: -1.430729396 | AR114: -1.430783042 | AS114: -2.321599837 | AT114: 0 | AU114: 0 | AV114: 0 | AW114: -0.9836264598 | AX114: 0 | AY114: -2.623003893 | AZ114: 0 | BA114: 0 | BB114: 0 | BC114: 0
A115: 338 | B115: 2017 | C115: 0041 | D115: Corn | E115: SCO | F115: 01 | G115: Alabama | H115: AL | I115: 117 | J115: Shelby | M115: 016 | N115: Grain | O115: 003 | P115: Non-Irrigated | Q115: 997 | R115: No Commodity Type Specified | S115: 997 | T115: No Class Specified | U115: 997 | V115: No Subclass Specified | W115: 016 | X115: Grain | Y115: 003 | Z115: Non-Irrigated | AA115: 997 | AB115: No Cropping Practice Specified | AC115: 997 | AD115: No Organic Practice Specified | AE115: 997 | AF115: No Interval Specified | AG115: 106.7 | AH115: 159.27 | AI115: 3.87 | AJ115: 412.93 | AK115: 3.53 | AL115: 562.22 | AM115: - | AN115: - | AO115: - | AP115: 106.7 | AQ115: -4.559468841 | AR115: -4.559438866 | AS115: -5.751725313 | AT115: 0 | AU115: 0 | AV115: 0 | AW115: -3.134634828 | AX115: 0 | AY115: -8.359026209 | AZ115: 0 | BA115: 0 | BB115: 0 | BC115: 0
A116: 343 | B116: 2017 | C116: 0041 | D116: Corn | E116: SCO | F116: 01 | G116: Alabama | H116: AL | I116: 119 | J116: Sumter | M116: 016 | N116: Grain | O116: 002 | P116: Irrigated | Q116: 997 | R116: No Commodity Type Specified | S116: 997 | T116: No Class Specified | U116: 997 | V116: No Subclass Specified | W116: 016 | X116: Grain | Y116: 002 | Z116: Irrigated | AA116: 997 | AB116: No Cropping Practice Specified | AC116: 997 | AD116: No Organic Practice Specified | AE116: 997 | AF116: No Interval Specified | AG116: 175.1 | AH116: 192.72 | AI116: 3.87 | AJ116: 677.64 | AK116: 3.53 | AL116: 680.3 | AM116: - | AN116: - | AO116: - | AP116: 175.1 | AQ116: -1.308453024 | AR116: -1.308412619 | AS116: -2.187529204 | AT116: 0 | AU116: 0 | AV116: 0 | AW116: -0.899561454 | AX116: 0 | AY116: -2.398830544 | AZ116: 0 | BA116: 0 | BB116: 0 | BC116: 0
A117: 344 | B117: 2017 | C117: 0041 | D117: Corn | E117: SCO | F117: 01 | G117: Alabama | H117: AL | I117: 119 | J117: Sumter | M117: 016 | N117: Grain | O117: 003 | P117: Non-Irrigated | Q117: 997 | R117: No Commodity Type Specified | S117: 997 | T117: No Class Specified | U117: 997 | V117: No Subclass Specified | W117: 016 | X117: Grain | Y117: 003 | Z117: Non-Irrigated | AA117: 997 | AB117: No Cropping Practice Specified | AC117: 997 | AD117: No Organic Practice Specified | AE117: 997 | AF117: No Interval Specified | AG117: 134.9 | AH117: 175.53 | AI117: 3.87 | AJ117: 522.06 | AK117: 3.53 | AL117: 619.62 | AM117: - | AN117: - | AO117: - | AP117: 134.9 | AQ117: -2.971529559 | AR117: -2.971591562 | AS117: -4.010782398 | AT117: 0 | AU117: 0 | AV117: 0 | AW117: -2.042926572 | AX117: 0 | AY117: -5.447804192 | AZ117: 0 | BA117: 0 | BB117: 0 | BC117: 0
A118: 349 | B118: 2017 | C118: 0041 | D118: Corn | E118: SCO | F118: 01 | G118: Alabama | H118: AL | I118: 121 | J118: Talladega | M118: 016 | N118: Grain | O118: 002 | P118: Irrigated | Q118: 997 | R118: No Commodity Type Specified | S118: 997 | T118: No Class Specified | U118: 997 | V118: No Subclass Specified | W118: 016 | X118: Grain | Y118: 002 | Z118: Irrigated | AA118: 997 | AB118: No Cropping Practice Specified | AC118: 997 | AD118: No Organic Practice Specified | AE118: 997 | AF118: No Interval Specified | AG118: 178.2 | AH118: 198.76 | AI118: 3.87 | AJ118: 689.63 | AK118: 3.53 | AL118: 701.62 | AM118: - | AN118: - | AO118: - | AP118: 178.2 | AQ118: -1.430729396 | AR118: -1.430783042 | AS118: -2.321599837 | AT118: 0 | AU118: 0 | AV118: 0 | AW118: -0.9836264598 | AX118: 0 | AY118: -2.623003893 | AZ118: 0 | BA118: 0 | BB118: 0 | BC118: 0
A119: 350 | B119: 2017 | C119: 0041 | D119: Corn | E119: SCO | F119: 01 | G119: Alabama | H119: AL | I119: 121 | J119: Talladega | M119: 016 | N119: Grain | O119: 003 | P119: Non-Irrigated | Q119: 997 | R119: No Commodity Type Specified | S119: 997 | T119: No Class Specified | U119: 997 | V119: No Subclass Specified | W119: 016 | X119: Grain | Y119: 003 | Z119: Non-Irrigated | AA119: 997 | AB119: No Cropping Practice Specified | AC119: 997 | AD119: No Organic Practice Specified | AE119: 997 | AF119: No Interval Specified | AG119: 110 | AH119: 160.29 | AI119: 3.87 | AJ119: 425.7 | AK119: 3.53 | AL119: 565.82 | AM119: - | AN119: - | AO119: - | AP119: 110 | AQ119: -4.265018045 | AR119: -4.265018045 | AS119: -5.42892562 | AT119: 0 | AU119: 0 | AV119: 0 | AW119: -2.932199906 | AX119: 0 | AY119: -7.819199749 | AZ119: 0 | BA119: 0 | BB119: 0 | BC119: 0
A120: 355 | B120: 2017 | C120: 0041 | D120: Corn | E120: SCO | F120: 01 | G120: Alabama | H120: AL | I120: 123 | J120: Tallapoosa | M120: 016 | N120: Grain | O120: 002 | P120: Irrigated | Q120: 997 | R120: No Commodity Type Specified | S120: 997 | T120: No Class Specified | U120: 997 | V120: No Subclass Specified | W120: 016 | X120: Grain | Y120: 002 | Z120: Irrigated | AA120: 997 | AB120: No Cropping Practice Specified | AC120: 997 | AD120: No Organic Practice Specified | AE120: 997 | AF120: No Interval Specified | AG120: 178.2 | AH120: 198.76 | AI120: 3.87 | AJ120: 689.63 | AK120: 3.53 | AL120: 701.62 | AM120: - | AN120: - | AO120: - | AP120: 178.2 | AQ120: -1.430729396 | AR120: -1.430783042 | AS120: -2.321599837 | AT120: 0 | AU120: 0 | AV120: 0 | AW120: -0.9836264598 | AX120: 0 | AY120: -2.623003893 | AZ120: 0 | BA120: 0 | BB120: 0 | BC120: 0
A121: 356 | B121: 2017 | C121: 0041 | D121: Corn | E121: SCO | F121: 01 | G121: Alabama | H121: AL | I121: 123 | J121: Tallapoosa | M121: 016 | N121: Grain | O121: 003 | P121: Non-Irrigated | Q121: 997 | R121: No Commodity Type Specified | S121: 997 | T121: No Class Specified | U121: 997 | V121: No Subclass Specified | W121: 016 | X121: Grain | Y121: 003 | Z121: Non-Irrigated | AA121: 997 | AB121: No Cropping Practice Specified | AC121: 997 | AD121: No Organic Practice Specified | AE121: 997 | AF121: No Interval Specified | AG121: 98.7 | AH121: 142.95 | AI121: 3.87 | AJ121: 381.97 | AK121: 3.53 | AL121: 504.61 | AM121: - | AN121: - | AO121: - | AP121: 98.7 | AQ121: -4.191598128 | AR121: -4.191566687 | AS121: -5.348438795 | AT121: 0 | AU121: 0 | AV121: 0 | AW121: -2.881723713 | AX121: 0 | AY121: -7.684596568 | AZ121: 0 | BA121: 0 | BB121: 0 | BC121: 0
A122: 361 | B122: 2017 | C122: 0041 | D122: Corn | E122: SCO | F122: 01 | G122: Alabama | H122: AL | I122: 125 | J122: Tuscaloosa | M122: 016 | N122: Grain | O122: 002 | P122: Irrigated | Q122: 997 | R122: No Commodity Type Specified | S122: 997 | T122: No Class Specified | U122: 997 | V122: No Subclass Specified | W122: 016 | X122: Grain | Y122: 002 | Z122: Irrigated | AA122: 997 | AB122: No Cropping Practice Specified | AC122: 997 | AD122: No Organic Practice Specified | AE122: 997 | AF122: No Interval Specified | AG122: 175.9 | AH122: 196.97 | AI122: 3.87 | AJ122: 680.73 | AK122: 3.53 | AL122: 695.3 | AM122: - | AN122: - | AO122: - | AP122: 175.9 | AQ122: -1.467263563 | AR122: -1.467304485 | AS122: -2.361672438 | AT122: 0 | AU122: 0 | AV122: 0 | AW122: -1.0087437 | AX122: 0 | AY122: -2.689983199 | AZ122: 0 | BA122: 0 | BB122: 0 | BC122: 0
A123: 362 | B123: 2017 | C123: 0041 | D123: Corn | E123: SCO | F123: 01 | G123: Alabama | H123: AL | I123: 125 | J123: Tuscaloosa | M123: 016 | N123: Grain | O123: 003 | P123: Non-Irrigated | Q123: 997 | R123: No Commodity Type Specified | S123: 997 | T123: No Class Specified | U123: 997 | V123: No Subclass Specified | W123: 016 | X123: Grain | Y123: 003 | Z123: Non-Irrigated | AA123: 997 | AB123: No Cropping Practice Specified | AC123: 997 | AD123: No Organic Practice Specified | AE123: 997 | AF123: No Interval Specified | AG123: 80.3 | AH123: 139.67 | AI123: 3.87 | AJ123: 310.76 | AK123: 3.53 | AL123: 493.04 | AM123: - | AN123: - | AO123: - | AP123: 80.3 | AQ123: -6.60506247 | AR123: -6.605108883 | AS123: -7.994112985 | AT123: 0 | AU123: 0 | AV123: 0 | AW123: -4.540980448 | AX123: 0 | AY123: -12.10928119 | AZ123: 0 | BA123: 0 | BB123: 0 | BC123: 0
A124: 367 | B124: 2017 | C124: 0041 | D124: Corn | E124: SCO | F124: 01 | G124: Alabama | H124: AL | I124: 129 | J124: Washington | M124: 016 | N124: Grain | O124: 002 | P124: Irrigated | Q124: 997 | R124: No Commodity Type Specified | S124: 997 | T124: No Class Specified | U124: 997 | V124: No Subclass Specified | W124: 016 | X124: Grain | Y124: 002 | Z124: Irrigated | AA124: 997 | AB124: No Cropping Practice Specified | AC124: 997 | AD124: No Organic Practice Specified | AE124: 997 | AF124: No Interval Specified | AG124: 174.3 | AH124: 192.39 | AI124: 3.87 | AJ124: 674.54 | AK124: 3.53 | AL124: 679.14 | AM124: - | AN124: - | AO124: - | AP124: 174.3 | AQ124: -1.334708814 | AR124: -1.334722383 | AS124: -2.21624159 | AT124: 0 | AU124: 0 | AV124: 0 | AW124: -0.9176123097 | AX124: 0 | AY124: -2.446966159 | AZ124: 0 | BA124: 0 | BB124: 0 | BC124: 0
A125: 368 | B125: 2017 | C125: 0041 | D125: Corn | E125: SCO | F125: 01 | G125: Alabama | H125: AL | I125: 129 | J125: Washington | M125: 016 | N125: Grain | O125: 003 | P125: Non-Irrigated | Q125: 997 | R125: No Commodity Type Specified | S125: 997 | T125: No Class Specified | U125: 997 | V125: No Subclass Specified | W125: 016 | X125: Grain | Y125: 003 | Z125: Non-Irrigated | AA125: 997 | AB125: No Cropping Practice Specified | AC125: 997 | AD125: No Organic Practice Specified | AE125: 997 | AF125: No Interval Specified | AG125: 133 | AH125: 157.1 | AI125: 3.87 | AJ125: 514.71 | AK125: 3.53 | AL125: 554.56 | AM125: - | AN125: - | AO125: - | AP125: 133 | AQ125: -1.976565798 | AR125: -1.976565798 | AS125: -2.920027341 | AT125: 0 | AU125: 0 | AV125: 0 | AW125: -1.358888986 | AX125: 0 | AY125: -3.623703963 | AZ125: 0 | BA125: 0 | BB125: 0 | BC125: 0
A126: 373 | B126: 2017 | C126: 0041 | D126: Corn | E126: SCO | F126: 01 | G126: Alabama | H126: AL | I126: 131 | J126: Wilcox | M126: 016 | N126: Grain | O126: 002 | P126: Irrigated | Q126: 997 | R126: No Commodity Type Specified | S126: 997 | T126: No Class Specified | U126: 997 | V126: No Subclass Specified | W126: 016 | X126: Grain | Y126: 002 | Z126: Irrigated | AA126: 997 | AB126: No Cropping Practice Specified | AC126: 997 | AD126: No Organic Practice Specified | AE126: 997 | AF126: No Interval Specified | AG126: 175.3 | AH126: 192.71 | AI126: 3.87 | AJ126: 678.41 | AK126: 3.53 | AL126: 680.27 | AM126: - | AN126: - | AO126: - | AP126: 175.3 | AQ126: -1.297638425 | AR126: -1.297651862 | AS126: -2.175595084 | AT126: 0 | AU126: 0 | AV126: 0 | AW126: -0.8921264175 | AX126: 0 | AY126: -2.37900378 | AZ126: 0 | BA126: 0 | BB126: 0 | BC126: 0
A127: 374 | B127: 2017 | C127: 0041 | D127: Corn | E127: SCO | F127: 01 | G127: Alabama | H127: AL | I127: 131 | J127: Wilcox | M127: 016 | N127: Grain | O127: 003 | P127: Non-Irrigated | Q127: 997 | R127: No Commodity Type Specified | S127: 997 | T127: No Class Specified | U127: 997 | V127: No Subclass Specified | W127: 016 | X127: Grain | Y127: 003 | Z127: Non-Irrigated | AA127: 997 | AB127: No Cropping Practice Specified | AC127: 997 | AD127: No Organic Practice Specified | AE127: 997 | AF127: No Interval Specified | AG127: 75.9 | AH127: 114.96 | AI127: 3.87 | AJ127: 293.73 | AK127: 3.53 | AL127: 405.81 | AM127: - | AN127: - | AO127: - | AP127: 75.9 | AQ127: -4.741461866 | AR127: -4.741590143 | AS127: -5.951131872 | AT127: 0 | AU127: 0 | AV127: 0 | AW127: -3.259755033 | AX127: 0 | AY127: -8.692680087 | AZ127: 0 | BA127: 0 | BB127: 0 | BC127: 0
A128: 379 | B128: 2017 | C128: 0041 | D128: Corn | E128: SCO | F128: 01 | G128: Alabama | H128: AL | I128: 133 | J128: Winston | M128: 016 | N128: Grain | O128: 002 | P128: Irrigated | Q128: 997 | R128: No Commodity Type Specified | S128: 997 | T128: No Class Specified | U128: 997 | V128: No Subclass Specified | W128: 016 | X128: Grain | Y128: 002 | Z128: Irrigated | AA128: 997 | AB128: No Cropping Practice Specified | AC128: 997 | AD128: No Organic Practice Specified | AE128: 997 | AF128: No Interval Specified | AG128: 185.1 | AH128: 237.08 | AI128: 3.87 | AJ128: 716.34 | AK128: 3.53 | AL128: 836.89 | AM128: - | AN128: - | AO128: - | AP128: 185.1 | AQ128: -2.802644565 | AR128: -2.802600086 | AS128: -3.82564707 | AT128: 0 | AU128: 0 | AV128: 0 | AW128: -1.926818139 | AX128: 0 | AY128: -5.138181703 | AZ128: 0 | BA128: 0 | BB128: 0 | BC128: 0
A129: 380 | B129: 2017 | C129: 0041 | D129: Corn | E129: SCO | F129: 01 | G129: Alabama | H129: AL | I129: 133 | J129: Winston | M129: 016 | N129: Grain | O129: 003 | P129: Non-Irrigated | Q129: 997 | R129: No Commodity Type Specified | S129: 997 | T129: No Class Specified | U129: 997 | V129: No Subclass Specified | W129: 016 | X129: Grain | Y129: 003 | Z129: Non-Irrigated | AA129: 997 | AB129: No Cropping Practice Specified | AC129: 997 | AD129: No Organic Practice Specified | AE129: 997 | AF129: No Interval Specified | AG129: 134.9 | AH129: 202.05 | AI129: 3.87 | AJ129: 522.06 | AK129: 3.53 | AL129: 713.24 | AM129: - | AN129: - | AO129: - | AP129: 134.9 | AQ129: -4.60177516 | AR129: -4.601846531 | AS129: -5.797964822 | AT129: 0 | AU129: 0 | AV129: 0 | AW129: -3.163720423 | AX129: 0 | AY129: -8.436587794 | AZ129: 0 | BA129: 0 | BB129: 0 | BC129: 0
A130: 385 | B130: 2017 | C130: 0041 | D130: Corn | E130: SCO | F130: 04 | G130: Arizona | H130: AZ | I130: 003 | J130: Cochise | M130: 016 | N130: Grain | O130: 002 | P130: Irrigated | Q130: 997 | R130: No Commodity Type Specified | S130: 997 | T130: No Class Specified | U130: 997 | V130: No Subclass Specified | W130: 016 | X130: Grain | Y130: 002 | Z130: Irrigated | AA130: 997 | AB130: No Cropping Practice Specified | AC130: 997 | AD130: No Organic Practice Specified | AE130: 997 | AF130: No Interval Specified | AG130: 201.7 | AH130: 237.46 | AI130: 3.94 | AJ130: 794.7 | AK130: 3.49 | AL130: 828.74 | AM130: - | AN130: - | AO130: - | AP130: =AG130 -> 201.7 | AQ130: -1.662149075 | AR130: -1.662125216 | AS130: -2.884481904 | AT130: =IF(AQ130>0,((AP130*MAX(AI130,AK130))*(0.86-0.75)*AQ130),0) -> 0 | AU130: =IF(AR130>0,(AR130*(AP130*AI130)*(0.86-0.75)),0) -> 0 | AV130: =IF(AS130>0,(AS130*(AP130*AI130)*(0.86-0.75)),0) -> 0 | AW130: -1.142727489 | AX130: 0 | AY130: -3.047273304 | AZ130: 0 | BA130: 0 | BB130: 0 | BC130: 0
A131: 391 | B131: 2017 | C131: 0041 | D131: Corn | E131: SCO | F131: 04 | G131: Arizona | H131: AZ | I131: 009 | J131: Graham | M131: 016 | N131: Grain | O131: 002 | P131: Irrigated | Q131: 997 | R131: No Commodity Type Specified | S131: 997 | T131: No Class Specified | U131: 997 | V131: No Subclass Specified | W131: 016 | X131: Grain | Y131: 002 | Z131: Irrigated | AA131: 997 | AB131: No Cropping Practice Specified | AC131: 997 | AD131: No Organic Practice Specified | AE131: 997 | AF131: No Interval Specified | AG131: 213.1 | AH131: 227.32 | AI131: 3.94 | AJ131: 839.61 | AK131: 3.49 | AL131: 793.35 | AM131: - | AN131: - | AO131: - | AP131: 213.1 | AQ131: =MIN(((0.86-(AL131/(AG131*MAX(AI131,AK131))))/(0.86-0.75)),1) -> -0.7718044461 | AR131: =MIN((((0.86-(AL131/AJ131)))/(0.86-0.75)),1) -> -0.7718453698 | AS131: =MIN(((0.86-(AH131/AG131))/(0.86-0.75)),1) -> -1.879356683 | AT131: 0 | AU131: 0 | AV131: 0 | AW131: =MIN(((0.86-(AL131/(AG131*MAX(AI131,AK131))))/(0.86-0.7)),1) -> -0.5306155567 | AX131: =IF(AW131>0,((AP131*MAX(AI131,AK131))*(0.86-0.7)*AW131),0) -> 0 | AY131: =MIN(((0.86-(AL131/(AG131*MAX(AI131,AK131))))/(0.86-0.8)),1) -> -1.414974818 | AZ131: =IF(AY131>0,((AP131*MAX(AI131,AK131))*(0.86-0.8)*AY131),0) -> 0 | BA131: =IF(AY131>0,((MAX(AI131,AK131))*(0.86-0.8)*AY131),0) -> 0 | BB131: =IF(AQ131>0,((MAX(AI131,AK131))*(0.86-0.75)*AQ131),0) -> 0 | BC131: =IF(AW131>0,((MAX(AI131,AK131))*(0.86-0.7)*AW131),0) -> 0
A132: 397 | B132: 2017 | C132: 0041 | D132: Corn | E132: SCO | F132: 04 | G132: Arizona | H132: AZ | I132: 013 | J132: Maricopa | M132: 016 | N132: Grain | O132: 002 | P132: Irrigated | Q132: 997 | R132: No Commodity Type Specified | S132: 997 | T132: No Class Specified | U132: 997 | V132: No Subclass Specified | W132: 016 | X132: Grain | Y132: 002 | Z132: Irrigated | AA132: 997 | AB132: No Cropping Practice Specified | AC132: 997 | AD132: No Organic Practice Specified | AE132: 997 | AF132: No Interval Specified | AG132: 210.3 | AH132: 209.84 | AI132: 3.94 | AJ132: 828.58 | AK132: 3.49 | AL132: 732.34 | AM132: - | AN132: - | AO132: - | AP132: 210.3 | AQ132: -0.2167940365 | AR132: -0.2168134311 | AS132: -1.25284226 | AT132: 0 | AU132: 0 | AV132: 0 | AW132: -0.1490459001 | AX132: 0 | AY132: -0.3974557336 | AZ132: 0 | BA132: 0 | BB132: 0 | BC132: 0
A133: 403 | B133: 2017 | C133: 0041 | D133: Corn | E133: SCO | F133: 04 | G133: Arizona | H133: AZ | I133: 021 | J133: Pinal | M133: 016 | N133: Grain | O133: 002 | P133: Irrigated | Q133: 997 | R133: No Commodity Type Specified | S133: 997 | T133: No Class Specified | U133: 997 | V133: No Subclass Specified | W133: 016 | X133: Grain | Y133: 002 | Z133: Irrigated | AA133: 997 | AB133: No Cropping Practice Specified | AC133: 997 | AD133: No Organic Practice Specified | AE133: 997 | AF133: No Interval Specified | AG133: 222.6 | AH133: 212.19 | AI133: 3.94 | AJ133: 877.04 | AK133: 3.49 | AL133: 740.54 | AM133: - | AN133: P | AO133: P | AP133: 222.6 | AQ133: 0.1421908551 | AR133: 0.1421558465 | AS133: -0.8475863759 | AT133: 13.71784 | AU133: 13.71446255 | AV133: 0 | AW133: 0.09775621292 | AX133: 13.71784 | AY133: 0.2606832344 | AZ133: 13.71784 | BA133: 0.06162551662 | BB133: 0.06162551662 | BC133: 0.06162551662
A134: 409 | B134: 2017 | C134: 0041 | D134: Corn | E134: SCO | F134: 05 | G134: Arkansas | H134: AR | I134: 001 | J134: Arkansas | M134: 016 | N134: Grain | O134: 002 | P134: Irrigated | Q134: 997 | R134: No Commodity Type Specified | S134: 997 | T134: No Class Specified | U134: 997 | V134: No Subclass Specified | W134: 016 | X134: Grain | Y134: 002 | Z134: Irrigated | AA134: 997 | AB134: No Cropping Practice Specified | AC134: 997 | AD134: No Organic Practice Specified | AE134: 997 | AF134: No Interval Specified | AG134: 194.1 | AH134: 206.53 | AI134: 3.94 | AJ134: 764.75 | AK134: 3.57 | AL134: 737.31 | AM134: - | AN134: - | AO134: - | AP134: 194.1 | AQ134: -0.9464904579 | AR134: -0.9465363012 | AS134: -1.85490141 | AT134: 0 | AU134: 0 | AV134: 0 | AW134: -0.6507121898 | AX134: 0 | AY134: -1.735232506 | AZ134: 0 | BA134: 0 | BB134: 0 | BC134: 0
A135: 410 | B135: 2017 | C135: 0041 | D135: Corn | E135: SCO | F135: 05 | G135: Arkansas | H135: AR | I135: 001 | J135: Arkansas | M135: 016 | N135: Grain | O135: 003 | P135: Non-Irrigated | Q135: 997 | R135: No Commodity Type Specified | S135: 997 | T135: No Class Specified | U135: 997 | V135: No Subclass Specified | W135: 016 | X135: Grain | Y135: 003 | Z135: Non-Irrigated | AA135: 997 | AB135: No Cropping Practice Specified | AC135: 997 | AD135: No Organic Practice Specified | AE135: 997 | AF135: No Interval Specified | AG135: 119.2 | AH135: 91.28 | AI135: 3.94 | AJ135: 469.65 | AK135: 3.57 | AL135: 325.87 | AM135: P | AN135: P | AO135: P | AP135: 119.2 | AQ135: 1 | AR135: 1 | AS135: 0.8566198902 | AT135: 51.66128 | AU135: 51.66128 | AV135: 44.25408 | AW135: 1 | AX135: 75.14368 | AY135: 1 | AZ135: 28.17888 | BA135: 0.2364 | BB135: 0.4334 | BC135: 0.6304
A136: 415 | B136: 2017 | C136: 0041 | D136: Corn | E136: SCO | F136: 05 | G136: Arkansas | H136: AR | I136: 003 | J136: Ashley | M136: 016 | N136: Grain | O136: 002 | P136: Irrigated | Q136: 997 | R136: No Commodity Type Specified | S136: 997 | T136: No Class Specified | U136: 997 | V136: No Subclass Specified | W136: 016 | X136: Grain | Y136: 002 | Z136: Irrigated | AA136: 997 | AB136: No Cropping Practice Specified | AC136: 997 | AD136: No Organic Practice Specified | AE136: 997 | AF136: No Interval Specified | AG136: 185.6 | AH136: 196.03 | AI136: 3.94 | AJ136: 731.26 | AK136: 3.57 | AL136: 699.83 | AM136: - | AN136: - | AO136: - | AP136: 185.6 | AQ136: -0.8819468755 | AR136: -0.8819944653 | AS136: -1.783601097 | AT136: 0 | AU136: 0 | AV136: 0 | AW136: -0.6063384769 | AX136: 0 | AY136: -1.616902605 | AZ136: 0 | BA136: 0 | BB136: 0 | BC136: 0
A137: 416 | B137: 2017 | C137: 0041 | D137: Corn | E137: SCO | F137: 05 | G137: Arkansas | H137: AR | I137: 003 | J137: Ashley | M137: 016 | N137: Grain | O137: 003 | P137: Non-Irrigated | Q137: 997 | R137: No Commodity Type Specified | S137: 997 | T137: No Class Specified | U137: 997 | V137: No Subclass Specified | W137: 016 | X137: Grain | Y137: 003 | Z137: Non-Irrigated | AA137: 997 | AB137: No Cropping Practice Specified | AC137: 997 | AD137: No Organic Practice Specified | AE137: 997 | AF137: No Interval Specified | AG137: 97.7 | AH137: 147.53 | AI137: 3.94 | AJ137: 384.94 | AK137: 3.57 | AL137: 526.68 | AM137: - | AN137: - | AO137: - | AP137: 97.7 | AQ137: -4.62018488 | AR137: -4.620120255 | AS137: -5.909370057 | AT137: 0 | AU137: 0 | AV137: 0 | AW137: -3.176377105 | AX137: 0 | AY137: -8.470338946 | AZ137: 0 | BA137: 0 | BB137: 0 | BC137: 0
A138: 421 | B138: 2017 | C138: 0041 | D138: Corn | E138: SCO | F138: 05 | G138: Arkansas | H138: AR | I138: 007 | J138: Benton | M138: 016 | N138: Grain | O138: 002 | P138: Irrigated | Q138: 997 | R138: No Commodity Type Specified | S138: 997 | T138: No Class Specified | U138: 997 | V138: No Subclass Specified | W138: 016 | X138: Grain | Y138: 002 | Z138: Irrigated | AA138: 997 | AB138: No Cropping Practice Specified | AC138: 997 | AD138: No Organic Practice Specified | AE138: 997 | AF138: No Interval Specified | AG138: 150.9 | AH138: 165.85 | AI138: 3.94 | AJ138: 594.55 | AK138: 3.57 | AL138: 592.08 | AM138: - | AN138: - | AO138: - | AP138: 150.9 | AQ138: -1.235020885 | AR138: -1.234959977 | AS138: -2.173383939 | AT138: 0 | AU138: 0 | AV138: 0 | AW138: -0.8490768586 | AX138: 0 | AY138: -2.264204956 | AZ138: 0 | BA138: 0 | BB138: 0 | BC138: 0
A139: 422 | B139: 2017 | C139: 0041 | D139: Corn | E139: SCO | F139: 05 | G139: Arkansas | H139: AR | I139: 007 | J139: Benton | M139: 016 | N139: Grain | O139: 003 | P139: Non-Irrigated | Q139: 997 | R139: No Commodity Type Specified | S139: 997 | T139: No Class Specified | U139: 997 | V139: No Subclass Specified | W139: 016 | X139: Grain | Y139: 003 | Z139: Non-Irrigated | AA139: 997 | AB139: No Cropping Practice Specified | AC139: 997 | AD139: No Organic Practice Specified | AE139: 997 | AF139: No Interval Specified | AG139: 110 | AH139: 138.18 | AI139: 3.94 | AJ139: 433.4 | AK139: 3.57 | AL139: 493.3 | AM139: - | AN139: - | AO139: - | AP139: 110 | AQ139: -2.529177329 | AR139: -2.529177329 | AS139: -3.601652893 | AT139: 0 | AU139: 0 | AV139: 0 | AW139: -1.738809414 | AX139: 0 | AY139: -4.636825104 | AZ139: 0 | BA139: 0 | BB139: 0 | BC139: 0
A140: 427 | B140: 2017 | C140: 0041 | D140: Corn | E140: SCO | F140: 05 | G140: Arkansas | H140: AR | I140: 011 | J140: Bradley | M140: 016 | N140: Grain | O140: 002 | P140: Irrigated | Q140: 997 | R140: No Commodity Type Specified | S140: 997 | T140: No Class Specified | U140: 997 | V140: No Subclass Specified | W140: 016 | X140: Grain | Y140: 002 | Z140: Irrigated | AA140: 997 | AB140: No Cropping Practice Specified | AC140: 997 | AD140: No Organic Practice Specified | AE140: 997 | AF140: No Interval Specified | AG140: 181.9 | AH140: 206.48 | AI140: 3.94 | AJ140: 716.69 | AK140: 3.57 | AL140: 737.13 | AM140: - | AN140: - | AO140: - | AP140: 181.9 | AQ140: -1.532052201 | AR140: -1.532000015 | AS140: -2.501174471 | AT140: 0 | AU140: 0 | AV140: 0 | AW140: -1.053285888 | AX140: 0 | AY140: -2.808762368 | AZ140: 0 | BA140: 0 | BB140: 0 | BC140: 0
A141: 428 | B141: 2017 | C141: 0041 | D141: Corn | E141: SCO | F141: 05 | G141: Arkansas | H141: AR | I141: 011 | J141: Bradley | M141: 016 | N141: Grain | O141: 003 | P141: Non-Irrigated | Q141: 997 | R141: No Commodity Type Specified | S141: 997 | T141: No Class Specified | U141: 997 | V141: No Subclass Specified | W141: 016 | X141: Grain | Y141: 003 | Z141: Non-Irrigated | AA141: 997 | AB141: No Cropping Practice Specified | AC141: 997 | AD141: No Organic Practice Specified | AE141: 997 | AF141: No Interval Specified | AG141: 98.5 | AH141: 148.6 | AI141: 3.94 | AJ141: 388.09 | AK141: 3.57 | AL141: 530.5 | AM141: - | AN141: - | AO141: - | AP141: 98.5 | AQ141: -4.608645136 | AR141: -4.608645136 | AS141: -5.896631287 | AT141: 0 | AU141: 0 | AV141: 0 | AW141: -3.168443531 | AX141: 0 | AY141: -8.44918275 | AZ141: 0 | BA141: 0 | BB141: 0 | BC141: 0
A142: 433 | B142: 2017 | C142: 0041 | D142: Corn | E142: SCO | F142: 05 | G142: Arkansas | H142: AR | I142: 017 | J142: Chicot | M142: 016 | N142: Grain | O142: 002 | P142: Irrigated | Q142: 997 | R142: No Commodity Type Specified | S142: 997 | T142: No Class Specified | U142: 997 | V142: No Subclass Specified | W142: 016 | X142: Grain | Y142: 002 | Z142: Irrigated | AA142: 997 | AB142: No Cropping Practice Specified | AC142: 997 | AD142: No Organic Practice Specified | AE142: 997 | AF142: No Interval Specified | AG142: 175.5 | AH142: 176.05 | AI142: 3.94 | AJ142: 691.47 | AK142: 3.57 | AL142: 628.5 | AM142: - | AN142: - | AO142: - | AP142: 175.5 | AQ142: -0.4448467494 | AR142: -0.4448467494 | AS142: -1.301217301 | AT142: 0 | AU142: 0 | AV142: 0 | AW142: -0.3058321402 | AX142: 0 | AY142: -0.8155523739 | AZ142: 0 | BA142: 0 | BB142: 0 | BC142: 0
A143: 434 | B143: 2017 | C143: 0041 | D143: Corn | E143: SCO | F143: 05 | G143: Arkansas | H143: AR | I143: 017 | J143: Chicot | M143: 016 | N143: Grain | O143: 003 | P143: Non-Irrigated | Q143: 997 | R143: No Commodity Type Specified | S143: 997 | T143: No Class Specified | U143: 997 | V143: No Subclass Specified | W143: 016 | X143: Grain | Y143: 003 | Z143: Non-Irrigated | AA143: 997 | AB143: No Cropping Practice Specified | AC143: 997 | AD143: No Organic Practice Specified | AE143: 997 | AF143: No Interval Specified | AG143: 106 | AH143: 113.78 | AI143: 3.94 | AJ143: 417.64 | AK143: 3.57 | AL143: 406.19 | AM143: - | AN143: - | AO143: - | AP143: 106 | AQ143: -1.023491306 | AR143: -1.023491306 | AS143: -1.939965695 | AT143: 0 | AU143: 0 | AV143: 0 | AW143: -0.703650273 | AX143: 0 | AY143: -1.876400728 | AZ143: 0 | BA143: 0 | BB143: 0 | BC143: 0
A144: 439 | B144: 2017 | C144: 0041 | D144: Corn | E144: SCO | F144: 05 | G144: Arkansas | H144: AR | I144: 019 | J144: Clark | M144: 016 | N144: Grain | O144: 002 | P144: Irrigated | Q144: 997 | R144: No Commodity Type Specified | S144: 997 | T144: No Class Specified | U144: 997 | V144: No Subclass Specified | W144: 016 | X144: Grain | Y144: 002 | Z144: Irrigated | AA144: 997 | AB144: No Cropping Practice Specified | AC144: 997 | AD144: No Organic Practice Specified | AE144: 997 | AF144: No Interval Specified | AG144: 154.6 | AH144: 183.8 | AI144: 3.94 | AJ144: 609.12 | AK144: 3.57 | AL144: 656.17 | AM144: - | AN144: - | AO144: - | AP144: 154.6 | AQ144: -1.974868231 | AR144: -1.974932541 | AS144: -2.989768317 | AT144: 0 | AU144: 0 | AV144: 0 | AW144: -1.357721909 | AX144: 0 | AY144: -3.620591757 | AZ144: 0 | BA144: 0 | BB144: 0 | BC144: 0
A145: 440 | B145: 2017 | C145: 0041 | D145: Corn | E145: SCO | F145: 05 | G145: Arkansas | H145: AR | I145: 019 | J145: Clark | M145: 016 | N145: Grain | O145: 003 | P145: Non-Irrigated | Q145: 997 | R145: No Commodity Type Specified | S145: 997 | T145: No Class Specified | U145: 997 | V145: No Subclass Specified | W145: 016 | X145: Grain | Y145: 003 | Z145: Non-Irrigated | AA145: 997 | AB145: No Cropping Practice Specified | AC145: 997 | AD145: No Organic Practice Specified | AE145: 997 | AF145: No Interval Specified | AG145: 123.9 | AH145: 155.14 | AI145: 3.94 | AJ145: 488.17 | AK145: 3.57 | AL145: 553.85 | AM145: - | AN145: - | AO145: - | AP145: 123.9 | AQ145: -2.495932643 | AR145: -2.49584813 | AS145: -3.564898378 | AT145: 0 | AU145: 0 | AV145: 0 | AW145: -1.715953692 | AX145: 0 | AY145: -4.575876512 | AZ145: 0 | BA145: 0 | BB145: 0 | BC145: 0
A146: 445 | B146: 2017 | C146: 0041 | D146: Corn | E146: SCO | F146: 05 | G146: Arkansas | H146: AR | I146: 021 | J146: Clay | M146: 016 | N146: Grain | O146: 002 | P146: Irrigated | Q146: 997 | R146: No Commodity Type Specified | S146: 997 | T146: No Class Specified | U146: 997 | V146: No Subclass Specified | W146: 016 | X146: Grain | Y146: 002 | Z146: Irrigated | AA146: 997 | AB146: No Cropping Practice Specified | AC146: 997 | AD146: No Organic Practice Specified | AE146: 997 | AF146: No Interval Specified | AG146: 177.4 | AH146: 203.95 | AI146: 3.94 | AJ146: 698.96 | AK146: 3.57 | AL146: 728.1 | AM146: - | AN146: - | AO146: - | AP146: 177.4 | AQ146: -1.651786118 | AR146: -1.651731924 | AS146: -2.633288921 | AT146: 0 | AU146: 0 | AV146: 0 | AW146: -1.135602956 | AX146: 0 | AY146: -3.02827455 | AZ146: 0 | BA146: 0 | BB146: 0 | BC146: 0
A147: 446 | B147: 2017 | C147: 0041 | D147: Corn | E147: SCO | F147: 05 | G147: Arkansas | H147: AR | I147: 021 | J147: Clay | M147: 016 | N147: Grain | O147: 003 | P147: Non-Irrigated | Q147: 997 | R147: No Commodity Type Specified | S147: 997 | T147: No Class Specified | U147: 997 | V147: No Subclass Specified | W147: 016 | X147: Grain | Y147: 003 | Z147: Non-Irrigated | AA147: 997 | AB147: No Cropping Practice Specified | AC147: 997 | AD147: No Organic Practice Specified | AE147: 997 | AF147: No Interval Specified | AG147: 140.3 | AH147: 140.45 | AI147: 3.94 | AJ147: 552.78 | AK147: 3.57 | AL147: 501.41 | AM147: - | AN147: - | AO147: - | AP147: 140.3 | AQ147: -0.4278767135 | AR147: -0.4279065484 | AS147: -1.282446705 | AT147: 0 | AU147: 0 | AV147: 0 | AW147: -0.2941652405 | AX147: 0 | AY147: -0.7844406415 | AZ147: 0 | BA147: 0 | BB147: 0 | BC147: 0
A148: 451 | B148: 2017 | C148: 0041 | D148: Corn | E148: SCO | F148: 05 | G148: Arkansas | H148: AR | I148: 029 | J148: Conway | M148: 016 | N148: Grain | O148: 002 | P148: Irrigated | Q148: 997 | R148: No Commodity Type Specified | S148: 997 | T148: No Class Specified | U148: 997 | V148: No Subclass Specified | W148: 016 | X148: Grain | Y148: 002 | Z148: Irrigated | AA148: 997 | AB148: No Cropping Practice Specified | AC148: 997 | AD148: No Organic Practice Specified | AE148: 997 | AF148: No Interval Specified | AG148: 178 | AH148: 185.03 | AI148: 3.94 | AJ148: 701.32 | AK148: 3.57 | AL148: 660.56 | AM148: - | AN148: - | AO148: - | AP148: 178 | AQ148: -0.7443729487 | AR148: -0.7443729487 | AS148: -1.631767109 | AT148: 0 | AU148: 0 | AV148: 0 | AW148: -0.5117564022 | AX148: 0 | AY148: -1.364683739 | AZ148: 0 | BA148: 0 | BB148: 0 | BC148: 0
A149: 452 | B149: 2017 | C149: 0041 | D149: Corn | E149: SCO | F149: 05 | G149: Arkansas | H149: AR | I149: 029 | J149: Conway | M149: 016 | N149: Grain | O149: 003 | P149: Non-Irrigated | Q149: 997 | R149: No Commodity Type Specified | S149: 997 | T149: No Class Specified | U149: 997 | V149: No Subclass Specified | W149: 016 | X149: Grain | Y149: 003 | Z149: Non-Irrigated | AA149: 997 | AB149: No Cropping Practice Specified | AC149: 997 | AD149: No Organic Practice Specified | AE149: 997 | AF149: No Interval Specified | AG149: 90.3 | AH149: 106.32 | AI149: 3.94 | AJ149: 355.78 | AK149: 3.57 | AL149: 379.56 | AM149: - | AN149: - | AO149: - | AP149: 90.3 | AQ149: -1.880300552 | AR149: -1.880355071 | AS149: -2.885533072 | AT149: 0 | AU149: 0 | AV149: 0 | AW149: -1.292706629 | AX149: 0 | AY149: -3.447217678 | AZ149: 0 | BA149: 0 | BB149: 0 | BC149: 0
A150: 457 | B150: 2017 | C150: 0041 | D150: Corn | E150: SCO | F150: 05 | G150: Arkansas | H150: AR | I150: 031 | J150: Craighead | M150: 016 | N150: Grain | O150: 002 | P150: Irrigated | Q150: 997 | R150: No Commodity Type Specified | S150: 997 | T150: No Class Specified | U150: 997 | V150: No Subclass Specified | W150: 016 | X150: Grain | Y150: 002 | Z150: Irrigated | AA150: 997 | AB150: No Cropping Practice Specified | AC150: 997 | AD150: No Organic Practice Specified | AE150: 997 | AF150: No Interval Specified | AG150: 188.5 | AH150: 177.65 | AI150: 3.94 | AJ150: 742.69 | AK150: 3.57 | AL150: 634.21 | AM150: - | AN150: P | AO150: P | AP150: 188.5 | AQ150: 0.05512394135 | AR150: 0.05512394135 | AS150: -0.7494574391 | AT150: 4.5034 | AU150: 4.5034 | AV150: 0 | AW150: 0.03789770968 | AX150: 4.5034 | AY150: 0.1010605591 | AZ150: 4.5034 | BA150: 0.02389071618 | BB150: 0.02389071618 | BC150: 0.02389071618
A151: 458 | B151: 2017 | C151: 0041 | D151: Corn | E151: SCO | F151: 05 | G151: Arkansas | H151: AR | I151: 031 | J151: Craighead | M151: 016 | N151: Grain | O151: 003 | P151: Non-Irrigated | Q151: 997 | R151: No Commodity Type Specified | S151: 997 | T151: No Class Specified | U151: 997 | V151: No Subclass Specified | W151: 016 | X151: Grain | Y151: 003 | Z151: Non-Irrigated | AA151: 997 | AB151: No Cropping Practice Specified | AC151: 997 | AD151: No Organic Practice Specified | AE151: 997 | AF151: No Interval Specified | AG151: 134.9 | AH151: 115.62 | AI151: 3.94 | AJ151: 531.51 | AK151: 3.57 | AL151: 412.76 | AM151: P | AN151: P | AO151: P | AP151: 134.9 | AQ151: 0.758311118 | AR151: 0.7583642487 | AS151: 0.02655165442 | AT151: 44.33516 | AU151: 44.33826632 | AV151: 1.55236 | AW151: 0.5213388936 | AX151: 44.33516 | AY151: 1 | AZ151: 31.89036 | BA151: 0.2364 | BB151: 0.3286520385 | BC151: 0.3286520385
A152: 463 | B152: 2017 | C152: 0041 | D152: Corn | E152: SCO | F152: 05 | G152: Arkansas | H152: AR | I152: 033 | J152: Crawford | M152: 016 | N152: Grain | O152: 002 | P152: Irrigated | Q152: 997 | R152: No Commodity Type Specified | S152: 997 | T152: No Class Specified | U152: 997 | V152: No Subclass Specified | W152: 016 | X152: Grain | Y152: 002 | Z152: Irrigated | AA152: 997 | AB152: No Cropping Practice Specified | AC152: 997 | AD152: No Organic Practice Specified | AE152: 997 | AF152: No Interval Specified | AG152: 141.4 | AH152: 156.27 | AI152: 3.94 | AJ152: 557.12 | AK152: 3.57 | AL152: 557.88 | AM152: - | AN152: - | AO152: - | AP152: 141.4 | AQ152: -1.285194074 | AR152: -1.285128714 | AS152: -2.228751447 | AT152: 0 | AU152: 0 | AV152: 0 | AW152: -0.883570926 | AX152: 0 | AY152: -2.356189136 | AZ152: 0 | BA152: 0 | BB152: 0 | BC152: 0
A153: 464 | B153: 2017 | C153: 0041 | D153: Corn | E153: SCO | F153: 05 | G153: Arkansas | H153: AR | I153: 033 | J153: Crawford | M153: 016 | N153: Grain | O153: 003 | P153: Non-Irrigated | Q153: 997 | R153: No Commodity Type Specified | S153: 997 | T153: No Class Specified | U153: 997 | V153: No Subclass Specified | W153: 016 | X153: Grain | Y153: 003 | Z153: Non-Irrigated | AA153: 997 | AB153: No Cropping Practice Specified | AC153: 997 | AD153: No Organic Practice Specified | AE153: 997 | AF153: No Interval Specified | AG153: 75.2 | AH153: 124.67 | AI153: 3.94 | AJ153: 296.29 | AK153: 3.57 | AL153: 445.07 | AM153: - | AN153: - | AO153: - | AP153: 75.2 | AQ153: -5.837757366 | AR153: -5.837665187 | AS153: -7.253143133 | AT153: 0 | AU153: 0 | AV153: 0 | AW153: -4.013458189 | AX153: 0 | AY153: -10.70255517 | AZ153: 0 | BA153: 0 | BB153: 0 | BC153: 0
A154: 469 | B154: 2017 | C154: 0041 | D154: Corn | E154: SCO | F154: 05 | G154: Arkansas | H154: AR | I154: 035 | J154: Crittenden | M154: 016 | N154: Grain | O154: 002 | P154: Irrigated | Q154: 997 | R154: No Commodity Type Specified | S154: 997 | T154: No Class Specified | U154: 997 | V154: No Subclass Specified | W154: 016 | X154: Grain | Y154: 002 | Z154: Irrigated | AA154: 997 | AB154: No Cropping Practice Specified | AC154: 997 | AD154: No Organic Practice Specified | AE154: 997 | AF154: No Interval Specified | AG154: 159.7 | AH154: 183.86 | AI154: 3.94 | AJ154: 629.22 | AK154: 3.57 | AL154: 656.38 | AM154: - | AN154: - | AO154: - | AP154: 159.7 | AQ154: -1.665162443 | AR154: -1.665132299 | AS154: -2.648033244 | AT154: 0 | AU154: 0 | AV154: 0 | AW154: -1.144799179 | AX154: 0 | AY154: -3.052797811 | AZ154: 0 | BA154: 0 | BB154: 0 | BC154: 0
A155: 470 | B155: 2017 | C155: 0041 | D155: Corn | E155: SCO | F155: 05 | G155: Arkansas | H155: AR | I155: 035 | J155: Crittenden | M155: 016 | N155: Grain | O155: 003 | P155: Non-Irrigated | Q155: 997 | R155: No Commodity Type Specified | S155: 997 | T155: No Class Specified | U155: 997 | V155: No Subclass Specified | W155: 016 | X155: Grain | Y155: 003 | Z155: Non-Irrigated | AA155: 997 | AB155: No Cropping Practice Specified | AC155: 997 | AD155: No Organic Practice Specified | AE155: 997 | AF155: No Interval Specified | AG155: 122.9 | AH155: 174.67 | AI155: 3.94 | AJ155: 484.23 | AK155: 3.57 | AL155: 623.57 | AM155: - | AN155: - | AO155: - | AP155: 122.9 | AQ155: -3.888785965 | AR155: -3.888689259 | AS155: -5.102152526 | AT155: 0 | AU155: 0 | AV155: 0 | AW155: -2.673540351 | AX155: 0 | AY155: -7.129440936 | AZ155: 0 | BA155: 0 | BB155: 0 | BC155: 0
A156: 475 | B156: 2017 | C156: 0041 | D156: Corn | E156: SCO | F156: 05 | G156: Arkansas | H156: AR | I156: 037 | J156: Cross | M156: 016 | N156: Grain | O156: 002 | P156: Irrigated | Q156: 997 | R156: No Commodity Type Specified | S156: 997 | T156: No Class Specified | U156: 997 | V156: No Subclass Specified | W156: 016 | X156: Grain | Y156: 002 | Z156: Irrigated | AA156: 997 | AB156: No Cropping Practice Specified | AC156: 997 | AD156: No Organic Practice Specified | AE156: 997 | AF156: No Interval Specified | AG156: 185.9 | AH156: 181.55 | AI156: 3.94 | AJ156: 732.45 | AK156: 3.57 | AL156: 648.13 | AM156: - | AN156: - | AO156: - | AP156: 185.9 | AQ156: -0.2262213311 | AR156: -0.2261773996 | AS156: -1.060002934 | AT156: 0 | AU156: 0 | AV156: 0 | AW156: -0.1555271651 | AX156: 0 | AY156: -0.414739107 | AZ156: 0 | BA156: 0 | BB156: 0 | BC156: 0
A157: 476 | B157: 2017 | C157: 0041 | D157: Corn | E157: SCO | F157: 05 | G157: Arkansas | H157: AR | I157: 037 | J157: Cross | M157: 016 | N157: Grain | O157: 003 | P157: Non-Irrigated | Q157: 997 | R157: No Commodity Type Specified | S157: 997 | T157: No Class Specified | U157: 997 | V157: No Subclass Specified | W157: 016 | X157: Grain | Y157: 003 | Z157: Non-Irrigated | AA157: 997 | AB157: No Cropping Practice Specified | AC157: 997 | AD157: No Organic Practice Specified | AE157: 997 | AF157: No Interval Specified | AG157: 125.6 | AH157: 152.75 | AI157: 3.94 | AJ157: 494.86 | AK157: 3.57 | AL157: 545.32 | AM157: - | AN157: - | AO157: - | AP157: 125.6 | AQ157: -2.199630238 | AR157: -2.199711213 | AS157: -3.237840185 | AT157: 0 | AU157: 0 | AV157: 0 | AW157: -1.512245789 | AX157: 0 | AY157: -4.032655437 | AZ157: 0 | BA157: 0 | BB157: 0 | BC157: 0
A158: 481 | B158: 2017 | C158: 0041 | D158: Corn | E158: SCO | F158: 05 | G158: Arkansas | H158: AR | I158: 041 | J158: Desha | M158: 016 | N158: Grain | O158: 002 | P158: Irrigated | Q158: 997 | R158: No Commodity Type Specified | S158: 997 | T158: No Class Specified | U158: 997 | V158: No Subclass Specified | W158: 016 | X158: Grain | Y158: 002 | Z158: Irrigated | AA158: 997 | AB158: No Cropping Practice Specified | AC158: 997 | AD158: No Organic Practice Specified | AE158: 997 | AF158: No Interval Specified | AG158: 200.7 | AH158: 195.3 | AI158: 3.94 | AJ158: 790.76 | AK158: 3.57 | AL158: 697.22 | AM158: - | AN158: - | AO158: - | AP158: 200.7 | AQ158: -0.1973724176 | AR158: -0.1973521445 | AS158: -1.028128822 | AT158: 0 | AU158: 0 | AV158: 0 | AW158: -0.1356935371 | AX158: 0 | AY158: -0.3618494322 | AZ158: 0 | BA158: 0 | BB158: 0 | BC158: 0
A159: 482 | B159: 2017 | C159: 0041 | D159: Corn | E159: SCO | F159: 05 | G159: Arkansas | H159: AR | I159: 041 | J159: Desha | M159: 016 | N159: Grain | O159: 003 | P159: Non-Irrigated | Q159: 997 | R159: No Commodity Type Specified | S159: 997 | T159: No Class Specified | U159: 997 | V159: No Subclass Specified | W159: 016 | X159: Grain | Y159: 003 | Z159: Non-Irrigated | AA159: 997 | AB159: No Cropping Practice Specified | AC159: 997 | AD159: No Organic Practice Specified | AE159: 997 | AF159: No Interval Specified | AG159: 109.6 | AH159: 198.29 | AI159: 3.94 | AJ159: 431.82 | AK159: 3.57 | AL159: 707.9 | AM159: - | AN159: - | AO159: - | AP159: 109.6 | AQ159: -7.084775279 | AR159: -7.084913327 | AS159: -8.629230259 | AT159: 0 | AU159: 0 | AV159: 0 | AW159: -4.870783004 | AX159: 0 | AY159: -12.98875468 | AZ159: 0 | BA159: 0 | BB159: 0 | BC159: 0
A160: 487 | B160: 2017 | C160: 0041 | D160: Corn | E160: SCO | F160: 05 | G160: Arkansas | H160: AR | I160: 043 | J160: Drew | M160: 016 | N160: Grain | O160: 002 | P160: Irrigated | Q160: 997 | R160: No Commodity Type Specified | S160: 997 | T160: No Class Specified | U160: 997 | V160: No Subclass Specified | W160: 016 | X160: Grain | Y160: 002 | Z160: Irrigated | AA160: 997 | AB160: No Cropping Practice Specified | AC160: 997 | AD160: No Organic Practice Specified | AE160: 997 | AF160: No Interval Specified | AG160: 182 | AH160: 206.48 | AI160: 3.94 | AJ160: 717.08 | AK160: 3.57 | AL160: 737.13 | AM160: - | AN160: - | AO160: - | AP160: 182 | AQ160: -1.52691471 | AR160: -1.52691471 | AS160: -2.495504496 | AT160: 0 | AU160: 0 | AV160: 0 | AW160: -1.049753863 | AX160: 0 | AY160: -2.799343634 | AZ160: 0 | BA160: 0 | BB160: 0 | BC160: 0
A161: 488 | B161: 2017 | C161: 0041 | D161: Corn | E161: SCO | F161: 05 | G161: Arkansas | H161: AR | I161: 043 | J161: Drew | M161: 016 | N161: Grain | O161: 003 | P161: Non-Irrigated | Q161: 997 | R161: No Commodity Type Specified | S161: 997 | T161: No Class Specified | U161: 997 | V161: No Subclass Specified | W161: 016 | X161: Grain | Y161: 003 | Z161: Non-Irrigated | AA161: 997 | AB161: No Cropping Practice Specified | AC161: 997 | AD161: No Organic Practice Specified | AE161: 997 | AF161: No Interval Specified | AG161: 113.4 | AH161: 117.85 | AI161: 3.94 | AJ161: 446.8 | AK161: 3.57 | AL161: 420.72 | AM161: - | AN161: - | AO161: - | AP161: 113.4 | AQ161: -0.7421617675 | AR161: -0.7420851306 | AS161: -1.629469296 | AT161: 0 | AU161: 0 | AV161: 0 | AW161: -0.5102362152 | AX161: 0 | AY161: -1.360629907 | AZ161: 0 | BA161: 0 | BB161: 0 | BC161: 0
A162: 493 | B162: 2017 | C162: 0041 | D162: Corn | E162: SCO | F162: 05 | G162: Arkansas | H162: AR | I162: 045 | J162: Faulkner | M162: 016 | N162: Grain | O162: 002 | P162: Irrigated | Q162: 997 | R162: No Commodity Type Specified | S162: 997 | T162: No Class Specified | U162: 997 | V162: No Subclass Specified | W162: 016 | X162: Grain | Y162: 002 | Z162: Irrigated | AA162: 997 | AB162: No Cropping Practice Specified | AC162: 997 | AD162: No Organic Practice Specified | AE162: 997 | AF162: No Interval Specified | AG162: 185.9 | AH162: 191.61 | AI162: 3.94 | AJ162: 732.45 | AK162: 3.57 | AL162: 684.05 | AM162: - | AN162: - | AO162: - | AP162: 185.9 | AQ162: -0.6720500401 | AR162: -0.6720036738 | AS162: -1.551958531 | AT162: 0 | AU162: 0 | AV162: 0 | AW162: -0.4620344025 | AX162: 0 | AY162: -1.23209174 | AZ162: 0 | BA162: 0 | BB162: 0 | BC162: 0
A163: 494 | B163: 2017 | C163: 0041 | D163: Corn | E163: SCO | F163: 05 | G163: Arkansas | H163: AR | I163: 045 | J163: Faulkner | M163: 016 | N163: Grain | O163: 003 | P163: Non-Irrigated | Q163: 997 | R163: No Commodity Type Specified | S163: 997 | T163: No Class Specified | U163: 997 | V163: No Subclass Specified | W163: 016 | X163: Grain | Y163: 003 | Z163: Non-Irrigated | AA163: 997 | AB163: No Cropping Practice Specified | AC163: 997 | AD163: No Organic Practice Specified | AE163: 997 | AF163: No Interval Specified | AG163: 107.7 | AH163: 73.08 | AI163: 3.94 | AJ163: 424.34 | AK163: 3.57 | AL163: 260.9 | AM163: P | AN163: P | AO163: P | AP163: 107.7 | AQ163: 1 | AR163: 1 | AS163: 1 | AT163: 46.67718 | AU163: 46.67718 | AV163: 46.67718 | AW163: 1 | AX163: 67.89408 | AY163: 1 | AZ163: 25.46028 | BA163: 0.2364 | BB163: 0.4334 | BC163: 0.6304
A164: 499 | B164: 2017 | C164: 0041 | D164: Corn | E164: SCO | F164: 05 | G164: Arkansas | H164: AR | I164: 047 | J164: Franklin | M164: 016 | N164: Grain | O164: 002 | P164: Irrigated | Q164: 997 | R164: No Commodity Type Specified | S164: 997 | T164: No Class Specified | U164: 997 | V164: No Subclass Specified | W164: 016 | X164: Grain | Y164: 002 | Z164: Irrigated | AA164: 997 | AB164: No Cropping Practice Specified | AC164: 997 | AD164: No Organic Practice Specified | AE164: 997 | AF164: No Interval Specified | AG164: 116.2 | AH164: 153.74 | AI164: 3.94 | AJ164: 457.83 | AK164: 3.57 | AL164: 548.85 | AM164: - | AN164: - | AO164: - | AP164: 116.2 | AQ164: -3.080115041 | AR164: -3.080067433 | AS164: -4.209669848 | AT164: 0 | AU164: 0 | AV164: 0 | AW164: -2.117579091 | AX164: 0 | AY164: -5.646877576 | AZ164: 0 | BA164: 0 | BB164: 0 | BC164: 0
A165: 500 | B165: 2017 | C165: 0041 | D165: Corn | E165: SCO | F165: 05 | G165: Arkansas | H165: AR | I165: 047 | J165: Franklin | M165: 016 | N165: Grain | O165: 003 | P165: Non-Irrigated | Q165: 997 | R165: No Commodity Type Specified | S165: 997 | T165: No Class Specified | U165: 997 | V165: No Subclass Specified | W165: 016 | X165: Grain | Y165: 003 | Z165: Non-Irrigated | AA165: 997 | AB165: No Cropping Practice Specified | AC165: 997 | AD165: No Organic Practice Specified | AE165: 997 | AF165: No Interval Specified | AG165: 91.1 | AH165: 116.59 | AI165: 3.94 | AJ165: 358.93 | AK165: 3.57 | AL165: 416.23 | AM165: - | AN165: - | AO165: - | AP165: 91.1 | AQ165: -2.723893023 | AR165: -2.724010506 | AS165: -3.81638559 | AT165: 0 | AU165: 0 | AV165: 0 | AW165: -1.872676453 | AX165: 0 | AY165: -4.993803875 | AZ165: 0 | BA165: 0 | BB165: 0 | BC165: 0
A166: 505 | B166: 2017 | C166: 0041 | D166: Corn | E166: SCO | F166: 05 | G166: Arkansas | H166: AR | I166: 055 | J166: Greene | M166: 016 | N166: Grain | O166: 002 | P166: Irrigated | Q166: 997 | R166: No Commodity Type Specified | S166: 997 | T166: No Class Specified | U166: 997 | V166: No Subclass Specified | W166: 016 | X166: Grain | Y166: 002 | Z166: Irrigated | AA166: 997 | AB166: No Cropping Practice Specified | AC166: 997 | AD166: No Organic Practice Specified | AE166: 997 | AF166: No Interval Specified | AG166: 181.6 | AH166: 187.61 | AI166: 3.94 | AJ166: 715.5 | AK166: 3.57 | AL166: 669.77 | AM166: - | AN166: - | AO166: - | AP166: 181.6 | AQ166: -0.6916492685 | AR166: -0.6916968426 | AS166: -1.573588306 | AT166: 0 | AU166: 0 | AV166: 0 | AW166: -0.4755088721 | AX166: 0 | AY166: -1.268023659 | AZ166: 0 | BA166: 0 | BB166: 0 | BC166: 0
A167: 506 | B167: 2017 | C167: 0041 | D167: Corn | E167: SCO | F167: 05 | G167: Arkansas | H167: AR | I167: 055 | J167: Greene | M167: 016 | N167: Grain | O167: 003 | P167: Non-Irrigated | Q167: 997 | R167: No Commodity Type Specified | S167: 997 | T167: No Class Specified | U167: 997 | V167: No Subclass Specified | W167: 016 | X167: Grain | Y167: 003 | Z167: Non-Irrigated | AA167: 997 | AB167: No Cropping Practice Specified | AC167: 997 | AD167: No Organic Practice Specified | AE167: 997 | AF167: No Interval Specified | AG167: 138.4 | AH167: 139.16 | AI167: 3.94 | AJ167: 545.3 | AK167: 3.57 | AL167: 496.8 | AM167: - | AN167: - | AO167: - | AP167: 138.4 | AQ167: -0.4642256016 | AR167: -0.4641648467 | AS167: -1.32264845 | AT167: 0 | AU167: 0 | AV167: 0 | AW167: -0.3191551011 | AX167: 0 | AY167: -0.8510802696 | AZ167: 0 | BA167: 0 | BB167: 0 | BC167: 0
A168: 511 | B168: 2017 | C168: 0041 | D168: Corn | E168: SCO | F168: 05 | G168: Arkansas | H168: AR | I168: 057 | J168: Hempstead | M168: 016 | N168: Grain | O168: 002 | P168: Irrigated | Q168: 997 | R168: No Commodity Type Specified | S168: 997 | T168: No Class Specified | U168: 997 | V168: No Subclass Specified | W168: 016 | X168: Grain | Y168: 002 | Z168: Irrigated | AA168: 997 | AB168: No Cropping Practice Specified | AC168: 997 | AD168: No Organic Practice Specified | AE168: 997 | AF168: No Interval Specified | AG168: 161.5 | AH168: 199.29 | AI168: 3.94 | AJ168: 636.31 | AK168: 3.57 | AL168: 711.47 | AM168: - | AN168: - | AO168: - | AP168: 161.5 | AQ168: -2.346532065 | AR168: -2.346532065 | AS168: -3.39994371 | AT168: 0 | AU168: 0 | AV168: 0 | AW168: -1.613240795 | AX168: 0 | AY168: -4.301975452 | AZ168: 0 | BA168: 0 | BB168: 0 | BC168: 0
A169: 512 | B169: 2017 | C169: 0041 | D169: Corn | E169: SCO | F169: 05 | G169: Arkansas | H169: AR | I169: 057 | J169: Hempstead | M169: 016 | N169: Grain | O169: 003 | P169: Non-Irrigated | Q169: 997 | R169: No Commodity Type Specified | S169: 997 | T169: No Class Specified | U169: 997 | V169: No Subclass Specified | W169: 016 | X169: Grain | Y169: 003 | Z169: Non-Irrigated | AA169: 997 | AB169: No Cropping Practice Specified | AC169: 997 | AD169: No Organic Practice Specified | AE169: 997 | AF169: No Interval Specified | AG169: 71 | AH169: 127.81 | AI169: 3.94 | AJ169: 279.74 | AK169: 3.57 | AL169: 456.28 | AM169: - | AN169: - | AO169: - | AP169: 71 | AQ169: -7.009872804 | AR169: -7.009872804 | AS169: -8.546734955 | AT169: 0 | AU169: 0 | AV169: 0 | AW169: -4.819287553 | AX169: 0 | AY169: -12.85143347 | AZ169: 0 | BA169: 0 | BB169: 0 | BC169: 0
A170: 517 | B170: 2017 | C170: 0041 | D170: Corn | E170: SCO | F170: 05 | G170: Arkansas | H170: AR | I170: 059 | J170: Hot Spring | M170: 016 | N170: Grain | O170: 002 | P170: Irrigated | Q170: 997 | R170: No Commodity Type Specified | S170: 997 | T170: No Class Specified | U170: 997 | V170: No Subclass Specified | W170: 016 | X170: Grain | Y170: 002 | Z170: Irrigated | AA170: 997 | AB170: No Cropping Practice Specified | AC170: 997 | AD170: No Organic Practice Specified | AE170: 997 | AF170: No Interval Specified | AG170: 169.1 | AH170: 186.94 | AI170: 3.94 | AJ170: 666.25 | AK170: 3.57 | AL170: 667.38 | AM170: - | AN170: - | AO170: - | AP170: 169.1 | AQ170: -1.288091329 | AR170: -1.288146 | AS170: -2.231815494 | AT170: 0 | AU170: 0 | AV170: 0 | AW170: -0.8855627884 | AX170: 0 | AY170: -2.361500769 | AZ170: 0 | BA170: 0 | BB170: 0 | BC170: 0
A171: 518 | B171: 2017 | C171: 0041 | D171: Corn | E171: SCO | F171: 05 | G171: Arkansas | H171: AR | I171: 059 | J171: Hot Spring | M171: 016 | N171: Grain | O171: 003 | P171: Non-Irrigated | Q171: 997 | R171: No Commodity Type Specified | S171: 997 | T171: No Class Specified | U171: 997 | V171: No Subclass Specified | W171: 016 | X171: Grain | Y171: 003 | Z171: Non-Irrigated | AA171: 997 | AB171: No Cropping Practice Specified | AC171: 997 | AD171: No Organic Practice Specified | AE171: 997 | AF171: No Interval Specified | AG171: 101.7 | AH171: 91.39 | AI171: 3.94 | AJ171: 400.7 | AK171: 3.57 | AL171: 326.26 | AM171: - | AN171: P | AO171: P | AP171: 101.7 | AQ171: 0.4160984537 | AR171: 0.4161353994 | AS171: -0.3511218378 | AT171: 18.34028 | AU171: 18.34190845 | AV171: 0 | AW171: 0.2860676869 | AX171: 18.34028 | AY171: 0.762847165 | AZ171: 18.34028 | BA171: 0.1803370698 | BB171: 0.1803370698 | BC171: 0.1803370698
A172: 523 | B172: 2017 | C172: 0041 | D172: Corn | E172: SCO | F172: 05 | G172: Arkansas | H172: AR | I172: 063 | J172: Independence | M172: 016 | N172: Grain | O172: 002 | P172: Irrigated | Q172: 997 | R172: No Commodity Type Specified | S172: 997 | T172: No Class Specified | U172: 997 | V172: No Subclass Specified | W172: 016 | X172: Grain | Y172: 002 | Z172: Irrigated | AA172: 997 | AB172: No Cropping Practice Specified | AC172: 997 | AD172: No Organic Practice Specified | AE172: 997 | AF172: No Interval Specified | AG172: 148.8 | AH172: 88.59 | AI172: 3.94 | AJ172: 586.27 | AK172: 3.57 | AL172: 316.27 | AM172: P | AN172: P | AO172: P | AP172: 148.8 | AQ172: 1 | AR172: 1 | AS172: 1 | AT172: 64.48992 | AU172: 64.48992 | AV172: 64.48992 | AW172: 1 | AX172: 93.80352 | AY172: 1 | AZ172: 35.17632 | BA172: 0.2364 | BB172: 0.4334 | BC172: 0.6304
A173: 524 | B173: 2017 | C173: 0041 | D173: Corn | E173: SCO | F173: 05 | G173: Arkansas | H173: AR | I173: 063 | J173: Independence | M173: 016 | N173: Grain | O173: 003 | P173: Non-Irrigated | Q173: 997 | R173: No Commodity Type Specified | S173: 997 | T173: No Class Specified | U173: 997 | V173: No Subclass Specified | W173: 016 | X173: Grain | Y173: 003 | Z173: Non-Irrigated | AA173: 997 | AB173: No Cropping Practice Specified | AC173: 997 | AD173: No Organic Practice Specified | AE173: 997 | AF173: No Interval Specified | AG173: 120.3 | AH173: 92.96 | AI173: 3.94 | AJ173: 473.98 | AK173: 3.57 | AL173: 331.87 | AM173: P | AN173: P | AO173: P | AP173: 120.3 | AQ173: 1 | AR173: 1 | AS173: 0.793319731 | AT173: 52.13802 | AU173: 52.13802 | AV173: 41.36212 | AW173: 0.9989108236 | AX173: 75.75452 | AY173: 1 | AZ173: 28.43892 | BA173: 0.2364 | BB173: 0.4334 | BC173: 0.6297133832
A174: 529 | B174: 2017 | C174: 0041 | D174: Corn | E174: SCO | F174: 05 | G174: Arkansas | H174: AR | I174: 067 | J174: Jackson | M174: 016 | N174: Grain | O174: 002 | P174: Irrigated | Q174: 997 | R174: No Commodity Type Specified | S174: 997 | T174: No Class Specified | U174: 997 | V174: No Subclass Specified | W174: 016 | X174: Grain | Y174: 002 | Z174: Irrigated | AA174: 997 | AB174: No Cropping Practice Specified | AC174: 997 | AD174: No Organic Practice Specified | AE174: 997 | AF174: No Interval Specified | AG174: 152.3 | AH174: 122.85 | AI174: 3.94 | AJ174: 600.06 | AK174: 3.57 | AL174: 438.57 | AM174: P | AN174: P | AO174: P | AP174: 152.3 | AQ174: 1 | AR174: 1 | AS174: 0.4851668358 | AT174: 66.00682 | AU174: 66.00682 | AV174: 32.02432 | AW174: 0.8070345231 | AX174: 77.48332 | AY174: 1 | AZ174: 36.00372 | BA174: 0.2364 | BB174: 0.4334 | BC174: 0.5087545634
A175: 530 | B175: 2017 | C175: 0041 | D175: Corn | E175: SCO | F175: 05 | G175: Arkansas | H175: AR | I175: 067 | J175: Jackson | M175: 016 | N175: Grain | O175: 003 | P175: Non-Irrigated | Q175: 997 | R175: No Commodity Type Specified | S175: 997 | T175: No Class Specified | U175: 997 | V175: No Subclass Specified | W175: 016 | X175: Grain | Y175: 003 | Z175: Non-Irrigated | AA175: 997 | AB175: No Cropping Practice Specified | AC175: 997 | AD175: No Organic Practice Specified | AE175: 997 | AF175: No Interval Specified | AG175: 127.5 | AH175: 120.05 | AI175: 3.94 | AJ175: 502.35 | AK175: 3.57 | AL175: 428.58 | AM175: - | AN175: P | AO175: P | AP175: 127.5 | AQ175: 0.06227096284 | AR175: 0.06227096284 | AS175: -0.7415329768 | AT175: 3.441 | AU175: 3.441 | AV175: 0 | AW175: 0.04281128695 | AX175: 3.441 | AY175: 0.1141634319 | AZ175: 3.441 | BA175: 0.02698823529 | BB175: 0.02698823529 | BC175: 0.02698823529
A176: 535 | B176: 2017 | C176: 0041 | D176: Corn | E176: SCO | F176: 05 | G176: Arkansas | H176: AR | I176: 069 | J176: Jefferson | M176: 016 | N176: Grain | O176: 002 | P176: Irrigated | Q176: 997 | R176: No Commodity Type Specified | S176: 997 | T176: No Class Specified | U176: 997 | V176: No Subclass Specified | W176: 016 | X176: Grain | Y176: 002 | Z176: Irrigated | AA176: 997 | AB176: No Cropping Practice Specified | AC176: 997 | AD176: No Organic Practice Specified | AE176: 997 | AF176: No Interval Specified | AG176: 176.8 | AH176: 196.84 | AI176: 3.94 | AJ176: 696.59 | AK176: 3.57 | AL176: 702.72 | AM176: - | AN176: - | AO176: - | AP176: 176.8 | AQ176: -1.352701046 | AR176: -1.352727377 | AS176: -2.303167421 | AT176: 0 | AU176: 0 | AV176: 0 | AW176: -0.9299819694 | AX176: 0 | AY176: -2.479951918 | AZ176: 0 | BA176: 0 | BB176: 0 | BC176: 0
A177: 536 | B177: 2017 | C177: 0041 | D177: Corn | E177: SCO | F177: 05 | G177: Arkansas | H177: AR | I177: 069 | J177: Jefferson | M177: 016 | N177: Grain | O177: 003 | P177: Non-Irrigated | Q177: 997 | R177: No Commodity Type Specified | S177: 997 | T177: No Class Specified | U177: 997 | V177: No Subclass Specified | W177: 016 | X177: Grain | Y177: 003 | Z177: Non-Irrigated | AA177: 997 | AB177: No Cropping Practice Specified | AC177: 997 | AD177: No Organic Practice Specified | AE177: 997 | AF177: No Interval Specified | AG177: 114.5 | AH177: 92.27 | AI177: 3.94 | AJ177: 451.13 | AK177: 3.57 | AL177: 329.4 | AM177: P | AN177: P | AO177: P | AP177: 114.5 | AQ177: 1 | AR177: 1 | AS177: 0.4922588329 | AT177: 49.6243 | AU177: 49.6243 | AV177: 24.428 | AW177: 0.8114595571 | AX177: 58.5718 | AY177: 1 | AZ177: 27.0678 | BA177: 0.2364 | BB177: 0.4334 | BC177: 0.5115441048
A178: 541 | B178: 2017 | C178: 0041 | D178: Corn | E178: SCO | F178: 05 | G178: Arkansas | H178: AR | I178: 071 | J178: Johnson | M178: 016 | N178: Grain | O178: 002 | P178: Irrigated | Q178: 997 | R178: No Commodity Type Specified | S178: 997 | T178: No Class Specified | U178: 997 | V178: No Subclass Specified | W178: 016 | X178: Grain | Y178: 002 | Z178: Irrigated | AA178: 997 | AB178: No Cropping Practice Specified | AC178: 997 | AD178: No Organic Practice Specified | AE178: 997 | AF178: No Interval Specified | AG178: 132.7 | AH178: 140.54 | AI178: 3.94 | AJ178: 522.84 | AK178: 3.57 | AL178: 501.73 | AM178: - | AN178: - | AO178: - | AP178: 132.7 | AQ178: -0.9057093645 | AR178: -0.9056759934 | AS178: -1.809823936 | AT178: 0 | AU178: 0 | AV178: 0 | AW178: -0.6226751881 | AX178: 0 | AY178: -1.660467168 | AZ178: 0 | BA178: 0 | BB178: 0 | BC178: 0
A179: 542 | B179: 2017 | C179: 0041 | D179: Corn | E179: SCO | F179: 05 | G179: Arkansas | H179: AR | I179: 071 | J179: Johnson | M179: 016 | N179: Grain | O179: 003 | P179: Non-Irrigated | Q179: 997 | R179: No Commodity Type Specified | S179: 997 | T179: No Class Specified | U179: 997 | V179: No Subclass Specified | W179: 016 | X179: Grain | Y179: 003 | Z179: Non-Irrigated | AA179: 997 | AB179: No Cropping Practice Specified | AC179: 997 | AD179: No Organic Practice Specified | AE179: 997 | AF179: No Interval Specified | AG179: 68.9 | AH179: 110.39 | AI179: 3.94 | AJ179: 271.47 | AK179: 3.57 | AL179: 394.09 | AM179: - | AN179: - | AO179: - | AP179: 68.9 | AQ179: -5.379184937 | AR179: -5.378990479 | AS179: -6.747064256 | AT179: 0 | AU179: 0 | AV179: 0 | AW179: -3.698189644 | AX179: 0 | AY179: -9.861839052 | AZ179: 0 | BA179: 0 | BB179: 0 | BC179: 0
A180: 547 | B180: 2017 | C180: 0041 | D180: Corn | E180: SCO | F180: 05 | G180: Arkansas | H180: AR | I180: 073 | J180: Lafayette | M180: 016 | N180: Grain | O180: 002 | P180: Irrigated | Q180: 997 | R180: No Commodity Type Specified | S180: 997 | T180: No Class Specified | U180: 997 | V180: No Subclass Specified | W180: 016 | X180: Grain | Y180: 002 | Z180: Irrigated | AA180: 997 | AB180: No Cropping Practice Specified | AC180: 997 | AD180: No Organic Practice Specified | AE180: 997 | AF180: No Interval Specified | AG180: 161.5 | AH180: 199.29 | AI180: 3.94 | AJ180: 636.31 | AK180: 3.57 | AL180: 711.47 | AM180: - | AN180: - | AO180: - | AP180: 161.5 | AQ180: -2.346532065 | AR180: -2.346532065 | AS180: -3.39994371 | AT180: 0 | AU180: 0 | AV180: 0 | AW180: -1.613240795 | AX180: 0 | AY180: -4.301975452 | AZ180: 0 | BA180: 0 | BB180: 0 | BC180: 0
A181: 548 | B181: 2017 | C181: 0041 | D181: Corn | E181: SCO | F181: 05 | G181: Arkansas | H181: AR | I181: 073 | J181: Lafayette | M181: 016 | N181: Grain | O181: 003 | P181: Non-Irrigated | Q181: 997 | R181: No Commodity Type Specified | S181: 997 | T181: No Class Specified | U181: 997 | V181: No Subclass Specified | W181: 016 | X181: Grain | Y181: 003 | Z181: Non-Irrigated | AA181: 997 | AB181: No Cropping Practice Specified | AC181: 997 | AD181: No Organic Practice Specified | AE181: 997 | AF181: No Interval Specified | AG181: 118 | AH181: 168.18 | AI181: 3.94 | AJ181: 464.92 | AK181: 3.57 | AL181: 600.4 | AM181: - | AN181: - | AO181: - | AP181: 118 | AQ181: -3.92186339 | AR181: -3.92186339 | AS181: -5.138674884 | AT181: 0 | AU181: 0 | AV181: 0 | AW181: -2.696281081 | AX181: 0 | AY181: -7.190082882 | AZ181: 0 | BA181: 0 | BB181: 0 | BC181: 0
A182: 553 | B182: 2017 | C182: 0041 | D182: Corn | E182: SCO | F182: 05 | G182: Arkansas | H182: AR | I182: 075 | J182: Lawrence | M182: 016 | N182: Grain | O182: 002 | P182: Irrigated | Q182: 997 | R182: No Commodity Type Specified | S182: 997 | T182: No Class Specified | U182: 997 | V182: No Subclass Specified | W182: 016 | X182: Grain | Y182: 002 | Z182: Irrigated | AA182: 997 | AB182: No Cropping Practice Specified | AC182: 997 | AD182: No Organic Practice Specified | AE182: 997 | AF182: No Interval Specified | AG182: 158.5 | AH182: 116.36 | AI182: 3.94 | AJ182: 624.49 | AK182: 3.57 | AL182: 415.41 | AM182: P | AN182: P | AO182: P | AP182: 158.5 | AQ182: 1 | AR182: 1 | AS182: 1 | AT182: 68.6939 | AU182: 68.6939 | AV182: 68.6939 | AW182: 1 | AX182: 99.9184 | AY182: 1 | AZ182: 37.4694 | BA182: 0.2364 | BB182: 0.4334 | BC182: 0.6304
A183: 554 | B183: 2017 | C183: 0041 | D183: Corn | E183: SCO | F183: 05 | G183: Arkansas | H183: AR | I183: 075 | J183: Lawrence | M183: 016 | N183: Grain | O183: 003 | P183: Non-Irrigated | Q183: 997 | R183: No Commodity Type Specified | S183: 997 | T183: No Class Specified | U183: 997 | V183: No Subclass Specified | W183: 016 | X183: Grain | Y183: 003 | Z183: Non-Irrigated | AA183: 997 | AB183: No Cropping Practice Specified | AC183: 997 | AD183: No Organic Practice Specified | AE183: 997 | AF183: No Interval Specified | AG183: 132.1 | AH183: 116.29 | AI183: 3.94 | AJ183: 520.47 | AK183: 3.57 | AL183: 415.16 | AM183: - | AN183: P | AO183: P | AP183: 132.1 | AQ183: 0.5667498193 | AR183: 0.5666940894 | AS183: -0.1847085541 | AT183: 32.44764 | AU183: 32.44444935 | AV183: 0 | AW183: 0.3896405008 | AX183: 32.44764 | AY183: 1 | AZ183: 31.22844 | BA183: 0.2364 | BB183: 0.2456293717 | BC183: 0.2456293717
A184: 559 | B184: 2017 | C184: 0041 | D184: Corn | E184: SCO | F184: 05 | G184: Arkansas | H184: AR | I184: 077 | J184: Lee | M184: 016 | N184: Grain | O184: 002 | P184: Irrigated | Q184: 997 | R184: No Commodity Type Specified | S184: 997 | T184: No Class Specified | U184: 997 | V184: No Subclass Specified | W184: 016 | X184: Grain | Y184: 002 | Z184: Irrigated | AA184: 997 | AB184: No Cropping Practice Specified | AC184: 997 | AD184: No Organic Practice Specified | AE184: 997 | AF184: No Interval Specified | AG184: 167.6 | AH184: 182.19 | AI184: 3.94 | AJ184: 660.34 | AK184: 3.57 | AL184: 650.42 | AM184: - | AN184: - | AO184: - | AP184: 167.6 | AQ184: -1.136104267 | AR184: -1.136158508 | AS184: -2.064113691 | AT184: 0 | AU184: 0 | AV184: 0 | AW184: -0.7810716838 | AX184: 0 | AY184: -2.082857824 | AZ184: 0 | BA184: 0 | BB184: 0 | BC184: 0
A185: 560 | B185: 2017 | C185: 0041 | D185: Corn | E185: SCO | F185: 05 | G185: Arkansas | H185: AR | I185: 077 | J185: Lee | M185: 016 | N185: Grain | O185: 003 | P185: Non-Irrigated | Q185: 997 | R185: No Commodity Type Specified | S185: 997 | T185: No Class Specified | U185: 997 | V185: No Subclass Specified | W185: 016 | X185: Grain | Y185: 003 | Z185: Non-Irrigated | AA185: 997 | AB185: No Cropping Practice Specified | AC185: 997 | AD185: No Organic Practice Specified | AE185: 997 | AF185: No Interval Specified | AG185: 101.4 | AH185: 129.56 | AI185: 3.94 | AJ185: 399.52 | AK185: 3.57 | AL185: 462.53 | AM185: - | AN185: - | AO185: - | AP185: 101.4 | AQ185: -2.706598621 | AR185: -2.706493246 | AS185: -3.797382105 | AT185: 0 | AU185: 0 | AV185: 0 | AW185: -1.860786552 | AX185: 0 | AY185: -4.962097471 | AZ185: 0 | BA185: 0 | BB185: 0 | BC185: 0
A186: 565 | B186: 2017 | C186: 0041 | D186: Corn | E186: SCO | F186: 05 | G186: Arkansas | H186: AR | I186: 079 | J186: Lincoln | M186: 016 | N186: Grain | O186: 002 | P186: Irrigated | Q186: 997 | R186: No Commodity Type Specified | S186: 997 | T186: No Class Specified | U186: 997 | V186: No Subclass Specified | W186: 016 | X186: Grain | Y186: 002 | Z186: Irrigated | AA186: 997 | AB186: No Cropping Practice Specified | AC186: 997 | AD186: No Organic Practice Specified | AE186: 997 | AF186: No Interval Specified | AG186: 191.7 | AH186: 170.04 | AI186: 3.94 | AJ186: 755.3 | AK186: 3.57 | AL186: 607.04 | AM186: - | AN186: P | AO186: P | AP186: 191.7 | AQ186: 0.5117339598 | AR186: 0.5117533069 | AS186: -0.2455541329 | AT186: 42.51628 | AU186: 42.51788741 | AV186: 0 | AW186: 0.3518170974 | AX186: 42.51628 | AY186: 0.9381789263 | AZ186: 42.51628 | BA186: 0.2217854982 | BB186: 0.2217854982 | BC186: 0.2217854982
A187: 566 | B187: 2017 | C187: 0041 | D187: Corn | E187: SCO | F187: 05 | G187: Arkansas | H187: AR | I187: 079 | J187: Lincoln | M187: 016 | N187: Grain | O187: 003 | P187: Non-Irrigated | Q187: 997 | R187: No Commodity Type Specified | S187: 997 | T187: No Class Specified | U187: 997 | V187: No Subclass Specified | W187: 016 | X187: Grain | Y187: 003 | Z187: Non-Irrigated | AA187: 997 | AB187: No Cropping Practice Specified | AC187: 997 | AD187: No Organic Practice Specified | AE187: 997 | AF187: No Interval Specified | AG187: 114.5 | AH187: 98.88 | AI187: 3.94 | AJ187: 451.13 | AK187: 3.57 | AL187: 353 | AM187: - | AN187: P | AO187: P | AP187: 114.5 | AQ187: 0.7047313514 | AR187: 0.7047313514 | AS187: -0.03255260024 | AT187: 34.9718 | AU187: 34.9718 | AV187: 0 | AW187: 0.4845028041 | AX187: 34.9718 | AY187: 1 | AZ187: 27.0678 | BA187: 0.2364 | BB187: 0.3054305677 | BC187: 0.3054305677
A188: 571 | B188: 2017 | C188: 0041 | D188: Corn | E188: SCO | F188: 05 | G188: Arkansas | H188: AR | I188: 081 | J188: Little River | M188: 016 | N188: Grain | O188: 002 | P188: Irrigated | Q188: 997 | R188: No Commodity Type Specified | S188: 997 | T188: No Class Specified | U188: 997 | V188: No Subclass Specified | W188: 016 | X188: Grain | Y188: 002 | Z188: Irrigated | AA188: 997 | AB188: No Cropping Practice Specified | AC188: 997 | AD188: No Organic Practice Specified | AE188: 997 | AF188: No Interval Specified | AG188: 145.6 | AH188: 166.39 | AI188: 3.94 | AJ188: 573.66 | AK188: 3.57 | AL188: 594.01 | AM188: - | AN188: - | AO188: - | AP188: 145.6 | AQ188: -1.59515231 | AR188: -1.595217947 | AS188: -2.570804196 | AT188: 0 | AU188: 0 | AV188: 0 | AW188: -1.096667213 | AX188: 0 | AY188: -2.924445901 | AZ188: 0 | BA188: 0 | BB188: 0 | BC188: 0
A189: 572 | B189: 2017 | C189: 0041 | D189: Corn | E189: SCO | F189: 05 | G189: Arkansas | H189: AR | I189: 081 | J189: Little River | M189: 016 | N189: Grain | O189: 003 | P189: Non-Irrigated | Q189: 997 | R189: No Commodity Type Specified | S189: 997 | T189: No Class Specified | U189: 997 | V189: No Subclass Specified | W189: 016 | X189: Grain | Y189: 003 | Z189: Non-Irrigated | AA189: 997 | AB189: No Cropping Practice Specified | AC189: 997 | AD189: No Organic Practice Specified | AE189: 997 | AF189: No Interval Specified | AG189: 73.1 | AH189: 130.16 | AI189: 3.94 | AJ189: 288.01 | AK189: 3.57 | AL189: 464.67 | AM189: - | AN189: - | AO189: - | AP189: 73.1 | AQ189: -6.848718844 | AR189: -6.848922544 | AS189: -8.368859595 | AT189: 0 | AU189: 0 | AV189: 0 | AW189: -4.708494205 | AX189: 0 | AY189: -12.55598455 | AZ189: 0 | BA189: 0 | BB189: 0 | BC189: 0
A190: 577 | B190: 2017 | C190: 0041 | D190: Corn | E190: SCO | F190: 05 | G190: Arkansas | H190: AR | I190: 083 | J190: Logan | M190: 016 | N190: Grain | O190: 002 | P190: Irrigated | Q190: 997 | R190: No Commodity Type Specified | S190: 997 | T190: No Class Specified | U190: 997 | V190: No Subclass Specified | W190: 016 | X190: Grain | Y190: 002 | Z190: Irrigated | AA190: 997 | AB190: No Cropping Practice Specified | AC190: 997 | AD190: No Organic Practice Specified | AE190: 997 | AF190: No Interval Specified | AG190: 134.3 | AH190: 154.87 | AI190: 3.94 | AJ190: 529.14 | AK190: 3.57 | AL190: 552.89 | AM190: - | AN190: - | AO190: - | AP190: 134.3 | AQ190: -1.680729112 | AR190: -1.680765015 | AS190: -2.665132336 | AT190: 0 | AU190: 0 | AV190: 0 | AW190: -1.155501264 | AX190: 0 | AY190: -3.081336705 | AZ190: 0 | BA190: 0 | BB190: 0 | BC190: 0
A191: 578 | B191: 2017 | C191: 0041 | D191: Corn | E191: SCO | F191: 05 | G191: Arkansas | H191: AR | I191: 083 | J191: Logan | M191: 016 | N191: Grain | O191: 003 | P191: Non-Irrigated | Q191: 997 | R191: No Commodity Type Specified | S191: 997 | T191: No Class Specified | U191: 997 | V191: No Subclass Specified | W191: 016 | X191: Grain | Y191: 003 | Z191: Non-Irrigated | AA191: 997 | AB191: No Cropping Practice Specified | AC191: 997 | AD191: No Organic Practice Specified | AE191: 997 | AF191: No Interval Specified | AG191: 69 | AH191: 106.66 | AI191: 3.94 | AJ191: 271.86 | AK191: 3.57 | AL191: 380.78 | AM191: - | AN191: - | AO191: - | AP191: 69 | AQ191: -4.914976291 | AR191: -4.914976291 | AS191: -6.234519104 | AT191: 0 | AU191: 0 | AV191: 0 | AW191: -3.3790462 | AX191: 0 | AY191: -9.010789867 | AZ191: 0 | BA191: 0 | BB191: 0 | BC191: 0
A192: 583 | B192: 2017 | C192: 0041 | D192: Corn | E192: SCO | F192: 05 | G192: Arkansas | H192: AR | I192: 085 | J192: Lonoke | M192: 016 | N192: Grain | O192: 002 | P192: Irrigated | Q192: 997 | R192: No Commodity Type Specified | S192: 997 | T192: No Class Specified | U192: 997 | V192: No Subclass Specified | W192: 016 | X192: Grain | Y192: 002 | Z192: Irrigated | AA192: 997 | AB192: No Cropping Practice Specified | AC192: 997 | AD192: No Organic Practice Specified | AE192: 997 | AF192: No Interval Specified | AG192: 187.2 | AH192: 191.78 | AI192: 3.94 | AJ192: 737.57 | AK192: 3.57 | AL192: 684.65 | AM192: - | AN192: - | AO192: - | AP192: 187.2 | AQ192: -0.6204854086 | AR192: -0.6204625262 | AS192: -1.495143745 | AT192: 0 | AU192: 0 | AV192: 0 | AW192: -0.4265837184 | AX192: 0 | AY192: -1.137556582 | AZ192: 0 | BA192: 0 | BB192: 0 | BC192: 0
A193: 584 | B193: 2017 | C193: 0041 | D193: Corn | E193: SCO | F193: 05 | G193: Arkansas | H193: AR | I193: 085 | J193: Lonoke | M193: 016 | N193: Grain | O193: 003 | P193: Non-Irrigated | Q193: 997 | R193: No Commodity Type Specified | S193: 997 | T193: No Class Specified | U193: 997 | V193: No Subclass Specified | W193: 016 | X193: Grain | Y193: 003 | Z193: Non-Irrigated | AA193: 997 | AB193: No Cropping Practice Specified | AC193: 997 | AD193: No Organic Practice Specified | AE193: 997 | AF193: No Interval Specified | AG193: 115.5 | AH193: 83.68 | AI193: 3.94 | AJ193: 455.07 | AK193: 3.57 | AL193: 298.74 | AM193: P | AN193: P | AO193: P | AP193: 115.5 | AQ193: 1 | AR193: 1 | AS193: 1 | AT193: 50.0577 | AU193: 50.0577 | AV193: 50.0577 | AW193: 1 | AX193: 72.8112 | AY193: 1 | AZ193: 27.3042 | BA193: 0.2364 | BB193: 0.4334 | BC193: 0.6304
A194: 589 | B194: 2017 | C194: 0041 | D194: Corn | E194: SCO | F194: 05 | G194: Arkansas | H194: AR | I194: 091 | J194: Miller | M194: 016 | N194: Grain | O194: 002 | P194: Irrigated | Q194: 997 | R194: No Commodity Type Specified | S194: 997 | T194: No Class Specified | U194: 997 | V194: No Subclass Specified | W194: 016 | X194: Grain | Y194: 002 | Z194: Irrigated | AA194: 997 | AB194: No Cropping Practice Specified | AC194: 997 | AD194: No Organic Practice Specified | AE194: 997 | AF194: No Interval Specified | AG194: 151.7 | AH194: 190.27 | AI194: 3.94 | AJ194: 597.7 | AK194: 3.57 | AL194: 679.26 | AM194: - | AN194: - | AO194: - | AP194: =AG194 -> 151.7 | AQ194: -2.513274719 | AR194: -2.513240148 | AS194: -3.584107389 | AT194: =IF(AQ194>0,((AP194*MAX(AI194,AK194))*(0.86-0.75)*AQ194),0) -> 0 | AU194: =IF(AR194>0,(AR194*(AP194*AI194)*(0.86-0.75)),0) -> 0 | AV194: =IF(AS194>0,(AS194*(AP194*AI194)*(0.86-0.75)),0) -> 0 | AW194: -1.727876369 | AX194: 0 | AY194: -4.607670317 | AZ194: 0 | BA194: 0 | BB194: 0 | BC194: 0
A195: 590 | B195: 2017 | C195: 0041 | D195: Corn | E195: SCO | F195: 05 | G195: Arkansas | H195: AR | I195: 091 | J195: Miller | M195: 016 | N195: Grain | O195: 003 | P195: Non-Irrigated | Q195: 997 | R195: No Commodity Type Specified | S195: 997 | T195: No Class Specified | U195: 997 | V195: No Subclass Specified | W195: 016 | X195: Grain | Y195: 003 | Z195: Non-Irrigated | AA195: 997 | AB195: No Cropping Practice Specified | AC195: 997 | AD195: No Organic Practice Specified | AE195: 997 | AF195: No Interval Specified | AG195: 71.1 | AH195: 128.37 | AI195: 3.94 | AJ195: 280.13 | AK195: 3.57 | AL195: 458.28 | AM195: - | AN195: - | AO195: - | AP195: 71.1 | AQ195: =MIN(((0.86-(AL195/(AG195*MAX(AI195,AK195))))/(0.86-0.75)),1) -> -7.053921597 | AR195: =MIN((((0.86-(AL195/AJ195)))/(0.86-0.75)),1) -> -7.054133957 | AS195: =MIN(((0.86-(AH195/AG195))/(0.86-0.75)),1) -> -8.595320292 | AT195: 0 | AU195: 0 | AV195: 0 | AW195: =MIN(((0.86-(AL195/(AG195*MAX(AI195,AK195))))/(0.86-0.7)),1) -> -4.849571098 | AX195: =IF(AW195>0,((AP195*MAX(AI195,AK195))*(0.86-0.7)*AW195),0) -> 0 | AY195: =MIN(((0.86-(AL195/(AG195*MAX(AI195,AK195))))/(0.86-0.8)),1) -> -12.93218959 | AZ195: =IF(AY195>0,((AP195*MAX(AI195,AK195))*(0.86-0.8)*AY195),0) -> 0 | BA195: =IF(AY195>0,((MAX(AI195,AK195))*(0.86-0.8)*AY195),0) -> 0 | BB195: =IF(AQ195>0,((MAX(AI195,AK195))*(0.86-0.75)*AQ195),0) -> 0 | BC195: =IF(AW195>0,((MAX(AI195,AK195))*(0.86-0.7)*AW195),0) -> 0
A196: 595 | B196: 2017 | C196: 0041 | D196: Corn | E196: SCO | F196: 05 | G196: Arkansas | H196: AR | I196: 093 | J196: Mississippi | M196: 016 | N196: Grain | O196: 002 | P196: Irrigated | Q196: 997 | R196: No Commodity Type Specified | S196: 997 | T196: No Class Specified | U196: 997 | V196: No Subclass Specified | W196: 016 | X196: Grain | Y196: 002 | Z196: Irrigated | AA196: 997 | AB196: No Cropping Practice Specified | AC196: 997 | AD196: No Organic Practice Specified | AE196: 997 | AF196: No Interval Specified | AG196: 177.6 | AH196: 191.11 | AI196: 3.94 | AJ196: 699.74 | AK196: 3.57 | AL196: 682.26 | AM196: - | AN196: - | AO196: - | AP196: 177.6 | AQ196: -1.045579266 | AR196: -1.045629935 | AS196: -1.964271089 | AT196: 0 | AU196: 0 | AV196: 0 | AW196: -0.7188357456 | AX196: 0 | AY196: -1.916895322 | AZ196: 0 | BA196: 0 | BB196: 0 | BC196: 0
A197: 596 | B197: 2017 | C197: 0041 | D197: Corn | E197: SCO | F197: 05 | G197: Arkansas | H197: AR | I197: 093 | J197: Mississippi | M197: 016 | N197: Grain | O197: 003 | P197: Non-Irrigated | Q197: 997 | R197: No Commodity Type Specified | S197: 997 | T197: No Class Specified | U197: 997 | V197: No Subclass Specified | W197: 016 | X197: Grain | Y197: 003 | Z197: Non-Irrigated | AA197: 997 | AB197: No Cropping Practice Specified | AC197: 997 | AD197: No Organic Practice Specified | AE197: 997 | AF197: No Interval Specified | AG197: 137.5 | AH197: 171.96 | AI197: 3.94 | AJ197: 541.75 | AK197: 3.57 | AL197: 613.9 | AM197: - | AN197: - | AO197: - | AP197: 137.5 | AQ197: -2.483450099 | AR197: -2.483450099 | AS197: -3.55107438 | AT197: 0 | AU197: 0 | AV197: 0 | AW197: -1.707371943 | AX197: 0 | AY197: -4.552991847 | AZ197: 0 | BA197: 0 | BB197: 0 | BC197: 0
A198: 601 | B198: 2017 | C198: 0041 | D198: Corn | E198: SCO | F198: 05 | G198: Arkansas | H198: AR | I198: 095 | J198: Monroe | M198: 016 | N198: Grain | O198: 002 | P198: Irrigated | Q198: 997 | R198: No Commodity Type Specified | S198: 997 | T198: No Class Specified | U198: 997 | V198: No Subclass Specified | W198: 016 | X198: Grain | Y198: 002 | Z198: Irrigated | AA198: 997 | AB198: No Cropping Practice Specified | AC198: 997 | AD198: No Organic Practice Specified | AE198: 997 | AF198: No Interval Specified | AG198: 168.5 | AH198: 181.06 | AI198: 3.94 | AJ198: 663.89 | AK198: 3.57 | AL198: 646.38 | AM198: - | AN198: - | AO198: - | AP198: 168.5 | AQ198: -1.032955898 | AR198: -1.032955898 | AS198: -1.950364176 | AT198: 0 | AU198: 0 | AV198: 0 | AW198: -0.7101571797 | AX198: 0 | AY198: -1.893752479 | AZ198: 0 | BA198: 0 | BB198: 0 | BC198: 0
A199: 602 | B199: 2017 | C199: 0041 | D199: Corn | E199: SCO | F199: 05 | G199: Arkansas | H199: AR | I199: 095 | J199: Monroe | M199: 016 | N199: Grain | O199: 003 | P199: Non-Irrigated | Q199: 997 | R199: No Commodity Type Specified | S199: 997 | T199: No Class Specified | U199: 997 | V199: No Subclass Specified | W199: 016 | X199: Grain | Y199: 003 | Z199: Non-Irrigated | AA199: 997 | AB199: No Cropping Practice Specified | AC199: 997 | AD199: No Organic Practice Specified | AE199: 997 | AF199: No Interval Specified | AG199: 105.9 | AH199: 126.76 | AI199: 3.94 | AJ199: 417.25 | AK199: 3.57 | AL199: 452.53 | AM199: - | AN199: - | AO199: - | AP199: 105.9 | AQ199: -2.041491111 | AR199: -2.04139659 | AS199: -3.063438922 | AT199: 0 | AU199: 0 | AV199: 0 | AW199: -1.403525139 | AX199: 0 | AY199: -3.742733703 | AZ199: 0 | BA199: 0 | BB199: 0 | BC199: 0
A200: 607 | B200: 2017 | C200: 0041 | D200: Corn | E200: SCO | F200: 05 | G200: Arkansas | H200: AR | I200: 105 | J200: Perry | M200: 016 | N200: Grain | O200: 002 | P200: Irrigated | Q200: 997 | R200: No Commodity Type Specified | S200: 997 | T200: No Class Specified | U200: 997 | V200: No Subclass Specified | W200: 016 | X200: Grain | Y200: 002 | Z200: Irrigated | AA200: 997 | AB200: No Cropping Practice Specified | AC200: 997 | AD200: No Organic Practice Specified | AE200: 997 | AF200: No Interval Specified | AG200: 155.6 | AH200: 161.82 | AI200: 3.94 | AJ200: 613.06 | AK200: 3.57 | AL200: 577.7 | AM200: - | AN200: - | AO200: - | AP200: 155.6 | AQ200: -0.7483270321 | AR200: -0.7483829256 | AS200: -1.636129937 | AT200: 0 | AU200: 0 | AV200: 0 | AW200: -0.5144748346 | AX200: 0 | AY200: -1.371932892 | AZ200: 0 | BA200: 0 | BB200: 0 | BC200: 0
... 925 more rows

Sheet ForMap3 (hidden)
A1: ID | B1: Commodity Year | C1: Commodity Code | D1: Commodity Name | E1: Insurance Policy Name | F1: State Code | G1: State Name | H1: State Abbreviation | I1: County Code | J1: County Name | K1: Insurance Option Code | L1: Insurance Option Name | M1: Type Code | N1: Type Name | O1: Practice Code | P1: Practice Name | Q1: Commodity Type Code | R1: Commodity Type Name | S1: Class Code | T1: Class Name | U1: Sub Class Code | V1: Sub Class Name | W1: Intended Use Code | X1: Intended Use Name | Y1: Irrigation Practice Code | Z1: Irrigation Practice Name | AA1: Cropping Practice Code | AB1: Cropping Practice Name | AC1: Organic Practice Code | AD1: Organic Practice Name | AE1: Interval Code | AF1: Interval Name | AG1: Expected County Yield | AH1: Final County Yield | AI1: Projected Price | AJ1: Expected Revenue Amount | AK1: Harvest Price | AL1: Final Revenue Amount | AM1: Supp Cov Opt - Yield Prot (31) | AN1: Supp Cov Opt - Rev Prot (32) | AO1: Supp Cov Opt - Rev Prot with Harv Price Excl (33) | AP1: Individual APH (bu.) | AQ1: RP County Payment Rate @75% | AR1: RP-HPE County Payment Rate @75% | AS1: YP County Payment Rate @75% | AT1: RP Payment @75% | AU1: RP-HPE Payment @75% | AV1: YP Payment @75% | AW1: RP County Payment Rate @70% | AX1: RP Payment @70% | AY1: RP County Payment Rate @80% | AZ1: RP Payment @80% | BA1: RP Payment Factor @80% | BB1: RP Payment Factor @75% | BC1: RP Payment Factor @70%
A2: 1 | B2: 2017 | C2: 0041 | D2: Corn | E2: SCO | F2: 01 | G2: Alabama | H2: AL | I2: 001 | J2: Autauga | M2: 016 | N2: Grain | O2: 002 | P2: Irrigated | Q2: 997 | R2: No Commodity Type Specified | S2: 997 | T2: No Class Specified | U2: 997 | V2: No Subclass Specified | W2: 016 | X2: Grain | Y2: 002 | Z2: Irrigated | AA2: 997 | AB2: No Cropping Practice Specified | AC2: 997 | AD2: No Organic Practice Specified | AE2: 997 | AF2: No Interval Specified | AG2: 172.7 | AH2: 193.28 | AI2: 3.87 | AJ2: 668.35 | AK2: 3.53 | AL2: 682.28 | AM2: - | AN2: - | AO2: - | AP2: 172.7 | AQ2: -1.462217277 | AR2: -1.462203391 | AS2: -2.356056219 | AT2: 0 | AU2: 0 | AV2: 0 | AW2: -1.005274378 | AX2: 0 | AY2: -2.680731674 | AZ2: 0 | BA2: 0 | BB2: 0 | BC2: 0
A3: 2 | B3: 2017 | C3: 0041 | D3: Corn | E3: SCO | F3: 01 | G3: Alabama | H3: AL | I3: 001 | J3: Autauga | M3: 016 | N3: Grain | O3: 003 | P3: Non-Irrigated | Q3: 997 | R3: No Commodity Type Specified | S3: 997 | T3: No Class Specified | U3: 997 | V3: No Subclass Specified | W3: 016 | X3: Grain | Y3: 003 | Z3: Non-Irrigated | AA3: 997 | AB3: No Cropping Practice Specified | AC3: 997 | AD3: No Organic Practice Specified | AE3: 997 | AF3: No Interval Specified | AG3: 93.3 | AH3: 131.91 | AI3: 3.87 | AJ3: 361.07 | AK3: 3.53 | AL3: 465.64 | AM3: - | AN3: - | AO3: - | AP3: 93.3 | AQ3: -3.90552601 | AR3: -3.905558479 | AS3: -5.034785151 | AT3: 0 | AU3: 0 | AV3: 0 | AW3: -2.685049132 | AX3: 0 | AY3: -7.160131018 | AZ3: 0 | BA3: 0 | BB3: 0 | BC3: 0
A4: 7 | B4: 2017 | C4: 0041 | D4: Corn | E4: SCO | F4: 01 | G4: Alabama | H4: AL | I4: 003 | J4: Baldwin | M4: 016 | N4: Grain | O4: 002 | P4: Irrigated | Q4: 997 | R4: No Commodity Type Specified | S4: 997 | T4: No Class Specified | U4: 997 | V4: No Subclass Specified | W4: 016 | X4: Grain | Y4: 002 | Z4: Irrigated | AA4: 997 | AB4: No Cropping Practice Specified | AC4: 997 | AD4: No Organic Practice Specified | AE4: 997 | AF4: No Interval Specified | AG4: 124.4 | AH4: 169.57 | AI4: 3.87 | AJ4: 481.43 | AK4: 3.53 | AL4: 598.58 | AM4: - | AN4: - | AO4: - | AP4: 124.4 | AQ4: -3.484933837 | AR4: -3.484886881 | AS4: -4.573662672 | AT4: 0 | AU4: 0 | AV4: 0 | AW4: -2.395892013 | AX4: 0 | AY4: -6.389045368 | AZ4: 0 | BA4: 0 | BB4: 0 | BC4: 0
A5: 8 | B5: 2017 | C5: 0041 | D5: Corn | E5: SCO | F5: 01 | G5: Alabama | H5: AL | I5: 003 | J5: Baldwin | M5: 016 | N5: Grain | O5: 003 | P5: Non-Irrigated | Q5: 997 | R5: No Commodity Type Specified | S5: 997 | T5: No Class Specified | U5: 997 | V5: No Subclass Specified | W5: 016 | X5: Grain | Y5: 003 | Z5: Non-Irrigated | AA5: 997 | AB5: No Cropping Practice Specified | AC5: 997 | AD5: No Organic Practice Specified | AE5: 997 | AF5: No Interval Specified | AG5: 124.4 | AH5: 169.57 | AI5: 3.87 | AJ5: 481.43 | AK5: 3.53 | AL5: 598.58 | AM5: - | AN5: - | AO5: - | AP5: 124.4 | AQ5: -3.484933837 | AR5: -3.484886881 | AS5: -4.573662672 | AT5: 0 | AU5: 0 | AV5: 0 | AW5: -2.395892013 | AX5: 0 | AY5: -6.389045368 | AZ5: 0 | BA5: 0 | BB5: 0 | BC5: 0
A6: 13 | B6: 2017 | C6: 0041 | D6: Corn | E6: SCO | F6: 01 | G6: Alabama | H6: AL | I6: 005 | J6: Barbour | M6: 016 | N6: Grain | O6: 002 | P6: Irrigated | Q6: 997 | R6: No Commodity Type Specified | S6: 997 | T6: No Class Specified | U6: 997 | V6: No Subclass Specified | W6: 016 | X6: Grain | Y6: 002 | Z6: Irrigated | AA6: 997 | AB6: No Cropping Practice Specified | AC6: 997 | AD6: No Organic Practice Specified | AE6: 997 | AF6: No Interval Specified | AG6: 191.9 | AH6: 169.46 | AI6: 3.87 | AJ6: 742.65 | AK6: 3.53 | AL6: 598.19 | AM6: - | AN6: P | AO6: P | AP6: 191.9 | AQ6: 0.4956625406 | AR6: 0.4956329606 | AS6: -0.2096735989 | AT6: 40.49158 | AU6: 40.48916356 | AV6: 0 | AW6: 0.3407679966 | AX6: 40.49158 | AY6: 0.9087146577 | AZ6: 40.49158 | BA6: 0.2110035435 | BB6: 0.2110035435 | BC6: 0.2110035435
A7: 14 | B7: 2017 | C7: 0041 | D7: Corn | E7: SCO | F7: 01 | G7: Alabama | H7: AL | I7: 005 | J7: Barbour | M7: 016 | N7: Grain | O7: 003 | P7: Non-Irrigated | Q7: 997 | R7: No Commodity Type Specified | S7: 997 | T7: No Class Specified | U7: 997 | V7: No Subclass Specified | W7: 016 | X7: Grain | Y7: 003 | Z7: Non-Irrigated | AA7: 997 | AB7: No Cropping Practice Specified | AC7: 997 | AD7: No Organic Practice Specified | AE7: 997 | AF7: No Interval Specified | AG7: 63 | AH7: 118.33 | AI7: 3.87 | AJ7: 243.81 | AK7: 3.53 | AL7: 417.7 | AM7: - | AN7: - | AO7: - | AP7: 63 | AQ7: -7.756539183 | AR7: -7.756539183 | AS7: -9.256854257 | AT7: 0 | AU7: 0 | AV7: 0 | AW7: -5.332620688 | AX7: 0 | AY7: -14.22032184 | AZ7: 0 | BA7: 0 | BB7: 0 | BC7: 0
A8: 19 | B8: 2017 | C8: 0041 | D8: Corn | E8: SCO | F8: 01 | G8: Alabama | H8: AL | I8: 007 | J8: Bibb | M8: 016 | N8: Grain | O8: 002 | P8: Irrigated | Q8: 997 | R8: No Commodity Type Specified | S8: 997 | T8: No Class Specified | U8: 997 | V8: No Subclass Specified | W8: 016 | X8: Grain | Y8: 002 | Z8: Irrigated | AA8: 997 | AB8: No Cropping Practice Specified | AC8: 997 | AD8: No Organic Practice Specified | AE8: 997 | AF8: No Interval Specified | AG8: 180.3 | AH8: 205.76 | AI8: 3.87 | AJ8: 697.76 | AK8: 3.53 | AL8: 726.33 | AM8: - | AN8: - | AO8: - | AP8: 180.3 | AQ8: -1.644943808 | AR8: -1.64495737 | AS8: -2.556446327 | AT8: 0 | AU8: 0 | AV8: 0 | AW8: -1.130898868 | AX8: 0 | AY8: -3.015730315 | AZ8: 0 | BA8: 0 | BB8: 0 | BC8: 0
A9: 20 | B9: 2017 | C9: 0041 | D9: Corn | E9: SCO | F9: 01 | G9: Alabama | H9: AL | I9: 007 | J9: Bibb | M9: 016 | N9: Grain | O9: 003 | P9: Non-Irrigated | Q9: 997 | R9: No Commodity Type Specified | S9: 997 | T9: No Class Specified | U9: 997 | V9: No Subclass Specified | W9: 016 | X9: Grain | Y9: 003 | Z9: Non-Irrigated | AA9: 997 | AB9: No Cropping Practice Specified | AC9: 997 | AD9: No Organic Practice Specified | AE9: 997 | AF9: No Interval Specified | AG9: 87.5 | AH9: 135.13 | AI9: 3.87 | AJ9: 338.63 | AK9: 3.53 | AL9: 477.01 | AM9: - | AN9: - | AO9: - | AP9: 87.5 | AQ9: -4.9878855 | AR9: -4.987696413 | AS9: -6.221298701 | AT9: 0 | AU9: 0 | AV9: 0 | AW9: -3.429171281 | AX9: 0 | AY9: -9.144456749 | AZ9: 0 | BA9: 0 | BB9: 0 | BC9: 0
A10: 25 | B10: 2017 | C10: 0041 | D10: Corn | E10: SCO | F10: 01 | G10: Alabama | H10: AL | I10: 009 | J10: Blount | M10: 016 | N10: Grain | O10: 002 | P10: Irrigated | Q10: 997 | R10: No Commodity Type Specified | S10: 997 | T10: No Class Specified | U10: 997 | V10: No Subclass Specified | W10: 016 | X10: Grain | Y10: 002 | Z10: Irrigated | AA10: 997 | AB10: No Cropping Practice Specified | AC10: 997 | AD10: No Organic Practice Specified | AE10: 997 | AF10: No Interval Specified | AG10: 195.6 | AH10: 229.98 | AI10: 3.87 | AJ10: 756.97 | AK10: 3.53 | AL10: 811.83 | AM10: - | AN10: - | AO10: - | AP10: 195.6 | AQ10: -1.931548327 | AR10: -1.931574087 | AS10: -2.87060792 | AT10: 0 | AU10: 0 | AV10: 0 | AW10: -1.327939475 | AX10: 0 | AY10: -3.541171932 | AZ10: 0 | BA10: 0 | BB10: 0 | BC10: 0
A11: 26 | B11: 2017 | C11: 0041 | D11: Corn | E11: SCO | F11: 01 | G11: Alabama | H11: AL | I11: 009 | J11: Blount | M11: 016 | N11: Grain | O11: 003 | P11: Non-Irrigated | Q11: 997 | R11: No Commodity Type Specified | S11: 997 | T11: No Class Specified | U11: 997 | V11: No Subclass Specified | W11: 016 | X11: Grain | Y11: 003 | Z11: Non-Irrigated | AA11: 997 | AB11: No Cropping Practice Specified | AC11: 997 | AD11: No Organic Practice Specified | AE11: 997 | AF11: No Interval Specified | AG11: 120.5 | AH11: 167.38 | AI11: 3.87 | AJ11: 466.34 | AK11: 3.53 | AL11: 590.85 | AM11: - | AN11: - | AO11: - | AP11: 120.5 | AQ11: -3.700069303 | AR11: -3.699945806 | AS11: -4.809505847 | AT11: 0 | AU11: 0 | AV11: 0 | AW11: -2.543797645 | AX11: 0 | AY11: -6.783460388 | AZ11: 0 | BA11: 0 | BB11: 0 | BC11: 0
A12: 31 | B12: 2017 | C12: 0041 | D12: Corn | E12: SCO | F12: 01 | G12: Alabama | H12: AL | I12: 011 | J12: Bullock | M12: 016 | N12: Grain | O12: 002 | P12: Irrigated | Q12: 997 | R12: No Commodity Type Specified | S12: 997 | T12: No Class Specified | U12: 997 | V12: No Subclass Specified | W12: 016 | X12: Grain | Y12: 002 | Z12: Irrigated | AA12: 997 | AB12: No Cropping Practice Specified | AC12: 997 | AD12: No Organic Practice Specified | AE12: 997 | AF12: No Interval Specified | AG12: 175.2 | AH12: 187.71 | AI12: 3.87 | AJ12: 678.02 | AK12: 3.53 | AL12: 662.62 | AM12: - | AN12: - | AO12: - | AP12: 175.2 | AQ12: -1.066191275 | AR12: -1.066243688 | AS12: -1.921855542 | AT12: 0 | AU12: 0 | AV12: 0 | AW12: -0.7330065012 | AX12: 0 | AY12: -1.954684003 | AZ12: 0 | BA12: 0 | BB12: 0 | BC12: 0
A13: 32 | B13: 2017 | C13: 0041 | D13: Corn | E13: SCO | F13: 01 | G13: Alabama | H13: AL | I13: 011 | J13: Bullock | M13: 016 | N13: Grain | O13: 003 | P13: Non-Irrigated | Q13: 997 | R13: No Commodity Type Specified | S13: 997 | T13: No Class Specified | U13: 997 | V13: No Subclass Specified | W13: 016 | X13: Grain | Y13: 003 | Z13: Non-Irrigated | AA13: 997 | AB13: No Cropping Practice Specified | AC13: 997 | AD13: No Organic Practice Specified | AE13: 997 | AF13: No Interval Specified | AG13: 73.7 | AH13: 136.26 | AI13: 3.87 | AJ13: 285.22 | AK13: 3.53 | AL13: 481 | AM13: - | AN13: - | AO13: - | AP13: 73.7 | AQ13: -7.512940136 | AR13: -7.512886384 | AS13: -8.989515234 | AT13: 0 | AU13: 0 | AV13: 0 | AW13: -5.165146344 | AX13: 0 | AY13: -13.77372358 | AZ13: 0 | BA13: 0 | BB13: 0 | BC13: 0
A14: 37 | B14: 2017 | C14: 0041 | D14: Corn | E14: SCO | F14: 01 | G14: Alabama | H14: AL | I14: 013 | J14: Butler | M14: 016 | N14: Grain | O14: 002 | P14: Irrigated | Q14: 997 | R14: No Commodity Type Specified | S14: 997 | T14: No Class Specified | U14: 997 | V14: No Subclass Specified | W14: 016 | X14: Grain | Y14: 002 | Z14: Irrigated | AA14: 997 | AB14: No Cropping Practice Specified | AC14: 997 | AD14: No Organic Practice Specified | AE14: 997 | AF14: No Interval Specified | AG14: 74.8 | AH14: 140.72 | AI14: 3.87 | AJ14: 289.48 | AK14: 3.53 | AL14: 496.74 | AM14: - | AN14: - | AO14: - | AP14: 74.8 | AQ14: -7.781792556 | AR14: -7.781576997 | AS14: -9.28439475 | AT14: 0 | AU14: 0 | AV14: 0 | AW14: -5.349982382 | AX14: 0 | AY14: -14.26661969 | AZ14: 0 | BA14: 0 | BB14: 0 | BC14: 0
A15: 38 | B15: 2017 | C15: 0041 | D15: Corn | E15: SCO | F15: 01 | G15: Alabama | H15: AL | I15: 013 | J15: Butler | M15: 016 | N15: Grain | O15: 003 | P15: Non-Irrigated | Q15: 997 | R15: No Commodity Type Specified | S15: 997 | T15: No Class Specified | U15: 997 | V15: No Subclass Specified | W15: 016 | X15: Grain | Y15: 003 | Z15: Non-Irrigated | AA15: 997 | AB15: No Cropping Practice Specified | AC15: 997 | AD15: No Organic Practice Specified | AE15: 997 | AF15: No Interval Specified | AG15: 74.8 | AH15: 140.72 | AI15: 3.87 | AJ15: 289.48 | AK15: 3.53 | AL15: 496.74 | AM15: - | AN15: - | AO15: - | AP15: 74.8 | AQ15: -7.781792556 | AR15: -7.781576997 | AS15: -9.28439475 | AT15: 0 | AU15: 0 | AV15: 0 | AW15: -5.349982382 | AX15: 0 | AY15: -14.26661969 | AZ15: 0 | BA15: 0 | BB15: 0 | BC15: 0
A16: 43 | B16: 2017 | C16: 0041 | D16: Corn | E16: SCO | F16: 01 | G16: Alabama | H16: AL | I16: 015 | J16: Calhoun | M16: 016 | N16: Grain | O16: 002 | P16: Irrigated | Q16: 997 | R16: No Commodity Type Specified | S16: 997 | T16: No Class Specified | U16: 997 | V16: No Subclass Specified | W16: 016 | X16: Grain | Y16: 002 | Z16: Irrigated | AA16: 997 | AB16: No Cropping Practice Specified | AC16: 997 | AD16: No Organic Practice Specified | AE16: 997 | AF16: No Interval Specified | AG16: 100.2 | AH16: 154.33 | AI16: 3.87 | AJ16: 387.77 | AK16: 3.53 | AL16: 544.78 | AM16: - | AN16: - | AO16: - | AP16: 100.2 | AQ16: -4.953549795 | AR16: -4.95368154 | AS16: -6.18381419 | AT16: 0 | AU16: 0 | AV16: 0 | AW16: -3.405565484 | AX16: 0 | AY16: -9.081507957 | AZ16: 0 | BA16: 0 | BB16: 0 | BC16: 0
A17: 44 | B17: 2017 | C17: 0041 | D17: Corn | E17: SCO | F17: 01 | G17: Alabama | H17: AL | I17: 015 | J17: Calhoun | M17: 016 | N17: Grain | O17: 003 | P17: Non-Irrigated | Q17: 997 | R17: No Commodity Type Specified | S17: 997 | T17: No Class Specified | U17: 997 | V17: No Subclass Specified | W17: 016 | X17: Grain | Y17: 003 | Z17: Non-Irrigated | AA17: 997 | AB17: No Cropping Practice Specified | AC17: 997 | AD17: No Organic Practice Specified | AE17: 997 | AF17: No Interval Specified | AG17: 100.2 | AH17: 154.33 | AI17: 3.87 | AJ17: 387.77 | AK17: 3.53 | AL17: 544.78 | AM17: - | AN17: - | AO17: - | AP17: 100.2 | AQ17: -4.953549795 | AR17: -4.95368154 | AS17: -6.18381419 | AT17: 0 | AU17: 0 | AV17: 0 | AW17: -3.405565484 | AX17: 0 | AY17: -9.081507957 | AZ17: 0 | BA17: 0 | BB17: 0 | BC17: 0
A18: 49 | B18: 2017 | C18: 0041 | D18: Corn | E18: SCO | F18: 01 | G18: Alabama | H18: AL | I18: 017 | J18: Chambers | M18: 016 | N18: Grain | O18: 002 | P18: Irrigated | Q18: 997 | R18: No Commodity Type Specified | S18: 997 | T18: No Class Specified | U18: 997 | V18: No Subclass Specified | W18: 016 | X18: Grain | Y18: 002 | Z18: Irrigated | AA18: 997 | AB18: No Cropping Practice Specified | AC18: 997 | AD18: No Organic Practice Specified | AE18: 997 | AF18: No Interval Specified | AG18: 178.2 | AH18: 198.76 | AI18: 3.87 | AJ18: 689.63 | AK18: 3.53 | AL18: 701.62 | AM18: - | AN18: - | AO18: - | AP18: 178.2 | AQ18: -1.430729396 | AR18: -1.430783042 | AS18: -2.321599837 | AT18: 0 | AU18: 0 | AV18: 0 | AW18: -0.9836264598 | AX18: 0 | AY18: -2.623003893 | AZ18: 0 | BA18: 0 | BB18: 0 | BC18: 0
A19: 50 | B19: 2017 | C19: 0041 | D19: Corn | E19: SCO | F19: 01 | G19: Alabama | H19: AL | I19: 017 | J19: Chambers | M19: 016 | N19: Grain | O19: 003 | P19: Non-Irrigated | Q19: 997 | R19: No Commodity Type Specified | S19: 997 | T19: No Class Specified | U19: 997 | V19: No Subclass Specified | W19: 016 | X19: Grain | Y19: 003 | Z19: Non-Irrigated | AA19: 997 | AB19: No Cropping Practice Specified | AC19: 997 | AD19: No Organic Practice Specified | AE19: 997 | AF19: No Interval Specified | AG19: 99.5 | AH19: 146.05 | AI19: 3.87 | AJ19: 385.07 | AK19: 3.53 | AL19: 515.56 | AM19: - | AN19: - | AO19: - | AP19: 99.5 | AQ19: -4.35355306 | AR19: -4.353395014 | AS19: -5.525810873 | AT19: 0 | AU19: 0 | AV19: 0 | AW19: -2.993067729 | AX19: 0 | AY19: -7.981513944 | AZ19: 0 | BA19: 0 | BB19: 0 | BC19: 0
A20: 55 | B20: 2017 | C20: 0041 | D20: Corn | E20: SCO | F20: 01 | G20: Alabama | H20: AL | I20: 019 | J20: Cherokee | M20: 016 | N20: Grain | O20: 002 | P20: Irrigated | Q20: 997 | R20: No Commodity Type Specified | S20: 997 | T20: No Class Specified | U20: 997 | V20: No Subclass Specified | W20: 016 | X20: Grain | Y20: 002 | Z20: Irrigated | AA20: 997 | AB20: No Cropping Practice Specified | AC20: 997 | AD20: No Organic Practice Specified | AE20: 997 | AF20: No Interval Specified | AG20: 121.2 | AH20: 150.51 | AI20: 3.87 | AJ20: 469.04 | AK20: 3.53 | AL20: 531.3 | AM20: - | AN20: - | AO20: - | AP20: 121.2 | AQ20: -2.479359564 | AR20: -2.479447382 | AS20: -3.47119712 | AT20: 0 | AU20: 0 | AV20: 0 | AW20: -1.7045597 | AX20: 0 | AY20: -4.545492534 | AZ20: 0 | BA20: 0 | BB20: 0 | BC20: 0
A21: 56 | B21: 2017 | C21: 0041 | D21: Corn | E21: SCO | F21: 01 | G21: Alabama | H21: AL | I21: 019 | J21: Cherokee | M21: 016 | N21: Grain | O21: 003 | P21: Non-Irrigated | Q21: 997 | R21: No Commodity Type Specified | S21: 997 | T21: No Class Specified | U21: 997 | V21: No Subclass Specified | W21: 016 | X21: Grain | Y21: 003 | Z21: Non-Irrigated | AA21: 997 | AB21: No Cropping Practice Specified | AC21: 997 | AD21: No Organic Practice Specified | AE21: 997 | AF21: No Interval Specified | AG21: 121.2 | AH21: 150.51 | AI21: 3.87 | AJ21: 469.04 | AK21: 3.53 | AL21: 531.3 | AM21: - | AN21: - | AO21: - | AP21: 121.2 | AQ21: -2.479359564 | AR21: -2.479447382 | AS21: -3.47119712 | AT21: 0 | AU21: 0 | AV21: 0 | AW21: -1.7045597 | AX21: 0 | AY21: -4.545492534 | AZ21: 0 | BA21: 0 | BB21: 0 | BC21: 0
A22: 61 | B22: 2017 | C22: 0041 | D22: Corn | E22: SCO | F22: 01 | G22: Alabama | H22: AL | I22: 021 | J22: Chilton | M22: 016 | N22: Grain | O22: 002 | P22: Irrigated | Q22: 997 | R22: No Commodity Type Specified | S22: 997 | T22: No Class Specified | U22: 997 | V22: No Subclass Specified | W22: 016 | X22: Grain | Y22: 002 | Z22: Irrigated | AA22: 997 | AB22: No Cropping Practice Specified | AC22: 997 | AD22: No Organic Practice Specified | AE22: 997 | AF22: No Interval Specified | AG22: 178.1 | AH22: 201.75 | AI22: 3.87 | AJ22: 689.25 | AK22: 3.53 | AL22: 712.18 | AM22: - | AN22: - | AO22: - | AP22: 178.1 | AQ22: -1.57520493 | AR22: -1.575164045 | AS22: -2.479914246 | AT22: 0 | AU22: 0 | AV22: 0 | AW22: -1.08295339 | AX22: 0 | AY22: -2.887875706 | AZ22: 0 | BA22: 0 | BB22: 0 | BC22: 0
A23: 62 | B23: 2017 | C23: 0041 | D23: Corn | E23: SCO | F23: 01 | G23: Alabama | H23: AL | I23: 021 | J23: Chilton | M23: 016 | N23: Grain | O23: 003 | P23: Non-Irrigated | Q23: 997 | R23: No Commodity Type Specified | S23: 997 | T23: No Class Specified | U23: 997 | V23: No Subclass Specified | W23: 016 | X23: Grain | Y23: 003 | Z23: Non-Irrigated | AA23: 997 | AB23: No Cropping Practice Specified | AC23: 997 | AD23: No Organic Practice Specified | AE23: 997 | AF23: No Interval Specified | AG23: 88.7 | AH23: 128.37 | AI23: 3.87 | AJ23: 343.27 | AK23: 3.53 | AL23: 453.15 | AM23: - | AN23: - | AO23: - | AP23: 88.7 | AQ23: -4.18274298 | AR23: -4.182708019 | AS23: -5.338526186 | AT23: 0 | AU23: 0 | AV23: 0 | AW23: -2.875635799 | AX23: 0 | AY23: -7.66836213 | AZ23: 0 | BA23: 0 | BB23: 0 | BC23: 0
A24: 67 | B24: 2017 | C24: 0041 | D24: Corn | E24: SCO | F24: 01 | G24: Alabama | H24: AL | I24: 023 | J24: Choctaw | M24: 016 | N24: Grain | O24: 002 | P24: Irrigated | Q24: 997 | R24: No Commodity Type Specified | S24: 997 | T24: No Class Specified | U24: 997 | V24: No Subclass Specified | W24: 016 | X24: Grain | Y24: 002 | Z24: Irrigated | AA24: 997 | AB24: No Cropping Practice Specified | AC24: 997 | AD24: No Organic Practice Specified | AE24: 997 | AF24: No Interval Specified | AG24: 175.1 | AH24: 193.34 | AI24: 3.87 | AJ24: 677.64 | AK24: 3.53 | AL24: 682.49 | AM24: - | AN24: - | AO24: - | AP24: 175.1 | AQ24: -1.337833195 | AR24: -1.33779266 | AS24: -2.219718602 | AT24: 0 | AU24: 0 | AV24: 0 | AW24: -0.9197603215 | AX24: 0 | AY24: -2.452694191 | AZ24: 0 | BA24: 0 | BB24: 0 | BC24: 0
A25: 68 | B25: 2017 | C25: 0041 | D25: Corn | E25: SCO | F25: 01 | G25: Alabama | H25: AL | I25: 023 | J25: Choctaw | M25: 016 | N25: Grain | O25: 003 | P25: Non-Irrigated | Q25: 997 | R25: No Commodity Type Specified | S25: 997 | T25: No Class Specified | U25: 997 | V25: No Subclass Specified | W25: 016 | X25: Grain | Y25: 003 | Z25: Non-Irrigated | AA25: 997 | AB25: No Cropping Practice Specified | AC25: 997 | AD25: No Organic Practice Specified | AE25: 997 | AF25: No Interval Specified | AG25: 131.6 | AH25: 155.77 | AI25: 3.87 | AJ25: 509.29 | AK25: 3.53 | AL25: 549.87 | AM25: - | AN25: - | AO25: - | AP25: 131.6 | AQ25: -1.997048309 | AR25: -1.997086854 | AS25: -2.9423874 | AT25: 0 | AU25: 0 | AV25: 0 | AW25: -1.372970712 | AX25: 0 | AY25: -3.661255233 | AZ25: 0 | BA25: 0 | BB25: 0 | BC25: 0
A26: 73 | B26: 2017 | C26: 0041 | D26: Corn | E26: SCO | F26: 01 | G26: Alabama | H26: AL | I26: 025 | J26: Clarke | M26: 016 | N26: Grain | O26: 002 | P26: Irrigated | Q26: 997 | R26: No Commodity Type Specified | S26: 997 | T26: No Class Specified | U26: 997 | V26: No Subclass Specified | W26: 016 | X26: Grain | Y26: 002 | Z26: Irrigated | AA26: 997 | AB26: No Cropping Practice Specified | AC26: 997 | AD26: No Organic Practice Specified | AE26: 997 | AF26: No Interval Specified | AG26: 176 | AH26: 192.45 | AI26: 3.87 | AJ26: 681.12 | AK26: 3.53 | AL26: 679.35 | AM26: - | AN26: - | AO26: - | AP26: 176 | AQ26: -1.249103082 | AR26: -1.249103082 | AS26: -2.122417355 | AT26: 0 | AU26: 0 | AV26: 0 | AW26: -0.8587583686 | AX26: 0 | AY26: -2.290022316 | AZ26: 0 | BA26: 0 | BB26: 0 | BC26: 0
A27: 74 | B27: 2017 | C27: 0041 | D27: Corn | E27: SCO | F27: 01 | G27: Alabama | H27: AL | I27: 025 | J27: Clarke | M27: 016 | N27: Grain | O27: 003 | P27: Non-Irrigated | Q27: 997 | R27: No Commodity Type Specified | S27: 997 | T27: No Class Specified | U27: 997 | V27: No Subclass Specified | W27: 016 | X27: Grain | Y27: 003 | Z27: Non-Irrigated | AA27: 997 | AB27: No Cropping Practice Specified | AC27: 997 | AD27: No Organic Practice Specified | AE27: 997 | AF27: No Interval Specified | AG27: 117.2 | AH27: 133.16 | AI27: 3.87 | AJ27: 453.56 | AK27: 3.53 | AL27: 470.05 | AM27: - | AN27: - | AO27: - | AP27: 117.2 | AQ27: -1.603160745 | AR27: -1.603243833 | AS27: -2.510704313 | AT27: 0 | AU27: 0 | AV27: 0 | AW27: -1.102173012 | AX27: 0 | AY27: -2.939128032 | AZ27: 0 | BA27: 0 | BB27: 0 | BC27: 0
A28: 79 | B28: 2017 | C28: 0041 | D28: Corn | E28: SCO | F28: 01 | G28: Alabama | H28: AL | I28: 027 | J28: Clay | M28: 016 | N28: Grain | O28: 002 | P28: Irrigated | Q28: 997 | R28: No Commodity Type Specified | S28: 997 | T28: No Class Specified | U28: 997 | V28: No Subclass Specified | W28: 016 | X28: Grain | Y28: 002 | Z28: Irrigated | AA28: 997 | AB28: No Cropping Practice Specified | AC28: 997 | AD28: No Organic Practice Specified | AE28: 997 | AF28: No Interval Specified | AG28: 178.2 | AH28: 198.76 | AI28: 3.87 | AJ28: 689.63 | AK28: 3.53 | AL28: 701.62 | AM28: - | AN28: - | AO28: - | AP28: 178.2 | AQ28: -1.430729396 | AR28: -1.430783042 | AS28: -2.321599837 | AT28: 0 | AU28: 0 | AV28: 0 | AW28: -0.9836264598 | AX28: 0 | AY28: -2.623003893 | AZ28: 0 | BA28: 0 | BB28: 0 | BC28: 0
A29: 80 | B29: 2017 | C29: 0041 | D29: Corn | E29: SCO | F29: 01 | G29: Alabama | H29: AL | I29: 027 | J29: Clay | M29: 016 | N29: Grain | O29: 003 | P29: Non-Irrigated | Q29: 997 | R29: No Commodity Type Specified | S29: 997 | T29: No Class Specified | U29: 997 | V29: No Subclass Specified | W29: 016 | X29: Grain | Y29: 003 | Z29: Non-Irrigated | AA29: 997 | AB29: No Cropping Practice Specified | AC29: 997 | AD29: No Organic Practice Specified | AE29: 997 | AF29: No Interval Specified | AG29: 110.3 | AH29: 145.23 | AI29: 3.87 | AJ29: 426.86 | AK29: 3.53 | AL29: 512.66 | AM29: - | AN29: - | AO29: - | AP29: 110.3 | AQ29: -3.099998701 | AR29: -3.100024279 | AS29: -4.151652518 | AT29: 0 | AU29: 0 | AV29: 0 | AW29: -2.131249107 | AX29: 0 | AY29: -5.683330952 | AZ29: 0 | BA29: 0 | BB29: 0 | BC29: 0
A30: 85 | B30: 2017 | C30: 0041 | D30: Corn | E30: SCO | F30: 01 | G30: Alabama | H30: AL | I30: 029 | J30: Cleburne | M30: 016 | N30: Grain | O30: 002 | P30: Irrigated | Q30: 997 | R30: No Commodity Type Specified | S30: 997 | T30: No Class Specified | U30: 997 | V30: No Subclass Specified | W30: 016 | X30: Grain | Y30: 002 | Z30: Irrigated | AA30: 997 | AB30: No Cropping Practice Specified | AC30: 997 | AD30: No Organic Practice Specified | AE30: 997 | AF30: No Interval Specified | AG30: 100.8 | AH30: 145.99 | AI30: 3.87 | AJ30: 390.1 | AK30: 3.53 | AL30: 515.34 | AM30: - | AN30: - | AO30: - | AP30: 100.8 | AQ30: -4.191449377 | AR30: -4.191326233 | AS30: -5.348304473 | AT30: 0 | AU30: 0 | AV30: 0 | AW30: -2.881621447 | AX30: 0 | AY30: -7.684323859 | AZ30: 0 | BA30: 0 | BB30: 0 | BC30: 0
A31: 86 | B31: 2017 | C31: 0041 | D31: Corn | E31: SCO | F31: 01 | G31: Alabama | H31: AL | I31: 029 | J31: Cleburne | M31: 016 | N31: Grain | O31: 003 | P31: Non-Irrigated | Q31: 997 | R31: No Commodity Type Specified | S31: 997 | T31: No Class Specified | U31: 997 | V31: No Subclass Specified | W31: 016 | X31: Grain | Y31: 003 | Z31: Non-Irrigated | AA31: 997 | AB31: No Cropping Practice Specified | AC31: 997 | AD31: No Organic Practice Specified | AE31: 997 | AF31: No Interval Specified | AG31: 100.8 | AH31: 145.99 | AI31: 3.87 | AJ31: 390.1 | AK31: 3.53 | AL31: 515.34 | AM31: - | AN31: - | AO31: - | AP31: 100.8 | AQ31: -4.191449377 | AR31: -4.191326233 | AS31: -5.348304473 | AT31: 0 | AU31: 0 | AV31: 0 | AW31: -2.881621447 | AX31: 0 | AY31: -7.684323859 | AZ31: 0 | BA31: 0 | BB31: 0 | BC31: 0
A32: 91 | B32: 2017 | C32: 0041 | D32: Corn | E32: SCO | F32: 01 | G32: Alabama | H32: AL | I32: 031 | J32: Coffee | M32: 016 | N32: Grain | O32: 002 | P32: Irrigated | Q32: 997 | R32: No Commodity Type Specified | S32: 997 | T32: No Class Specified | U32: 997 | V32: No Subclass Specified | W32: 016 | X32: Grain | Y32: 002 | Z32: Irrigated | AA32: 997 | AB32: No Cropping Practice Specified | AC32: 997 | AD32: No Organic Practice Specified | AE32: 997 | AF32: No Interval Specified | AG32: 175.6 | AH32: 181.66 | AI32: 3.87 | AJ32: 679.57 | AK32: 3.53 | AL32: 641.26 | AM32: - | AN32: - | AO32: - | AP32: 175.6 | AQ32: -0.7602121763 | AR32: -0.7602374229 | AS32: -1.586456823 | AT32: 0 | AU32: 0 | AV32: 0 | AW32: -0.5226458712 | AX32: 0 | AY32: -1.393722323 | AZ32: 0 | BA32: 0 | BB32: 0 | BC32: 0
A33: 92 | B33: 2017 | C33: 0041 | D33: Corn | E33: SCO | F33: 01 | G33: Alabama | H33: AL | I33: 031 | J33: Coffee | M33: 016 | N33: Grain | O33: 003 | P33: Non-Irrigated | Q33: 997 | R33: No Commodity Type Specified | S33: 997 | T33: No Class Specified | U33: 997 | V33: No Subclass Specified | W33: 016 | X33: Grain | Y33: 003 | Z33: Non-Irrigated | AA33: 997 | AB33: No Cropping Practice Specified | AC33: 997 | AD33: No Organic Practice Specified | AE33: 997 | AF33: No Interval Specified | AG33: 69.9 | AH33: 120.61 | AI33: 3.87 | AJ33: 270.51 | AK33: 3.53 | AL33: 425.75 | AM33: - | AN33: - | AO33: - | AP33: 69.9 | AQ33: -6.489650136 | AR33: -6.489808812 | AS33: -7.867863181 | AT33: 0 | AU33: 0 | AV33: 0 | AW33: -4.461634469 | AX33: 0 | AY33: -11.89769192 | AZ33: 0 | BA33: 0 | BB33: 0 | BC33: 0
A34: 97 | B34: 2017 | C34: 0041 | D34: Corn | E34: SCO | F34: 01 | G34: Alabama | H34: AL | I34: 033 | J34: Colbert | M34: 016 | N34: Grain | O34: 002 | P34: Irrigated | Q34: 997 | R34: No Commodity Type Specified | S34: 997 | T34: No Class Specified | U34: 997 | V34: No Subclass Specified | W34: 016 | X34: Grain | Y34: 002 | Z34: Irrigated | AA34: 997 | AB34: No Cropping Practice Specified | AC34: 997 | AD34: No Organic Practice Specified | AE34: 997 | AF34: No Interval Specified | AG34: 184.5 | AH34: 236.35 | AI34: 3.87 | AJ34: 714.02 | AK34: 3.53 | AL34: 834.32 | AM34: - | AN34: - | AO34: - | AP34: 184.5 | AQ34: -2.804462346 | AR34: -2.80438796 | AS34: -3.82754373 | AT34: 0 | AU34: 0 | AV34: 0 | AW34: -1.928067863 | AX34: 0 | AY34: -5.141514301 | AZ34: 0 | BA34: 0 | BB34: 0 | BC34: 0
A35: 98 | B35: 2017 | C35: 0041 | D35: Corn | E35: SCO | F35: 01 | G35: Alabama | H35: AL | I35: 033 | J35: Colbert | M35: 016 | N35: Grain | O35: 003 | P35: Non-Irrigated | Q35: 997 | R35: No Commodity Type Specified | S35: 997 | T35: No Class Specified | U35: 997 | V35: No Subclass Specified | W35: 016 | X35: Grain | Y35: 003 | Z35: Non-Irrigated | AA35: 997 | AB35: No Cropping Practice Specified | AC35: 997 | AD35: No Organic Practice Specified | AE35: 997 | AF35: No Interval Specified | AG35: 134.2 | AH35: 191.34 | AI35: 3.87 | AJ35: 519.35 | AK35: 3.53 | AL35: 675.43 | AM35: - | AN35: - | AO35: - | AP35: 134.2 | AQ35: -4.00472265 | AR35: -4.004813709 | AS35: -5.143476494 | AT35: 0 | AU35: 0 | AV35: 0 | AW35: -2.753246822 | AX35: 0 | AY35: -7.341991525 | AZ35: 0 | BA35: 0 | BB35: 0 | BC35: 0
A36: 103 | B36: 2017 | C36: 0041 | D36: Corn | E36: SCO | F36: 01 | G36: Alabama | H36: AL | I36: 035 | J36: Conecuh | M36: 016 | N36: Grain | O36: 002 | P36: Irrigated | Q36: 997 | R36: No Commodity Type Specified | S36: 997 | T36: No Class Specified | U36: 997 | V36: No Subclass Specified | W36: 016 | X36: Grain | Y36: 002 | Z36: Irrigated | AA36: 997 | AB36: No Cropping Practice Specified | AC36: 997 | AD36: No Organic Practice Specified | AE36: 997 | AF36: No Interval Specified | AG36: 84.1 | AH36: 154.02 | AI36: 3.87 | AJ36: 325.47 | AK36: 3.53 | AL36: 543.69 | AM36: - | AN36: - | AO36: - | AP36: 84.1 | AQ36: -7.368108539 | AR36: -7.36796856 | AS36: -8.8308291 | AT36: 0 | AU36: 0 | AV36: 0 | AW36: -5.06557462 | AX36: 0 | AY36: -13.50819899 | AZ36: 0 | BA36: 0 | BB36: 0 | BC36: 0
A37: 104 | B37: 2017 | C37: 0041 | D37: Corn | E37: SCO | F37: 01 | G37: Alabama | H37: AL | I37: 035 | J37: Conecuh | M37: 016 | N37: Grain | O37: 003 | P37: Non-Irrigated | Q37: 997 | R37: No Commodity Type Specified | S37: 997 | T37: No Class Specified | U37: 997 | V37: No Subclass Specified | W37: 016 | X37: Grain | Y37: 003 | Z37: Non-Irrigated | AA37: 997 | AB37: No Cropping Practice Specified | AC37: 997 | AD37: No Organic Practice Specified | AE37: 997 | AF37: No Interval Specified | AG37: 84.1 | AH37: 154.02 | AI37: 3.87 | AJ37: 325.47 | AK37: 3.53 | AL37: 543.69 | AM37: - | AN37: - | AO37: - | AP37: 84.1 | AQ37: -7.368108539 | AR37: -7.36796856 | AS37: -8.8308291 | AT37: 0 | AU37: 0 | AV37: 0 | AW37: -5.06557462 | AX37: 0 | AY37: -13.50819899 | AZ37: 0 | BA37: 0 | BB37: 0 | BC37: 0
A38: 109 | B38: 2017 | C38: 0041 | D38: Corn | E38: SCO | F38: 01 | G38: Alabama | H38: AL | I38: 039 | J38: Covington | M38: 016 | N38: Grain | O38: 002 | P38: Irrigated | Q38: 997 | R38: No Commodity Type Specified | S38: 997 | T38: No Class Specified | U38: 997 | V38: No Subclass Specified | W38: 016 | X38: Grain | Y38: 002 | Z38: Irrigated | AA38: 997 | AB38: No Cropping Practice Specified | AC38: 997 | AD38: No Organic Practice Specified | AE38: 997 | AF38: No Interval Specified | AG38: 172.4 | AH38: 183.73 | AI38: 3.87 | AJ38: 667.19 | AK38: 3.53 | AL38: 648.57 | AM38: - | AN38: - | AO38: - | AP38: 172.4 | AQ38: -1.019043835 | AR38: -1.019017344 | AS38: -1.870175069 | AT38: 0 | AU38: 0 | AV38: 0 | AW38: -0.7005926366 | AX38: 0 | AY38: -1.868247031 | AZ38: 0 | BA38: 0 | BB38: 0 | BC38: 0
A39: 110 | B39: 2017 | C39: 0041 | D39: Corn | E39: SCO | F39: 01 | G39: Alabama | H39: AL | I39: 039 | J39: Covington | M39: 016 | N39: Grain | O39: 003 | P39: Non-Irrigated | Q39: 997 | R39: No Commodity Type Specified | S39: 997 | T39: No Class Specified | U39: 997 | V39: No Subclass Specified | W39: 016 | X39: Grain | Y39: 003 | Z39: Non-Irrigated | AA39: 997 | AB39: No Cropping Practice Specified | AC39: 997 | AD39: No Organic Practice Specified | AE39: 997 | AF39: No Interval Specified | AG39: 77.2 | AH39: 133.34 | AI39: 3.87 | AJ39: 298.76 | AK39: 3.53 | AL39: 470.69 | AM39: - | AN39: - | AO39: - | AP39: 77.2 | AQ39: -6.504159562 | AR39: -6.504351319 | AS39: -7.883655205 | AT39: 0 | AU39: 0 | AV39: 0 | AW39: -4.471609699 | AX39: 0 | AY39: -11.92429253 | AZ39: 0 | BA39: 0 | BB39: 0 | BC39: 0
A40: 115 | B40: 2017 | C40: 0041 | D40: Corn | E40: SCO | F40: 01 | G40: Alabama | H40: AL | I40: 041 | J40: Crenshaw | M40: 016 | N40: Grain | O40: 002 | P40: Irrigated | Q40: 997 | R40: No Commodity Type Specified | S40: 997 | T40: No Class Specified | U40: 997 | V40: No Subclass Specified | W40: 016 | X40: Grain | Y40: 002 | Z40: Irrigated | AA40: 997 | AB40: No Cropping Practice Specified | AC40: 997 | AD40: No Organic Practice Specified | AE40: 997 | AF40: No Interval Specified | AG40: 171.4 | AH40: 189.72 | AI40: 3.87 | AJ40: 663.32 | AK40: 3.53 | AL40: 669.71 | AM40: - | AN40: - | AO40: - | AP40: 171.4 | AQ40: -1.360330942 | AR40: -1.360303268 | AS40: -2.24440437 | AT40: 0 | AU40: 0 | AV40: 0 | AW40: -0.9352275228 | AX40: 0 | AY40: -2.493940061 | AZ40: 0 | BA40: 0 | BB40: 0 | BC40: 0
A41: 116 | B41: 2017 | C41: 0041 | D41: Corn | E41: SCO | F41: 01 | G41: Alabama | H41: AL | I41: 041 | J41: Crenshaw | M41: 016 | N41: Grain | O41: 003 | P41: Non-Irrigated | Q41: 997 | R41: No Commodity Type Specified | S41: 997 | T41: No Class Specified | U41: 997 | V41: No Subclass Specified | W41: 016 | X41: Grain | Y41: 003 | Z41: Non-Irrigated | AA41: 997 | AB41: No Cropping Practice Specified | AC41: 997 | AD41: No Organic Practice Specified | AE41: 997 | AF41: No Interval Specified | AG41: 73.1 | AH41: 129.92 | AI41: 3.87 | AJ41: 282.9 | AK41: 3.53 | AL41: 458.62 | AM41: - | AN41: - | AO41: - | AP41: 73.1 | AQ41: -6.919594571 | AR41: -6.919438285 | AS41: -8.339012561 | AT41: 0 | AU41: 0 | AV41: 0 | AW41: -4.757221268 | AX41: 0 | AY41: -12.68592338 | AZ41: 0 | BA41: 0 | BB41: 0 | BC41: 0
A42: 121 | B42: 2017 | C42: 0041 | D42: Corn | E42: SCO | F42: 01 | G42: Alabama | H42: AL | I42: 043 | J42: Cullman | M42: 016 | N42: Grain | O42: 002 | P42: Irrigated | Q42: 997 | R42: No Commodity Type Specified | S42: 997 | T42: No Class Specified | U42: 997 | V42: No Subclass Specified | W42: 016 | X42: Grain | Y42: 002 | Z42: Irrigated | AA42: 997 | AB42: No Cropping Practice Specified | AC42: 997 | AD42: No Organic Practice Specified | AE42: 997 | AF42: No Interval Specified | AG42: 185.1 | AH42: 237.08 | AI42: 3.87 | AJ42: 716.34 | AK42: 3.53 | AL42: 836.89 | AM42: - | AN42: - | AO42: - | AP42: 185.1 | AQ42: -2.802644565 | AR42: -2.802600086 | AS42: -3.82564707 | AT42: 0 | AU42: 0 | AV42: 0 | AW42: -1.926818139 | AX42: 0 | AY42: -5.138181703 | AZ42: 0 | BA42: 0 | BB42: 0 | BC42: 0
A43: 122 | B43: 2017 | C43: 0041 | D43: Corn | E43: SCO | F43: 01 | G43: Alabama | H43: AL | I43: 043 | J43: Cullman | M43: 016 | N43: Grain | O43: 003 | P43: Non-Irrigated | Q43: 997 | R43: No Commodity Type Specified | S43: 997 | T43: No Class Specified | U43: 997 | V43: No Subclass Specified | W43: 016 | X43: Grain | Y43: 003 | Z43: Non-Irrigated | AA43: 997 | AB43: No Cropping Practice Specified | AC43: 997 | AD43: No Organic Practice Specified | AE43: 997 | AF43: No Interval Specified | AG43: 133.3 | AH43: 200.38 | AI43: 3.87 | AJ43: 515.87 | AK43: 3.53 | AL43: 707.34 | AM43: - | AN43: - | AO43: - | AP43: 133.3 | AQ43: -4.646879479 | AR43: -4.646903642 | AS43: -5.847507331 | AT43: 0 | AU43: 0 | AV43: 0 | AW43: -3.194729642 | AX43: 0 | AY43: -8.519279045 | AZ43: 0 | BA43: 0 | BB43: 0 | BC43: 0
A44: 127 | B44: 2017 | C44: 0041 | D44: Corn | E44: SCO | F44: 01 | G44: Alabama | H44: AL | I44: 045 | J44: Dale | M44: 016 | N44: Grain | O44: 002 | P44: Irrigated | Q44: 997 | R44: No Commodity Type Specified | S44: 997 | T44: No Class Specified | U44: 997 | V44: No Subclass Specified | W44: 016 | X44: Grain | Y44: 002 | Z44: Irrigated | AA44: 997 | AB44: No Cropping Practice Specified | AC44: 997 | AD44: No Organic Practice Specified | AE44: 997 | AF44: No Interval Specified | AG44: 191.8 | AH44: 196.64 | AI44: 3.87 | AJ44: 742.27 | AK44: 3.53 | AL44: 694.14 | AM44: - | AN44: - | AO44: - | AP44: 191.8 | AQ44: -0.6833036821 | AR44: -0.6832578687 | AS44: -1.502132904 | AT44: 0 | AU44: 0 | AV44: 0 | AW44: -0.4697712815 | AX44: 0 | AY44: -1.252723417 | AZ44: 0 | BA44: 0 | BB44: 0 | BC44: 0
A45: 128 | B45: 2017 | C45: 0041 | D45: Corn | E45: SCO | F45: 01 | G45: Alabama | H45: AL | I45: 045 | J45: Dale | M45: 016 | N45: Grain | O45: 003 | P45: Non-Irrigated | Q45: 997 | R45: No Commodity Type Specified | S45: 997 | T45: No Class Specified | U45: 997 | V45: No Subclass Specified | W45: 016 | X45: Grain | Y45: 003 | Z45: Non-Irrigated | AA45: 997 | AB45: No Cropping Practice Specified | AC45: 997 | AD45: No Organic Practice Specified | AE45: 997 | AF45: No Interval Specified | AG45: 67.1 | AH45: 110.79 | AI45: 3.87 | AJ45: 259.68 | AK45: 3.53 | AL45: 391.09 | AM45: - | AN45: - | AO45: - | AP45: 67.1 | AQ45: -5.873302743 | AR45: -5.87314457 | AS45: -7.191979407 | AT45: 0 | AU45: 0 | AV45: 0 | AW45: -4.037895636 | AX45: 0 | AY45: -10.7677217 | AZ45: 0 | BA45: 0 | BB45: 0 | BC45: 0
A46: 133 | B46: 2017 | C46: 0041 | D46: Corn | E46: SCO | F46: 01 | G46: Alabama | H46: AL | I46: 047 | J46: Dallas | M46: 016 | N46: Grain | O46: 002 | P46: Irrigated | Q46: 997 | R46: No Commodity Type Specified | S46: 997 | T46: No Class Specified | U46: 997 | V46: No Subclass Specified | W46: 016 | X46: Grain | Y46: 002 | Z46: Irrigated | AA46: 997 | AB46: No Cropping Practice Specified | AC46: 997 | AD46: No Organic Practice Specified | AE46: 997 | AF46: No Interval Specified | AG46: 173.9 | AH46: 192.9 | AI46: 3.87 | AJ46: 672.99 | AK46: 3.53 | AL46: 680.94 | AM46: - | AN46: - | AO46: - | AP46: 173.9 | AQ46: -1.380076762 | AR46: -1.380117765 | AS46: -2.265983585 | AT46: 0 | AU46: 0 | AV46: 0 | AW46: -0.9488027736 | AX46: 0 | AY46: -2.53014073 | AZ46: 0 | BA46: 0 | BB46: 0 | BC46: 0
A47: 134 | B47: 2017 | C47: 0041 | D47: Corn | E47: SCO | F47: 01 | G47: Alabama | H47: AL | I47: 047 | J47: Dallas | M47: 016 | N47: Grain | O47: 003 | P47: Non-Irrigated | Q47: 997 | R47: No Commodity Type Specified | S47: 997 | T47: No Class Specified | U47: 997 | V47: No Subclass Specified | W47: 016 | X47: Grain | Y47: 003 | Z47: Non-Irrigated | AA47: 997 | AB47: No Cropping Practice Specified | AC47: 997 | AD47: No Organic Practice Specified | AE47: 997 | AF47: No Interval Specified | AG47: 80 | AH47: 111.62 | AI47: 3.87 | AJ47: 309.6 | AK47: 3.53 | AL47: 394.02 | AM47: - | AN47: - | AO47: - | AP47: 80 | AQ47: -3.751585624 | AR47: -3.751585624 | AS47: -4.865909091 | AT47: 0 | AU47: 0 | AV47: 0 | AW47: -2.579215116 | AX47: 0 | AY47: -6.877906977 | AZ47: 0 | BA47: 0 | BB47: 0 | BC47: 0
A48: 139 | B48: 2017 | C48: 0041 | D48: Corn | E48: SCO | F48: 01 | G48: Alabama | H48: AL | I48: 049 | J48: De Kalb | M48: 016 | N48: Grain | O48: 002 | P48: Irrigated | Q48: 997 | R48: No Commodity Type Specified | S48: 997 | T48: No Class Specified | U48: 997 | V48: No Subclass Specified | W48: 016 | X48: Grain | Y48: 002 | Z48: Irrigated | AA48: 997 | AB48: No Cropping Practice Specified | AC48: 997 | AD48: No Organic Practice Specified | AE48: 997 | AF48: No Interval Specified | AG48: 210.3 | AH48: 216.8 | AI48: 3.87 | AJ48: 813.86 | AK48: 3.53 | AL48: 765.3 | AM48: - | AN48: - | AO48: - | AP48: 210.3 | AQ48: -0.7302960267 | AR48: -0.7303065303 | AS48: -1.553711149 | AT48: 0 | AU48: 0 | AV48: 0 | AW48: -0.5020785183 | AX48: 0 | AY48: -1.338876049 | AZ48: 0 | BA48: 0 | BB48: 0 | BC48: 0
A49: 140 | B49: 2017 | C49: 0041 | D49: Corn | E49: SCO | F49: 01 | G49: Alabama | H49: AL | I49: 049 | J49: De Kalb | M49: 016 | N49: Grain | O49: 003 | P49: Non-Irrigated | Q49: 997 | R49: No Commodity Type Specified | S49: 997 | T49: No Class Specified | U49: 997 | V49: No Subclass Specified | W49: 016 | X49: Grain | Y49: 003 | Z49: Non-Irrigated | AA49: 997 | AB49: No Cropping Practice Specified | AC49: 997 | AD49: No Organic Practice Specified | AE49: 997 | AF49: No Interval Specified | AG49: 128.8 | AH49: 161.32 | AI49: 3.87 | AJ49: 498.46 | AK49: 3.53 | AL49: 569.46 | AM49: - | AN49: - | AO49: - | AP49: 128.8 | AQ49: -2.567707991 | AR49: -2.567624648 | AS49: -3.568040655 | AT49: 0 | AU49: 0 | AV49: 0 | AW49: -1.765299244 | AX49: 0 | AY49: -4.707464651 | AZ49: 0 | BA49: 0 | BB49: 0 | BC49: 0
A50: 145 | B50: 2017 | C50: 0041 | D50: Corn | E50: SCO | F50: 01 | G50: Alabama | H50: AL | I50: 051 | J50: Elmore | M50: 016 | N50: Grain | O50: 002 | P50: Irrigated | Q50: 997 | R50: No Commodity Type Specified | S50: 997 | T50: No Class Specified | U50: 997 | V50: No Subclass Specified | W50: 016 | X50: Grain | Y50: 002 | Z50: Irrigated | AA50: 997 | AB50: No Cropping Practice Specified | AC50: 997 | AD50: No Organic Practice Specified | AE50: 997 | AF50: No Interval Specified | AG50: 172 | AH50: 197.53 | AI50: 3.87 | AJ50: 665.64 | AK50: 3.53 | AL50: 697.28 | AM50: - | AN50: - | AO50: - | AP50: 172 | AQ50: -1.704847283 | AR50: -1.704847283 | AS50: -2.622093023 | AT50: 0 | AU50: 0 | AV50: 0 | AW50: -1.172082507 | AX50: 0 | AY50: -3.125553352 | AZ50: 0 | BA50: 0 | BB50: 0 | BC50: 0
A51: 146 | B51: 2017 | C51: 0041 | D51: Corn | E51: SCO | F51: 01 | G51: Alabama | H51: AL | I51: 051 | J51: Elmore | M51: 016 | N51: Grain | O51: 003 | P51: Non-Irrigated | Q51: 997 | R51: No Commodity Type Specified | S51: 997 | T51: No Class Specified | U51: 997 | V51: No Subclass Specified | W51: 016 | X51: Grain | Y51: 003 | Z51: Non-Irrigated | AA51: 997 | AB51: No Cropping Practice Specified | AC51: 997 | AD51: No Organic Practice Specified | AE51: 997 | AF51: No Interval Specified | AG51: 89.5 | AH51: 136.86 | AI51: 3.87 | AJ51: 346.37 | AK51: 3.53 | AL51: 483.12 | AM51: - | AN51: - | AO51: - | AP51: 89.5 | AQ51: -4.86208322 | AR51: -4.861900175 | AS51: -6.083291011 | AT51: 0 | AU51: 0 | AV51: 0 | AW51: -3.342682214 | AX51: 0 | AY51: -8.913819237 | AZ51: 0 | BA51: 0 | BB51: 0 | BC51: 0
A52: 151 | B52: 2017 | C52: 0041 | D52: Corn | E52: SCO | F52: 01 | G52: Alabama | H52: AL | I52: 053 | J52: Escambia | M52: 016 | N52: Grain | O52: 002 | P52: Irrigated | Q52: 997 | R52: No Commodity Type Specified | S52: 997 | T52: No Class Specified | U52: 997 | V52: No Subclass Specified | W52: 016 | X52: Grain | Y52: 002 | Z52: Irrigated | AA52: 997 | AB52: No Cropping Practice Specified | AC52: 997 | AD52: No Organic Practice Specified | AE52: 997 | AF52: No Interval Specified | AG52: 110.6 | AH52: 162.16 | AI52: 3.87 | AJ52: 428.02 | AK52: 3.53 | AL52: 572.42 | AM52: - | AN52: - | AO52: - | AP52: 110.6 | AQ52: -4.339646943 | AR52: -4.339703752 | AS52: -5.510767713 | AT52: 0 | AU52: 0 | AV52: 0 | AW52: -2.983507273 | AX52: 0 | AY52: -7.956019395 | AZ52: 0 | BA52: 0 | BB52: 0 | BC52: 0
A53: 152 | B53: 2017 | C53: 0041 | D53: Corn | E53: SCO | F53: 01 | G53: Alabama | H53: AL | I53: 053 | J53: Escambia | M53: 016 | N53: Grain | O53: 003 | P53: Non-Irrigated | Q53: 997 | R53: No Commodity Type Specified | S53: 997 | T53: No Class Specified | U53: 997 | V53: No Subclass Specified | W53: 016 | X53: Grain | Y53: 003 | Z53: Non-Irrigated | AA53: 997 | AB53: No Cropping Practice Specified | AC53: 997 | AD53: No Organic Practice Specified | AE53: 997 | AF53: No Interval Specified | AG53: 110.6 | AH53: 162.16 | AI53: 3.87 | AJ53: 428.02 | AK53: 3.53 | AL53: 572.42 | AM53: - | AN53: - | AO53: - | AP53: 110.6 | AQ53: -4.339646943 | AR53: -4.339703752 | AS53: -5.510767713 | AT53: 0 | AU53: 0 | AV53: 0 | AW53: -2.983507273 | AX53: 0 | AY53: -7.956019395 | AZ53: 0 | BA53: 0 | BB53: 0 | BC53: 0
A54: 157 | B54: 2017 | C54: 0041 | D54: Corn | E54: SCO | F54: 01 | G54: Alabama | H54: AL | I54: 055 | J54: Etowah | M54: 016 | N54: Grain | O54: 002 | P54: Irrigated | Q54: 997 | R54: No Commodity Type Specified | S54: 997 | T54: No Class Specified | U54: 997 | V54: No Subclass Specified | W54: 016 | X54: Grain | Y54: 002 | Z54: Irrigated | AA54: 997 | AB54: No Cropping Practice Specified | AC54: 997 | AD54: No Organic Practice Specified | AE54: 997 | AF54: No Interval Specified | AG54: 205.4 | AH54: 227.79 | AI54: 3.87 | AJ54: 794.9 | AK54: 3.53 | AL54: 804.1 | AM54: - | AN54: - | AO54: - | AP54: 205.4 | AQ54: -1.377966618 | AR54: -1.377943481 | AS54: -2.263698327 | AT54: 0 | AU54: 0 | AV54: 0 | AW54: -0.9473520502 | AX54: 0 | AY54: -2.526272134 | AZ54: 0 | BA54: 0 | BB54: 0 | BC54: 0
A55: 158 | B55: 2017 | C55: 0041 | D55: Corn | E55: SCO | F55: 01 | G55: Alabama | H55: AL | I55: 055 | J55: Etowah | M55: 016 | N55: Grain | O55: 003 | P55: Non-Irrigated | Q55: 997 | R55: No Commodity Type Specified | S55: 997 | T55: No Class Specified | U55: 997 | V55: No Subclass Specified | W55: 016 | X55: Grain | Y55: 003 | Z55: Non-Irrigated | AA55: 997 | AB55: No Cropping Practice Specified | AC55: 997 | AD55: No Organic Practice Specified | AE55: 997 | AF55: No Interval Specified | AG55: 127 | AH55: 161.94 | AI55: 3.87 | AJ55: 491.49 | AK55: 3.53 | AL55: 571.65 | AM55: - | AN55: - | AO55: - | AP55: 127 | AQ55: -2.755417201 | AR55: -2.755417201 | AS55: -3.773801002 | AT55: 0 | AU55: 0 | AV55: 0 | AW55: -1.894349326 | AX55: 0 | AY55: -5.051598201 | AZ55: 0 | BA55: 0 | BB55: 0 | BC55: 0
A56: 163 | B56: 2017 | C56: 0041 | D56: Corn | E56: SCO | F56: 01 | G56: Alabama | H56: AL | I56: 057 | J56: Fayette | M56: 016 | N56: Grain | O56: 002 | P56: Irrigated | Q56: 997 | R56: No Commodity Type Specified | S56: 997 | T56: No Class Specified | U56: 997 | V56: No Subclass Specified | W56: 016 | X56: Grain | Y56: 002 | Z56: Irrigated | AA56: 997 | AB56: No Cropping Practice Specified | AC56: 997 | AD56: No Organic Practice Specified | AE56: 997 | AF56: No Interval Specified | AG56: 176 | AH56: 195.92 | AI56: 3.87 | AJ56: 681.12 | AK56: 3.53 | AL56: 691.6 | AM56: - | AN56: - | AO56: - | AP56: 176 | AQ56: -1.41260384 | AR56: -1.41260384 | AS56: -2.301652893 | AT56: 0 | AU56: 0 | AV56: 0 | AW56: -0.9711651398 | AX56: 0 | AY56: -2.589773706 | AZ56: 0 | BA56: 0 | BB56: 0 | BC56: 0
A57: 164 | B57: 2017 | C57: 0041 | D57: Corn | E57: SCO | F57: 01 | G57: Alabama | H57: AL | I57: 057 | J57: Fayette | M57: 016 | N57: Grain | O57: 003 | P57: Non-Irrigated | Q57: 997 | R57: No Commodity Type Specified | S57: 997 | T57: No Class Specified | U57: 997 | V57: No Subclass Specified | W57: 016 | X57: Grain | Y57: 003 | Z57: Non-Irrigated | AA57: 997 | AB57: No Cropping Practice Specified | AC57: 997 | AD57: No Organic Practice Specified | AE57: 997 | AF57: No Interval Specified | AG57: 104.8 | AH57: 152.97 | AI57: 3.87 | AJ57: 405.58 | AK57: 3.53 | AL57: 539.98 | AM57: - | AN57: - | AO57: - | AP57: 104.8 | AQ57: -4.285367433 | AR57: -4.285248062 | AS57: -5.451249133 | AT57: 0 | AU57: 0 | AV57: 0 | AW57: -2.94619011 | AX57: 0 | AY57: -7.85650696 | AZ57: 0 | BA57: 0 | BB57: 0 | BC57: 0
A58: 169 | B58: 2017 | C58: 0041 | D58: Corn | E58: SCO | F58: 01 | G58: Alabama | H58: AL | I58: 059 | J58: Franklin | M58: 016 | N58: Grain | O58: 002 | P58: Irrigated | Q58: 997 | R58: No Commodity Type Specified | S58: 997 | T58: No Class Specified | U58: 997 | V58: No Subclass Specified | W58: 016 | X58: Grain | Y58: 002 | Z58: Irrigated | AA58: 997 | AB58: No Cropping Practice Specified | AC58: 997 | AD58: No Organic Practice Specified | AE58: 997 | AF58: No Interval Specified | AG58: 184.5 | AH58: 236.35 | AI58: 3.87 | AJ58: 714.02 | AK58: 3.53 | AL58: 834.32 | AM58: - | AN58: - | AO58: - | AP58: 184.5 | AQ58: -2.804462346 | AR58: -2.80438796 | AS58: -3.82754373 | AT58: 0 | AU58: 0 | AV58: 0 | AW58: -1.928067863 | AX58: 0 | AY58: -5.141514301 | AZ58: 0 | BA58: 0 | BB58: 0 | BC58: 0
A59: 170 | B59: 2017 | C59: 0041 | D59: Corn | E59: SCO | F59: 01 | G59: Alabama | H59: AL | I59: 059 | J59: Franklin | M59: 016 | N59: Grain | O59: 003 | P59: Non-Irrigated | Q59: 997 | R59: No Commodity Type Specified | S59: 997 | T59: No Class Specified | U59: 997 | V59: No Subclass Specified | W59: 016 | X59: Grain | Y59: 003 | Z59: Non-Irrigated | AA59: 997 | AB59: No Cropping Practice Specified | AC59: 997 | AD59: No Organic Practice Specified | AE59: 997 | AF59: No Interval Specified | AG59: 133.1 | AH59: 189.84 | AI59: 3.87 | AJ59: 515.1 | AK59: 3.53 | AL59: 670.14 | AM59: - | AN59: - | AO59: - | AP59: 133.1 | AQ59: -4.009069783 | AR59: -4.0090009 | AS59: -5.148145618 | AT59: 0 | AU59: 0 | AV59: 0 | AW59: -2.756235476 | AX59: 0 | AY59: -7.349961269 | AZ59: 0 | BA59: 0 | BB59: 0 | BC59: 0
A60: 175 | B60: 2017 | C60: 0041 | D60: Corn | E60: SCO | F60: 01 | G60: Alabama | H60: AL | I60: 061 | J60: Geneva | M60: 016 | N60: Grain | O60: 002 | P60: Irrigated | Q60: 997 | R60: No Commodity Type Specified | S60: 997 | T60: No Class Specified | U60: 997 | V60: No Subclass Specified | W60: 016 | X60: Grain | Y60: 002 | Z60: Irrigated | AA60: 997 | AB60: No Cropping Practice Specified | AC60: 997 | AD60: No Organic Practice Specified | AE60: 997 | AF60: No Interval Specified | AG60: 186.8 | AH60: 200.49 | AI60: 3.87 | AJ60: 722.92 | AK60: 3.53 | AL60: 707.73 | AM60: - | AN60: - | AO60: - | AP60: 186.8 | AQ60: -1.081758273 | AR60: -1.081709029 | AS60: -1.938972163 | AT60: 0 | AU60: 0 | AV60: 0 | AW60: -0.7437088126 | AX60: 0 | AY60: -1.9832235 | AZ60: 0 | BA60: 0 | BB60: 0 | BC60: 0
A61: 176 | B61: 2017 | C61: 0041 | D61: Corn | E61: SCO | F61: 01 | G61: Alabama | H61: AL | I61: 061 | J61: Geneva | M61: 016 | N61: Grain | O61: 003 | P61: Non-Irrigated | Q61: 997 | R61: No Commodity Type Specified | S61: 997 | T61: No Class Specified | U61: 997 | V61: No Subclass Specified | W61: 016 | X61: Grain | Y61: 003 | Z61: Non-Irrigated | AA61: 997 | AB61: No Cropping Practice Specified | AC61: 997 | AD61: No Organic Practice Specified | AE61: 997 | AF61: No Interval Specified | AG61: 69.7 | AH61: 115.08 | AI61: 3.87 | AJ61: 269.74 | AK61: 3.53 | AL61: 406.23 | AM61: - | AN61: - | AO61: - | AP61: 69.7 | AQ61: -5.872830605 | AR61: -5.872779849 | AS61: -7.191600365 | AT61: 0 | AU61: 0 | AV61: 0 | AW61: -4.037571041 | AX61: 0 | AY61: -10.76685611 | AZ61: 0 | BA61: 0 | BB61: 0 | BC61: 0
A62: 181 | B62: 2017 | C62: 0041 | D62: Corn | E62: SCO | F62: 01 | G62: Alabama | H62: AL | I62: 063 | J62: Greene | M62: 016 | N62: Grain | O62: 002 | P62: Irrigated | Q62: 997 | R62: No Commodity Type Specified | S62: 997 | T62: No Class Specified | U62: 997 | V62: No Subclass Specified | W62: 016 | X62: Grain | Y62: 002 | Z62: Irrigated | AA62: 997 | AB62: No Cropping Practice Specified | AC62: 997 | AD62: No Organic Practice Specified | AE62: 997 | AF62: No Interval Specified | AG62: 174.6 | AH62: 197.29 | AI62: 3.87 | AJ62: 675.7 | AK62: 3.53 | AL62: 696.43 | AM62: - | AN62: - | AO62: - | AP62: 174.6 | AQ62: -1.551602226 | AR62: -1.55162996 | AS62: -2.454128918 | AT62: 0 | AU62: 0 | AV62: 0 | AW62: -1.06672653 | AX62: 0 | AY62: -2.844604081 | AZ62: 0 | BA62: 0 | BB62: 0 | BC62: 0
A63: 182 | B63: 2017 | C63: 0041 | D63: Corn | E63: SCO | F63: 01 | G63: Alabama | H63: AL | I63: 063 | J63: Greene | M63: 016 | N63: Grain | O63: 003 | P63: Non-Irrigated | Q63: 997 | R63: No Commodity Type Specified | S63: 997 | T63: No Class Specified | U63: 997 | V63: No Subclass Specified | W63: 016 | X63: Grain | Y63: 003 | Z63: Non-Irrigated | AA63: 997 | AB63: No Cropping Practice Specified | AC63: 997 | AD63: No Organic Practice Specified | AE63: 997 | AF63: No Interval Specified | AG63: 77.8 | AH63: 103.26 | AI63: 3.87 | AJ63: 301.09 | AK63: 3.53 | AL63: 364.51 | AM63: - | AN63: - | AO63: - | AP63: 77.8 | AQ63: -3.187734341 | AR63: -3.187588127 | AS63: -4.24772143 | AT63: 0 | AU63: 0 | AV63: 0 | AW63: -2.191567359 | AX63: 0 | AY63: -5.844179625 | AZ63: 0 | BA63: 0 | BB63: 0 | BC63: 0
A64: 187 | B64: 2017 | C64: 0041 | D64: Corn | E64: SCO | F64: 01 | G64: Alabama | H64: AL | I64: 065 | J64: Hale | M64: 016 | N64: Grain | O64: 002 | P64: Irrigated | Q64: 997 | R64: No Commodity Type Specified | S64: 997 | T64: No Class Specified | U64: 997 | V64: No Subclass Specified | W64: 016 | X64: Grain | Y64: 002 | Z64: Irrigated | AA64: 997 | AB64: No Cropping Practice Specified | AC64: 997 | AD64: No Organic Practice Specified | AE64: 997 | AF64: No Interval Specified | AG64: 173.2 | AH64: 196.27 | AI64: 3.87 | AJ64: 670.28 | AK64: 3.53 | AL64: 692.83 | AM64: - | AN64: - | AO64: - | AP64: 173.2 | AQ64: -1.578513531 | AR64: -1.578569607 | AS64: -2.483623767 | AT64: 0 | AU64: 0 | AV64: 0 | AW64: -1.085228053 | AX64: 0 | AY64: -2.893941474 | AZ64: 0 | BA64: 0 | BB64: 0 | BC64: 0
A65: 188 | B65: 2017 | C65: 0041 | D65: Corn | E65: SCO | F65: 01 | G65: Alabama | H65: AL | I65: 065 | J65: Hale | M65: 016 | N65: Grain | O65: 003 | P65: Non-Irrigated | Q65: 997 | R65: No Commodity Type Specified | S65: 997 | T65: No Class Specified | U65: 997 | V65: No Subclass Specified | W65: 016 | X65: Grain | Y65: 003 | Z65: Non-Irrigated | AA65: 997 | AB65: No Cropping Practice Specified | AC65: 997 | AD65: No Organic Practice Specified | AE65: 997 | AF65: No Interval Specified | AG65: 81 | AH65: 112.26 | AI65: 3.87 | AJ65: 313.47 | AK65: 3.53 | AL65: 396.28 | AM65: - | AN65: - | AO65: - | AP65: 81 | AQ65: -3.674291001 | AR65: -3.674291001 | AS65: -4.781144781 | AT65: 0 | AU65: 0 | AV65: 0 | AW65: -2.526075063 | AX65: 0 | AY65: -6.736200168 | AZ65: 0 | BA65: 0 | BB65: 0 | BC65: 0
A66: 193 | B66: 2017 | C66: 0041 | D66: Corn | E66: SCO | F66: 01 | G66: Alabama | H66: AL | I66: 067 | J66: Henry | M66: 016 | N66: Grain | O66: 002 | P66: Irrigated | Q66: 997 | R66: No Commodity Type Specified | S66: 997 | T66: No Class Specified | U66: 997 | V66: No Subclass Specified | W66: 016 | X66: Grain | Y66: 002 | Z66: Irrigated | AA66: 997 | AB66: No Cropping Practice Specified | AC66: 997 | AD66: No Organic Practice Specified | AE66: 997 | AF66: No Interval Specified | AG66: 186.4 | AH66: 194.7 | AI66: 3.87 | AJ66: 721.37 | AK66: 3.53 | AL66: 687.29 | AM66: - | AN66: - | AO66: - | AP66: 186.4 | AQ66: -0.8432654724 | AR66: -0.8432414585 | AS66: -1.677526336 | AT66: 0 | AU66: 0 | AV66: 0 | AW66: -0.5797450123 | AX66: 0 | AY66: -1.545986699 | AZ66: 0 | BA66: 0 | BB66: 0 | BC66: 0
A67: 194 | B67: 2017 | C67: 0041 | D67: Corn | E67: SCO | F67: 01 | G67: Alabama | H67: AL | I67: 067 | J67: Henry | M67: 016 | N67: Grain | O67: 003 | P67: Non-Irrigated | Q67: 997 | R67: No Commodity Type Specified | S67: 997 | T67: No Class Specified | U67: 997 | V67: No Subclass Specified | W67: 016 | X67: Grain | Y67: 003 | Z67: Non-Irrigated | AA67: 997 | AB67: No Cropping Practice Specified | AC67: 997 | AD67: No Organic Practice Specified | AE67: 997 | AF67: No Interval Specified | AG67: 66.9 | AH67: 111.96 | AI67: 3.87 | AJ67: 258.9 | AK67: 3.53 | AL67: 395.22 | AM67: - | AN67: - | AO67: - | AP67: 66.9 | AQ67: -6.059251394 | AR67: -6.059412198 | AS67: -7.395841826 | AT67: 0 | AU67: 0 | AV67: 0 | AW67: -4.165735333 | AX67: 0 | AY67: -11.10862756 | AZ67: 0 | BA67: 0 | BB67: 0 | BC67: 0
A68: 199 | B68: 2017 | C68: 0041 | D68: Corn | E68: SCO | F68: 01 | G68: Alabama | H68: AL | I68: 069 | J68: Houston | M68: 016 | N68: Grain | O68: 002 | P68: Irrigated | Q68: 997 | R68: No Commodity Type Specified | S68: 997 | T68: No Class Specified | U68: 997 | V68: No Subclass Specified | W68: 016 | X68: Grain | Y68: 002 | Z68: Irrigated | AA68: 997 | AB68: No Cropping Practice Specified | AC68: 997 | AD68: No Organic Practice Specified | AE68: 997 | AF68: No Interval Specified | AG68: 200.5 | AH68: 201.61 | AI68: 3.87 | AJ68: 775.94 | AK68: 3.53 | AL68: 711.68 | AM68: - | AN68: - | AO68: - | AP68: 200.5 | AQ68: -0.5199111688 | AR68: -0.5198574398 | AS68: -1.323055996 | AT68: 0 | AU68: 0 | AV68: 0 | AW68: -0.3574389285 | AX68: 0 | AY68: -0.953170476 | AZ68: 0 | BA68: 0 | BB68: 0 | BC68: 0
A69: 200 | B69: 2017 | C69: 0041 | D69: Corn | E69: SCO | F69: 01 | G69: Alabama | H69: AL | I69: 069 | J69: Houston | M69: 016 | N69: Grain | O69: 003 | P69: Non-Irrigated | Q69: 997 | R69: No Commodity Type Specified | S69: 997 | T69: No Class Specified | U69: 997 | V69: No Subclass Specified | W69: 016 | X69: Grain | Y69: 003 | Z69: Non-Irrigated | AA69: 997 | AB69: No Cropping Practice Specified | AC69: 997 | AD69: No Organic Practice Specified | AE69: 997 | AF69: No Interval Specified | AG69: 70.4 | AH69: 113.68 | AI69: 3.87 | AJ69: 272.45 | AK69: 3.53 | AL69: 401.29 | AM69: - | AN69: - | AO69: - | AP69: 70.4 | AQ69: -5.571862921 | AR69: -5.571764627 | AS69: -6.861570248 | AT69: 0 | AU69: 0 | AV69: 0 | AW69: -3.830655758 | AX69: 0 | AY69: -10.21508202 | AZ69: 0 | BA69: 0 | BB69: 0 | BC69: 0
A70: 205 | B70: 2017 | C70: 0041 | D70: Corn | E70: SCO | F70: 01 | G70: Alabama | H70: AL | I70: 071 | J70: Jackson | M70: 016 | N70: Grain | O70: 002 | P70: Irrigated | Q70: 997 | R70: No Commodity Type Specified | S70: 997 | T70: No Class Specified | U70: 997 | V70: No Subclass Specified | W70: 016 | X70: Grain | Y70: 002 | Z70: Irrigated | AA70: 997 | AB70: No Cropping Practice Specified | AC70: 997 | AD70: No Organic Practice Specified | AE70: 997 | AF70: No Interval Specified | AG70: 211.1 | AH70: 221.21 | AI70: 3.87 | AJ70: 816.96 | AK70: 3.53 | AL70: 780.87 | AM70: - | AN70: - | AO70: - | AP70: 211.1 | AQ70: -0.871159459 | AR70: -0.8711275505 | AS70: -1.708109039 | AT70: 0 | AU70: 0 | AV70: 0 | AW70: -0.5989221281 | AX70: 0 | AY70: -1.597125675 | AZ70: 0 | BA70: 0 | BB70: 0 | BC70: 0
A71: 206 | B71: 2017 | C71: 0041 | D71: Corn | E71: SCO | F71: 01 | G71: Alabama | H71: AL | I71: 071 | J71: Jackson | M71: 016 | N71: Grain | O71: 003 | P71: Non-Irrigated | Q71: 997 | R71: No Commodity Type Specified | S71: 997 | T71: No Class Specified | U71: 997 | V71: No Subclass Specified | W71: 016 | X71: Grain | Y71: 003 | Z71: Non-Irrigated | AA71: 997 | AB71: No Cropping Practice Specified | AC71: 997 | AD71: No Organic Practice Specified | AE71: 997 | AF71: No Interval Specified | AG71: 123.7 | AH71: 145.43 | AI71: 3.87 | AJ71: 478.72 | AK71: 3.53 | AL71: 513.37 | AM71: - | AN71: - | AO71: - | AP71: 123.7 | AQ71: -1.930752316 | AR71: -1.930731952 | AS71: -2.869699419 | AT71: 0 | AU71: 0 | AV71: 0 | AW71: -1.327392218 | AX71: 0 | AY71: -3.53971258 | AZ71: 0 | BA71: 0 | BB71: 0 | BC71: 0
A72: 211 | B72: 2017 | C72: 0041 | D72: Corn | E72: SCO | F72: 01 | G72: Alabama | H72: AL | I72: 075 | J72: Lamar | M72: 016 | N72: Grain | O72: 002 | P72: Irrigated | Q72: 997 | R72: No Commodity Type Specified | S72: 997 | T72: No Class Specified | U72: 997 | V72: No Subclass Specified | W72: 016 | X72: Grain | Y72: 002 | Z72: Irrigated | AA72: 997 | AB72: No Cropping Practice Specified | AC72: 997 | AD72: No Organic Practice Specified | AE72: 997 | AF72: No Interval Specified | AG72: 175.7 | AH72: 196.41 | AI72: 3.87 | AJ72: 679.96 | AK72: 3.53 | AL72: 693.33 | AM72: - | AN72: - | AO72: - | AP72: 175.7 | AQ72: -1.451494736 | AR72: -1.451481103 | AS72: -2.344285197 | AT72: 0 | AU72: 0 | AV72: 0 | AW72: -0.9979026309 | AX72: 0 | AY72: -2.661073682 | AZ72: 0 | BA72: 0 | BB72: 0 | BC72: 0
A73: 212 | B73: 2017 | C73: 0041 | D73: Corn | E73: SCO | F73: 01 | G73: Alabama | H73: AL | I73: 075 | J73: Lamar | M73: 016 | N73: Grain | O73: 003 | P73: Non-Irrigated | Q73: 997 | R73: No Commodity Type Specified | S73: 997 | T73: No Class Specified | U73: 997 | V73: No Subclass Specified | W73: 016 | X73: Grain | Y73: 003 | Z73: Non-Irrigated | AA73: 997 | AB73: No Cropping Practice Specified | AC73: 997 | AD73: No Organic Practice Specified | AE73: 997 | AF73: No Interval Specified | AG73: 104.9 | AH73: 161.07 | AI73: 3.87 | AJ73: 405.96 | AK73: 3.53 | AL73: 568.58 | AM73: - | AN73: - | AO73: - | AP73: 104.9 | AQ73: -4.914281709 | AR73: -4.914375801 | AS73: -6.140566774 | AT73: 0 | AU73: 0 | AV73: 0 | AW73: -3.378568675 | AX73: 0 | AY73: -9.009516467 | AZ73: 0 | BA73: 0 | BB73: 0 | BC73: 0
A74: 217 | B74: 2017 | C74: 0041 | D74: Corn | E74: SCO | F74: 01 | G74: Alabama | H74: AL | I74: 077 | J74: Lauderdale | M74: 016 | N74: Grain | O74: 002 | P74: Irrigated | Q74: 997 | R74: No Commodity Type Specified | S74: 997 | T74: No Class Specified | U74: 997 | V74: No Subclass Specified | W74: 016 | X74: Grain | Y74: 002 | Z74: Irrigated | AA74: 997 | AB74: No Cropping Practice Specified | AC74: 997 | AD74: No Organic Practice Specified | AE74: 997 | AF74: No Interval Specified | AG74: 192.8 | AH74: 239.76 | AI74: 3.87 | AJ74: 746.14 | AK74: 3.53 | AL74: 846.35 | AM74: - | AN74: - | AO74: - | AP74: 192.8 | AQ74: -2.493733046 | AR74: -2.493677765 | AS74: -3.486986043 | AT74: 0 | AU74: 0 | AV74: 0 | AW74: -1.714441469 | AX74: 0 | AY74: -4.571843918 | AZ74: 0 | BA74: 0 | BB74: 0 | BC74: 0
A75: 218 | B75: 2017 | C75: 0041 | D75: Corn | E75: SCO | F75: 01 | G75: Alabama | H75: AL | I75: 077 | J75: Lauderdale | M75: 016 | N75: Grain | O75: 003 | P75: Non-Irrigated | Q75: 997 | R75: No Commodity Type Specified | S75: 997 | T75: No Class Specified | U75: 997 | V75: No Subclass Specified | W75: 016 | X75: Grain | Y75: 003 | Z75: Non-Irrigated | AA75: 997 | AB75: No Cropping Practice Specified | AC75: 997 | AD75: No Organic Practice Specified | AE75: 997 | AF75: No Interval Specified | AG75: 135.4 | AH75: 182.5 | AI75: 3.87 | AJ75: 524 | AK75: 3.53 | AL75: 644.23 | AM75: - | AN75: - | AO75: - | AP75: 135.4 | AQ75: -3.358647795 | AR75: -3.358605135 | AS75: -4.435074527 | AT75: 0 | AU75: 0 | AV75: 0 | AW75: -2.309070359 | AX75: 0 | AY75: -6.157520957 | AZ75: 0 | BA75: 0 | BB75: 0 | BC75: 0
A76: 223 | B76: 2017 | C76: 0041 | D76: Corn | E76: SCO | F76: 01 | G76: Alabama | H76: AL | I76: 079 | J76: Lawrence | M76: 016 | N76: Grain | O76: 002 | P76: Irrigated | Q76: 997 | R76: No Commodity Type Specified | S76: 997 | T76: No Class Specified | U76: 997 | V76: No Subclass Specified | W76: 016 | X76: Grain | Y76: 002 | Z76: Irrigated | AA76: 997 | AB76: No Cropping Practice Specified | AC76: 997 | AD76: No Organic Practice Specified | AE76: 997 | AF76: No Interval Specified | AG76: 185.3 | AH76: 237.08 | AI76: 3.87 | AJ76: 717.11 | AK76: 3.53 | AL76: 836.89 | AM76: - | AN76: - | AO76: - | AP76: 185.3 | AQ76: -2.79118118 | AR76: -2.791195975 | AS76: -3.813079527 | AT76: 0 | AU76: 0 | AV76: 0 | AW76: -1.918937061 | AX76: 0 | AY76: -5.117165497 | AZ76: 0 | BA76: 0 | BB76: 0 | BC76: 0
A77: 224 | B77: 2017 | C77: 0041 | D77: Corn | E77: SCO | F77: 01 | G77: Alabama | H77: AL | I77: 079 | J77: Lawrence | M77: 016 | N77: Grain | O77: 003 | P77: Non-Irrigated | Q77: 997 | R77: No Commodity Type Specified | S77: 997 | T77: No Class Specified | U77: 997 | V77: No Subclass Specified | W77: 016 | X77: Grain | Y77: 003 | Z77: Non-Irrigated | AA77: 997 | AB77: No Cropping Practice Specified | AC77: 997 | AD77: No Organic Practice Specified | AE77: 997 | AF77: No Interval Specified | AG77: 134.9 | AH77: 202.05 | AI77: 3.87 | AJ77: 522.06 | AK77: 3.53 | AL77: 713.24 | AM77: - | AN77: - | AO77: - | AP77: 134.9 | AQ77: -4.60177516 | AR77: -4.601846531 | AS77: -5.797964822 | AT77: 0 | AU77: 0 | AV77: 0 | AW77: -3.163720423 | AX77: 0 | AY77: -8.436587794 | AZ77: 0 | BA77: 0 | BB77: 0 | BC77: 0
A78: 229 | B78: 2017 | C78: 0041 | D78: Corn | E78: SCO | F78: 01 | G78: Alabama | H78: AL | I78: 081 | J78: Lee | M78: 016 | N78: Grain | O78: 002 | P78: Irrigated | Q78: 997 | R78: No Commodity Type Specified | S78: 997 | T78: No Class Specified | U78: 997 | V78: No Subclass Specified | W78: 016 | X78: Grain | Y78: 002 | Z78: Irrigated | AA78: 997 | AB78: No Cropping Practice Specified | AC78: 997 | AD78: No Organic Practice Specified | AE78: 997 | AF78: No Interval Specified | AG78: 188.2 | AH78: 169.06 | AI78: 3.87 | AJ78: 728.33 | AK78: 3.53 | AL78: 596.78 | AM78: - | AN78: P | AO78: P | AP78: 188.2 | AQ78: 0.3693015966 | AR78: 0.3692606873 | AS78: -0.3481789199 | AT78: 29.58724 | AU78: 29.58396247 | AV78: 0 | AW78: 0.2538948477 | AX78: 29.58724 | AY78: 0.6770529272 | AZ78: 29.58724 | BA78: 0.1572116897 | BB78: 0.1572116897 | BC78: 0.1572116897
A79: 230 | B79: 2017 | C79: 0041 | D79: Corn | E79: SCO | F79: 01 | G79: Alabama | H79: AL | I79: 081 | J79: Lee | M79: 016 | N79: Grain | O79: 003 | P79: Non-Irrigated | Q79: 997 | R79: No Commodity Type Specified | S79: 997 | T79: No Class Specified | U79: 997 | V79: No Subclass Specified | W79: 016 | X79: Grain | Y79: 003 | Z79: Non-Irrigated | AA79: 997 | AB79: No Cropping Practice Specified | AC79: 997 | AD79: No Organic Practice Specified | AE79: 997 | AF79: No Interval Specified | AG79: 84 | AH79: 133.79 | AI79: 3.87 | AJ79: 325.08 | AK79: 3.53 | AL79: 472.28 | AM79: - | AN79: - | AO79: - | AP79: 84 | AQ79: -5.389196505 | AR79: -5.389196505 | AS79: -6.661255411 | AT79: 0 | AU79: 0 | AV79: 0 | AW79: -3.705072598 | AX79: 0 | AY79: -9.880193593 | AZ79: 0 | BA79: 0 | BB79: 0 | BC79: 0
A80: 235 | B80: 2017 | C80: 0041 | D80: Corn | E80: SCO | F80: 01 | G80: Alabama | H80: AL | I80: 083 | J80: Limestone | M80: 016 | N80: Grain | O80: 002 | P80: Irrigated | Q80: 997 | R80: No Commodity Type Specified | S80: 997 | T80: No Class Specified | U80: 997 | V80: No Subclass Specified | W80: 016 | X80: Grain | Y80: 002 | Z80: Irrigated | AA80: 997 | AB80: No Cropping Practice Specified | AC80: 997 | AD80: No Organic Practice Specified | AE80: 997 | AF80: No Interval Specified | AG80: 192.8 | AH80: 239.76 | AI80: 3.87 | AJ80: 746.14 | AK80: 3.53 | AL80: 846.35 | AM80: - | AN80: - | AO80: - | AP80: 192.8 | AQ80: -2.493733046 | AR80: -2.493677765 | AS80: -3.486986043 | AT80: 0 | AU80: 0 | AV80: 0 | AW80: -1.714441469 | AX80: 0 | AY80: -4.571843918 | AZ80: 0 | BA80: 0 | BB80: 0 | BC80: 0
A81: 236 | B81: 2017 | C81: 0041 | D81: Corn | E81: SCO | F81: 01 | G81: Alabama | H81: AL | I81: 083 | J81: Limestone | M81: 016 | N81: Grain | O81: 003 | P81: Non-Irrigated | Q81: 997 | R81: No Commodity Type Specified | S81: 997 | T81: No Class Specified | U81: 997 | V81: No Subclass Specified | W81: 016 | X81: Grain | Y81: 003 | Z81: Non-Irrigated | AA81: 997 | AB81: No Cropping Practice Specified | AC81: 997 | AD81: No Organic Practice Specified | AE81: 997 | AF81: No Interval Specified | AG81: 129.8 | AH81: 195.68 | AI81: 3.87 | AJ81: 502.33 | AK81: 3.53 | AL81: 690.75 | AM81: - | AN81: - | AO81: - | AP81: 129.8 | AQ81: -4.682754734 | AR81: -4.68265519 | AS81: -5.886818882 | AT81: 0 | AU81: 0 | AV81: 0 | AW81: -3.21939388 | AX81: 0 | AY81: -8.585050346 | AZ81: 0 | BA81: 0 | BB81: 0 | BC81: 0
A82: 241 | B82: 2017 | C82: 0041 | D82: Corn | E82: SCO | F82: 01 | G82: Alabama | H82: AL | I82: 085 | J82: Lowndes | M82: 016 | N82: Grain | O82: 002 | P82: Irrigated | Q82: 997 | R82: No Commodity Type Specified | S82: 997 | T82: No Class Specified | U82: 997 | V82: No Subclass Specified | W82: 016 | X82: Grain | Y82: 002 | Z82: Irrigated | AA82: 997 | AB82: No Cropping Practice Specified | AC82: 997 | AD82: No Organic Practice Specified | AE82: 997 | AF82: No Interval Specified | AG82: 172.7 | AH82: 193.28 | AI82: 3.87 | AJ82: 668.35 | AK82: 3.53 | AL82: 682.28 | AM82: - | AN82: - | AO82: - | AP82: 172.7 | AQ82: -1.462217277 | AR82: -1.462203391 | AS82: -2.356056219 | AT82: 0 | AU82: 0 | AV82: 0 | AW82: -1.005274378 | AX82: 0 | AY82: -2.680731674 | AZ82: 0 | BA82: 0 | BB82: 0 | BC82: 0
A83: 242 | B83: 2017 | C83: 0041 | D83: Corn | E83: SCO | F83: 01 | G83: Alabama | H83: AL | I83: 085 | J83: Lowndes | M83: 016 | N83: Grain | O83: 003 | P83: Non-Irrigated | Q83: 997 | R83: No Commodity Type Specified | S83: 997 | T83: No Class Specified | U83: 997 | V83: No Subclass Specified | W83: 016 | X83: Grain | Y83: 003 | Z83: Non-Irrigated | AA83: 997 | AB83: No Cropping Practice Specified | AC83: 997 | AD83: No Organic Practice Specified | AE83: 997 | AF83: No Interval Specified | AG83: 82.5 | AH83: 138.42 | AI83: 3.87 | AJ83: 319.28 | AK83: 3.53 | AL83: 488.62 | AM83: - | AN83: - | AO83: - | AP83: 82.5 | AQ83: -6.094589304 | AR83: -6.094371427 | AS83: -7.434710744 | AT83: 0 | AU83: 0 | AV83: 0 | AW83: -4.190030146 | AX83: 0 | AY83: -11.17341372 | AZ83: 0 | BA83: 0 | BB83: 0 | BC83: 0
A84: 247 | B84: 2017 | C84: 0041 | D84: Corn | E84: SCO | F84: 01 | G84: Alabama | H84: AL | I84: 087 | J84: Macon | M84: 016 | N84: Grain | O84: 002 | P84: Irrigated | Q84: 997 | R84: No Commodity Type Specified | S84: 997 | T84: No Class Specified | U84: 997 | V84: No Subclass Specified | W84: 016 | X84: Grain | Y84: 002 | Z84: Irrigated | AA84: 997 | AB84: No Cropping Practice Specified | AC84: 997 | AD84: No Organic Practice Specified | AE84: 997 | AF84: No Interval Specified | AG84: 189.7 | AH84: 169.61 | AI84: 3.87 | AJ84: 734.14 | AK84: 3.53 | AL84: 598.72 | AM84: - | AN84: P | AO84: P | AP84: 189.7 | AQ84: 0.4041783517 | AR84: 0.4041884506 | AS84: -0.3099630996 | AT84: 32.63954 | AU84: 32.64035554 | AV84: 0 | AW84: 0.2778726168 | AX84: 32.63954 | AY84: 0.7409936447 | AZ84: 32.63954 | BA84: 0.1720587243 | BB84: 0.1720587243 | BC84: 0.1720587243
A85: 248 | B85: 2017 | C85: 0041 | D85: Corn | E85: SCO | F85: 01 | G85: Alabama | H85: AL | I85: 087 | J85: Macon | M85: 016 | N85: Grain | O85: 003 | P85: Non-Irrigated | Q85: 997 | R85: No Commodity Type Specified | S85: 997 | T85: No Class Specified | U85: 997 | V85: No Subclass Specified | W85: 016 | X85: Grain | Y85: 003 | Z85: Non-Irrigated | AA85: 997 | AB85: No Cropping Practice Specified | AC85: 997 | AD85: No Organic Practice Specified | AE85: 997 | AF85: No Interval Specified | AG85: 77.1 | AH85: 135.59 | AI85: 3.87 | AJ85: 298.38 | AK85: 3.53 | AL85: 478.63 | AM85: - | AN85: - | AO85: - | AP85: 77.1 | AQ85: -6.7646507 | AR85: -6.76450408 | AS85: -8.169319656 | AT85: 0 | AU85: 0 | AV85: 0 | AW85: -4.650697356 | AX85: 0 | AY85: -12.40185962 | AZ85: 0 | BA85: 0 | BB85: 0 | BC85: 0
A86: 253 | B86: 2017 | C86: 0041 | D86: Corn | E86: SCO | F86: 01 | G86: Alabama | H86: AL | I86: 089 | J86: Madison | M86: 016 | N86: Grain | O86: 002 | P86: Irrigated | Q86: 997 | R86: No Commodity Type Specified | S86: 997 | T86: No Class Specified | U86: 997 | V86: No Subclass Specified | W86: 016 | X86: Grain | Y86: 002 | Z86: Irrigated | AA86: 997 | AB86: No Cropping Practice Specified | AC86: 997 | AD86: No Organic Practice Specified | AE86: 997 | AF86: No Interval Specified | AG86: 205.4 | AH86: 239.81 | AI86: 3.87 | AJ86: 794.9 | AK86: 3.53 | AL86: 846.53 | AM86: - | AN86: - | AO86: - | AP86: 205.4 | AQ86: -1.863220415 | AR86: -1.863196057 | AS86: -2.795697973 | AT86: 0 | AU86: 0 | AV86: 0 | AW86: -1.280964036 | AX86: 0 | AY86: -3.415904095 | AZ86: 0 | BA86: 0 | BB86: 0 | BC86: 0
A87: 254 | B87: 2017 | C87: 0041 | D87: Corn | E87: SCO | F87: 01 | G87: Alabama | H87: AL | I87: 089 | J87: Madison | M87: 016 | N87: Grain | O87: 003 | P87: Non-Irrigated | Q87: 997 | R87: No Commodity Type Specified | S87: 997 | T87: No Class Specified | U87: 997 | V87: No Subclass Specified | W87: 016 | X87: Grain | Y87: 003 | Z87: Non-Irrigated | AA87: 997 | AB87: No Cropping Practice Specified | AC87: 997 | AD87: No Organic Practice Specified | AE87: 997 | AF87: No Interval Specified | AG87: 128.5 | AH87: 172.66 | AI87: 3.87 | AJ87: 497.3 | AK87: 3.53 | AL87: 609.49 | AM87: - | AN87: - | AO87: - | AP87: 128.5 | AQ87: -3.323732301 | AR87: -3.323620277 | AS87: -4.39688716 | AT87: 0 | AU87: 0 | AV87: 0 | AW87: -2.285065957 | AX87: 0 | AY87: -6.093509218 | AZ87: 0 | BA87: 0 | BB87: 0 | BC87: 0
A88: 259 | B88: 2017 | C88: 0041 | D88: Corn | E88: SCO | F88: 01 | G88: Alabama | H88: AL | I88: 091 | J88: Marengo | M88: 016 | N88: Grain | O88: 002 | P88: Irrigated | Q88: 997 | R88: No Commodity Type Specified | S88: 997 | T88: No Class Specified | U88: 997 | V88: No Subclass Specified | W88: 016 | X88: Grain | Y88: 002 | Z88: Irrigated | AA88: 997 | AB88: No Cropping Practice Specified | AC88: 997 | AD88: No Organic Practice Specified | AE88: 997 | AF88: No Interval Specified | AG88: 173.8 | AH88: 193.9 | AI88: 3.87 | AJ88: 672.61 | AK88: 3.53 | AL88: 684.47 | AM88: - | AN88: - | AO88: - | AP88: 173.8 | AQ88: -1.433080504 | AR88: -1.433025487 | AS88: -2.324092478 | AT88: 0 | AU88: 0 | AV88: 0 | AW88: -0.9852428465 | AX88: 0 | AY88: -2.627314257 | AZ88: 0 | BA88: 0 | BB88: 0 | BC88: 0
A89: 260 | B89: 2017 | C89: 0041 | D89: Corn | E89: SCO | F89: 01 | G89: Alabama | H89: AL | I89: 091 | J89: Marengo | M89: 016 | N89: Grain | O89: 003 | P89: Non-Irrigated | Q89: 997 | R89: No Commodity Type Specified | S89: 997 | T89: No Class Specified | U89: 997 | V89: No Subclass Specified | W89: 016 | X89: Grain | Y89: 003 | Z89: Non-Irrigated | AA89: 997 | AB89: No Cropping Practice Specified | AC89: 997 | AD89: No Organic Practice Specified | AE89: 997 | AF89: No Interval Specified | AG89: 76.1 | AH89: 110.59 | AI89: 3.87 | AJ89: 294.51 | AK89: 3.53 | AL89: 390.38 | AM89: - | AN89: - | AO89: - | AP89: 76.1 | AQ89: -4.232156853 | AR89: -4.232034103 | AS89: -5.392904074 | AT89: 0 | AU89: 0 | AV89: 0 | AW89: -2.909607836 | AX89: 0 | AY89: -7.75895423 | AZ89: 0 | BA89: 0 | BB89: 0 | BC89: 0
A90: 265 | B90: 2017 | C90: 0041 | D90: Corn | E90: SCO | F90: 01 | G90: Alabama | H90: AL | I90: 093 | J90: Marion | M90: 016 | N90: Grain | O90: 002 | P90: Irrigated | Q90: 997 | R90: No Commodity Type Specified | S90: 997 | T90: No Class Specified | U90: 997 | V90: No Subclass Specified | W90: 016 | X90: Grain | Y90: 002 | Z90: Irrigated | AA90: 997 | AB90: No Cropping Practice Specified | AC90: 997 | AD90: No Organic Practice Specified | AE90: 997 | AF90: No Interval Specified | AG90: 174.2 | AH90: 213.74 | AI90: 3.87 | AJ90: 674.15 | AK90: 3.53 | AL90: 754.5 | AM90: - | AN90: - | AO90: - | AP90: 174.2 | AQ90: -2.356186218 | AR90: -2.356246587 | AS90: -3.336186202 | AT90: 0 | AU90: 0 | AV90: 0 | AW90: -1.619878025 | AX90: 0 | AY90: -4.319674733 | AZ90: 0 | BA90: 0 | BB90: 0 | BC90: 0
A91: 266 | B91: 2017 | C91: 0041 | D91: Corn | E91: SCO | F91: 01 | G91: Alabama | H91: AL | I91: 093 | J91: Marion | M91: 016 | N91: Grain | O91: 003 | P91: Non-Irrigated | Q91: 997 | R91: No Commodity Type Specified | S91: 997 | T91: No Class Specified | U91: 997 | V91: No Subclass Specified | W91: 016 | X91: Grain | Y91: 003 | Z91: Non-Irrigated | AA91: 997 | AB91: No Cropping Practice Specified | AC91: 997 | AD91: No Organic Practice Specified | AE91: 997 | AF91: No Interval Specified | AG91: 108.5 | AH91: 161.26 | AI91: 3.87 | AJ91: 419.9 | AK91: 3.53 | AL91: 569.25 | AM91: - | AN91: - | AO91: - | AP91: 108.5 | AQ91: -4.506327881 | AR91: -4.506181125 | AS91: -5.693338919 | AT91: 0 | AU91: 0 | AV91: 0 | AW91: -3.098100418 | AX91: 0 | AY91: -8.261601115 | AZ91: 0 | BA91: 0 | BB91: 0 | BC91: 0
A92: 271 | B92: 2017 | C92: 0041 | D92: Corn | E92: SCO | F92: 01 | G92: Alabama | H92: AL | I92: 095 | J92: Marshall | M92: 016 | N92: Grain | O92: 002 | P92: Irrigated | Q92: 997 | R92: No Commodity Type Specified | S92: 997 | T92: No Class Specified | U92: 997 | V92: No Subclass Specified | W92: 016 | X92: Grain | Y92: 002 | Z92: Irrigated | AA92: 997 | AB92: No Cropping Practice Specified | AC92: 997 | AD92: No Organic Practice Specified | AE92: 997 | AF92: No Interval Specified | AG92: 204.2 | AH92: 238.09 | AI92: 3.87 | AJ92: 790.25 | AK92: 3.53 | AL92: 840.46 | AM92: - | AN92: - | AO92: - | AP92: 204.2 | AQ92: -1.850286111 | AR92: -1.850335049 | AS92: -2.78149764 | AT92: 0 | AU92: 0 | AV92: 0 | AW92: -1.272071701 | AX92: 0 | AY92: -3.392191203 | AZ92: 0 | BA92: 0 | BB92: 0 | BC92: 0
A93: 272 | B93: 2017 | C93: 0041 | D93: Corn | E93: SCO | F93: 01 | G93: Alabama | H93: AL | I93: 095 | J93: Marshall | M93: 016 | N93: Grain | O93: 003 | P93: Non-Irrigated | Q93: 997 | R93: No Commodity Type Specified | S93: 997 | T93: No Class Specified | U93: 997 | V93: No Subclass Specified | W93: 016 | X93: Grain | Y93: 003 | Z93: Non-Irrigated | AA93: 997 | AB93: No Cropping Practice Specified | AC93: 997 | AD93: No Organic Practice Specified | AE93: 997 | AF93: No Interval Specified | AG93: 127.1 | AH93: 165.6 | AI93: 3.87 | AJ93: 491.88 | AK93: 3.53 | AL93: 584.57 | AM93: - | AN93: - | AO93: - | AP93: 127.1 | AQ93: -2.985886531 | AR93: -2.985820636 | AS93: -4.026464488 | AT93: 0 | AU93: 0 | AV93: 0 | AW93: -2.05279699 | AX93: 0 | AY93: -5.474125306 | AZ93: 0 | BA93: 0 | BB93: 0 | BC93: 0
A94: 277 | B94: 2017 | C94: 0041 | D94: Corn | E94: SCO | F94: 01 | G94: Alabama | H94: AL | I94: 097 | J94: Mobile | M94: 016 | N94: Grain | O94: 002 | P94: Irrigated | Q94: 997 | R94: No Commodity Type Specified | S94: 997 | T94: No Class Specified | U94: 997 | V94: No Subclass Specified | W94: 016 | X94: Grain | Y94: 002 | Z94: Irrigated | AA94: 997 | AB94: No Cropping Practice Specified | AC94: 997 | AD94: No Organic Practice Specified | AE94: 997 | AF94: No Interval Specified | AG94: 124.8 | AH94: 158.27 | AI94: 3.87 | AJ94: 482.98 | AK94: 3.53 | AL94: 558.69 | AM94: - | AN94: - | AO94: - | AP94: 124.8 | AQ94: -2.697868669 | AR94: -2.697781576 | AS94: -3.710810023 | AT94: 0 | AU94: 0 | AV94: 0 | AW94: -1.85478471 | AX94: 0 | AY94: -4.946092559 | AZ94: 0 | BA94: 0 | BB94: 0 | BC94: 0
